Workbook

Sheet Cover
A1: RIIO Price Control Financial Model (PCFM)
B2: Gas Distribution
C3: =MID(CELL("filename"),SEARCH("[",CELL("filename"))+1,SEARCH("]",CELL("filename"))-SEARCH("[",CELL("filename"))-1) -> GD1 PCFM for use in AIP 2018.xlsm
C4: DISCLAIMER: The purpose of this model is used to calculate Base Revenue (PU) at Final Proposals and MOD terms in subsequent years for Licensees on the basis of Financial Handbook and Licence conditions of the relevant Network Operator
B5: =IF(m_PCFM_year_t=1,"RIIO GD1 Price Control Financial Model for the Annual Iteration Process that will take place by 30 November 2013-14","RIIO GD1 Price Control Financial Model for the Annual Iteration Process that will take place by 30 November " & YEAR(UserInterface!$G$10)-2) -> RIIO GD1 Price Control Financial Model for the Annual Iteration Process that will take place by 30 November 2017
B7: Model key
E9: Sample | G9: Calculated value | I9: Sample | K9: Information and interface
E10: Sample | G10: Import | I10: Sample | K10: FP fixed input value
E11: Sample | G11: Export | I11: Sample | K11: Annual update input
E12: Sample | G12: Named range | I12: Sample | K12: Input linked from annual update
E13: Sample | G13: Formula change in cells to the right | I13: Sample | K13: Notes and instructions
B16: Contents
E18: INTERFACE > | I18: COMPANY SPECIFIC INPUT SHEETS >
E19: Cover | G19: Model key and content directory
E20: UserInterface | G20: Model operation | I20: East | K20: Inputs for East DNO
E21: TaxTrigger | G21: Tax trigger calculations | I21: London | K21: Inputs for London DNO
E22: INPUT SELECTION > | I22: North West | K22: Inputs for North West DNO
E23: Input | G23: Inputs for selected licensee | I23: West Midlands | K23: Inputs for West Midlands DNO
E24: CALCULATION > | I24: Northern | K24: Inputs for Northern DNO
E25: Totex | G25: Totex allowance and actuals | I25: Scotland | K25: Inputs for Scotland DNO
E26: TIM | G26: Totex Incentive Mechanism and capitalisation | I26: Southern | K26: Inputs for Southern DNO
E27: DARTs | G27: Direct Allowance Revenue Terms | I27: Wales & West | K27: Inputs for Wales & West DNO
E28: Depn | G28: Gas distribution regulatory depreciation
E29: FuelPoor | G29: Fuel poor RAV calculations
E30: Return&RAV | G30: RAV and return calculations
E31: TaxPools | G31: Tax pools and capital allowances
E32: Finance&Tax | G32: Net debt, equity issuance, financing costs and tax
E33: Revenue | G33: Revenue and MOD
E34: OUTPUT >
E35: ResultsLive | G35: Results for selected company
E36: SavedResults | G36: Saved results for all companies
B38: End of sheet

Sheet UserInterface
A1: User Interface
B3: Model operation
C5: PCFM year t
C6: Instruction: Use the following drop-down list to identify year t in the model. Year t is identified here by its end date.
E8: Year t selection:
E10: Year t selected: | G10: =EOMONTH(41364,G54*12) -> 2019-03-31
C12: Active company
C13: Instruction: Use the following drop-down list to select the active company in the model.
E15: Company selection:
E17: Selected company: | G17: =INDEX(E46:E53, E54) -> East
C19: Model state
C20: Instruction: Use the following drop-down list to set the model state and run it as either the "Licence Model" or the "Tax Trigger Tool."
C21: Note: "Tax Trigger Tool" must be selected here for functionality on the "TaxTrigger" sheet to function.
C22: Selecting "Licence Model" ensures that the Tax Trigger Tool functionality is deactivated and does not affect the calculations in the model.
E24: Model status selection:
E26: Selected model status: | G26: =INDEX(E58:E59, E60) -> Licence Model
C28: Run model for all licensees
C29: Instruction: Click on the left button to save results for the selected company only. Click the right button to save results for all.
C30: Note: Annual iterations must have been completed for all prior years before running the model to generate MOD.
C31: The macros save results and values required for future years which cannot be recreated once inputs are revised.
C32: Running the macro saves the output from year t's iteration for use in future iterations.
C33: Results for the selected company can be found on the "LiveResults" sheet and also on the "SavedResults" sheet once saved by a macro.
B39: User selection lists
B40: Note: The lists below drive the drop-down lists above.
B41: Using the drop-down lists above returns an integer in the "cell link" positioned below their "source list."
B42: The number returned in the cell link corresponds to the position of the selected item in the source list.
B43: The company selection output is set as a "named range." This gives a stable anchor point for the "RunForAll" macro to change the company.
E45: ="Source for ''"&C12&"'' drop-down list" -> Source for ''Active company'' drop-down list | G45: ="Source for ''"&C5&"'' drop-down list" -> Source for ''PCFM year t'' drop-down list
E46: East | G46: 2014-03-31
E47: London | G47: 2015-03-31
E48: North West | G48: 2016-03-31
E49: West Midlands | G49: 2017-03-31
E50: Northern | G50: 2018-03-31
E51: Scotland | G51: 2019-03-31
E52: Southern | G52: 2020-03-31
E53: Wales & West | G53: 2021-03-31
E54: 1 | G54: 6
E55: Adjacent named range: m_identity | G55: Adjacent named range: m_PCFM_year_t
E57: ="Source for ''"&C19&"'' drop-down list" -> Source for ''Model state'' drop-down list
E58: Licence Model
E59: Tax Trigger Tool
E60: 1
E61: Adjacent named range: m_model_state
B63: End of sheet

Sheet TaxTrigger
A1: Tax Trigger
B2: =UserInterface!G17 -> East
E3: Parameter | G3: Units | I3: Constant | AH3: Annual values
E4: PCFM year ending | I4: =UserInterface!$G$10 -> 2019-03-31 | K4: 1991-03-31 | L4: 1992-03-31 | M4: 1993-03-31 | N4: 1994-03-31 | O4: 1995-03-31 | P4: 1996-03-31 | Q4: 1997-03-31 | R4: 1998-03-31 | S4: 1999-03-31 | T4: 2000-03-31 | U4: 2001-03-31 | V4: 2002-03-31 | W4: 2003-03-31 | X4: 2004-03-31 | Y4: 2005-03-31 | Z4: 2006-03-31 | AA4: 2007-03-31 | AB4: 2008-03-31 | AC4: 2009-03-31 | AD4: 2010-03-31 | AE4: 2011-03-31 | AF4: 2012-03-31 | AG4: 2013-03-31 | AH4: 2014-03-31 | AI4: 2015-03-31 | AJ4: 2016-03-31 | AK4: 2017-03-31 | AL4: 2018-03-31 | AM4: 2019-03-31 | AN4: 2020-03-31 | AO4: 2021-03-31
B6: Tax trigger calculation
C8: Test operation
C9: Instruction: To run the model as the Tax Trigger Tool, the "model state" must be set to "Tax Trigger Tool" on the "UserInterface" sheet. The model state selected is shown below.
C10: Clicking the macro button below runs the "TaxTrigger" macro, performing the Tax Trigger adjustment calculation for the selected licensee for year t.
C11: The output generated by the macro can be replicated manually using the following steps:
C12: 1. Clear any values from previous tests in the "Test state output" section below (named range "m_saved_original_results")
C13: 2. Set testing state to "Licence Model"
C14: 3. Copy the cells marked as the "m_calculated_tax" named range and paste them at the named range "m_saved_original_test."
C15: 4. Set testing state to "Tax Trigger Calculation"
C16: Note: The Tax Trigger Tool is disabled if the "Model state" below reads "Licence Model."
E18: Model state
E19: =UserInterface!G26 -> Licence Model
E22: State selection
E25: State options
E26: Licence Model
E27: Tax Trigger Calculation
E28: 1
E29: Adjacent named range: m_tax_trigger_state
E31: State selected
E32: =IF(E19 = "Licence Model", "Licence Model", INDEX(E26:E27, E28)) -> Licence Model
E34: Run macro
C40: Tax calculation
I42: Instruction
E43: Profits attributable to corporation tax | AH43: ='Finance&Tax'!AH166*Input!$AD$43/Input!AH$43 -> 68.27176053 | AI43: ='Finance&Tax'!AI166*Input!$AD$43/Input!AI$43 -> 55.55968997 | AJ43: ='Finance&Tax'!AJ166*Input!$AD$43/Input!AJ$43 -> 131.5479949 | AK43: ='Finance&Tax'!AK166*Input!$AD$43/Input!AK$43 -> 201.8601665 | AL43: ='Finance&Tax'!AL166*Input!$AD$43/Input!AL$43 -> 149.7837441 | AM43: ='Finance&Tax'!AM166*Input!$AD$43/Input!AM$43 -> 144.745262 | AN43: ='Finance&Tax'!AN166*Input!$AD$43/Input!AN$43 -> 137.1635323 | AO43: ='Finance&Tax'!AO166*Input!$AD$43/Input!AO$43 -> 137.9079159
E44: Corporation tax rate | AH44: ='Finance&Tax'!AH184 -> 0.23 | AI44: ='Finance&Tax'!AI184 -> 0.21 | AJ44: ='Finance&Tax'!AJ184 -> 0.21 | AK44: ='Finance&Tax'!AK184 -> 0.21 | AL44: ='Finance&Tax'!AL184 -> 0.21 | AM44: ='Finance&Tax'!AM184 -> 0.21 | AN44: ='Finance&Tax'!AN184 -> 0.21 | AO44: ='Finance&Tax'!AO184 -> 0.21
E45: "Grossing-up" factor for tax on tax charge | AH45: ='Finance&Tax'!AH187 -> 1.298701299 | AI45: ='Finance&Tax'!AI187 -> 1.265822785 | AJ45: ='Finance&Tax'!AJ187 -> 1.265822785 | AK45: ='Finance&Tax'!AK187 -> 1.265822785 | AL45: ='Finance&Tax'!AL187 -> 1.265822785 | AM45: ='Finance&Tax'!AM187 -> 1.265822785 | AN45: ='Finance&Tax'!AN187 -> 1.265822785 | AO45: ='Finance&Tax'!AO187 -> 1.265822785
E46: Corporation tax charge (tax allowance) before losses | AH46: =AH44*AH43*AH45 -> 20.39286353 | AI46: =AI44*AI43*AI45 -> 14.76903151 | AJ46: 34.96845435 | AK46: 53.65903161 | AL46: 39.81593199 | AM46: 38.47658863 | AN46: 36.46119213 | AO46: 36.65906624
E48: Tax allowance (pre losses) before tax trigger | G48: £m 09/10 prices | AH48: =AH46 -> 20.39286353 | AI48: =AI46 -> 14.76903151 | AJ48: 34.96845435 | AK48: 53.65903161 | AL48: 39.81593199 | AM48: 38.47658863 | AN48: 36.46119213 | AO48: 36.65906624
E49: B event value | G49: £m 09/10 prices | AH49: =AH127 -> 0 | AI49: =AI127 -> 0 | AJ49: 0 | AK49: 0 | AL49: 0 | AM49: 0 | AN49: 0 | AO49: 0
E50: Threshold value adjustment | G50: £m 09/10 prices | AH50: =AH78 -> 0 | AI50: =AI78 -> 0 | AJ50: 0 | AK50: 0 | AL50: 0 | AM50: 0 | AN50: 0 | AO50: 0
E51: Tax allowance | G51: £m 09/10 prices | I51: =IF(m_tax_trigger_state = 1, "Copy cells -->", "-") -> Copy cells --> | AH51: =SUM(AH48:AH50) -> 20.39286353 | AI51: 14.76903151 | AJ51: 34.96845435 | AK51: 53.65903161 | AL51: 39.81593199 | AM51: 38.47658863 | AN51: 36.46119213 | AO51: 36.65906624
AH52: Adjacent named range: m_calculated_tax
C53: Test state output
C54: Note: The formula determines whether the recalculated tax is above or below the threshold and sets the adjustment accordingly
I56: Instruction
E57: Value with original settings | G57: £m 09/10 prices | I57: =IF( m_tax_trigger_state = 1, "Paste cells -->","-") -> Paste cells --> | AG57: m_tax_trigger_results
AH58: Named ranges above: m_saved_original_test
E59: Value with new settings and threshold adjustment | G59: £m 09/10 prices | AH59: =AH51 -> 20.39286353 | AI59: =AI51 -> 14.76903151 | AJ59: 34.96845435 | AK59: 53.65903161 | AL59: 39.81593199 | AM59: 38.47658863 | AN59: 36.46119213 | AO59: 36.65906624
C61: Result and output
C62: Note: Once the test is complete, the "Tax Trigger adjustment" below can be taken from below and inputted to the PCFM set to run as the Licence Model, rather than the Tax Trigger Tool.
E64: Tax trigger adjustment | G64: £m 09/10 prices | AH64: =IF(AND(m_tax_trigger_state=2,m_model_state=2),IF(ABS((AH48+AH49)-AH57)> ABS(AH78), AH59 - AH57, 0),0) -> 0 | AI64: 0 | AJ64: 0 | AK64: 0 | AL64: 0 | AM64: 0 | AN64: 0 | AO64: 0
B66: Tax trigger parameters
B67: Instruction: Enter values in the yellow cells below for use in the Tax Trigger test.
B68: Note: Flags are used throughout to indicate whether the original or Tax Trigger value is being used. The live values below are exported for use throughout the model.
C70: Active policy
E72: Tax trigger tax settings are used | G72: flag | AH72: =IF(AND(AH$4 <= $I4, m_tax_trigger_state = 2, UserInterface!$G$26 = "Tax Trigger Tool"), TRUE, FALSE) -> FALSE | AI72: =IF(AND(AI$4 <= $I4, m_tax_trigger_state = 2, UserInterface!$G$26 = "Tax Trigger Tool"), TRUE, FALSE) -> FALSE | AJ72: =IF(AND(AJ$4 <= $I4, m_tax_trigger_state = 2, UserInterface!$G$26 = "Tax Trigger Tool"), TRUE, FALSE) -> FALSE | AK72: =IF(AND(AK$4 <= $I4, m_tax_trigger_state = 2, UserInterface!$G$26 = "Tax Trigger Tool"), TRUE, FALSE) -> FALSE | AL72: =IF(AND(AL$4 <= $I4, m_tax_trigger_state = 2, UserInterface!$G$26 = "Tax Trigger Tool"), TRUE, FALSE) -> FALSE | AM72: =IF(AND(AM$4 <= $I4, m_tax_trigger_state = 2, UserInterface!$G$26 = "Tax Trigger Tool"), TRUE, FALSE) -> FALSE | AN72: =IF(AND(AN$4 <= $I4, m_tax_trigger_state = 2, UserInterface!$G$26 = "Tax Trigger Tool"), TRUE, FALSE) -> FALSE | AO72: =IF(AND(AO$4 <= $I4, m_tax_trigger_state = 2, UserInterface!$G$26 = "Tax Trigger Tool"), TRUE, FALSE) -> FALSE
C74: Threshold
E76: Threshold value | G76: £m 09/10 prices | AH76: =CHOOSE(m_identity,AH131,AH132,AH133,AH134,AH135,AH136,AH137,AH138) -> 1.77169449 | AI76: 1.708826995 | AJ76: 1.719468625 | AK76: 1.688120238 | AL76: 1.684110661 | AM76: 1.680561786 | AN76: 1.671204729 | AO76: 1.675050423
E78: Threshold value applied | G78: £m 09/10 prices | AH78: =IF(OR((AH48+AH49) = AH57, AH57 = ""), 0, IF(AH57 < (AH48+AH49), -AH76, +AH76)) -> 0 | AI78: =IF(OR((AI48+AI49) = AI57, AI57 = ""), 0, IF(AI57 < (AI48+AI49), -AI76, +AI76)) -> 0 | AJ78: 0 | AK78: 0 | AL78: 0 | AM78: 0 | AN78: 0 | AO78: 0
C80: Corporation tax rate
E82: Active | G82: text | AH82: =AH$72 = FALSE() -> TRUE | AI82: TRUE | AJ82: TRUE | AK82: TRUE | AL82: TRUE | AM82: TRUE | AN82: TRUE | AO82: TRUE
E83: RIIO | G83: % | J83: > | Y83: =Input!Y218 -> 0.3 | Z83: =Input!Z218 -> 0.3 | AA83: =Input!AA218 -> 0.3 | AB83: =Input!AB218 -> 0.3 | AC83: =Input!AC218 -> 0.28 | AD83: =Input!AD218 -> 0.28 | AE83: =Input!AE218 -> 0.28 | AF83: =Input!AF218 -> 0.26 | AG83: =Input!AG218 -> 0.24 | AH83: =Input!AH218 -> 0.23 | AI83: =Input!AI218 -> 0.21 | AJ83: =Input!AJ218 -> 0.21 | AK83: =Input!AK218 -> 0.21 | AL83: =Input!AL218 -> 0.21 | AM83: =Input!AM218 -> 0.21 | AN83: =Input!AN218 -> 0.21 | AO83: =Input!AO218 -> 0.21
E85: Active | G85: text | AH85: =AH$72 -> FALSE | AI85: FALSE | AJ85: FALSE | AK85: FALSE | AL85: FALSE | AM85: FALSE | AN85: FALSE | AO85: FALSE
E86: Tax trigger | G86: % | AH86: 0.23 | AI86: 0.21 | AJ86: 0.2 | AK86: 0.2 | AL86: 0.19 | AM86: 0.19 | AN86: 0.19 | AO86: 0.17
E88: Applied | G88: % | J88: > | Y88: =Y83 -> 0.3 | Z88: =Z83 -> 0.3 | AA88: =AA83 -> 0.3 | AB88: 0.3 | AC88: 0.28 | AD88: 0.28 | AE88: 0.28 | AF88: 0.26 | AG88: 0.24 | AH88: =(AH82 * AH83) + (AH85 * AH86) -> 0.23 | AI88: =(AI82 * AI83) + (AI85 * AI86) -> 0.21 | AJ88: 0.21 | AK88: 0.21 | AL88: 0.21 | AM88: 0.21 | AN88: 0.21 | AO88: 0.21
C90: Capital allowance rate
D92: General pool
E94: Active | G94: text | AH94: =AH$72 = FALSE() -> TRUE | AI94: TRUE | AJ94: TRUE | AK94: TRUE | AL94: TRUE | AM94: TRUE | AN94: TRUE | AO94: TRUE
E95: RIIO | G95: % | V95: =Input!V220 -> 0.25 | W95: =Input!W220 -> 0.25 | X95: =Input!X220 -> 0.25 | Y95: =Input!Y220 -> 0.25 | Z95: =Input!Z220 -> 0.25 | AA95: =Input!AA220 -> 0.25 | AB95: =Input!AB220 -> 0.25 | AC95: =Input!AC220 -> 0.2 | AD95: =Input!AD220 -> 0.2 | AE95: =Input!AE220 -> 0.2 | AF95: =Input!AF220 -> 0.2 | AG95: =Input!AG220 -> 0.18 | AH95: =Input!AH220 -> 0.18 | AI95: =Input!AI220 -> 0.18 | AJ95: =Input!AJ220 -> 0.18 | AK95: =Input!AK220 -> 0.18 | AL95: =Input!AL220 -> 0.18 | AM95: =Input!AM220 -> 0.18 | AN95: =Input!AN220 -> 0.18 | AO95: =Input!AO220 -> 0.18
E97: Active | G97: text | AH97: =AH$72 -> FALSE | AI97: FALSE | AJ97: FALSE | AK97: FALSE | AL97: FALSE | AM97: FALSE | AN97: FALSE | AO97: FALSE
E98: Tax trigger | G98: % | AH98: =AH95 -> 0.18 | AI98: =AI95 -> 0.18 | AJ98: 0.18 | AK98: 0.18 | AL98: 0.18 | AM98: 0.18 | AN98: 0.18 | AO98: 0.18
E100: Applied | G100: % | V100: =V95 -> 0.25 | W100: 0.25 | X100: 0.25 | Y100: 0.25 | Z100: 0.25 | AA100: 0.25 | AB100: 0.25 | AC100: 0.2 | AD100: 0.2 | AE100: 0.2 | AF100: 0.2 | AG100: =AG95 -> 0.18 | AH100: =(AH94 * AH95) + (AH97 * AH98) -> 0.18 | AI100: 0.18 | AJ100: 0.18 | AK100: 0.18 | AL100: 0.18 | AM100: 0.18 | AN100: 0.18 | AO100: 0.18
D102: Special Rate pool
E104: Active | G104: text | AH104: =AH$72 = FALSE() -> TRUE | AI104: TRUE | AJ104: TRUE | AK104: TRUE | AL104: TRUE | AM104: TRUE | AN104: TRUE | AO104: TRUE
E105: RIIO | G105: % | J105: > | V105: =Input!V221 -> 0.06 | W105: =Input!W221 -> 0.06 | X105: =Input!X221 -> 0.06 | Y105: =Input!Y221 -> 0.06 | Z105: =Input!Z221 -> 0.06 | AA105: =Input!AA221 -> 0.06 | AB105: =Input!AB221 -> 0.06 | AC105: =Input!AC221 -> 0.1 | AD105: =Input!AD221 -> 0.1 | AE105: =Input!AE221 -> 0.1 | AF105: =Input!AF221 -> 0.1 | AG105: =Input!AG221 -> 0.08 | AH105: =Input!AH221 -> 0.08 | AI105: =Input!AI221 -> 0.08 | AJ105: =Input!AJ221 -> 0.08 | AK105: =Input!AK221 -> 0.08 | AL105: =Input!AL221 -> 0.08 | AM105: =Input!AM221 -> 0.08 | AN105: =Input!AN221 -> 0.08 | AO105: =Input!AO221 -> 0.08
E107: Active | G107: text | AH107: =AH$72 -> FALSE | AI107: FALSE | AJ107: FALSE | AK107: FALSE | AL107: FALSE | AM107: FALSE | AN107: FALSE | AO107: FALSE
E108: Tax trigger | G108: % | AH108: =AH105 -> 0.08 | AI108: =AI105 -> 0.08 | AJ108: 0.08 | AK108: 0.08 | AL108: 0.08 | AM108: 0.08 | AN108: 0.08 | AO108: 0.08
E110: Applied | G110: % | J110: > | V110: =V105 -> 0.06 | W110: =W105 -> 0.06 | X110: =X105 -> 0.06 | Y110: =Y105 -> 0.06 | Z110: =Z105 -> 0.06 | AA110: =AA105 -> 0.06 | AB110: 0.06 | AC110: 0.1 | AD110: 0.1 | AE110: 0.1 | AF110: 0.1 | AG110: 0.08 | AH110: =(AH104 * AH105) + (AH107 * AH108) -> 0.08 | AI110: 0.08 | AJ110: 0.08 | AK110: 0.08 | AL110: 0.08 | AM110: 0.08 | AN110: 0.08 | AO110: 0.08
D112: Deferred revenue writing down allowance rate
E114: Active | G114: text | AH114: =AH$72 = FALSE() -> TRUE | AI114: TRUE | AJ114: TRUE | AK114: TRUE | AL114: TRUE | AM114: TRUE | AN114: TRUE | AO114: TRUE
E115: RIIO | G115: % | J115: > | V115: =Input!V222 -> 0 | W115: =Input!W222 -> 0 | X115: =Input!X222 -> 0 | Y115: =Input!Y222 -> 0 | Z115: =Input!Z222 -> 0 | AA115: =Input!AA222 -> 0 | AB115: =Input!AB222 -> 0 | AC115: =Input!AC222 -> 0 | AD115: =Input!AD222 -> 0 | AE115: =Input!AE222 -> 0 | AF115: =Input!AF222 -> 0 | AG115: =Input!AG222 -> 0 | AH115: =Input!AH222 -> 0.0222 | AI115: =Input!AI222 -> 0.0222 | AJ115: =Input!AJ222 -> 0.0222 | AK115: =Input!AK222 -> 0.0222 | AL115: =Input!AL222 -> 0.0222 | AM115: =Input!AM222 -> 0.0222 | AN115: =Input!AN222 -> 0.0222 | AO115: =Input!AO222 -> 0.0222
E117: Active | G117: text | AH117: =AH$72 -> FALSE | AI117: FALSE | AJ117: FALSE | AK117: FALSE | AL117: FALSE | AM117: FALSE | AN117: FALSE | AO117: FALSE
E118: Tax trigger | G118: % | AH118: =AH115 -> 0.0222 | AI118: =AI115 -> 0.0222 | AJ118: 0.0222 | AK118: 0.0222 | AL118: 0.0222 | AM118: 0.0222 | AN118: 0.0222 | AO118: 0.0222
E120: Applied | G120: % | J120: > | V120: =V115 -> 0 | W120: 0 | X120: 0 | Y120: 0 | Z120: 0 | AA120: 0 | AB120: 0 | AC120: 0 | AD120: 0 | AE120: 0 | AF120: 0 | AG120: =AG115 -> 0 | AH120: =(AH114 * AH115) + (AH117 * AH118) -> 0.0222 | AI120: 0.0222 | AJ120: 0.0222 | AK120: 0.0222 | AL120: 0.0222 | AM120: 0.0222 | AN120: 0.0222 | AO120: 0.0222
C122: B event value
E124: Active | G124: text | AH124: =AH$72 -> FALSE | AI124: FALSE | AJ124: FALSE | AK124: FALSE | AL124: FALSE | AM124: FALSE | AN124: FALSE | AO124: FALSE
E125: Tax trigger | G125: £m 09/10 prices | AH125: =INDEX(AH142:AH149,MATCH($B$2,$E$142:$E$149,0),1) -> 0 | AI125: =INDEX(AI142:AI149,MATCH($B$2,$E$142:$E$149,0),1) -> 0 | AJ125: 0 | AK125: 0 | AL125: 0 | AM125: 0 | AN125: 0 | AO125: 0
E127: Applied | G127: £m 09/10 prices | AH127: =AH124 * AH125 -> 0 | AI127: =AI124 * AI125 -> 0 | AJ127: 0 | AK127: 0 | AL127: 0 | AM127: 0 | AN127: 0 | AO127: 0
C129: Tax Trigger Deadbands
E131: East | AH131: =East!AH$281 -> 1.77169449 | AI131: =East!AI$281 -> 1.708826995 | AJ131: =East!AJ$281 -> 1.719468625 | AK131: =East!AK$281 -> 1.688120238 | AL131: =East!AL$281 -> 1.684110661 | AM131: =East!AM$281 -> 1.680561786 | AN131: =East!AN$281 -> 1.671204729 | AO131: =East!AO$281 -> 1.675050423
E132: London | AH132: =London!AH$281 -> 1.206381897 | AI132: =London!AI$281 -> 1.184261687 | AJ132: =London!AJ$281 -> 1.25734477 | AK132: =London!AK$281 -> 1.225443821 | AL132: =London!AL$281 -> 1.209565601 | AM132: =London!AM$281 -> 1.206178078 | AN132: =London!AN$281 -> 1.188216602 | AO132: =London!AO$281 -> 1.187013846
E133: North West | AH133: ='North West'!AH$281 -> 1.298788536 | AI133: ='North West'!AI$281 -> 1.242660984 | AJ133: ='North West'!AJ$281 -> 1.252343585 | AK133: ='North West'!AK$281 -> 1.232048714 | AL133: ='North West'!AL$281 -> 1.237611822 | AM133: ='North West'!AM$281 -> 1.232432922 | AN133: ='North West'!AN$281 -> 1.231656909 | AO133: ='North West'!AO$281 -> 1.229111286
E134: West Midlands | AH134: ='West Midlands'!AH$281 -> 0.9377012159 | AI134: ='West Midlands'!AI$281 -> 0.9192078032 | AJ134: ='West Midlands'!AJ$281 -> 0.9192048413 | AK134: ='West Midlands'!AK$281 -> 0.8934412649 | AL134: ='West Midlands'!AL$281 -> 0.9037332992 | AM134: ='West Midlands'!AM$281 -> 0.904766929 | AN134: ='West Midlands'!AN$281 -> 0.9057263126 | AO134: ='West Midlands'!AO$281 -> 0.8983711232
E135: Northern | AH135: =Northern!AH$281 -> 1.123673085 | AI135: =Northern!AI$281 -> 1.117497548 | AJ135: =Northern!AJ$281 -> 1.151214196 | AK135: =Northern!AK$281 -> 1.122583033 | AL135: =Northern!AL$281 -> 1.091670532 | AM135: =Northern!AM$281 -> 1.100706776 | AN135: =Northern!AN$281 -> 1.109532402 | AO135: =Northern!AO$281 -> 1.125357444
E136: Scotland | AH136: =Scotland!AH$281 -> 0.8842827754 | AI136: =Scotland!AI$281 -> 0.8611283727 | AJ136: =Scotland!AJ$281 -> 0.8410238371 | AK136: =Scotland!AK$281 -> 0.8829766329 | AL136: =Scotland!AL$281 -> 0.8946610497 | AM136: =Scotland!AM$281 -> 0.901557674 | AN136: =Scotland!AN$281 -> 0.8868768211 | AO136: =Scotland!AO$281 -> 0.9020764695
E137: Southern | AH137: =Southern!AH$281 -> 2.058248214 | AI137: =Southern!AI$281 -> 1.991560448 | AJ137: =Southern!AJ$281 -> 2.027477546 | AK137: =Southern!AK$281 -> 2.033288658 | AL137: =Southern!AL$281 -> 2.046032656 | AM137: =Southern!AM$281 -> 2.055443563 | AN137: =Southern!AN$281 -> 2.035142413 | AO137: =Southern!AO$281 -> 2.047471991
E138: Wales & West | AH138: ='Wales & West'!AH$281 -> 1.15053828 | AI138: ='Wales & West'!AI$281 -> 1.136134581 | AJ138: ='Wales & West'!AJ$281 -> 1.119397603 | AK138: ='Wales & West'!AK$281 -> 1.122745076 | AL138: ='Wales & West'!AL$281 -> 1.16003172 | AM138: ='Wales & West'!AM$281 -> 1.147817389 | AN138: ='Wales & West'!AN$281 -> 1.145905353 | AO138: ='Wales & West'!AO$281 -> 1.138647254
C140: B event value by Licencee
E142: East | G142: £m 09/10 prices | AH142: 0 | AI142: 0 | AJ142: 0 | AK142: 0 | AL142: 0 | AM142: 0 | AN142: 0 | AO142: 0
E143: London | G143: £m 09/10 prices | AH143: 0 | AI143: 0 | AJ143: 0 | AK143: 0 | AL143: 0 | AM143: 0 | AN143: 0 | AO143: 0
E144: North West | G144: £m 09/10 prices | AH144: 0 | AI144: 0 | AJ144: 0 | AK144: 0 | AL144: 0 | AM144: 0 | AN144: 0 | AO144: 0
E145: West Midlands | G145: £m 09/10 prices | AH145: 0 | AI145: 0 | AJ145: 0 | AK145: 0 | AL145: 0 | AM145: 0 | AN145: 0 | AO145: 0
E146: Northern | G146: £m 09/10 prices | AH146: 0 | AI146: 0 | AJ146: 0 | AK146: 0 | AL146: 0 | AM146: 0 | AN146: 0 | AO146: 0
E147: Scotland | G147: £m 09/10 prices | AH147: 0 | AI147: 0 | AJ147: 0 | AK147: 0 | AL147: 0 | AM147: 0 | AN147: 0 | AO147: 0
E148: Southern | G148: £m 09/10 prices | AH148: 0 | AI148: 0 | AJ148: 0 | AK148: 0 | AL148: 0 | AM148: 0 | AN148: 0 | AO148: 0
E149: Wales & West | G149: £m 09/10 prices | AH149: 0 | AI149: 0 | AJ149: 0 | AK149: 0 | AL149: 0 | AM149: 0 | AN149: 0 | AO149: 0
B151: End of sheet

Sheet MOD
A1: MOD
B2: =UserInterface!G17 -> East
E3: Parameter | G3: Units | I3: Constant | AH3: Annual values
E4: PCFM year ending | I4: =UserInterface!$G$10 -> 2019-03-31 | K4: 1991-03-31 | L4: 1992-03-31 | M4: 1993-03-31 | N4: 1994-03-31 | O4: 1995-03-31 | P4: 1996-03-31 | Q4: 1997-03-31 | R4: 1998-03-31 | S4: 1999-03-31 | T4: 2000-03-31 | U4: 2001-03-31 | V4: 2002-03-31 | W4: 2003-03-31 | X4: 2004-03-31 | Y4: 2005-03-31 | Z4: 2006-03-31 | AA4: 2007-03-31 | AB4: 2008-03-31 | AC4: 2009-03-31 | AD4: 2010-03-31 | AE4: 2011-03-31 | AF4: 2012-03-31 | AG4: 2013-03-31 | AH4: 2014-03-31 | AI4: 2015-03-31 | AJ4: 2016-03-31 | AK4: 2017-03-31 | AL4: 2018-03-31 | AM4: 2019-03-31 | AN4: 2020-03-31 | AO4: 2021-03-31
D5: Note: Base revenue referred to in the PCFM is not the BRt terms quoted in the licence as this also includes the terms TRUE and RPIFt which relate to retail price index adjustments
E6: =UserInterface!E10 -> Year t selected: | G6: =UserInterface!G10 -> 2019-03-31
E8: =Revenue!E64 -> Final Proposals base revenue | AH8: =Revenue!AH64 -> 525.490147 | AI8: =Revenue!AI64 -> 506.4491689 | AJ8: =Revenue!AJ64 -> 509.6925198 | AK8: =Revenue!AK64 -> 500.1930084 | AL8: =Revenue!AL64 -> 498.977985 | AM8: =Revenue!AM64 -> 497.9025686 | AN8: =Revenue!AN64 -> 495.0670967 | AO8: =Revenue!AO64 -> 496.2324586
E9: =Revenue!E65 -> MOD | AH9: =Revenue!AH65 -> 0 | AI9: =Revenue!AI65 -> -3.220765356 | AJ9: =Revenue!AJ65 -> -7.554747184 | AK9: =Revenue!AK65 -> -13.56045798 | AL9: =Revenue!AL65 -> -12.34413534 | AM9: =Revenue!AM65 -> -48.705177 | AN9: =Revenue!AN65 -> 0 | AO9: =Revenue!AO65 -> 0
E10: =Revenue!E66 -> Base revenue | AH10: =Revenue!AH66 -> 525.490147 | AI10: =Revenue!AI66 -> 503.2284035 | AJ10: =Revenue!AJ66 -> 502.1377726 | AK10: =Revenue!AK66 -> 486.6325504 | AL10: =Revenue!AL66 -> 486.6338497 | AM10: =Revenue!AM66 -> 449.1973916 | AN10: =Revenue!AN66 -> 495.0670967 | AO10: =Revenue!AO66 -> 496.2324586
B12: End of sheet

Sheet Input
A1: Input
B2: =UserInterface!G17 -> East
E3: Parameter | F3: Licence condition | G3: Units | H3: Term | I3: Constant | AH3: Annual values
E4: PCFM year ending | F4: =Cover!C3 -> GD1 PCFM for use in AIP 2018.xlsm | I4: =UserInterface!$G$10 -> 2019-03-31 | K4: 1991-03-31 | L4: 1992-03-31 | M4: 1993-03-31 | N4: 1994-03-31 | O4: 1995-03-31 | P4: 1996-03-31 | Q4: 1997-03-31 | R4: 1998-03-31 | S4: 1999-03-31 | T4: 2000-03-31 | U4: 2001-03-31 | V4: 2002-03-31 | W4: 2003-03-31 | X4: 2004-03-31 | Y4: 2005-03-31 | Z4: 2006-03-31 | AA4: 2007-03-31 | AB4: 2008-03-31 | AC4: 2009-03-31 | AD4: 2010-03-31 | AE4: 2011-03-31 | AF4: 2012-03-31 | AG4: 2013-03-31 | AH4: 2014-03-31 | AI4: 2015-03-31 | AJ4: 2016-03-31 | AK4: 2017-03-31 | AL4: 2018-03-31 | AM4: 2019-03-31 | AN4: 2020-03-31 | AO4: 2021-03-31
B6: PCFM Variable Values Table
E8: Allowed percentage cost of debt | F8: 3C | G8: annual real % | H8: CDE | AH8: =CHOOSE(m_identity,East!AH8, London!AH8, 'North West'!AH8, 'West Midlands'!AH8, Northern!AH8, Scotland!AH8, Southern!AH8, 'Wales & West'!AH8) -> 0.0292 | AI8: =CHOOSE(m_identity,East!AI8, London!AI8, 'North West'!AI8, 'West Midlands'!AI8, Northern!AI8, Scotland!AI8, Southern!AI8, 'Wales & West'!AI8) -> 0.0272 | AJ8: =CHOOSE(m_identity,East!AJ8, London!AJ8, 'North West'!AJ8, 'West Midlands'!AJ8, Northern!AJ8, Scotland!AJ8, Southern!AJ8, 'Wales & West'!AJ8) -> 0.0255 | AK8: =CHOOSE(m_identity,East!AK8, London!AK8, 'North West'!AK8, 'West Midlands'!AK8, Northern!AK8, Scotland!AK8, Southern!AK8, 'Wales & West'!AK8) -> 0.0238 | AL8: =CHOOSE(m_identity,East!AL8, London!AL8, 'North West'!AL8, 'West Midlands'!AL8, Northern!AL8, Scotland!AL8, Southern!AL8, 'Wales & West'!AL8) -> 0.0222 | AM8: =CHOOSE(m_identity,East!AM8, London!AM8, 'North West'!AM8, 'West Midlands'!AM8, Northern!AM8, Scotland!AM8, Southern!AM8, 'Wales & West'!AM8) -> 0.0222 | AN8: =CHOOSE(m_identity,East!AN8, London!AN8, 'North West'!AN8, 'West Midlands'!AN8, Northern!AN8, Scotland!AN8, Southern!AN8, 'Wales & West'!AN8) -> 0.0222 | AO8: =CHOOSE(m_identity,East!AO8, London!AO8, 'North West'!AO8, 'West Midlands'!AO8, Northern!AO8, Scotland!AO8, Southern!AO8, 'Wales & West'!AO8) -> 0.0222
E9: Actual load related capex | F9: 3B | G9: £m 09/10 prices | H9: ALC | AH9: =CHOOSE(m_identity,East!AH9, London!AH9, 'North West'!AH9, 'West Midlands'!AH9, Northern!AH9, Scotland!AH9, Southern!AH9, 'Wales & West'!AH9) -> 28.99470552 | AI9: =CHOOSE(m_identity,East!AI9, London!AI9, 'North West'!AI9, 'West Midlands'!AI9, Northern!AI9, Scotland!AI9, Southern!AI9, 'Wales & West'!AI9) -> 19.81350517 | AJ9: =CHOOSE(m_identity,East!AJ9, London!AJ9, 'North West'!AJ9, 'West Midlands'!AJ9, Northern!AJ9, Scotland!AJ9, Southern!AJ9, 'Wales & West'!AJ9) -> 19.73286031 | AK9: =CHOOSE(m_identity,East!AK9, London!AK9, 'North West'!AK9, 'West Midlands'!AK9, Northern!AK9, Scotland!AK9, Southern!AK9, 'Wales & West'!AK9) -> 0 | AL9: =CHOOSE(m_identity,East!AL9, London!AL9, 'North West'!AL9, 'West Midlands'!AL9, Northern!AL9, Scotland!AL9, Southern!AL9, 'Wales & West'!AL9) -> 0 | AM9: =CHOOSE(m_identity,East!AM9, London!AM9, 'North West'!AM9, 'West Midlands'!AM9, Northern!AM9, Scotland!AM9, Southern!AM9, 'Wales & West'!AM9) -> 0 | AN9: =CHOOSE(m_identity,East!AN9, London!AN9, 'North West'!AN9, 'West Midlands'!AN9, Northern!AN9, Scotland!AN9, Southern!AN9, 'Wales & West'!AN9) -> 0 | AO9: =CHOOSE(m_identity,East!AO9, London!AO9, 'North West'!AO9, 'West Midlands'!AO9, Northern!AO9, Scotland!AO9, Southern!AO9, 'Wales & West'!AO9) -> 0
E10: Actual other capex | F10: 3B | G10: £m 09/10 prices | H10: AOC | AH10: =CHOOSE(m_identity,East!AH10, London!AH10, 'North West'!AH10, 'West Midlands'!AH10, Northern!AH10, Scotland!AH10, Southern!AH10, 'Wales & West'!AH10) -> 17.58540433 | AI10: =CHOOSE(m_identity,East!AI10, London!AI10, 'North West'!AI10, 'West Midlands'!AI10, Northern!AI10, Scotland!AI10, Southern!AI10, 'Wales & West'!AI10) -> 19.93498037 | AJ10: =CHOOSE(m_identity,East!AJ10, London!AJ10, 'North West'!AJ10, 'West Midlands'!AJ10, Northern!AJ10, Scotland!AJ10, Southern!AJ10, 'Wales & West'!AJ10) -> 16.77184999 | AK10: =CHOOSE(m_identity,East!AK10, London!AK10, 'North West'!AK10, 'West Midlands'!AK10, Northern!AK10, Scotland!AK10, Southern!AK10, 'Wales & West'!AK10) -> 0 | AL10: =CHOOSE(m_identity,East!AL10, London!AL10, 'North West'!AL10, 'West Midlands'!AL10, Northern!AL10, Scotland!AL10, Southern!AL10, 'Wales & West'!AL10) -> 0 | AM10: =CHOOSE(m_identity,East!AM10, London!AM10, 'North West'!AM10, 'West Midlands'!AM10, Northern!AM10, Scotland!AM10, Southern!AM10, 'Wales & West'!AM10) -> 0 | AN10: =CHOOSE(m_identity,East!AN10, London!AN10, 'North West'!AN10, 'West Midlands'!AN10, Northern!AN10, Scotland!AN10, Southern!AN10, 'Wales & West'!AN10) -> 0 | AO10: =CHOOSE(m_identity,East!AO10, London!AO10, 'North West'!AO10, 'West Midlands'!AO10, Northern!AO10, Scotland!AO10, Southern!AO10, 'Wales & West'!AO10) -> 0
E11: Actual controllable opex | F11: 3B | G11: £m 09/10 prices | H11: ACO | AH11: =CHOOSE(m_identity,East!AH11, London!AH11, 'North West'!AH11, 'West Midlands'!AH11, Northern!AH11, Scotland!AH11, Southern!AH11, 'Wales & West'!AH11) -> 126.8805521 | AI11: =CHOOSE(m_identity,East!AI11, London!AI11, 'North West'!AI11, 'West Midlands'!AI11, Northern!AI11, Scotland!AI11, Southern!AI11, 'Wales & West'!AI11) -> 124.5740359 | AJ11: =CHOOSE(m_identity,East!AJ11, London!AJ11, 'North West'!AJ11, 'West Midlands'!AJ11, Northern!AJ11, Scotland!AJ11, Southern!AJ11, 'Wales & West'!AJ11) -> 118.8583582 | AK11: =CHOOSE(m_identity,East!AK11, London!AK11, 'North West'!AK11, 'West Midlands'!AK11, Northern!AK11, Scotland!AK11, Southern!AK11, 'Wales & West'!AK11) -> 0 | AL11: =CHOOSE(m_identity,East!AL11, London!AL11, 'North West'!AL11, 'West Midlands'!AL11, Northern!AL11, Scotland!AL11, Southern!AL11, 'Wales & West'!AL11) -> 0 | AM11: =CHOOSE(m_identity,East!AM11, London!AM11, 'North West'!AM11, 'West Midlands'!AM11, Northern!AM11, Scotland!AM11, Southern!AM11, 'Wales & West'!AM11) -> 0 | AN11: =CHOOSE(m_identity,East!AN11, London!AN11, 'North West'!AN11, 'West Midlands'!AN11, Northern!AN11, Scotland!AN11, Southern!AN11, 'Wales & West'!AN11) -> 0 | AO11: =CHOOSE(m_identity,East!AO11, London!AO11, 'North West'!AO11, 'West Midlands'!AO11, Northern!AO11, Scotland!AO11, Southern!AO11, 'Wales & West'!AO11) -> 0
E12: Actual replacement expenditure | F12: 3B | G12: £m 09/10 prices | H12: ARE | AH12: =CHOOSE(m_identity,East!AH12, London!AH12, 'North West'!AH12, 'West Midlands'!AH12, Northern!AH12, Scotland!AH12, Southern!AH12, 'Wales & West'!AH12) -> 80.9802796 | AI12: =CHOOSE(m_identity,East!AI12, London!AI12, 'North West'!AI12, 'West Midlands'!AI12, Northern!AI12, Scotland!AI12, Southern!AI12, 'Wales & West'!AI12) -> 87.29276861 | AJ12: =CHOOSE(m_identity,East!AJ12, London!AJ12, 'North West'!AJ12, 'West Midlands'!AJ12, Northern!AJ12, Scotland!AJ12, Southern!AJ12, 'Wales & West'!AJ12) -> 91.55845298 | AK12: =CHOOSE(m_identity,East!AK12, London!AK12, 'North West'!AK12, 'West Midlands'!AK12, Northern!AK12, Scotland!AK12, Southern!AK12, 'Wales & West'!AK12) -> 0 | AL12: =CHOOSE(m_identity,East!AL12, London!AL12, 'North West'!AL12, 'West Midlands'!AL12, Northern!AL12, Scotland!AL12, Southern!AL12, 'Wales & West'!AL12) -> 0 | AM12: =CHOOSE(m_identity,East!AM12, London!AM12, 'North West'!AM12, 'West Midlands'!AM12, Northern!AM12, Scotland!AM12, Southern!AM12, 'Wales & West'!AM12) -> 0 | AN12: =CHOOSE(m_identity,East!AN12, London!AN12, 'North West'!AN12, 'West Midlands'!AN12, Northern!AN12, Scotland!AN12, Southern!AN12, 'Wales & West'!AN12) -> 0 | AO12: =CHOOSE(m_identity,East!AO12, London!AO12, 'North West'!AO12, 'West Midlands'!AO12, Northern!AO12, Scotland!AO12, Southern!AO12, 'Wales & West'!AO12) -> 0
E13: Allowed uncertain costs (Enhanced physical site security) | F13: 3F | G13: £m 09/10 prices | H13: IAEEPS | AH13: =CHOOSE(m_identity,East!AH13, London!AH13, 'North West'!AH13, 'West Midlands'!AH13, Northern!AH13, Scotland!AH13, Southern!AH13, 'Wales & West'!AH13) -> -1.209201982 | AI13: =CHOOSE(m_identity,East!AI13, London!AI13, 'North West'!AI13, 'West Midlands'!AI13, Northern!AI13, Scotland!AI13, Southern!AI13, 'Wales & West'!AI13) -> 0.2121345338 | AJ13: =CHOOSE(m_identity,East!AJ13, London!AJ13, 'North West'!AJ13, 'West Midlands'!AJ13, Northern!AJ13, Scotland!AJ13, Southern!AJ13, 'Wales & West'!AJ13) -> 0.4179734437 | AK13: =CHOOSE(m_identity,East!AK13, London!AK13, 'North West'!AK13, 'West Midlands'!AK13, Northern!AK13, Scotland!AK13, Southern!AK13, 'Wales & West'!AK13) -> 2.332494631 | AL13: =CHOOSE(m_identity,East!AL13, London!AL13, 'North West'!AL13, 'West Midlands'!AL13, Northern!AL13, Scotland!AL13, Southern!AL13, 'Wales & West'!AL13) -> 12.80441813 | AM13: =CHOOSE(m_identity,East!AM13, London!AM13, 'North West'!AM13, 'West Midlands'!AM13, Northern!AM13, Scotland!AM13, Southern!AM13, 'Wales & West'!AM13) -> 9.918191893 | AN13: =CHOOSE(m_identity,East!AN13, London!AN13, 'North West'!AN13, 'West Midlands'!AN13, Northern!AN13, Scotland!AN13, Southern!AN13, 'Wales & West'!AN13) -> 2.232497694 | AO13: =CHOOSE(m_identity,East!AO13, London!AO13, 'North West'!AO13, 'West Midlands'!AO13, Northern!AO13, Scotland!AO13, Southern!AO13, 'Wales & West'!AO13) -> 0.4658509535
E14: Allowed uncertain costs (Specified street work costs) | F14: 3F | G14: £m 09/10 prices | H14: IAESW | AH14: =CHOOSE(m_identity,East!AH14, London!AH14, 'North West'!AH14, 'West Midlands'!AH14, Northern!AH14, Scotland!AH14, Southern!AH14, 'Wales & West'!AH14) -> 2.506923723 | AI14: =CHOOSE(m_identity,East!AI14, London!AI14, 'North West'!AI14, 'West Midlands'!AI14, Northern!AI14, Scotland!AI14, Southern!AI14, 'Wales & West'!AI14) -> 2.429440091 | AJ14: =CHOOSE(m_identity,East!AJ14, London!AJ14, 'North West'!AJ14, 'West Midlands'!AJ14, Northern!AJ14, Scotland!AJ14, Southern!AJ14, 'Wales & West'!AJ14) -> 2.36001386 | AK14: =CHOOSE(m_identity,East!AK14, London!AK14, 'North West'!AK14, 'West Midlands'!AK14, Northern!AK14, Scotland!AK14, Southern!AK14, 'Wales & West'!AK14) -> 2.294549434 | AL14: =CHOOSE(m_identity,East!AL14, London!AL14, 'North West'!AL14, 'West Midlands'!AL14, Northern!AL14, Scotland!AL14, Southern!AL14, 'Wales & West'!AL14) -> 2.2351258 | AM14: =CHOOSE(m_identity,East!AM14, London!AM14, 'North West'!AM14, 'West Midlands'!AM14, Northern!AM14, Scotland!AM14, Southern!AM14, 'Wales & West'!AM14) -> 2.174398115 | AN14: =CHOOSE(m_identity,East!AN14, London!AN14, 'North West'!AN14, 'West Midlands'!AN14, Northern!AN14, Scotland!AN14, Southern!AN14, 'Wales & West'!AN14) -> 2.115158185 | AO14: =CHOOSE(m_identity,East!AO14, London!AO14, 'North West'!AO14, 'West Midlands'!AO14, Northern!AO14, Scotland!AO14, Southern!AO14, 'Wales & West'!AO14) -> 2.055588242
E15: Allowed uncertain costs (Connection charging boundary change costs) | F15: 3F | G15: £m 09/10 prices | H15: IAECCB | AH15: =CHOOSE(m_identity,East!AH15, London!AH15, 'North West'!AH15, 'West Midlands'!AH15, Northern!AH15, Scotland!AH15, Southern!AH15, 'Wales & West'!AH15) -> 0 | AI15: =CHOOSE(m_identity,East!AI15, London!AI15, 'North West'!AI15, 'West Midlands'!AI15, Northern!AI15, Scotland!AI15, Southern!AI15, 'Wales & West'!AI15) -> 0 | AJ15: =CHOOSE(m_identity,East!AJ15, London!AJ15, 'North West'!AJ15, 'West Midlands'!AJ15, Northern!AJ15, Scotland!AJ15, Southern!AJ15, 'Wales & West'!AJ15) -> 0 | AK15: =CHOOSE(m_identity,East!AK15, London!AK15, 'North West'!AK15, 'West Midlands'!AK15, Northern!AK15, Scotland!AK15, Southern!AK15, 'Wales & West'!AK15) -> 0 | AL15: =CHOOSE(m_identity,East!AL15, London!AL15, 'North West'!AL15, 'West Midlands'!AL15, Northern!AL15, Scotland!AL15, Southern!AL15, 'Wales & West'!AL15) -> 0 | AM15: =CHOOSE(m_identity,East!AM15, London!AM15, 'North West'!AM15, 'West Midlands'!AM15, Northern!AM15, Scotland!AM15, Southern!AM15, 'Wales & West'!AM15) -> 0 | AN15: =CHOOSE(m_identity,East!AN15, London!AN15, 'North West'!AN15, 'West Midlands'!AN15, Northern!AN15, Scotland!AN15, Southern!AN15, 'Wales & West'!AN15) -> 0 | AO15: =CHOOSE(m_identity,East!AO15, London!AO15, 'North West'!AO15, 'West Midlands'!AO15, Northern!AO15, Scotland!AO15, Southern!AO15, 'Wales & West'!AO15) -> 0
E16: Allowed uncertain costs (Fuel poor network extension scheme) | F16: 3F | G16: £m 09/10 prices | H16: IAEFP | AH16: =CHOOSE(m_identity,East!AH16, London!AH16, 'North West'!AH16, 'West Midlands'!AH16, Northern!AH16, Scotland!AH16, Southern!AH16, 'Wales & West'!AH16) -> 1.225085886 | AI16: =CHOOSE(m_identity,East!AI16, London!AI16, 'North West'!AI16, 'West Midlands'!AI16, Northern!AI16, Scotland!AI16, Southern!AI16, 'Wales & West'!AI16) -> 1.220185543 | AJ16: =CHOOSE(m_identity,East!AJ16, London!AJ16, 'North West'!AJ16, 'West Midlands'!AJ16, Northern!AJ16, Scotland!AJ16, Southern!AJ16, 'Wales & West'!AJ16) -> 1.233131338 | AK16: =CHOOSE(m_identity,East!AK16, London!AK16, 'North West'!AK16, 'West Midlands'!AK16, Northern!AK16, Scotland!AK16, Southern!AK16, 'Wales & West'!AK16) -> 1.741324102 | AL16: =CHOOSE(m_identity,East!AL16, London!AL16, 'North West'!AL16, 'West Midlands'!AL16, Northern!AL16, Scotland!AL16, Southern!AL16, 'Wales & West'!AL16) -> 1.828306207 | AM16: =CHOOSE(m_identity,East!AM16, London!AM16, 'North West'!AM16, 'West Midlands'!AM16, Northern!AM16, Scotland!AM16, Southern!AM16, 'Wales & West'!AM16) -> 1.787447993 | AN16: =CHOOSE(m_identity,East!AN16, London!AN16, 'North West'!AN16, 'West Midlands'!AN16, Northern!AN16, Scotland!AN16, Southern!AN16, 'Wales & West'!AN16) -> 1.781980158 | AO16: =CHOOSE(m_identity,East!AO16, London!AO16, 'North West'!AO16, 'West Midlands'!AO16, Northern!AO16, Scotland!AO16, Southern!AO16, 'Wales & West'!AO16) -> 1.685371513
E17: Allowed uncertain costs (Central agent) | F17: 3F | G17: £m 09/10 prices | H17: IAECA | AH17: =CHOOSE(m_identity,East!AH17, London!AH17, 'North West'!AH17, 'West Midlands'!AH17, Northern!AH17, Scotland!AH17, Southern!AH17, 'Wales & West'!AH17) -> -8.530405218e-07 | AI17: =CHOOSE(m_identity,East!AI17, London!AI17, 'North West'!AI17, 'West Midlands'!AI17, Northern!AI17, Scotland!AI17, Southern!AI17, 'Wales & West'!AI17) -> 0.02123836802 | AJ17: =CHOOSE(m_identity,East!AJ17, London!AJ17, 'North West'!AJ17, 'West Midlands'!AJ17, Northern!AJ17, Scotland!AJ17, Southern!AJ17, 'Wales & West'!AJ17) -> 0.2050095012 | AK17: =CHOOSE(m_identity,East!AK17, London!AK17, 'North West'!AK17, 'West Midlands'!AK17, Northern!AK17, Scotland!AK17, Southern!AK17, 'Wales & West'!AK17) -> 0.208004423 | AL17: =CHOOSE(m_identity,East!AL17, London!AL17, 'North West'!AL17, 'West Midlands'!AL17, Northern!AL17, Scotland!AL17, Southern!AL17, 'Wales & West'!AL17) -> -2.647690892 | AM17: =CHOOSE(m_identity,East!AM17, London!AM17, 'North West'!AM17, 'West Midlands'!AM17, Northern!AM17, Scotland!AM17, Southern!AM17, 'Wales & West'!AM17) -> -3.946760039 | AN17: =CHOOSE(m_identity,East!AN17, London!AN17, 'North West'!AN17, 'West Midlands'!AN17, Northern!AN17, Scotland!AN17, Southern!AN17, 'Wales & West'!AN17) -> -5.193716392 | AO17: =CHOOSE(m_identity,East!AO17, London!AO17, 'North West'!AO17, 'West Midlands'!AO17, Northern!AO17, Scotland!AO17, Southern!AO17, 'Wales & West'!AO17) -> -5.827286335
E18: Allowed uncertain costs (Smart metering roll out costs) | F18: 3F | G18: £m 09/10 prices | H18: IAESM | AH18: =CHOOSE(m_identity,East!AH18, London!AH18, 'North West'!AH18, 'West Midlands'!AH18, Northern!AH18, Scotland!AH18, Southern!AH18, 'Wales & West'!AH18) -> 0 | AI18: =CHOOSE(m_identity,East!AI18, London!AI18, 'North West'!AI18, 'West Midlands'!AI18, Northern!AI18, Scotland!AI18, Southern!AI18, 'Wales & West'!AI18) -> 0 | AJ18: =CHOOSE(m_identity,East!AJ18, London!AJ18, 'North West'!AJ18, 'West Midlands'!AJ18, Northern!AJ18, Scotland!AJ18, Southern!AJ18, 'Wales & West'!AJ18) -> 0 | AK18: =CHOOSE(m_identity,East!AK18, London!AK18, 'North West'!AK18, 'West Midlands'!AK18, Northern!AK18, Scotland!AK18, Southern!AK18, 'Wales & West'!AK18) -> 0 | AL18: =CHOOSE(m_identity,East!AL18, London!AL18, 'North West'!AL18, 'West Midlands'!AL18, Northern!AL18, Scotland!AL18, Southern!AL18, 'Wales & West'!AL18) -> 0 | AM18: =CHOOSE(m_identity,East!AM18, London!AM18, 'North West'!AM18, 'West Midlands'!AM18, Northern!AM18, Scotland!AM18, Southern!AM18, 'Wales & West'!AM18) -> 0 | AN18: =CHOOSE(m_identity,East!AN18, London!AN18, 'North West'!AN18, 'West Midlands'!AN18, Northern!AN18, Scotland!AN18, Southern!AN18, 'Wales & West'!AN18) -> 0 | AO18: =CHOOSE(m_identity,East!AO18, London!AO18, 'North West'!AO18, 'West Midlands'!AO18, Northern!AO18, Scotland!AO18, Southern!AO18, 'Wales & West'!AO18) -> 0
E19: Allowed uncertain costs (Mains and services replacement expenditure) | F19: 3E | G19: £m 09/10 prices | H19: RE | AH19: =CHOOSE(m_identity,East!AH19, London!AH19, 'North West'!AH19, 'West Midlands'!AH19, Northern!AH19, Scotland!AH19, Southern!AH19, 'Wales & West'!AH19) -> 0.105609 | AI19: =CHOOSE(m_identity,East!AI19, London!AI19, 'North West'!AI19, 'West Midlands'!AI19, Northern!AI19, Scotland!AI19, Southern!AI19, 'Wales & West'!AI19) -> 0.182225 | AJ19: =CHOOSE(m_identity,East!AJ19, London!AJ19, 'North West'!AJ19, 'West Midlands'!AJ19, Northern!AJ19, Scotland!AJ19, Southern!AJ19, 'Wales & West'!AJ19) -> 0.416861 | AK19: =CHOOSE(m_identity,East!AK19, London!AK19, 'North West'!AK19, 'West Midlands'!AK19, Northern!AK19, Scotland!AK19, Southern!AK19, 'Wales & West'!AK19) -> 0.9436214625 | AL19: =CHOOSE(m_identity,East!AL19, London!AL19, 'North West'!AL19, 'West Midlands'!AL19, Northern!AL19, Scotland!AL19, Southern!AL19, 'Wales & West'!AL19) -> 0.9436214625 | AM19: =CHOOSE(m_identity,East!AM19, London!AM19, 'North West'!AM19, 'West Midlands'!AM19, Northern!AM19, Scotland!AM19, Southern!AM19, 'Wales & West'!AM19) -> 0.9436214625 | AN19: =CHOOSE(m_identity,East!AN19, London!AN19, 'North West'!AN19, 'West Midlands'!AN19, Northern!AN19, Scotland!AN19, Southern!AN19, 'Wales & West'!AN19) -> 0.9436214625 | AO19: =CHOOSE(m_identity,East!AO19, London!AO19, 'North West'!AO19, 'West Midlands'!AO19, Northern!AO19, Scotland!AO19, Southern!AO19, 'Wales & West'!AO19) -> 0.9436214625
E20: Allowed uncertain Costs (Large load connection costs) | F20: 3F | G20: £m 09/10 prices | H20: IAELLC | AH20: =CHOOSE(m_identity,East!AH20, London!AH20, 'North West'!AH20, 'West Midlands'!AH20, Northern!AH20, Scotland!AH20, Southern!AH20, 'Wales & West'!AH20) -> 0 | AI20: =CHOOSE(m_identity,East!AI20, London!AI20, 'North West'!AI20, 'West Midlands'!AI20, Northern!AI20, Scotland!AI20, Southern!AI20, 'Wales & West'!AI20) -> 0 | AJ20: =CHOOSE(m_identity,East!AJ20, London!AJ20, 'North West'!AJ20, 'West Midlands'!AJ20, Northern!AJ20, Scotland!AJ20, Southern!AJ20, 'Wales & West'!AJ20) -> 0 | AK20: =CHOOSE(m_identity,East!AK20, London!AK20, 'North West'!AK20, 'West Midlands'!AK20, Northern!AK20, Scotland!AK20, Southern!AK20, 'Wales & West'!AK20) -> 0 | AL20: =CHOOSE(m_identity,East!AL20, London!AL20, 'North West'!AL20, 'West Midlands'!AL20, Northern!AL20, Scotland!AL20, Southern!AL20, 'Wales & West'!AL20) -> 0 | AM20: =CHOOSE(m_identity,East!AM20, London!AM20, 'North West'!AM20, 'West Midlands'!AM20, Northern!AM20, Scotland!AM20, Southern!AM20, 'Wales & West'!AM20) -> 0 | AN20: =CHOOSE(m_identity,East!AN20, London!AN20, 'North West'!AN20, 'West Midlands'!AN20, Northern!AN20, Scotland!AN20, Southern!AN20, 'Wales & West'!AN20) -> 0 | AO20: =CHOOSE(m_identity,East!AO20, London!AO20, 'North West'!AO20, 'West Midlands'!AO20, Northern!AO20, Scotland!AO20, Southern!AO20, 'Wales & West'!AO20) -> 0
E21: Allowed innovation roll-out mechanism | F21: 3D | G21: £m 09/10 prices | H21: IRM | AH21: =CHOOSE(m_identity,East!AH21, London!AH21, 'North West'!AH21, 'West Midlands'!AH21, Northern!AH21, Scotland!AH21, Southern!AH21, 'Wales & West'!AH21) -> 0 | AI21: =CHOOSE(m_identity,East!AI21, London!AI21, 'North West'!AI21, 'West Midlands'!AI21, Northern!AI21, Scotland!AI21, Southern!AI21, 'Wales & West'!AI21) -> 0 | AJ21: =CHOOSE(m_identity,East!AJ21, London!AJ21, 'North West'!AJ21, 'West Midlands'!AJ21, Northern!AJ21, Scotland!AJ21, Southern!AJ21, 'Wales & West'!AJ21) -> 0 | AK21: =CHOOSE(m_identity,East!AK21, London!AK21, 'North West'!AK21, 'West Midlands'!AK21, Northern!AK21, Scotland!AK21, Southern!AK21, 'Wales & West'!AK21) -> 0 | AL21: =CHOOSE(m_identity,East!AL21, London!AL21, 'North West'!AL21, 'West Midlands'!AL21, Northern!AL21, Scotland!AL21, Southern!AL21, 'Wales & West'!AL21) -> 0 | AM21: =CHOOSE(m_identity,East!AM21, London!AM21, 'North West'!AM21, 'West Midlands'!AM21, Northern!AM21, Scotland!AM21, Southern!AM21, 'Wales & West'!AM21) -> 0 | AN21: =CHOOSE(m_identity,East!AN21, London!AN21, 'North West'!AN21, 'West Midlands'!AN21, Northern!AN21, Scotland!AN21, Southern!AN21, 'Wales & West'!AN21) -> 0 | AO21: =CHOOSE(m_identity,East!AO21, London!AO21, 'North West'!AO21, 'West Midlands'!AO21, Northern!AO21, Scotland!AO21, Southern!AO21, 'Wales & West'!AO21) -> 0
E22: NTS Exit Capacity costs | F22: 1D | G22: £m 09/10 prices | H22: AEx | AH22: =CHOOSE(m_identity,East!AH22, London!AH22, 'North West'!AH22, 'West Midlands'!AH22, Northern!AH22, Scotland!AH22, Southern!AH22, 'Wales & West'!AH22) -> 24.74131596 | AI22: =CHOOSE(m_identity,East!AI22, London!AI22, 'North West'!AI22, 'West Midlands'!AI22, Northern!AI22, Scotland!AI22, Southern!AI22, 'Wales & West'!AI22) -> 24.72007071 | AJ22: =CHOOSE(m_identity,East!AJ22, London!AJ22, 'North West'!AJ22, 'West Midlands'!AJ22, Northern!AJ22, Scotland!AJ22, Southern!AJ22, 'Wales & West'!AJ22) -> 24.67962565 | AK22: =CHOOSE(m_identity,East!AK22, London!AK22, 'North West'!AK22, 'West Midlands'!AK22, Northern!AK22, Scotland!AK22, Southern!AK22, 'Wales & West'!AK22) -> 24.67962565 | AL22: =CHOOSE(m_identity,East!AL22, London!AL22, 'North West'!AL22, 'West Midlands'!AL22, Northern!AL22, Scotland!AL22, Southern!AL22, 'Wales & West'!AL22) -> 24.67962565 | AM22: =CHOOSE(m_identity,East!AM22, London!AM22, 'North West'!AM22, 'West Midlands'!AM22, Northern!AM22, Scotland!AM22, Southern!AM22, 'Wales & West'!AM22) -> 24.67962565 | AN22: =CHOOSE(m_identity,East!AN22, London!AN22, 'North West'!AN22, 'West Midlands'!AN22, Northern!AN22, Scotland!AN22, Southern!AN22, 'Wales & West'!AN22) -> 24.67962565 | AO22: =CHOOSE(m_identity,East!AO22, London!AO22, 'North West'!AO22, 'West Midlands'!AO22, Northern!AO22, Scotland!AO22, Southern!AO22, 'Wales & West'!AO22) -> 24.67962565
E23: Shrinkage costs | F23: 1F | G23: £m 09/10 prices | H23: ALSC | AH23: =CHOOSE(m_identity,East!AH23, London!AH23, 'North West'!AH23, 'West Midlands'!AH23, Northern!AH23, Scotland!AH23, Southern!AH23, 'Wales & West'!AH23) -> 11.82647046 | AI23: =CHOOSE(m_identity,East!AI23, London!AI23, 'North West'!AI23, 'West Midlands'!AI23, Northern!AI23, Scotland!AI23, Southern!AI23, 'Wales & West'!AI23) -> 10.8 | AJ23: =CHOOSE(m_identity,East!AJ23, London!AJ23, 'North West'!AJ23, 'West Midlands'!AJ23, Northern!AJ23, Scotland!AJ23, Southern!AJ23, 'Wales & West'!AJ23) -> 10.67 | AK23: =CHOOSE(m_identity,East!AK23, London!AK23, 'North West'!AK23, 'West Midlands'!AK23, Northern!AK23, Scotland!AK23, Southern!AK23, 'Wales & West'!AK23) -> 7.92 | AL23: =CHOOSE(m_identity,East!AL23, London!AL23, 'North West'!AL23, 'West Midlands'!AL23, Northern!AL23, Scotland!AL23, Southern!AL23, 'Wales & West'!AL23) -> 7.74 | AM23: =CHOOSE(m_identity,East!AM23, London!AM23, 'North West'!AM23, 'West Midlands'!AM23, Northern!AM23, Scotland!AM23, Southern!AM23, 'Wales & West'!AM23) -> 7.55 | AN23: =CHOOSE(m_identity,East!AN23, London!AN23, 'North West'!AN23, 'West Midlands'!AN23, Northern!AN23, Scotland!AN23, Southern!AN23, 'Wales & West'!AN23) -> 7.36 | AO23: =CHOOSE(m_identity,East!AO23, London!AO23, 'North West'!AO23, 'West Midlands'!AO23, Northern!AO23, Scotland!AO23, Southern!AO23, 'Wales & West'!AO23) -> 7.18
E24: Tax liability allowance adjustments - gearing/interest costs | F24: 3C | G24: £m nominal | H24: TGIE | AH24: =CHOOSE(m_identity,East!AH24, London!AH24, 'North West'!AH24, 'West Midlands'!AH24, Northern!AH24, Scotland!AH24, Southern!AH24, 'Wales & West'!AH24) -> 0 | AI24: =CHOOSE(m_identity,East!AI24, London!AI24, 'North West'!AI24, 'West Midlands'!AI24, Northern!AI24, Scotland!AI24, Southern!AI24, 'Wales & West'!AI24) -> 0 | AJ24: =CHOOSE(m_identity,East!AJ24, London!AJ24, 'North West'!AJ24, 'West Midlands'!AJ24, Northern!AJ24, Scotland!AJ24, Southern!AJ24, 'Wales & West'!AJ24) -> 0 | AK24: =CHOOSE(m_identity,East!AK24, London!AK24, 'North West'!AK24, 'West Midlands'!AK24, Northern!AK24, Scotland!AK24, Southern!AK24, 'Wales & West'!AK24) -> 0 | AL24: =CHOOSE(m_identity,East!AL24, London!AL24, 'North West'!AL24, 'West Midlands'!AL24, Northern!AL24, Scotland!AL24, Southern!AL24, 'Wales & West'!AL24) -> 0 | AM24: =CHOOSE(m_identity,East!AM24, London!AM24, 'North West'!AM24, 'West Midlands'!AM24, Northern!AM24, Scotland!AM24, Southern!AM24, 'Wales & West'!AM24) -> 0 | AN24: =CHOOSE(m_identity,East!AN24, London!AN24, 'North West'!AN24, 'West Midlands'!AN24, Northern!AN24, Scotland!AN24, Southern!AN24, 'Wales & West'!AN24) -> 0 | AO24: =CHOOSE(m_identity,East!AO24, London!AO24, 'North West'!AO24, 'West Midlands'!AO24, Northern!AO24, Scotland!AO24, Southern!AO24, 'Wales & West'!AO24) -> 0
E25: Tax liability allowance adjustments - driven by tax trigger events | F25: 3C | G25: £m 09/10 prices | H25: TTE | AH25: =CHOOSE(m_identity,East!AH25, London!AH25, 'North West'!AH25, 'West Midlands'!AH25, Northern!AH25, Scotland!AH25, Southern!AH25, 'Wales & West'!AH25) -> 0 | AI25: =CHOOSE(m_identity,East!AI25, London!AI25, 'North West'!AI25, 'West Midlands'!AI25, Northern!AI25, Scotland!AI25, Southern!AI25, 'Wales & West'!AI25) -> 0 | AJ25: =CHOOSE(m_identity,East!AJ25, London!AJ25, 'North West'!AJ25, 'West Midlands'!AJ25, Northern!AJ25, Scotland!AJ25, Southern!AJ25, 'Wales & West'!AJ25) -> -0.3619869907 | AK25: =CHOOSE(m_identity,East!AK25, London!AK25, 'North West'!AK25, 'West Midlands'!AK25, Northern!AK25, Scotland!AK25, Southern!AK25, 'Wales & West'!AK25) -> -0.3820467421 | AL25: =CHOOSE(m_identity,East!AL25, London!AL25, 'North West'!AL25, 'West Midlands'!AL25, Northern!AL25, Scotland!AL25, Southern!AL25, 'Wales & West'!AL25) -> -2.56885842 | AM25: =CHOOSE(m_identity,East!AM25, London!AM25, 'North West'!AM25, 'West Midlands'!AM25, Northern!AM25, Scotland!AM25, Southern!AM25, 'Wales & West'!AM25) -> 0 | AN25: =CHOOSE(m_identity,East!AN25, London!AN25, 'North West'!AN25, 'West Midlands'!AN25, Northern!AN25, Scotland!AN25, Southern!AN25, 'Wales & West'!AN25) -> 0 | AO25: =CHOOSE(m_identity,East!AO25, London!AO25, 'North West'!AO25, 'West Midlands'!AO25, Northern!AO25, Scotland!AO25, Southern!AO25, 'Wales & West'!AO25) -> 0
E26: Pension scheme administration and Pension Protection Fund Levy | F26: 3C | G26: £m 09/10 prices | H26: APFE | AH26: =CHOOSE(m_identity,East!AH26, London!AH26, 'North West'!AH26, 'West Midlands'!AH26, Northern!AH26, Scotland!AH26, Southern!AH26, 'Wales & West'!AH26) -> 0.09351164142 | AI26: =CHOOSE(m_identity,East!AI26, London!AI26, 'North West'!AI26, 'West Midlands'!AI26, Northern!AI26, Scotland!AI26, Southern!AI26, 'Wales & West'!AI26) -> 0.09351164142 | AJ26: =CHOOSE(m_identity,East!AJ26, London!AJ26, 'North West'!AJ26, 'West Midlands'!AJ26, Northern!AJ26, Scotland!AJ26, Southern!AJ26, 'Wales & West'!AJ26) -> 0.09351164142 | AK26: =CHOOSE(m_identity,East!AK26, London!AK26, 'North West'!AK26, 'West Midlands'!AK26, Northern!AK26, Scotland!AK26, Southern!AK26, 'Wales & West'!AK26) -> 0.09351164142 | AL26: =CHOOSE(m_identity,East!AL26, London!AL26, 'North West'!AL26, 'West Midlands'!AL26, Northern!AL26, Scotland!AL26, Southern!AL26, 'Wales & West'!AL26) -> 0.09351164142 | AM26: =CHOOSE(m_identity,East!AM26, London!AM26, 'North West'!AM26, 'West Midlands'!AM26, Northern!AM26, Scotland!AM26, Southern!AM26, 'Wales & West'!AM26) -> 0.09351164142 | AN26: =CHOOSE(m_identity,East!AN26, London!AN26, 'North West'!AN26, 'West Midlands'!AN26, Northern!AN26, Scotland!AN26, Southern!AN26, 'Wales & West'!AN26) -> 0.09351164142 | AO26: =CHOOSE(m_identity,East!AO26, London!AO26, 'North West'!AO26, 'West Midlands'!AO26, Northern!AO26, Scotland!AO26, Southern!AO26, 'Wales & West'!AO26) -> 0.09351164142
E27: Pension scheme deficit revenue allowances | F27: 3C | G27: £m 09/10 prices | H27: EDE | AH27: =CHOOSE(m_identity,East!AH27, London!AH27, 'North West'!AH27, 'West Midlands'!AH27, Northern!AH27, Scotland!AH27, Southern!AH27, 'Wales & West'!AH27) -> 4.356157524 | AI27: =CHOOSE(m_identity,East!AI27, London!AI27, 'North West'!AI27, 'West Midlands'!AI27, Northern!AI27, Scotland!AI27, Southern!AI27, 'Wales & West'!AI27) -> 4.356157524 | AJ27: =CHOOSE(m_identity,East!AJ27, London!AJ27, 'North West'!AJ27, 'West Midlands'!AJ27, Northern!AJ27, Scotland!AJ27, Southern!AJ27, 'Wales & West'!AJ27) -> 3.486615572 | AK27: =CHOOSE(m_identity,East!AK27, London!AK27, 'North West'!AK27, 'West Midlands'!AK27, Northern!AK27, Scotland!AK27, Southern!AK27, 'Wales & West'!AK27) -> 3.486615572 | AL27: =CHOOSE(m_identity,East!AL27, London!AL27, 'North West'!AL27, 'West Midlands'!AL27, Northern!AL27, Scotland!AL27, Southern!AL27, 'Wales & West'!AL27) -> 3.486615572 | AM27: =CHOOSE(m_identity,East!AM27, London!AM27, 'North West'!AM27, 'West Midlands'!AM27, Northern!AM27, Scotland!AM27, Southern!AM27, 'Wales & West'!AM27) -> 3.486615572 | AN27: =CHOOSE(m_identity,East!AN27, London!AN27, 'North West'!AN27, 'West Midlands'!AN27, Northern!AN27, Scotland!AN27, Southern!AN27, 'Wales & West'!AN27) -> 3.486615572 | AO27: =CHOOSE(m_identity,East!AO27, London!AO27, 'North West'!AO27, 'West Midlands'!AO27, Northern!AO27, Scotland!AO27, Southern!AO27, 'Wales & West'!AO27) -> 3.486615572
E28: Legacy price control allowed revenue adjustment | F28: 3A | G28: £m 09/10 prices | H28: LAR | AH28: =CHOOSE(m_identity,East!AH28, London!AH28, 'North West'!AH28, 'West Midlands'!AH28, Northern!AH28, Scotland!AH28, Southern!AH28, 'Wales & West'!AH28) -> 1.208607614
E29: Legacy price control RAV additions adjustment | F29: 3A | G29: £m 09/10 prices | H29: LRAV | AH29: =CHOOSE(m_identity,East!AH29, London!AH29, 'North West'!AH29, 'West Midlands'!AH29, Northern!AH29, Scotland!AH29, Southern!AH29, 'Wales & West'!AH29) -> -3.437601362
B31: Policy
C33: Cost of capital
E35: Cost of debt | G35: annual real % | AH35: =AH8 -> 0.0292 | AI35: 0.0272 | AJ35: 0.0255 | AK35: 0.0238 | AL35: 0.0222 | AM35: 0.0222 | AN35: 0.0222 | AO35: 0.0222
E36: Cost of equity | G36: annual real % | AH36: =CHOOSE(m_identity,East!AH36, London!AH36, 'North West'!AH36, 'West Midlands'!AH36, Northern!AH36, Scotland!AH36, Southern!AH36, 'Wales & West'!AH36) -> 0.067 | AI36: =CHOOSE(m_identity,East!AI36, London!AI36, 'North West'!AI36, 'West Midlands'!AI36, Northern!AI36, Scotland!AI36, Southern!AI36, 'Wales & West'!AI36) -> 0.067 | AJ36: =CHOOSE(m_identity,East!AJ36, London!AJ36, 'North West'!AJ36, 'West Midlands'!AJ36, Northern!AJ36, Scotland!AJ36, Southern!AJ36, 'Wales & West'!AJ36) -> 0.067 | AK36: =CHOOSE(m_identity,East!AK36, London!AK36, 'North West'!AK36, 'West Midlands'!AK36, Northern!AK36, Scotland!AK36, Southern!AK36, 'Wales & West'!AK36) -> 0.067 | AL36: =CHOOSE(m_identity,East!AL36, London!AL36, 'North West'!AL36, 'West Midlands'!AL36, Northern!AL36, Scotland!AL36, Southern!AL36, 'Wales & West'!AL36) -> 0.067 | AM36: =CHOOSE(m_identity,East!AM36, London!AM36, 'North West'!AM36, 'West Midlands'!AM36, Northern!AM36, Scotland!AM36, Southern!AM36, 'Wales & West'!AM36) -> 0.067 | AN36: =CHOOSE(m_identity,East!AN36, London!AN36, 'North West'!AN36, 'West Midlands'!AN36, Northern!AN36, Scotland!AN36, Southern!AN36, 'Wales & West'!AN36) -> 0.067 | AO36: =CHOOSE(m_identity,East!AO36, London!AO36, 'North West'!AO36, 'West Midlands'!AO36, Northern!AO36, Scotland!AO36, Southern!AO36, 'Wales & West'!AO36) -> 0.067
E37: Notional gearing | G37: % | J37: > | AG37: =CHOOSE(m_identity,East!AG37, London!AG37, 'North West'!AG37, 'West Midlands'!AG37, Northern!AG37, Scotland!AG37, Southern!AG37, 'Wales & West'!AG37) -> 0.625 | AH37: =CHOOSE(m_identity,East!AH37, London!AH37, 'North West'!AH37, 'West Midlands'!AH37, Northern!AH37, Scotland!AH37, Southern!AH37, 'Wales & West'!AH37) -> 0.65 | AI37: =CHOOSE(m_identity,East!AI37, London!AI37, 'North West'!AI37, 'West Midlands'!AI37, Northern!AI37, Scotland!AI37, Southern!AI37, 'Wales & West'!AI37) -> 0.65 | AJ37: =CHOOSE(m_identity,East!AJ37, London!AJ37, 'North West'!AJ37, 'West Midlands'!AJ37, Northern!AJ37, Scotland!AJ37, Southern!AJ37, 'Wales & West'!AJ37) -> 0.65 | AK37: =CHOOSE(m_identity,East!AK37, London!AK37, 'North West'!AK37, 'West Midlands'!AK37, Northern!AK37, Scotland!AK37, Southern!AK37, 'Wales & West'!AK37) -> 0.65 | AL37: =CHOOSE(m_identity,East!AL37, London!AL37, 'North West'!AL37, 'West Midlands'!AL37, Northern!AL37, Scotland!AL37, Southern!AL37, 'Wales & West'!AL37) -> 0.65 | AM37: =CHOOSE(m_identity,East!AM37, London!AM37, 'North West'!AM37, 'West Midlands'!AM37, Northern!AM37, Scotland!AM37, Southern!AM37, 'Wales & West'!AM37) -> 0.65 | AN37: =CHOOSE(m_identity,East!AN37, London!AN37, 'North West'!AN37, 'West Midlands'!AN37, Northern!AN37, Scotland!AN37, Southern!AN37, 'Wales & West'!AN37) -> 0.65 | AO37: =CHOOSE(m_identity,East!AO37, London!AO37, 'North West'!AO37, 'West Midlands'!AO37, Northern!AO37, Scotland!AO37, Southern!AO37, 'Wales & West'!AO37) -> 0.65
E39: Vanilla WACC | G39: annual real % | AH39: =(AH35 * AH37) + (AH36 * (1 - AH37)) -> 0.04243 | AI39: 0.04113 | AJ39: 0.040025 | AK39: 0.03892 | AL39: 0.03788 | AM39: 0.03788 | AN39: 0.03788 | AO39: 0.03788
E41: Pre-RIIO closing notional gearing | G41: % | I41: =CHOOSE(m_identity,East!I41, London!I41, 'North West'!I41, 'West Midlands'!I41, Northern!I41, Scotland!I41, Southern!I41, 'Wales & West'!I41) -> 0.625
E43: Forecast RPI (simple average year to March) | G43: index value | J43: > | V43: =CHOOSE(m_identity, East!V43, London!V43, 'North West'!V43, 'West Midlands'!V43, Northern!V43, Scotland!V43, Southern!V43, 'Wales & West'!V43) -> 173.875 | W43: =CHOOSE(m_identity, East!W43, London!W43, 'North West'!W43, 'West Midlands'!W43, Northern!W43, Scotland!W43, Southern!W43, 'Wales & West'!W43) -> 177.517 | X43: =CHOOSE(m_identity, East!X43, London!X43, 'North West'!X43, 'West Midlands'!X43, Northern!X43, Scotland!X43, Southern!X43, 'Wales & West'!X43) -> 182.475 | Y43: =CHOOSE(m_identity, East!Y43, London!Y43, 'North West'!Y43, 'West Midlands'!Y43, Northern!Y43, Scotland!Y43, Southern!Y43, 'Wales & West'!Y43) -> 188.15 | Z43: =CHOOSE(m_identity, East!Z43, London!Z43, 'North West'!Z43, 'West Midlands'!Z43, Northern!Z43, Scotland!Z43, Southern!Z43, 'Wales & West'!Z43) -> 193.108 | AA43: =CHOOSE(m_identity, East!AA43, London!AA43, 'North West'!AA43, 'West Midlands'!AA43, Northern!AA43, Scotland!AA43, Southern!AA43, 'Wales & West'!AA43) -> 200.317 | AB43: =CHOOSE(m_identity, East!AB43, London!AB43, 'North West'!AB43, 'West Midlands'!AB43, Northern!AB43, Scotland!AB43, Southern!AB43, 'Wales & West'!AB43) -> 208.592 | AC43: =CHOOSE(m_identity, East!AC43, London!AC43, 'North West'!AC43, 'West Midlands'!AC43, Northern!AC43, Scotland!AC43, Southern!AC43, 'Wales & West'!AC43) -> 214.783 | AD43: =CHOOSE(m_identity, East!AD43, London!AD43, 'North West'!AD43, 'West Midlands'!AD43, Northern!AD43, Scotland!AD43, Southern!AD43, 'Wales & West'!AD43) -> 215.767 | AE43: =CHOOSE(m_identity, East!AE43, London!AE43, 'North West'!AE43, 'West Midlands'!AE43, Northern!AE43, Scotland!AE43, Southern!AE43, 'Wales & West'!AE43) -> 226.475 | AF43: =CHOOSE(m_identity, East!AF43, London!AF43, 'North West'!AF43, 'West Midlands'!AF43, Northern!AF43, Scotland!AF43, Southern!AF43, 'Wales & West'!AF43) -> 237.342 | AG43: =CHOOSE(m_identity, East!AG43, London!AG43, 'North West'!AG43, 'West Midlands'!AG43, Northern!AG43, Scotland!AG43, Southern!AG43, 'Wales & West'!AG43) -> 243.988 | AH43: =CHOOSE(m_identity, East!AH43, London!AH43, 'North West'!AH43, 'West Midlands'!AH43, Northern!AH43, Scotland!AH43, Southern!AH43, 'Wales & West'!AH43) -> 250.82 | AI43: =CHOOSE(m_identity, East!AI43, London!AI43, 'North West'!AI43, 'West Midlands'!AI43, Northern!AI43, Scotland!AI43, Southern!AI43, 'Wales & West'!AI43) -> 257.843 | AJ43: =CHOOSE(m_identity, East!AJ43, London!AJ43, 'North West'!AJ43, 'West Midlands'!AJ43, Northern!AJ43, Scotland!AJ43, Southern!AJ43, 'Wales & West'!AJ43) -> 265.063 | AK43: =CHOOSE(m_identity, East!AK43, London!AK43, 'North West'!AK43, 'West Midlands'!AK43, Northern!AK43, Scotland!AK43, Southern!AK43, 'Wales & West'!AK43) -> 272.485 | AL43: =CHOOSE(m_identity, East!AL43, London!AL43, 'North West'!AL43, 'West Midlands'!AL43, Northern!AL43, Scotland!AL43, Southern!AL43, 'Wales & West'!AL43) -> 280.115 | AM43: =CHOOSE(m_identity, East!AM43, London!AM43, 'North West'!AM43, 'West Midlands'!AM43, Northern!AM43, Scotland!AM43, Southern!AM43, 'Wales & West'!AM43) -> 287.958 | AN43: =CHOOSE(m_identity, East!AN43, London!AN43, 'North West'!AN43, 'West Midlands'!AN43, Northern!AN43, Scotland!AN43, Southern!AN43, 'Wales & West'!AN43) -> 296.021 | AO43: =CHOOSE(m_identity, East!AO43, London!AO43, 'North West'!AO43, 'West Midlands'!AO43, Northern!AO43, Scotland!AO43, Southern!AO43, 'Wales & West'!AO43) -> 304.31
E44: RPI assumption for interest costs | G44: index value | J44: > | V44: =CHOOSE(m_identity, East!V44, London!V44, 'North West'!V44, 'West Midlands'!V44, Northern!V44, Scotland!V44, Southern!V44, 'Wales & West'!V44) -> 173.875 | W44: =CHOOSE(m_identity, East!W44, London!W44, 'North West'!W44, 'West Midlands'!W44, Northern!W44, Scotland!W44, Southern!W44, 'Wales & West'!W44) -> 177.517 | X44: =CHOOSE(m_identity, East!X44, London!X44, 'North West'!X44, 'West Midlands'!X44, Northern!X44, Scotland!X44, Southern!X44, 'Wales & West'!X44) -> 182.475 | Y44: =CHOOSE(m_identity, East!Y44, London!Y44, 'North West'!Y44, 'West Midlands'!Y44, Northern!Y44, Scotland!Y44, Southern!Y44, 'Wales & West'!Y44) -> 188.15 | Z44: =CHOOSE(m_identity, East!Z44, London!Z44, 'North West'!Z44, 'West Midlands'!Z44, Northern!Z44, Scotland!Z44, Southern!Z44, 'Wales & West'!Z44) -> 193.108 | AA44: =CHOOSE(m_identity, East!AA44, London!AA44, 'North West'!AA44, 'West Midlands'!AA44, Northern!AA44, Scotland!AA44, Southern!AA44, 'Wales & West'!AA44) -> 200.317 | AB44: =CHOOSE(m_identity, East!AB44, London!AB44, 'North West'!AB44, 'West Midlands'!AB44, Northern!AB44, Scotland!AB44, Southern!AB44, 'Wales & West'!AB44) -> 208.592 | AC44: =CHOOSE(m_identity, East!AC44, London!AC44, 'North West'!AC44, 'West Midlands'!AC44, Northern!AC44, Scotland!AC44, Southern!AC44, 'Wales & West'!AC44) -> 214.783 | AD44: =CHOOSE(m_identity, East!AD44, London!AD44, 'North West'!AD44, 'West Midlands'!AD44, Northern!AD44, Scotland!AD44, Southern!AD44, 'Wales & West'!AD44) -> 215.767 | AE44: =CHOOSE(m_identity, East!AE44, London!AE44, 'North West'!AE44, 'West Midlands'!AE44, Northern!AE44, Scotland!AE44, Southern!AE44, 'Wales & West'!AE44) -> 226.475 | AF44: =CHOOSE(m_identity, East!AF44, London!AF44, 'North West'!AF44, 'West Midlands'!AF44, Northern!AF44, Scotland!AF44, Southern!AF44, 'Wales & West'!AF44) -> 237.342 | AG44: =CHOOSE(m_identity, East!AG44, London!AG44, 'North West'!AG44, 'West Midlands'!AG44, Northern!AG44, Scotland!AG44, Southern!AG44, 'Wales & West'!AG44) -> 243.988 | AH44: =CHOOSE(m_identity, East!AH44, London!AH44, 'North West'!AH44, 'West Midlands'!AH44, Northern!AH44, Scotland!AH44, Southern!AH44, 'Wales & West'!AH44) -> 250.82 | AI44: =CHOOSE(m_identity, East!AI44, London!AI44, 'North West'!AI44, 'West Midlands'!AI44, Northern!AI44, Scotland!AI44, Southern!AI44, 'Wales & West'!AI44) -> 257.843 | AJ44: =CHOOSE(m_identity, East!AJ44, London!AJ44, 'North West'!AJ44, 'West Midlands'!AJ44, Northern!AJ44, Scotland!AJ44, Southern!AJ44, 'Wales & West'!AJ44) -> 265.063 | AK44: =CHOOSE(m_identity, East!AK44, London!AK44, 'North West'!AK44, 'West Midlands'!AK44, Northern!AK44, Scotland!AK44, Southern!AK44, 'Wales & West'!AK44) -> 272.485 | AL44: =CHOOSE(m_identity, East!AL44, London!AL44, 'North West'!AL44, 'West Midlands'!AL44, Northern!AL44, Scotland!AL44, Southern!AL44, 'Wales & West'!AL44) -> 280.115 | AM44: =CHOOSE(m_identity, East!AM44, London!AM44, 'North West'!AM44, 'West Midlands'!AM44, Northern!AM44, Scotland!AM44, Southern!AM44, 'Wales & West'!AM44) -> 287.958 | AN44: =CHOOSE(m_identity, East!AN44, London!AN44, 'North West'!AN44, 'West Midlands'!AN44, Northern!AN44, Scotland!AN44, Southern!AN44, 'Wales & West'!AN44) -> 296.021 | AO44: =CHOOSE(m_identity, East!AO44, London!AO44, 'North West'!AO44, 'West Midlands'!AO44, Northern!AO44, Scotland!AO44, Southern!AO44, 'Wales & West'!AO44) -> 304.31
C45: TIM and capitalisation
E47: Years from t until normal reporting of actual costs | G47: years | I47: =CHOOSE(m_identity,East!I47, London!I47, 'North West'!I47, 'West Midlands'!I47, Northern!I47, Scotland!I47, Southern!I47, 'Wales & West'!I47) -> 2
E49: Capitalised share of totex (excluding repex) | G49: % | AH49: =CHOOSE(m_identity, East!AH49, London!AH49, 'North West'!AH49, 'West Midlands'!AH49, Northern!AH49, Scotland!AH49, Southern!AH49, 'Wales & West'!AH49) -> 0.2663450186 | AI49: =CHOOSE(m_identity, East!AI49, London!AI49, 'North West'!AI49, 'West Midlands'!AI49, Northern!AI49, Scotland!AI49, Southern!AI49, 'Wales & West'!AI49) -> 0.2663450186 | AJ49: =CHOOSE(m_identity, East!AJ49, London!AJ49, 'North West'!AJ49, 'West Midlands'!AJ49, Northern!AJ49, Scotland!AJ49, Southern!AJ49, 'Wales & West'!AJ49) -> 0.2663450186 | AK49: =CHOOSE(m_identity, East!AK49, London!AK49, 'North West'!AK49, 'West Midlands'!AK49, Northern!AK49, Scotland!AK49, Southern!AK49, 'Wales & West'!AK49) -> 0.2663450186 | AL49: =CHOOSE(m_identity, East!AL49, London!AL49, 'North West'!AL49, 'West Midlands'!AL49, Northern!AL49, Scotland!AL49, Southern!AL49, 'Wales & West'!AL49) -> 0.2663450186 | AM49: =CHOOSE(m_identity, East!AM49, London!AM49, 'North West'!AM49, 'West Midlands'!AM49, Northern!AM49, Scotland!AM49, Southern!AM49, 'Wales & West'!AM49) -> 0.2663450186 | AN49: =CHOOSE(m_identity, East!AN49, London!AN49, 'North West'!AN49, 'West Midlands'!AN49, Northern!AN49, Scotland!AN49, Southern!AN49, 'Wales & West'!AN49) -> 0.2663450186 | AO49: =CHOOSE(m_identity, East!AO49, London!AO49, 'North West'!AO49, 'West Midlands'!AO49, Northern!AO49, Scotland!AO49, Southern!AO49, 'Wales & West'!AO49) -> 0.2663450186
E50: Capitalised share of repex | G50: % | AH50: =CHOOSE(m_identity, East!AH50, London!AH50, 'North West'!AH50, 'West Midlands'!AH50, Northern!AH50, Scotland!AH50, Southern!AH50, 'Wales & West'!AH50) -> 0.5 | AI50: =CHOOSE(m_identity, East!AI50, London!AI50, 'North West'!AI50, 'West Midlands'!AI50, Northern!AI50, Scotland!AI50, Southern!AI50, 'Wales & West'!AI50) -> 0.5714285714 | AJ50: =CHOOSE(m_identity, East!AJ50, London!AJ50, 'North West'!AJ50, 'West Midlands'!AJ50, Northern!AJ50, Scotland!AJ50, Southern!AJ50, 'Wales & West'!AJ50) -> 0.6428571429 | AK50: =CHOOSE(m_identity, East!AK50, London!AK50, 'North West'!AK50, 'West Midlands'!AK50, Northern!AK50, Scotland!AK50, Southern!AK50, 'Wales & West'!AK50) -> 0.7142857143 | AL50: =CHOOSE(m_identity, East!AL50, London!AL50, 'North West'!AL50, 'West Midlands'!AL50, Northern!AL50, Scotland!AL50, Southern!AL50, 'Wales & West'!AL50) -> 0.7857142857 | AM50: =CHOOSE(m_identity, East!AM50, London!AM50, 'North West'!AM50, 'West Midlands'!AM50, Northern!AM50, Scotland!AM50, Southern!AM50, 'Wales & West'!AM50) -> 0.8571428571 | AN50: =CHOOSE(m_identity, East!AN50, London!AN50, 'North West'!AN50, 'West Midlands'!AN50, Northern!AN50, Scotland!AN50, Southern!AN50, 'Wales & West'!AN50) -> 0.9285714286 | AO50: =CHOOSE(m_identity, East!AO50, London!AO50, 'North West'!AO50, 'West Midlands'!AO50, Northern!AO50, Scotland!AO50, Southern!AO50, 'Wales & West'!AO50) -> 1
E52: Incentive rate (slope) | G52: scalar | I52: =CHOOSE(m_identity,East!I52, London!I52, 'North West'!I52, 'West Midlands'!I52, Northern!I52, Scotland!I52, Southern!I52, 'Wales & West'!I52) -> -0.001666666667
E53: Incentive rate (intercept) | G53: scalar | I53: =CHOOSE(m_identity,East!I53, London!I53, 'North West'!I53, 'West Midlands'!I53, Northern!I53, Scotland!I53, Southern!I53, 'Wales & West'!I53) -> 0.8166666667
E54: Additional income (intercept) | G54: scalar | I54: =CHOOSE(m_identity,East!I54, London!I54, 'North West'!I54, 'West Midlands'!I54, Northern!I54, Scotland!I54, Southern!I54, 'Wales & West'!I54) -> 14.58333333
E56: Weight of Ofgem's view on price control totex | G56: % | I56: =CHOOSE(m_identity,East!I56, London!I56, 'North West'!I56, 'West Midlands'!I56, Northern!I56, Scotland!I56, Southern!I56, 'Wales & West'!I56) -> 0.75
E57: Weight of operator's view on price control totex | G57: % | I57: =CHOOSE(m_identity,East!I57, London!I57, 'North West'!I57, 'West Midlands'!I57, Northern!I57, Scotland!I57, Southern!I57, 'Wales & West'!I57) -> 0.25
E59: GD TIM group ratio | G59: scalar | I59: =CHOOSE(m_identity,East!I59, London!I59, 'North West'!I59, 'West Midlands'!I59, Northern!I59, Scotland!I59, Southern!I59, 'Wales & West'!I59) -> 111.7747974
E61: Ofgem's view of licensee totex | G61: £m 09/10 prices | I61: =CHOOSE(m_identity,East!I61, London!I61, 'North West'!I61, 'West Midlands'!I61, Northern!I61, Scotland!I61, Southern!I61, 'Wales & West'!I61) -> 2062.585196
E62: Operator's view of licensee totex | G62: £m 09/10 prices | I62: =CHOOSE(m_identity,East!I62, London!I62, 'North West'!I62, 'West Midlands'!I62, Northern!I62, Scotland!I62, Southern!I62, 'Wales & West'!I62) -> 2279.210178
E64: Ofgem's view of group price control totex | G64: £m 09/10 prices | I64: =CHOOSE(m_identity,East!I64, London!I64, 'North West'!I64, 'West Midlands'!I64, Northern!I64, Scotland!I64, Southern!I64, 'Wales & West'!I64) -> 6729.057111
E65: Operator's view of group price control totex | G65: £m 09/10 prices | I65: =CHOOSE(m_identity,East!I65, London!I65, 'North West'!I65, 'West Midlands'!I65, Northern!I65, Scotland!I65, Southern!I65, 'Wales & West'!I65) -> 7521.389953
C67: Finance
E69: Minimum equity issuance threshold | G69: % | I69: =CHOOSE(m_identity,East!I69, London!I69, 'North West'!I69, 'West Midlands'!I69, Northern!I69, Scotland!I69, Southern!I69, 'Wales & West'!I69) -> 0.05
E70: Equity issuance costs | G70: % | I70: =CHOOSE(m_identity,East!I70, London!I70, 'North West'!I70, 'West Midlands'!I70, Northern!I70, Scotland!I70, Southern!I70, 'Wales & West'!I70) -> 0.05
E71: Assumed dividends as % of notional equity portion of RAV | G71: % | I71: =CHOOSE(m_identity,East!I71, London!I71, 'North West'!I71, 'West Midlands'!I71, Northern!I71, Scotland!I71, Southern!I71, 'Wales & West'!I71) -> 0.05
E73: Equity issuance gearing target | G73: % | AH73: =CHOOSE(m_identity,East!AH73, London!AH73, 'North West'!AH73, 'West Midlands'!AH73, Northern!AH73, Scotland!AH73, Southern!AH73, 'Wales & West'!AH73) -> 0.65 | AI73: =CHOOSE(m_identity,East!AI73, London!AI73, 'North West'!AI73, 'West Midlands'!AI73, Northern!AI73, Scotland!AI73, Southern!AI73, 'Wales & West'!AI73) -> 0.65 | AJ73: =CHOOSE(m_identity,East!AJ73, London!AJ73, 'North West'!AJ73, 'West Midlands'!AJ73, Northern!AJ73, Scotland!AJ73, Southern!AJ73, 'Wales & West'!AJ73) -> 0.65 | AK73: =CHOOSE(m_identity,East!AK73, London!AK73, 'North West'!AK73, 'West Midlands'!AK73, Northern!AK73, Scotland!AK73, Southern!AK73, 'Wales & West'!AK73) -> 0.65 | AL73: =CHOOSE(m_identity,East!AL73, London!AL73, 'North West'!AL73, 'West Midlands'!AL73, Northern!AL73, Scotland!AL73, Southern!AL73, 'Wales & West'!AL73) -> 0.65 | AM73: =CHOOSE(m_identity,East!AM73, London!AM73, 'North West'!AM73, 'West Midlands'!AM73, Northern!AM73, Scotland!AM73, Southern!AM73, 'Wales & West'!AM73) -> 0.65 | AN73: =CHOOSE(m_identity,East!AN73, London!AN73, 'North West'!AN73, 'West Midlands'!AN73, Northern!AN73, Scotland!AN73, Southern!AN73, 'Wales & West'!AN73) -> 0.65 | AO73: =CHOOSE(m_identity,East!AO73, London!AO73, 'North West'!AO73, 'West Midlands'!AO73, Northern!AO73, Scotland!AO73, Southern!AO73, 'Wales & West'!AO73) -> 0.65
E75: Index-linked debt as a percentage of net debt | G75: % | AH75: =CHOOSE(m_identity,East!AH75, London!AH75, 'North West'!AH75, 'West Midlands'!AH75, Northern!AH75, Scotland!AH75, Southern!AH75, 'Wales & West'!AH75) -> 0.25 | AI75: =CHOOSE(m_identity,East!AI75, London!AI75, 'North West'!AI75, 'West Midlands'!AI75, Northern!AI75, Scotland!AI75, Southern!AI75, 'Wales & West'!AI75) -> 0.25 | AJ75: =CHOOSE(m_identity,East!AJ75, London!AJ75, 'North West'!AJ75, 'West Midlands'!AJ75, Northern!AJ75, Scotland!AJ75, Southern!AJ75, 'Wales & West'!AJ75) -> 0.25 | AK75: =CHOOSE(m_identity,East!AK75, London!AK75, 'North West'!AK75, 'West Midlands'!AK75, Northern!AK75, Scotland!AK75, Southern!AK75, 'Wales & West'!AK75) -> 0.25 | AL75: =CHOOSE(m_identity,East!AL75, London!AL75, 'North West'!AL75, 'West Midlands'!AL75, Northern!AL75, Scotland!AL75, Southern!AL75, 'Wales & West'!AL75) -> 0.25 | AM75: =CHOOSE(m_identity,East!AM75, London!AM75, 'North West'!AM75, 'West Midlands'!AM75, Northern!AM75, Scotland!AM75, Southern!AM75, 'Wales & West'!AM75) -> 0.25 | AN75: =CHOOSE(m_identity,East!AN75, London!AN75, 'North West'!AN75, 'West Midlands'!AN75, Northern!AN75, Scotland!AN75, Southern!AN75, 'Wales & West'!AN75) -> 0.25 | AO75: =CHOOSE(m_identity,East!AO75, London!AO75, 'North West'!AO75, 'West Midlands'!AO75, Northern!AO75, Scotland!AO75, Southern!AO75, 'Wales & West'!AO75) -> 0.25
B77: Expenditure
C79: Totex
D81: Non-variant allowances
E83: Non-variant allowed load related capex | G83: £m 09/10 prices | AH83: =CHOOSE(m_identity,East!AH83, London!AH83, 'North West'!AH83, 'West Midlands'!AH83, Northern!AH83, Scotland!AH83, Southern!AH83, 'Wales & West'!AH83) -> 22.84391815 | AI83: =CHOOSE(m_identity,East!AI83, London!AI83, 'North West'!AI83, 'West Midlands'!AI83, Northern!AI83, Scotland!AI83, Southern!AI83, 'Wales & West'!AI83) -> 24.19358879 | AJ83: =CHOOSE(m_identity,East!AJ83, London!AJ83, 'North West'!AJ83, 'West Midlands'!AJ83, Northern!AJ83, Scotland!AJ83, Southern!AJ83, 'Wales & West'!AJ83) -> 22.47671995 | AK83: =CHOOSE(m_identity,East!AK83, London!AK83, 'North West'!AK83, 'West Midlands'!AK83, Northern!AK83, Scotland!AK83, Southern!AK83, 'Wales & West'!AK83) -> 21.839899 | AL83: =CHOOSE(m_identity,East!AL83, London!AL83, 'North West'!AL83, 'West Midlands'!AL83, Northern!AL83, Scotland!AL83, Southern!AL83, 'Wales & West'!AL83) -> 19.57308465 | AM83: =CHOOSE(m_identity,East!AM83, London!AM83, 'North West'!AM83, 'West Midlands'!AM83, Northern!AM83, Scotland!AM83, Southern!AM83, 'Wales & West'!AM83) -> 19.68659268 | AN83: =CHOOSE(m_identity,East!AN83, London!AN83, 'North West'!AN83, 'West Midlands'!AN83, Northern!AN83, Scotland!AN83, Southern!AN83, 'Wales & West'!AN83) -> 19.08692352 | AO83: =CHOOSE(m_identity,East!AO83, London!AO83, 'North West'!AO83, 'West Midlands'!AO83, Northern!AO83, Scotland!AO83, Southern!AO83, 'Wales & West'!AO83) -> 19.0272661
E84: Non-variant allowed non-load related capex - other | G84: £m 09/10 prices | AH84: =CHOOSE(m_identity,East!AH84, London!AH84, 'North West'!AH84, 'West Midlands'!AH84, Northern!AH84, Scotland!AH84, Southern!AH84, 'Wales & West'!AH84) -> 30.55045388 | AI84: =CHOOSE(m_identity,East!AI84, London!AI84, 'North West'!AI84, 'West Midlands'!AI84, Northern!AI84, Scotland!AI84, Southern!AI84, 'Wales & West'!AI84) -> 20.48313871 | AJ84: =CHOOSE(m_identity,East!AJ84, London!AJ84, 'North West'!AJ84, 'West Midlands'!AJ84, Northern!AJ84, Scotland!AJ84, Southern!AJ84, 'Wales & West'!AJ84) -> 16.1378747 | AK84: =CHOOSE(m_identity,East!AK84, London!AK84, 'North West'!AK84, 'West Midlands'!AK84, Northern!AK84, Scotland!AK84, Southern!AK84, 'Wales & West'!AK84) -> 16.82348847 | AL84: =CHOOSE(m_identity,East!AL84, London!AL84, 'North West'!AL84, 'West Midlands'!AL84, Northern!AL84, Scotland!AL84, Southern!AL84, 'Wales & West'!AL84) -> 20.97500754 | AM84: =CHOOSE(m_identity,East!AM84, London!AM84, 'North West'!AM84, 'West Midlands'!AM84, Northern!AM84, Scotland!AM84, Southern!AM84, 'Wales & West'!AM84) -> 18.6161064 | AN84: =CHOOSE(m_identity,East!AN84, London!AN84, 'North West'!AN84, 'West Midlands'!AN84, Northern!AN84, Scotland!AN84, Southern!AN84, 'Wales & West'!AN84) -> 14.89758992 | AO84: =CHOOSE(m_identity,East!AO84, London!AO84, 'North West'!AO84, 'West Midlands'!AO84, Northern!AO84, Scotland!AO84, Southern!AO84, 'Wales & West'!AO84) -> 12.54433785
E85: Non-variant allowed controllable opex | G85: £m 09/10 prices | AH85: =CHOOSE(m_identity,East!AH85, London!AH85, 'North West'!AH85, 'West Midlands'!AH85, Northern!AH85, Scotland!AH85, Southern!AH85, 'Wales & West'!AH85) -> 114.720211 | AI85: =CHOOSE(m_identity,East!AI85, London!AI85, 'North West'!AI85, 'West Midlands'!AI85, Northern!AI85, Scotland!AI85, Southern!AI85, 'Wales & West'!AI85) -> 112.9272229 | AJ85: =CHOOSE(m_identity,East!AJ85, London!AJ85, 'North West'!AJ85, 'West Midlands'!AJ85, Northern!AJ85, Scotland!AJ85, Southern!AJ85, 'Wales & West'!AJ85) -> 113.8563041 | AK85: =CHOOSE(m_identity,East!AK85, London!AK85, 'North West'!AK85, 'West Midlands'!AK85, Northern!AK85, Scotland!AK85, Southern!AK85, 'Wales & West'!AK85) -> 114.8659328 | AL85: =CHOOSE(m_identity,East!AL85, London!AL85, 'North West'!AL85, 'West Midlands'!AL85, Northern!AL85, Scotland!AL85, Southern!AL85, 'Wales & West'!AL85) -> 113.0188186 | AM85: =CHOOSE(m_identity,East!AM85, London!AM85, 'North West'!AM85, 'West Midlands'!AM85, Northern!AM85, Scotland!AM85, Southern!AM85, 'Wales & West'!AM85) -> 112.8953675 | AN85: =CHOOSE(m_identity,East!AN85, London!AN85, 'North West'!AN85, 'West Midlands'!AN85, Northern!AN85, Scotland!AN85, Southern!AN85, 'Wales & West'!AN85) -> 112.7939991 | AO85: =CHOOSE(m_identity,East!AO85, London!AO85, 'North West'!AO85, 'West Midlands'!AO85, Northern!AO85, Scotland!AO85, Southern!AO85, 'Wales & West'!AO85) -> 112.330053
E86: Non-variant allowed repex | G86: £m 09/10 prices | AH86: =CHOOSE(m_identity,East!AH86, London!AH86, 'North West'!AH86, 'West Midlands'!AH86, Northern!AH86, Scotland!AH86, Southern!AH86, 'Wales & West'!AH86) -> 106.8746236 | AI86: =CHOOSE(m_identity,East!AI86, London!AI86, 'North West'!AI86, 'West Midlands'!AI86, Northern!AI86, Scotland!AI86, Southern!AI86, 'Wales & West'!AI86) -> 104.8802384 | AJ86: =CHOOSE(m_identity,East!AJ86, London!AJ86, 'North West'!AJ86, 'West Midlands'!AJ86, Northern!AJ86, Scotland!AJ86, Southern!AJ86, 'Wales & West'!AJ86) -> 105.988291 | AK86: =CHOOSE(m_identity,East!AK86, London!AK86, 'North West'!AK86, 'West Midlands'!AK86, Northern!AK86, Scotland!AK86, Southern!AK86, 'Wales & West'!AK86) -> 106.0867633 | AL86: =CHOOSE(m_identity,East!AL86, London!AL86, 'North West'!AL86, 'West Midlands'!AL86, Northern!AL86, Scotland!AL86, Southern!AL86, 'Wales & West'!AL86) -> 106.6234764 | AM86: =CHOOSE(m_identity,East!AM86, London!AM86, 'North West'!AM86, 'West Midlands'!AM86, Northern!AM86, Scotland!AM86, Southern!AM86, 'Wales & West'!AM86) -> 107.1427769 | AN86: =CHOOSE(m_identity,East!AN86, London!AN86, 'North West'!AN86, 'West Midlands'!AN86, Northern!AN86, Scotland!AN86, Southern!AN86, 'Wales & West'!AN86) -> 107.6772755 | AO86: =CHOOSE(m_identity,East!AO86, London!AO86, 'North West'!AO86, 'West Midlands'!AO86, Northern!AO86, Scotland!AO86, Southern!AO86, 'Wales & West'!AO86) -> 108.1835418
D88: Variant allowances
E90: =E13 -> Allowed uncertain costs (Enhanced physical site security) | G90: £m 09/10 prices | AH90: =AH13 -> -1.209201982 | AI90: =AI13 -> 0.2121345338 | AJ90: 0.4179734437 | AK90: 2.332494631 | AL90: 12.80441813 | AM90: 9.918191893 | AN90: 2.232497694 | AO90: 0.4658509535
E91: Allocation to load related capex | G91: % | AH91: =CHOOSE(m_identity,East!AH91, London!AH91, 'North West'!AH91, 'West Midlands'!AH91, Northern!AH91, Scotland!AH91, Southern!AH91, 'Wales & West'!AH91) -> 0 | AI91: =CHOOSE(m_identity,East!AI91, London!AI91, 'North West'!AI91, 'West Midlands'!AI91, Northern!AI91, Scotland!AI91, Southern!AI91, 'Wales & West'!AI91) -> 0 | AJ91: =CHOOSE(m_identity,East!AJ91, London!AJ91, 'North West'!AJ91, 'West Midlands'!AJ91, Northern!AJ91, Scotland!AJ91, Southern!AJ91, 'Wales & West'!AJ91) -> 0 | AK91: =CHOOSE(m_identity,East!AK91, London!AK91, 'North West'!AK91, 'West Midlands'!AK91, Northern!AK91, Scotland!AK91, Southern!AK91, 'Wales & West'!AK91) -> 0 | AL91: =CHOOSE(m_identity,East!AL91, London!AL91, 'North West'!AL91, 'West Midlands'!AL91, Northern!AL91, Scotland!AL91, Southern!AL91, 'Wales & West'!AL91) -> 0 | AM91: =CHOOSE(m_identity,East!AM91, London!AM91, 'North West'!AM91, 'West Midlands'!AM91, Northern!AM91, Scotland!AM91, Southern!AM91, 'Wales & West'!AM91) -> 0 | AN91: =CHOOSE(m_identity,East!AN91, London!AN91, 'North West'!AN91, 'West Midlands'!AN91, Northern!AN91, Scotland!AN91, Southern!AN91, 'Wales & West'!AN91) -> 0 | AO91: =CHOOSE(m_identity,East!AO91, London!AO91, 'North West'!AO91, 'West Midlands'!AO91, Northern!AO91, Scotland!AO91, Southern!AO91, 'Wales & West'!AO91) -> 0
E92: Allocation to non-load related capex - other | G92: % | AH92: =CHOOSE(m_identity,East!AH92, London!AH92, 'North West'!AH92, 'West Midlands'!AH92, Northern!AH92, Scotland!AH92, Southern!AH92, 'Wales & West'!AH92) -> 1 | AI92: =CHOOSE(m_identity,East!AI92, London!AI92, 'North West'!AI92, 'West Midlands'!AI92, Northern!AI92, Scotland!AI92, Southern!AI92, 'Wales & West'!AI92) -> 1 | AJ92: =CHOOSE(m_identity,East!AJ92, London!AJ92, 'North West'!AJ92, 'West Midlands'!AJ92, Northern!AJ92, Scotland!AJ92, Southern!AJ92, 'Wales & West'!AJ92) -> 1 | AK92: =CHOOSE(m_identity,East!AK92, London!AK92, 'North West'!AK92, 'West Midlands'!AK92, Northern!AK92, Scotland!AK92, Southern!AK92, 'Wales & West'!AK92) -> 1 | AL92: =CHOOSE(m_identity,East!AL92, London!AL92, 'North West'!AL92, 'West Midlands'!AL92, Northern!AL92, Scotland!AL92, Southern!AL92, 'Wales & West'!AL92) -> 1 | AM92: =CHOOSE(m_identity,East!AM92, London!AM92, 'North West'!AM92, 'West Midlands'!AM92, Northern!AM92, Scotland!AM92, Southern!AM92, 'Wales & West'!AM92) -> 1 | AN92: =CHOOSE(m_identity,East!AN92, London!AN92, 'North West'!AN92, 'West Midlands'!AN92, Northern!AN92, Scotland!AN92, Southern!AN92, 'Wales & West'!AN92) -> 1 | AO92: =CHOOSE(m_identity,East!AO92, London!AO92, 'North West'!AO92, 'West Midlands'!AO92, Northern!AO92, Scotland!AO92, Southern!AO92, 'Wales & West'!AO92) -> 1
E93: Allocation to controllable opex | G93: % | AH93: =CHOOSE(m_identity,East!AH93, London!AH93, 'North West'!AH93, 'West Midlands'!AH93, Northern!AH93, Scotland!AH93, Southern!AH93, 'Wales & West'!AH93) -> 0 | AI93: =CHOOSE(m_identity,East!AI93, London!AI93, 'North West'!AI93, 'West Midlands'!AI93, Northern!AI93, Scotland!AI93, Southern!AI93, 'Wales & West'!AI93) -> 0 | AJ93: =CHOOSE(m_identity,East!AJ93, London!AJ93, 'North West'!AJ93, 'West Midlands'!AJ93, Northern!AJ93, Scotland!AJ93, Southern!AJ93, 'Wales & West'!AJ93) -> 0 | AK93: =CHOOSE(m_identity,East!AK93, London!AK93, 'North West'!AK93, 'West Midlands'!AK93, Northern!AK93, Scotland!AK93, Southern!AK93, 'Wales & West'!AK93) -> 0 | AL93: =CHOOSE(m_identity,East!AL93, London!AL93, 'North West'!AL93, 'West Midlands'!AL93, Northern!AL93, Scotland!AL93, Southern!AL93, 'Wales & West'!AL93) -> 0 | AM93: =CHOOSE(m_identity,East!AM93, London!AM93, 'North West'!AM93, 'West Midlands'!AM93, Northern!AM93, Scotland!AM93, Southern!AM93, 'Wales & West'!AM93) -> 0 | AN93: =CHOOSE(m_identity,East!AN93, London!AN93, 'North West'!AN93, 'West Midlands'!AN93, Northern!AN93, Scotland!AN93, Southern!AN93, 'Wales & West'!AN93) -> 0 | AO93: =CHOOSE(m_identity,East!AO93, London!AO93, 'North West'!AO93, 'West Midlands'!AO93, Northern!AO93, Scotland!AO93, Southern!AO93, 'Wales & West'!AO93) -> 0
E94: Allocation to repex | G94: % | AH94: =CHOOSE(m_identity,East!AH94, London!AH94, 'North West'!AH94, 'West Midlands'!AH94, Northern!AH94, Scotland!AH94, Southern!AH94, 'Wales & West'!AH94) -> 0 | AI94: =CHOOSE(m_identity,East!AI94, London!AI94, 'North West'!AI94, 'West Midlands'!AI94, Northern!AI94, Scotland!AI94, Southern!AI94, 'Wales & West'!AI94) -> 0 | AJ94: =CHOOSE(m_identity,East!AJ94, London!AJ94, 'North West'!AJ94, 'West Midlands'!AJ94, Northern!AJ94, Scotland!AJ94, Southern!AJ94, 'Wales & West'!AJ94) -> 0 | AK94: =CHOOSE(m_identity,East!AK94, London!AK94, 'North West'!AK94, 'West Midlands'!AK94, Northern!AK94, Scotland!AK94, Southern!AK94, 'Wales & West'!AK94) -> 0 | AL94: =CHOOSE(m_identity,East!AL94, London!AL94, 'North West'!AL94, 'West Midlands'!AL94, Northern!AL94, Scotland!AL94, Southern!AL94, 'Wales & West'!AL94) -> 0 | AM94: =CHOOSE(m_identity,East!AM94, London!AM94, 'North West'!AM94, 'West Midlands'!AM94, Northern!AM94, Scotland!AM94, Southern!AM94, 'Wales & West'!AM94) -> 0 | AN94: =CHOOSE(m_identity,East!AN94, London!AN94, 'North West'!AN94, 'West Midlands'!AN94, Northern!AN94, Scotland!AN94, Southern!AN94, 'Wales & West'!AN94) -> 0 | AO94: =CHOOSE(m_identity,East!AO94, London!AO94, 'North West'!AO94, 'West Midlands'!AO94, Northern!AO94, Scotland!AO94, Southern!AO94, 'Wales & West'!AO94) -> 0
E96: =E14 -> Allowed uncertain costs (Specified street work costs) | G96: £m 09/10 prices | AH96: =AH14 -> 2.506923723 | AI96: 2.429440091 | AJ96: 2.36001386 | AK96: 2.294549434 | AL96: 2.2351258 | AM96: 2.174398115 | AN96: 2.115158185 | AO96: 2.055588242
E97: Allocation to load related capex | G97: % | AH97: =CHOOSE(m_identity,East!AH97, London!AH97, 'North West'!AH97, 'West Midlands'!AH97, Northern!AH97, Scotland!AH97, Southern!AH97, 'Wales & West'!AH97) -> 0.05 | AI97: =CHOOSE(m_identity,East!AI97, London!AI97, 'North West'!AI97, 'West Midlands'!AI97, Northern!AI97, Scotland!AI97, Southern!AI97, 'Wales & West'!AI97) -> 0.05 | AJ97: =CHOOSE(m_identity,East!AJ97, London!AJ97, 'North West'!AJ97, 'West Midlands'!AJ97, Northern!AJ97, Scotland!AJ97, Southern!AJ97, 'Wales & West'!AJ97) -> 0.05 | AK97: =CHOOSE(m_identity,East!AK97, London!AK97, 'North West'!AK97, 'West Midlands'!AK97, Northern!AK97, Scotland!AK97, Southern!AK97, 'Wales & West'!AK97) -> 0.05 | AL97: =CHOOSE(m_identity,East!AL97, London!AL97, 'North West'!AL97, 'West Midlands'!AL97, Northern!AL97, Scotland!AL97, Southern!AL97, 'Wales & West'!AL97) -> 0.05 | AM97: =CHOOSE(m_identity,East!AM97, London!AM97, 'North West'!AM97, 'West Midlands'!AM97, Northern!AM97, Scotland!AM97, Southern!AM97, 'Wales & West'!AM97) -> 0.05 | AN97: =CHOOSE(m_identity,East!AN97, London!AN97, 'North West'!AN97, 'West Midlands'!AN97, Northern!AN97, Scotland!AN97, Southern!AN97, 'Wales & West'!AN97) -> 0.05 | AO97: =CHOOSE(m_identity,East!AO97, London!AO97, 'North West'!AO97, 'West Midlands'!AO97, Northern!AO97, Scotland!AO97, Southern!AO97, 'Wales & West'!AO97) -> 0.05
E98: Allocation to non-load related capex - other | G98: % | AH98: =CHOOSE(m_identity,East!AH98, London!AH98, 'North West'!AH98, 'West Midlands'!AH98, Northern!AH98, Scotland!AH98, Southern!AH98, 'Wales & West'!AH98) -> 0 | AI98: =CHOOSE(m_identity,East!AI98, London!AI98, 'North West'!AI98, 'West Midlands'!AI98, Northern!AI98, Scotland!AI98, Southern!AI98, 'Wales & West'!AI98) -> 0 | AJ98: =CHOOSE(m_identity,East!AJ98, London!AJ98, 'North West'!AJ98, 'West Midlands'!AJ98, Northern!AJ98, Scotland!AJ98, Southern!AJ98, 'Wales & West'!AJ98) -> 0 | AK98: =CHOOSE(m_identity,East!AK98, London!AK98, 'North West'!AK98, 'West Midlands'!AK98, Northern!AK98, Scotland!AK98, Southern!AK98, 'Wales & West'!AK98) -> 0 | AL98: =CHOOSE(m_identity,East!AL98, London!AL98, 'North West'!AL98, 'West Midlands'!AL98, Northern!AL98, Scotland!AL98, Southern!AL98, 'Wales & West'!AL98) -> 0 | AM98: =CHOOSE(m_identity,East!AM98, London!AM98, 'North West'!AM98, 'West Midlands'!AM98, Northern!AM98, Scotland!AM98, Southern!AM98, 'Wales & West'!AM98) -> 0 | AN98: =CHOOSE(m_identity,East!AN98, London!AN98, 'North West'!AN98, 'West Midlands'!AN98, Northern!AN98, Scotland!AN98, Southern!AN98, 'Wales & West'!AN98) -> 0 | AO98: =CHOOSE(m_identity,East!AO98, London!AO98, 'North West'!AO98, 'West Midlands'!AO98, Northern!AO98, Scotland!AO98, Southern!AO98, 'Wales & West'!AO98) -> 0
E99: Allocation to controllable opex | G99: % | AH99: =CHOOSE(m_identity,East!AH99, London!AH99, 'North West'!AH99, 'West Midlands'!AH99, Northern!AH99, Scotland!AH99, Southern!AH99, 'Wales & West'!AH99) -> 0.3 | AI99: =CHOOSE(m_identity,East!AI99, London!AI99, 'North West'!AI99, 'West Midlands'!AI99, Northern!AI99, Scotland!AI99, Southern!AI99, 'Wales & West'!AI99) -> 0.3 | AJ99: =CHOOSE(m_identity,East!AJ99, London!AJ99, 'North West'!AJ99, 'West Midlands'!AJ99, Northern!AJ99, Scotland!AJ99, Southern!AJ99, 'Wales & West'!AJ99) -> 0.3 | AK99: =CHOOSE(m_identity,East!AK99, London!AK99, 'North West'!AK99, 'West Midlands'!AK99, Northern!AK99, Scotland!AK99, Southern!AK99, 'Wales & West'!AK99) -> 0.3 | AL99: =CHOOSE(m_identity,East!AL99, London!AL99, 'North West'!AL99, 'West Midlands'!AL99, Northern!AL99, Scotland!AL99, Southern!AL99, 'Wales & West'!AL99) -> 0.3 | AM99: =CHOOSE(m_identity,East!AM99, London!AM99, 'North West'!AM99, 'West Midlands'!AM99, Northern!AM99, Scotland!AM99, Southern!AM99, 'Wales & West'!AM99) -> 0.3 | AN99: =CHOOSE(m_identity,East!AN99, London!AN99, 'North West'!AN99, 'West Midlands'!AN99, Northern!AN99, Scotland!AN99, Southern!AN99, 'Wales & West'!AN99) -> 0.3 | AO99: =CHOOSE(m_identity,East!AO99, London!AO99, 'North West'!AO99, 'West Midlands'!AO99, Northern!AO99, Scotland!AO99, Southern!AO99, 'Wales & West'!AO99) -> 0.3
E100: Allocation to repex | G100: % | AH100: =CHOOSE(m_identity,East!AH100, London!AH100, 'North West'!AH100, 'West Midlands'!AH100, Northern!AH100, Scotland!AH100, Southern!AH100, 'Wales & West'!AH100) -> 0.65 | AI100: =CHOOSE(m_identity,East!AI100, London!AI100, 'North West'!AI100, 'West Midlands'!AI100, Northern!AI100, Scotland!AI100, Southern!AI100, 'Wales & West'!AI100) -> 0.65 | AJ100: =CHOOSE(m_identity,East!AJ100, London!AJ100, 'North West'!AJ100, 'West Midlands'!AJ100, Northern!AJ100, Scotland!AJ100, Southern!AJ100, 'Wales & West'!AJ100) -> 0.65 | AK100: =CHOOSE(m_identity,East!AK100, London!AK100, 'North West'!AK100, 'West Midlands'!AK100, Northern!AK100, Scotland!AK100, Southern!AK100, 'Wales & West'!AK100) -> 0.65 | AL100: =CHOOSE(m_identity,East!AL100, London!AL100, 'North West'!AL100, 'West Midlands'!AL100, Northern!AL100, Scotland!AL100, Southern!AL100, 'Wales & West'!AL100) -> 0.65 | AM100: =CHOOSE(m_identity,East!AM100, London!AM100, 'North West'!AM100, 'West Midlands'!AM100, Northern!AM100, Scotland!AM100, Southern!AM100, 'Wales & West'!AM100) -> 0.65 | AN100: =CHOOSE(m_identity,East!AN100, London!AN100, 'North West'!AN100, 'West Midlands'!AN100, Northern!AN100, Scotland!AN100, Southern!AN100, 'Wales & West'!AN100) -> 0.65 | AO100: =CHOOSE(m_identity,East!AO100, London!AO100, 'North West'!AO100, 'West Midlands'!AO100, Northern!AO100, Scotland!AO100, Southern!AO100, 'Wales & West'!AO100) -> 0.65
E102: =E15 -> Allowed uncertain costs (Connection charging boundary change costs) | G102: £m 09/10 prices | AH102: =AH15 -> 0 | AI102: =AI15 -> 0 | AJ102: 0 | AK102: 0 | AL102: 0 | AM102: 0 | AN102: 0 | AO102: 0
E103: Allocation to load related capex | G103: % | AH103: =CHOOSE(m_identity,East!AH103, London!AH103, 'North West'!AH103, 'West Midlands'!AH103, Northern!AH103, Scotland!AH103, Southern!AH103, 'Wales & West'!AH103) -> 0.9 | AI103: =CHOOSE(m_identity,East!AI103, London!AI103, 'North West'!AI103, 'West Midlands'!AI103, Northern!AI103, Scotland!AI103, Southern!AI103, 'Wales & West'!AI103) -> 0.9 | AJ103: =CHOOSE(m_identity,East!AJ103, London!AJ103, 'North West'!AJ103, 'West Midlands'!AJ103, Northern!AJ103, Scotland!AJ103, Southern!AJ103, 'Wales & West'!AJ103) -> 0.9 | AK103: =CHOOSE(m_identity,East!AK103, London!AK103, 'North West'!AK103, 'West Midlands'!AK103, Northern!AK103, Scotland!AK103, Southern!AK103, 'Wales & West'!AK103) -> 0.9 | AL103: =CHOOSE(m_identity,East!AL103, London!AL103, 'North West'!AL103, 'West Midlands'!AL103, Northern!AL103, Scotland!AL103, Southern!AL103, 'Wales & West'!AL103) -> 0.9 | AM103: =CHOOSE(m_identity,East!AM103, London!AM103, 'North West'!AM103, 'West Midlands'!AM103, Northern!AM103, Scotland!AM103, Southern!AM103, 'Wales & West'!AM103) -> 0.9 | AN103: =CHOOSE(m_identity,East!AN103, London!AN103, 'North West'!AN103, 'West Midlands'!AN103, Northern!AN103, Scotland!AN103, Southern!AN103, 'Wales & West'!AN103) -> 0.9 | AO103: =CHOOSE(m_identity,East!AO103, London!AO103, 'North West'!AO103, 'West Midlands'!AO103, Northern!AO103, Scotland!AO103, Southern!AO103, 'Wales & West'!AO103) -> 0.9
E104: Allocation to non-load related capex - other | G104: % | AH104: =CHOOSE(m_identity,East!AH104, London!AH104, 'North West'!AH104, 'West Midlands'!AH104, Northern!AH104, Scotland!AH104, Southern!AH104, 'Wales & West'!AH104) -> 0 | AI104: =CHOOSE(m_identity,East!AI104, London!AI104, 'North West'!AI104, 'West Midlands'!AI104, Northern!AI104, Scotland!AI104, Southern!AI104, 'Wales & West'!AI104) -> 0 | AJ104: =CHOOSE(m_identity,East!AJ104, London!AJ104, 'North West'!AJ104, 'West Midlands'!AJ104, Northern!AJ104, Scotland!AJ104, Southern!AJ104, 'Wales & West'!AJ104) -> 0 | AK104: =CHOOSE(m_identity,East!AK104, London!AK104, 'North West'!AK104, 'West Midlands'!AK104, Northern!AK104, Scotland!AK104, Southern!AK104, 'Wales & West'!AK104) -> 0 | AL104: =CHOOSE(m_identity,East!AL104, London!AL104, 'North West'!AL104, 'West Midlands'!AL104, Northern!AL104, Scotland!AL104, Southern!AL104, 'Wales & West'!AL104) -> 0 | AM104: =CHOOSE(m_identity,East!AM104, London!AM104, 'North West'!AM104, 'West Midlands'!AM104, Northern!AM104, Scotland!AM104, Southern!AM104, 'Wales & West'!AM104) -> 0 | AN104: =CHOOSE(m_identity,East!AN104, London!AN104, 'North West'!AN104, 'West Midlands'!AN104, Northern!AN104, Scotland!AN104, Southern!AN104, 'Wales & West'!AN104) -> 0 | AO104: =CHOOSE(m_identity,East!AO104, London!AO104, 'North West'!AO104, 'West Midlands'!AO104, Northern!AO104, Scotland!AO104, Southern!AO104, 'Wales & West'!AO104) -> 0
E105: Allocation to controllable opex | G105: % | AH105: =CHOOSE(m_identity,East!AH105, London!AH105, 'North West'!AH105, 'West Midlands'!AH105, Northern!AH105, Scotland!AH105, Southern!AH105, 'Wales & West'!AH105) -> 0.1 | AI105: =CHOOSE(m_identity,East!AI105, London!AI105, 'North West'!AI105, 'West Midlands'!AI105, Northern!AI105, Scotland!AI105, Southern!AI105, 'Wales & West'!AI105) -> 0.1 | AJ105: =CHOOSE(m_identity,East!AJ105, London!AJ105, 'North West'!AJ105, 'West Midlands'!AJ105, Northern!AJ105, Scotland!AJ105, Southern!AJ105, 'Wales & West'!AJ105) -> 0.1 | AK105: =CHOOSE(m_identity,East!AK105, London!AK105, 'North West'!AK105, 'West Midlands'!AK105, Northern!AK105, Scotland!AK105, Southern!AK105, 'Wales & West'!AK105) -> 0.1 | AL105: =CHOOSE(m_identity,East!AL105, London!AL105, 'North West'!AL105, 'West Midlands'!AL105, Northern!AL105, Scotland!AL105, Southern!AL105, 'Wales & West'!AL105) -> 0.1 | AM105: =CHOOSE(m_identity,East!AM105, London!AM105, 'North West'!AM105, 'West Midlands'!AM105, Northern!AM105, Scotland!AM105, Southern!AM105, 'Wales & West'!AM105) -> 0.1 | AN105: =CHOOSE(m_identity,East!AN105, London!AN105, 'North West'!AN105, 'West Midlands'!AN105, Northern!AN105, Scotland!AN105, Southern!AN105, 'Wales & West'!AN105) -> 0.1 | AO105: =CHOOSE(m_identity,East!AO105, London!AO105, 'North West'!AO105, 'West Midlands'!AO105, Northern!AO105, Scotland!AO105, Southern!AO105, 'Wales & West'!AO105) -> 0.1
E106: Allocation to repex | G106: % | AH106: =CHOOSE(m_identity,East!AH106, London!AH106, 'North West'!AH106, 'West Midlands'!AH106, Northern!AH106, Scotland!AH106, Southern!AH106, 'Wales & West'!AH106) -> 0 | AI106: =CHOOSE(m_identity,East!AI106, London!AI106, 'North West'!AI106, 'West Midlands'!AI106, Northern!AI106, Scotland!AI106, Southern!AI106, 'Wales & West'!AI106) -> 0 | AJ106: =CHOOSE(m_identity,East!AJ106, London!AJ106, 'North West'!AJ106, 'West Midlands'!AJ106, Northern!AJ106, Scotland!AJ106, Southern!AJ106, 'Wales & West'!AJ106) -> 0 | AK106: =CHOOSE(m_identity,East!AK106, London!AK106, 'North West'!AK106, 'West Midlands'!AK106, Northern!AK106, Scotland!AK106, Southern!AK106, 'Wales & West'!AK106) -> 0 | AL106: =CHOOSE(m_identity,East!AL106, London!AL106, 'North West'!AL106, 'West Midlands'!AL106, Northern!AL106, Scotland!AL106, Southern!AL106, 'Wales & West'!AL106) -> 0 | AM106: =CHOOSE(m_identity,East!AM106, London!AM106, 'North West'!AM106, 'West Midlands'!AM106, Northern!AM106, Scotland!AM106, Southern!AM106, 'Wales & West'!AM106) -> 0 | AN106: =CHOOSE(m_identity,East!AN106, London!AN106, 'North West'!AN106, 'West Midlands'!AN106, Northern!AN106, Scotland!AN106, Southern!AN106, 'Wales & West'!AN106) -> 0 | AO106: =CHOOSE(m_identity,East!AO106, London!AO106, 'North West'!AO106, 'West Midlands'!AO106, Northern!AO106, Scotland!AO106, Southern!AO106, 'Wales & West'!AO106) -> 0
E108: =E16 -> Allowed uncertain costs (Fuel poor network extension scheme) | G108: £m 09/10 prices | AH108: =AH16 -> 1.225085886 | AI108: =AI16 -> 1.220185543 | AJ108: 1.233131338 | AK108: 1.741324102 | AL108: 1.828306207 | AM108: 1.787447993 | AN108: 1.781980158 | AO108: 1.685371513
E109: Allocation to load related capex | G109: % | AH109: =CHOOSE(m_identity,East!AH109, London!AH109, 'North West'!AH109, 'West Midlands'!AH109, Northern!AH109, Scotland!AH109, Southern!AH109, 'Wales & West'!AH109) -> 1 | AI109: =CHOOSE(m_identity,East!AI109, London!AI109, 'North West'!AI109, 'West Midlands'!AI109, Northern!AI109, Scotland!AI109, Southern!AI109, 'Wales & West'!AI109) -> 1 | AJ109: =CHOOSE(m_identity,East!AJ109, London!AJ109, 'North West'!AJ109, 'West Midlands'!AJ109, Northern!AJ109, Scotland!AJ109, Southern!AJ109, 'Wales & West'!AJ109) -> 1 | AK109: =CHOOSE(m_identity,East!AK109, London!AK109, 'North West'!AK109, 'West Midlands'!AK109, Northern!AK109, Scotland!AK109, Southern!AK109, 'Wales & West'!AK109) -> 1 | AL109: =CHOOSE(m_identity,East!AL109, London!AL109, 'North West'!AL109, 'West Midlands'!AL109, Northern!AL109, Scotland!AL109, Southern!AL109, 'Wales & West'!AL109) -> 1 | AM109: =CHOOSE(m_identity,East!AM109, London!AM109, 'North West'!AM109, 'West Midlands'!AM109, Northern!AM109, Scotland!AM109, Southern!AM109, 'Wales & West'!AM109) -> 1 | AN109: =CHOOSE(m_identity,East!AN109, London!AN109, 'North West'!AN109, 'West Midlands'!AN109, Northern!AN109, Scotland!AN109, Southern!AN109, 'Wales & West'!AN109) -> 1 | AO109: =CHOOSE(m_identity,East!AO109, London!AO109, 'North West'!AO109, 'West Midlands'!AO109, Northern!AO109, Scotland!AO109, Southern!AO109, 'Wales & West'!AO109) -> 1
E110: Allocation to non-load related capex - other | G110: % | AH110: =CHOOSE(m_identity,East!AH110, London!AH110, 'North West'!AH110, 'West Midlands'!AH110, Northern!AH110, Scotland!AH110, Southern!AH110, 'Wales & West'!AH110) -> 0 | AI110: =CHOOSE(m_identity,East!AI110, London!AI110, 'North West'!AI110, 'West Midlands'!AI110, Northern!AI110, Scotland!AI110, Southern!AI110, 'Wales & West'!AI110) -> 0 | AJ110: =CHOOSE(m_identity,East!AJ110, London!AJ110, 'North West'!AJ110, 'West Midlands'!AJ110, Northern!AJ110, Scotland!AJ110, Southern!AJ110, 'Wales & West'!AJ110) -> 0 | AK110: =CHOOSE(m_identity,East!AK110, London!AK110, 'North West'!AK110, 'West Midlands'!AK110, Northern!AK110, Scotland!AK110, Southern!AK110, 'Wales & West'!AK110) -> 0 | AL110: =CHOOSE(m_identity,East!AL110, London!AL110, 'North West'!AL110, 'West Midlands'!AL110, Northern!AL110, Scotland!AL110, Southern!AL110, 'Wales & West'!AL110) -> 0 | AM110: =CHOOSE(m_identity,East!AM110, London!AM110, 'North West'!AM110, 'West Midlands'!AM110, Northern!AM110, Scotland!AM110, Southern!AM110, 'Wales & West'!AM110) -> 0 | AN110: =CHOOSE(m_identity,East!AN110, London!AN110, 'North West'!AN110, 'West Midlands'!AN110, Northern!AN110, Scotland!AN110, Southern!AN110, 'Wales & West'!AN110) -> 0 | AO110: =CHOOSE(m_identity,East!AO110, London!AO110, 'North West'!AO110, 'West Midlands'!AO110, Northern!AO110, Scotland!AO110, Southern!AO110, 'Wales & West'!AO110) -> 0
E111: Allocation to controllable opex | G111: % | AH111: =CHOOSE(m_identity,East!AH111, London!AH111, 'North West'!AH111, 'West Midlands'!AH111, Northern!AH111, Scotland!AH111, Southern!AH111, 'Wales & West'!AH111) -> 0 | AI111: =CHOOSE(m_identity,East!AI111, London!AI111, 'North West'!AI111, 'West Midlands'!AI111, Northern!AI111, Scotland!AI111, Southern!AI111, 'Wales & West'!AI111) -> 0 | AJ111: =CHOOSE(m_identity,East!AJ111, London!AJ111, 'North West'!AJ111, 'West Midlands'!AJ111, Northern!AJ111, Scotland!AJ111, Southern!AJ111, 'Wales & West'!AJ111) -> 0 | AK111: =CHOOSE(m_identity,East!AK111, London!AK111, 'North West'!AK111, 'West Midlands'!AK111, Northern!AK111, Scotland!AK111, Southern!AK111, 'Wales & West'!AK111) -> 0 | AL111: =CHOOSE(m_identity,East!AL111, London!AL111, 'North West'!AL111, 'West Midlands'!AL111, Northern!AL111, Scotland!AL111, Southern!AL111, 'Wales & West'!AL111) -> 0 | AM111: =CHOOSE(m_identity,East!AM111, London!AM111, 'North West'!AM111, 'West Midlands'!AM111, Northern!AM111, Scotland!AM111, Southern!AM111, 'Wales & West'!AM111) -> 0 | AN111: =CHOOSE(m_identity,East!AN111, London!AN111, 'North West'!AN111, 'West Midlands'!AN111, Northern!AN111, Scotland!AN111, Southern!AN111, 'Wales & West'!AN111) -> 0 | AO111: =CHOOSE(m_identity,East!AO111, London!AO111, 'North West'!AO111, 'West Midlands'!AO111, Northern!AO111, Scotland!AO111, Southern!AO111, 'Wales & West'!AO111) -> 0
E112: Allocation to repex | G112: % | AH112: =CHOOSE(m_identity,East!AH112, London!AH112, 'North West'!AH112, 'West Midlands'!AH112, Northern!AH112, Scotland!AH112, Southern!AH112, 'Wales & West'!AH112) -> 0 | AI112: =CHOOSE(m_identity,East!AI112, London!AI112, 'North West'!AI112, 'West Midlands'!AI112, Northern!AI112, Scotland!AI112, Southern!AI112, 'Wales & West'!AI112) -> 0 | AJ112: =CHOOSE(m_identity,East!AJ112, London!AJ112, 'North West'!AJ112, 'West Midlands'!AJ112, Northern!AJ112, Scotland!AJ112, Southern!AJ112, 'Wales & West'!AJ112) -> 0 | AK112: =CHOOSE(m_identity,East!AK112, London!AK112, 'North West'!AK112, 'West Midlands'!AK112, Northern!AK112, Scotland!AK112, Southern!AK112, 'Wales & West'!AK112) -> 0 | AL112: =CHOOSE(m_identity,East!AL112, London!AL112, 'North West'!AL112, 'West Midlands'!AL112, Northern!AL112, Scotland!AL112, Southern!AL112, 'Wales & West'!AL112) -> 0 | AM112: =CHOOSE(m_identity,East!AM112, London!AM112, 'North West'!AM112, 'West Midlands'!AM112, Northern!AM112, Scotland!AM112, Southern!AM112, 'Wales & West'!AM112) -> 0 | AN112: =CHOOSE(m_identity,East!AN112, London!AN112, 'North West'!AN112, 'West Midlands'!AN112, Northern!AN112, Scotland!AN112, Southern!AN112, 'Wales & West'!AN112) -> 0 | AO112: =CHOOSE(m_identity,East!AO112, London!AO112, 'North West'!AO112, 'West Midlands'!AO112, Northern!AO112, Scotland!AO112, Southern!AO112, 'Wales & West'!AO112) -> 0
E114: =E17 -> Allowed uncertain costs (Central agent) | G114: £m 09/10 prices | AH114: =AH17 -> -8.530405218e-07 | AI114: 0.02123836802 | AJ114: 0.2050095012 | AK114: 0.208004423 | AL114: -2.647690892 | AM114: -3.946760039 | AN114: -5.193716392 | AO114: -5.827286335
E115: Allocation to load related capex | G115: % | AH115: =CHOOSE(m_identity,East!AH115, London!AH115, 'North West'!AH115, 'West Midlands'!AH115, Northern!AH115, Scotland!AH115, Southern!AH115, 'Wales & West'!AH115) -> 0 | AI115: =CHOOSE(m_identity,East!AI115, London!AI115, 'North West'!AI115, 'West Midlands'!AI115, Northern!AI115, Scotland!AI115, Southern!AI115, 'Wales & West'!AI115) -> 0 | AJ115: =CHOOSE(m_identity,East!AJ115, London!AJ115, 'North West'!AJ115, 'West Midlands'!AJ115, Northern!AJ115, Scotland!AJ115, Southern!AJ115, 'Wales & West'!AJ115) -> 0 | AK115: =CHOOSE(m_identity,East!AK115, London!AK115, 'North West'!AK115, 'West Midlands'!AK115, Northern!AK115, Scotland!AK115, Southern!AK115, 'Wales & West'!AK115) -> 0 | AL115: =CHOOSE(m_identity,East!AL115, London!AL115, 'North West'!AL115, 'West Midlands'!AL115, Northern!AL115, Scotland!AL115, Southern!AL115, 'Wales & West'!AL115) -> 0 | AM115: =CHOOSE(m_identity,East!AM115, London!AM115, 'North West'!AM115, 'West Midlands'!AM115, Northern!AM115, Scotland!AM115, Southern!AM115, 'Wales & West'!AM115) -> 0 | AN115: =CHOOSE(m_identity,East!AN115, London!AN115, 'North West'!AN115, 'West Midlands'!AN115, Northern!AN115, Scotland!AN115, Southern!AN115, 'Wales & West'!AN115) -> 0 | AO115: =CHOOSE(m_identity,East!AO115, London!AO115, 'North West'!AO115, 'West Midlands'!AO115, Northern!AO115, Scotland!AO115, Southern!AO115, 'Wales & West'!AO115) -> 0
E116: Allocation to non-load related capex - other | G116: % | AH116: =CHOOSE(m_identity,East!AH116, London!AH116, 'North West'!AH116, 'West Midlands'!AH116, Northern!AH116, Scotland!AH116, Southern!AH116, 'Wales & West'!AH116) -> 0.15 | AI116: =CHOOSE(m_identity,East!AI116, London!AI116, 'North West'!AI116, 'West Midlands'!AI116, Northern!AI116, Scotland!AI116, Southern!AI116, 'Wales & West'!AI116) -> 0.15 | AJ116: =CHOOSE(m_identity,East!AJ116, London!AJ116, 'North West'!AJ116, 'West Midlands'!AJ116, Northern!AJ116, Scotland!AJ116, Southern!AJ116, 'Wales & West'!AJ116) -> 0.15 | AK116: =CHOOSE(m_identity,East!AK116, London!AK116, 'North West'!AK116, 'West Midlands'!AK116, Northern!AK116, Scotland!AK116, Southern!AK116, 'Wales & West'!AK116) -> 0.15 | AL116: =CHOOSE(m_identity,East!AL116, London!AL116, 'North West'!AL116, 'West Midlands'!AL116, Northern!AL116, Scotland!AL116, Southern!AL116, 'Wales & West'!AL116) -> 0.15 | AM116: =CHOOSE(m_identity,East!AM116, London!AM116, 'North West'!AM116, 'West Midlands'!AM116, Northern!AM116, Scotland!AM116, Southern!AM116, 'Wales & West'!AM116) -> 0.15 | AN116: =CHOOSE(m_identity,East!AN116, London!AN116, 'North West'!AN116, 'West Midlands'!AN116, Northern!AN116, Scotland!AN116, Southern!AN116, 'Wales & West'!AN116) -> 0.15 | AO116: =CHOOSE(m_identity,East!AO116, London!AO116, 'North West'!AO116, 'West Midlands'!AO116, Northern!AO116, Scotland!AO116, Southern!AO116, 'Wales & West'!AO116) -> 0.15
E117: Allocation to controllable opex | G117: % | AH117: =CHOOSE(m_identity,East!AH117, London!AH117, 'North West'!AH117, 'West Midlands'!AH117, Northern!AH117, Scotland!AH117, Southern!AH117, 'Wales & West'!AH117) -> 0.85 | AI117: =CHOOSE(m_identity,East!AI117, London!AI117, 'North West'!AI117, 'West Midlands'!AI117, Northern!AI117, Scotland!AI117, Southern!AI117, 'Wales & West'!AI117) -> 0.85 | AJ117: =CHOOSE(m_identity,East!AJ117, London!AJ117, 'North West'!AJ117, 'West Midlands'!AJ117, Northern!AJ117, Scotland!AJ117, Southern!AJ117, 'Wales & West'!AJ117) -> 0.85 | AK117: =CHOOSE(m_identity,East!AK117, London!AK117, 'North West'!AK117, 'West Midlands'!AK117, Northern!AK117, Scotland!AK117, Southern!AK117, 'Wales & West'!AK117) -> 0.85 | AL117: =CHOOSE(m_identity,East!AL117, London!AL117, 'North West'!AL117, 'West Midlands'!AL117, Northern!AL117, Scotland!AL117, Southern!AL117, 'Wales & West'!AL117) -> 0.85 | AM117: =CHOOSE(m_identity,East!AM117, London!AM117, 'North West'!AM117, 'West Midlands'!AM117, Northern!AM117, Scotland!AM117, Southern!AM117, 'Wales & West'!AM117) -> 0.85 | AN117: =CHOOSE(m_identity,East!AN117, London!AN117, 'North West'!AN117, 'West Midlands'!AN117, Northern!AN117, Scotland!AN117, Southern!AN117, 'Wales & West'!AN117) -> 0.85 | AO117: =CHOOSE(m_identity,East!AO117, London!AO117, 'North West'!AO117, 'West Midlands'!AO117, Northern!AO117, Scotland!AO117, Southern!AO117, 'Wales & West'!AO117) -> 0.85
E118: Allocation to repex | G118: % | AH118: =CHOOSE(m_identity,East!AH118, London!AH118, 'North West'!AH118, 'West Midlands'!AH118, Northern!AH118, Scotland!AH118, Southern!AH118, 'Wales & West'!AH118) -> 0 | AI118: =CHOOSE(m_identity,East!AI118, London!AI118, 'North West'!AI118, 'West Midlands'!AI118, Northern!AI118, Scotland!AI118, Southern!AI118, 'Wales & West'!AI118) -> 0 | AJ118: =CHOOSE(m_identity,East!AJ118, London!AJ118, 'North West'!AJ118, 'West Midlands'!AJ118, Northern!AJ118, Scotland!AJ118, Southern!AJ118, 'Wales & West'!AJ118) -> 0 | AK118: =CHOOSE(m_identity,East!AK118, London!AK118, 'North West'!AK118, 'West Midlands'!AK118, Northern!AK118, Scotland!AK118, Southern!AK118, 'Wales & West'!AK118) -> 0 | AL118: =CHOOSE(m_identity,East!AL118, London!AL118, 'North West'!AL118, 'West Midlands'!AL118, Northern!AL118, Scotland!AL118, Southern!AL118, 'Wales & West'!AL118) -> 0 | AM118: =CHOOSE(m_identity,East!AM118, London!AM118, 'North West'!AM118, 'West Midlands'!AM118, Northern!AM118, Scotland!AM118, Southern!AM118, 'Wales & West'!AM118) -> 0 | AN118: =CHOOSE(m_identity,East!AN118, London!AN118, 'North West'!AN118, 'West Midlands'!AN118, Northern!AN118, Scotland!AN118, Southern!AN118, 'Wales & West'!AN118) -> 0 | AO118: =CHOOSE(m_identity,East!AO118, London!AO118, 'North West'!AO118, 'West Midlands'!AO118, Northern!AO118, Scotland!AO118, Southern!AO118, 'Wales & West'!AO118) -> 0
E120: =E18 -> Allowed uncertain costs (Smart metering roll out costs) | G120: £m 09/10 prices | AH120: =AH18 -> 0 | AI120: 0 | AJ120: 0 | AK120: 0 | AL120: 0 | AM120: 0 | AN120: 0 | AO120: 0
E121: Allocation to load related capex | G121: % | AH121: =CHOOSE(m_identity,East!AH121, London!AH121, 'North West'!AH121, 'West Midlands'!AH121, Northern!AH121, Scotland!AH121, Southern!AH121, 'Wales & West'!AH121) -> 0 | AI121: =CHOOSE(m_identity,East!AI121, London!AI121, 'North West'!AI121, 'West Midlands'!AI121, Northern!AI121, Scotland!AI121, Southern!AI121, 'Wales & West'!AI121) -> 0 | AJ121: =CHOOSE(m_identity,East!AJ121, London!AJ121, 'North West'!AJ121, 'West Midlands'!AJ121, Northern!AJ121, Scotland!AJ121, Southern!AJ121, 'Wales & West'!AJ121) -> 0 | AK121: =CHOOSE(m_identity,East!AK121, London!AK121, 'North West'!AK121, 'West Midlands'!AK121, Northern!AK121, Scotland!AK121, Southern!AK121, 'Wales & West'!AK121) -> 0 | AL121: =CHOOSE(m_identity,East!AL121, London!AL121, 'North West'!AL121, 'West Midlands'!AL121, Northern!AL121, Scotland!AL121, Southern!AL121, 'Wales & West'!AL121) -> 0 | AM121: =CHOOSE(m_identity,East!AM121, London!AM121, 'North West'!AM121, 'West Midlands'!AM121, Northern!AM121, Scotland!AM121, Southern!AM121, 'Wales & West'!AM121) -> 0 | AN121: =CHOOSE(m_identity,East!AN121, London!AN121, 'North West'!AN121, 'West Midlands'!AN121, Northern!AN121, Scotland!AN121, Southern!AN121, 'Wales & West'!AN121) -> 0 | AO121: =CHOOSE(m_identity,East!AO121, London!AO121, 'North West'!AO121, 'West Midlands'!AO121, Northern!AO121, Scotland!AO121, Southern!AO121, 'Wales & West'!AO121) -> 0
E122: Allocation to non-load related capex - other | G122: % | AH122: =CHOOSE(m_identity,East!AH122, London!AH122, 'North West'!AH122, 'West Midlands'!AH122, Northern!AH122, Scotland!AH122, Southern!AH122, 'Wales & West'!AH122) -> 0 | AI122: =CHOOSE(m_identity,East!AI122, London!AI122, 'North West'!AI122, 'West Midlands'!AI122, Northern!AI122, Scotland!AI122, Southern!AI122, 'Wales & West'!AI122) -> 0 | AJ122: =CHOOSE(m_identity,East!AJ122, London!AJ122, 'North West'!AJ122, 'West Midlands'!AJ122, Northern!AJ122, Scotland!AJ122, Southern!AJ122, 'Wales & West'!AJ122) -> 0 | AK122: =CHOOSE(m_identity,East!AK122, London!AK122, 'North West'!AK122, 'West Midlands'!AK122, Northern!AK122, Scotland!AK122, Southern!AK122, 'Wales & West'!AK122) -> 0 | AL122: =CHOOSE(m_identity,East!AL122, London!AL122, 'North West'!AL122, 'West Midlands'!AL122, Northern!AL122, Scotland!AL122, Southern!AL122, 'Wales & West'!AL122) -> 0 | AM122: =CHOOSE(m_identity,East!AM122, London!AM122, 'North West'!AM122, 'West Midlands'!AM122, Northern!AM122, Scotland!AM122, Southern!AM122, 'Wales & West'!AM122) -> 0 | AN122: =CHOOSE(m_identity,East!AN122, London!AN122, 'North West'!AN122, 'West Midlands'!AN122, Northern!AN122, Scotland!AN122, Southern!AN122, 'Wales & West'!AN122) -> 0 | AO122: =CHOOSE(m_identity,East!AO122, London!AO122, 'North West'!AO122, 'West Midlands'!AO122, Northern!AO122, Scotland!AO122, Southern!AO122, 'Wales & West'!AO122) -> 0
E123: Allocation to controllable opex | G123: % | AH123: =CHOOSE(m_identity,East!AH123, London!AH123, 'North West'!AH123, 'West Midlands'!AH123, Northern!AH123, Scotland!AH123, Southern!AH123, 'Wales & West'!AH123) -> 0.5 | AI123: =CHOOSE(m_identity,East!AI123, London!AI123, 'North West'!AI123, 'West Midlands'!AI123, Northern!AI123, Scotland!AI123, Southern!AI123, 'Wales & West'!AI123) -> 0.5 | AJ123: =CHOOSE(m_identity,East!AJ123, London!AJ123, 'North West'!AJ123, 'West Midlands'!AJ123, Northern!AJ123, Scotland!AJ123, Southern!AJ123, 'Wales & West'!AJ123) -> 0.5 | AK123: =CHOOSE(m_identity,East!AK123, London!AK123, 'North West'!AK123, 'West Midlands'!AK123, Northern!AK123, Scotland!AK123, Southern!AK123, 'Wales & West'!AK123) -> 0.5 | AL123: =CHOOSE(m_identity,East!AL123, London!AL123, 'North West'!AL123, 'West Midlands'!AL123, Northern!AL123, Scotland!AL123, Southern!AL123, 'Wales & West'!AL123) -> 0.5 | AM123: =CHOOSE(m_identity,East!AM123, London!AM123, 'North West'!AM123, 'West Midlands'!AM123, Northern!AM123, Scotland!AM123, Southern!AM123, 'Wales & West'!AM123) -> 0.5 | AN123: =CHOOSE(m_identity,East!AN123, London!AN123, 'North West'!AN123, 'West Midlands'!AN123, Northern!AN123, Scotland!AN123, Southern!AN123, 'Wales & West'!AN123) -> 0.5 | AO123: =CHOOSE(m_identity,East!AO123, London!AO123, 'North West'!AO123, 'West Midlands'!AO123, Northern!AO123, Scotland!AO123, Southern!AO123, 'Wales & West'!AO123) -> 0.5
E124: Allocation to repex | G124: % | AH124: =CHOOSE(m_identity,East!AH124, London!AH124, 'North West'!AH124, 'West Midlands'!AH124, Northern!AH124, Scotland!AH124, Southern!AH124, 'Wales & West'!AH124) -> 0.5 | AI124: =CHOOSE(m_identity,East!AI124, London!AI124, 'North West'!AI124, 'West Midlands'!AI124, Northern!AI124, Scotland!AI124, Southern!AI124, 'Wales & West'!AI124) -> 0.5 | AJ124: =CHOOSE(m_identity,East!AJ124, London!AJ124, 'North West'!AJ124, 'West Midlands'!AJ124, Northern!AJ124, Scotland!AJ124, Southern!AJ124, 'Wales & West'!AJ124) -> 0.5 | AK124: =CHOOSE(m_identity,East!AK124, London!AK124, 'North West'!AK124, 'West Midlands'!AK124, Northern!AK124, Scotland!AK124, Southern!AK124, 'Wales & West'!AK124) -> 0.5 | AL124: =CHOOSE(m_identity,East!AL124, London!AL124, 'North West'!AL124, 'West Midlands'!AL124, Northern!AL124, Scotland!AL124, Southern!AL124, 'Wales & West'!AL124) -> 0.5 | AM124: =CHOOSE(m_identity,East!AM124, London!AM124, 'North West'!AM124, 'West Midlands'!AM124, Northern!AM124, Scotland!AM124, Southern!AM124, 'Wales & West'!AM124) -> 0.5 | AN124: =CHOOSE(m_identity,East!AN124, London!AN124, 'North West'!AN124, 'West Midlands'!AN124, Northern!AN124, Scotland!AN124, Southern!AN124, 'Wales & West'!AN124) -> 0.5 | AO124: =CHOOSE(m_identity,East!AO124, London!AO124, 'North West'!AO124, 'West Midlands'!AO124, Northern!AO124, Scotland!AO124, Southern!AO124, 'Wales & West'!AO124) -> 0.5
E126: =E19 -> Allowed uncertain costs (Mains and services replacement expenditure) | G126: £m 09/10 prices | AH126: =AH19 -> 0.105609 | AI126: =AI19 -> 0.182225 | AJ126: 0.416861 | AK126: 0.9436214625 | AL126: 0.9436214625 | AM126: 0.9436214625 | AN126: 0.9436214625 | AO126: 0.9436214625
E127: Allocation to load related capex | G127: % | AH127: =CHOOSE(m_identity,East!AH127, London!AH127, 'North West'!AH127, 'West Midlands'!AH127, Northern!AH127, Scotland!AH127, Southern!AH127, 'Wales & West'!AH127) -> 0 | AI127: =CHOOSE(m_identity,East!AI127, London!AI127, 'North West'!AI127, 'West Midlands'!AI127, Northern!AI127, Scotland!AI127, Southern!AI127, 'Wales & West'!AI127) -> 0 | AJ127: =CHOOSE(m_identity,East!AJ127, London!AJ127, 'North West'!AJ127, 'West Midlands'!AJ127, Northern!AJ127, Scotland!AJ127, Southern!AJ127, 'Wales & West'!AJ127) -> 0 | AK127: =CHOOSE(m_identity,East!AK127, London!AK127, 'North West'!AK127, 'West Midlands'!AK127, Northern!AK127, Scotland!AK127, Southern!AK127, 'Wales & West'!AK127) -> 0 | AL127: =CHOOSE(m_identity,East!AL127, London!AL127, 'North West'!AL127, 'West Midlands'!AL127, Northern!AL127, Scotland!AL127, Southern!AL127, 'Wales & West'!AL127) -> 0 | AM127: =CHOOSE(m_identity,East!AM127, London!AM127, 'North West'!AM127, 'West Midlands'!AM127, Northern!AM127, Scotland!AM127, Southern!AM127, 'Wales & West'!AM127) -> 0 | AN127: =CHOOSE(m_identity,East!AN127, London!AN127, 'North West'!AN127, 'West Midlands'!AN127, Northern!AN127, Scotland!AN127, Southern!AN127, 'Wales & West'!AN127) -> 0 | AO127: =CHOOSE(m_identity,East!AO127, London!AO127, 'North West'!AO127, 'West Midlands'!AO127, Northern!AO127, Scotland!AO127, Southern!AO127, 'Wales & West'!AO127) -> 0
E128: Allocation to non-load related capex - other | G128: % | AH128: =CHOOSE(m_identity,East!AH128, London!AH128, 'North West'!AH128, 'West Midlands'!AH128, Northern!AH128, Scotland!AH128, Southern!AH128, 'Wales & West'!AH128) -> 0 | AI128: =CHOOSE(m_identity,East!AI128, London!AI128, 'North West'!AI128, 'West Midlands'!AI128, Northern!AI128, Scotland!AI128, Southern!AI128, 'Wales & West'!AI128) -> 0 | AJ128: =CHOOSE(m_identity,East!AJ128, London!AJ128, 'North West'!AJ128, 'West Midlands'!AJ128, Northern!AJ128, Scotland!AJ128, Southern!AJ128, 'Wales & West'!AJ128) -> 0 | AK128: =CHOOSE(m_identity,East!AK128, London!AK128, 'North West'!AK128, 'West Midlands'!AK128, Northern!AK128, Scotland!AK128, Southern!AK128, 'Wales & West'!AK128) -> 0 | AL128: =CHOOSE(m_identity,East!AL128, London!AL128, 'North West'!AL128, 'West Midlands'!AL128, Northern!AL128, Scotland!AL128, Southern!AL128, 'Wales & West'!AL128) -> 0 | AM128: =CHOOSE(m_identity,East!AM128, London!AM128, 'North West'!AM128, 'West Midlands'!AM128, Northern!AM128, Scotland!AM128, Southern!AM128, 'Wales & West'!AM128) -> 0 | AN128: =CHOOSE(m_identity,East!AN128, London!AN128, 'North West'!AN128, 'West Midlands'!AN128, Northern!AN128, Scotland!AN128, Southern!AN128, 'Wales & West'!AN128) -> 0 | AO128: =CHOOSE(m_identity,East!AO128, London!AO128, 'North West'!AO128, 'West Midlands'!AO128, Northern!AO128, Scotland!AO128, Southern!AO128, 'Wales & West'!AO128) -> 0
E129: Allocation to controllable opex | G129: % | AH129: =CHOOSE(m_identity,East!AH129, London!AH129, 'North West'!AH129, 'West Midlands'!AH129, Northern!AH129, Scotland!AH129, Southern!AH129, 'Wales & West'!AH129) -> 0 | AI129: =CHOOSE(m_identity,East!AI129, London!AI129, 'North West'!AI129, 'West Midlands'!AI129, Northern!AI129, Scotland!AI129, Southern!AI129, 'Wales & West'!AI129) -> 0 | AJ129: =CHOOSE(m_identity,East!AJ129, London!AJ129, 'North West'!AJ129, 'West Midlands'!AJ129, Northern!AJ129, Scotland!AJ129, Southern!AJ129, 'Wales & West'!AJ129) -> 0 | AK129: =CHOOSE(m_identity,East!AK129, London!AK129, 'North West'!AK129, 'West Midlands'!AK129, Northern!AK129, Scotland!AK129, Southern!AK129, 'Wales & West'!AK129) -> 0 | AL129: =CHOOSE(m_identity,East!AL129, London!AL129, 'North West'!AL129, 'West Midlands'!AL129, Northern!AL129, Scotland!AL129, Southern!AL129, 'Wales & West'!AL129) -> 0 | AM129: =CHOOSE(m_identity,East!AM129, London!AM129, 'North West'!AM129, 'West Midlands'!AM129, Northern!AM129, Scotland!AM129, Southern!AM129, 'Wales & West'!AM129) -> 0 | AN129: =CHOOSE(m_identity,East!AN129, London!AN129, 'North West'!AN129, 'West Midlands'!AN129, Northern!AN129, Scotland!AN129, Southern!AN129, 'Wales & West'!AN129) -> 0 | AO129: =CHOOSE(m_identity,East!AO129, London!AO129, 'North West'!AO129, 'West Midlands'!AO129, Northern!AO129, Scotland!AO129, Southern!AO129, 'Wales & West'!AO129) -> 0
E130: Allocation to repex | G130: % | AH130: =CHOOSE(m_identity,East!AH130, London!AH130, 'North West'!AH130, 'West Midlands'!AH130, Northern!AH130, Scotland!AH130, Southern!AH130, 'Wales & West'!AH130) -> 1 | AI130: =CHOOSE(m_identity,East!AI130, London!AI130, 'North West'!AI130, 'West Midlands'!AI130, Northern!AI130, Scotland!AI130, Southern!AI130, 'Wales & West'!AI130) -> 1 | AJ130: =CHOOSE(m_identity,East!AJ130, London!AJ130, 'North West'!AJ130, 'West Midlands'!AJ130, Northern!AJ130, Scotland!AJ130, Southern!AJ130, 'Wales & West'!AJ130) -> 1 | AK130: =CHOOSE(m_identity,East!AK130, London!AK130, 'North West'!AK130, 'West Midlands'!AK130, Northern!AK130, Scotland!AK130, Southern!AK130, 'Wales & West'!AK130) -> 1 | AL130: =CHOOSE(m_identity,East!AL130, London!AL130, 'North West'!AL130, 'West Midlands'!AL130, Northern!AL130, Scotland!AL130, Southern!AL130, 'Wales & West'!AL130) -> 1 | AM130: =CHOOSE(m_identity,East!AM130, London!AM130, 'North West'!AM130, 'West Midlands'!AM130, Northern!AM130, Scotland!AM130, Southern!AM130, 'Wales & West'!AM130) -> 1 | AN130: =CHOOSE(m_identity,East!AN130, London!AN130, 'North West'!AN130, 'West Midlands'!AN130, Northern!AN130, Scotland!AN130, Southern!AN130, 'Wales & West'!AN130) -> 1 | AO130: =CHOOSE(m_identity,East!AO130, London!AO130, 'North West'!AO130, 'West Midlands'!AO130, Northern!AO130, Scotland!AO130, Southern!AO130, 'Wales & West'!AO130) -> 1
E132: =E20 -> Allowed uncertain Costs (Large load connection costs) | G132: £m 09/10 prices | AH132: =AH20 -> 0 | AI132: =AI20 -> 0 | AJ132: =AJ20 -> 0 | AK132: 0 | AL132: =AL20 -> 0 | AM132: 0 | AN132: 0 | AO132: 0
E133: Allocation to load related capex | G133: % | AH133: =CHOOSE(m_identity,East!AH133, London!AH133, 'North West'!AH133, 'West Midlands'!AH133, Northern!AH133, Scotland!AH133, Southern!AH133, 'Wales & West'!AH133) -> 1 | AI133: =CHOOSE(m_identity,East!AI133, London!AI133, 'North West'!AI133, 'West Midlands'!AI133, Northern!AI133, Scotland!AI133, Southern!AI133, 'Wales & West'!AI133) -> 1 | AJ133: =CHOOSE(m_identity,East!AJ133, London!AJ133, 'North West'!AJ133, 'West Midlands'!AJ133, Northern!AJ133, Scotland!AJ133, Southern!AJ133, 'Wales & West'!AJ133) -> 1 | AK133: =CHOOSE(m_identity,East!AK133, London!AK133, 'North West'!AK133, 'West Midlands'!AK133, Northern!AK133, Scotland!AK133, Southern!AK133, 'Wales & West'!AK133) -> 1 | AL133: =CHOOSE(m_identity,East!AL133, London!AL133, 'North West'!AL133, 'West Midlands'!AL133, Northern!AL133, Scotland!AL133, Southern!AL133, 'Wales & West'!AL133) -> 1 | AM133: =CHOOSE(m_identity,East!AM133, London!AM133, 'North West'!AM133, 'West Midlands'!AM133, Northern!AM133, Scotland!AM133, Southern!AM133, 'Wales & West'!AM133) -> 1 | AN133: =CHOOSE(m_identity,East!AN133, London!AN133, 'North West'!AN133, 'West Midlands'!AN133, Northern!AN133, Scotland!AN133, Southern!AN133, 'Wales & West'!AN133) -> 1 | AO133: =CHOOSE(m_identity,East!AO133, London!AO133, 'North West'!AO133, 'West Midlands'!AO133, Northern!AO133, Scotland!AO133, Southern!AO133, 'Wales & West'!AO133) -> 1
E134: Allocation to non-load related capex - other | G134: % | AH134: =CHOOSE(m_identity,East!AH134, London!AH134, 'North West'!AH134, 'West Midlands'!AH134, Northern!AH134, Scotland!AH134, Southern!AH134, 'Wales & West'!AH134) -> 0 | AI134: =CHOOSE(m_identity,East!AI134, London!AI134, 'North West'!AI134, 'West Midlands'!AI134, Northern!AI134, Scotland!AI134, Southern!AI134, 'Wales & West'!AI134) -> 0 | AJ134: =CHOOSE(m_identity,East!AJ134, London!AJ134, 'North West'!AJ134, 'West Midlands'!AJ134, Northern!AJ134, Scotland!AJ134, Southern!AJ134, 'Wales & West'!AJ134) -> 0 | AK134: =CHOOSE(m_identity,East!AK134, London!AK134, 'North West'!AK134, 'West Midlands'!AK134, Northern!AK134, Scotland!AK134, Southern!AK134, 'Wales & West'!AK134) -> 0 | AL134: =CHOOSE(m_identity,East!AL134, London!AL134, 'North West'!AL134, 'West Midlands'!AL134, Northern!AL134, Scotland!AL134, Southern!AL134, 'Wales & West'!AL134) -> 0 | AM134: =CHOOSE(m_identity,East!AM134, London!AM134, 'North West'!AM134, 'West Midlands'!AM134, Northern!AM134, Scotland!AM134, Southern!AM134, 'Wales & West'!AM134) -> 0 | AN134: =CHOOSE(m_identity,East!AN134, London!AN134, 'North West'!AN134, 'West Midlands'!AN134, Northern!AN134, Scotland!AN134, Southern!AN134, 'Wales & West'!AN134) -> 0 | AO134: =CHOOSE(m_identity,East!AO134, London!AO134, 'North West'!AO134, 'West Midlands'!AO134, Northern!AO134, Scotland!AO134, Southern!AO134, 'Wales & West'!AO134) -> 0
E135: Allocation to controllable opex | G135: % | AH135: =CHOOSE(m_identity,East!AH135, London!AH135, 'North West'!AH135, 'West Midlands'!AH135, Northern!AH135, Scotland!AH135, Southern!AH135, 'Wales & West'!AH135) -> 0 | AI135: =CHOOSE(m_identity,East!AI135, London!AI135, 'North West'!AI135, 'West Midlands'!AI135, Northern!AI135, Scotland!AI135, Southern!AI135, 'Wales & West'!AI135) -> 0 | AJ135: =CHOOSE(m_identity,East!AJ135, London!AJ135, 'North West'!AJ135, 'West Midlands'!AJ135, Northern!AJ135, Scotland!AJ135, Southern!AJ135, 'Wales & West'!AJ135) -> 0 | AK135: =CHOOSE(m_identity,East!AK135, London!AK135, 'North West'!AK135, 'West Midlands'!AK135, Northern!AK135, Scotland!AK135, Southern!AK135, 'Wales & West'!AK135) -> 0 | AL135: =CHOOSE(m_identity,East!AL135, London!AL135, 'North West'!AL135, 'West Midlands'!AL135, Northern!AL135, Scotland!AL135, Southern!AL135, 'Wales & West'!AL135) -> 0 | AM135: =CHOOSE(m_identity,East!AM135, London!AM135, 'North West'!AM135, 'West Midlands'!AM135, Northern!AM135, Scotland!AM135, Southern!AM135, 'Wales & West'!AM135) -> 0 | AN135: =CHOOSE(m_identity,East!AN135, London!AN135, 'North West'!AN135, 'West Midlands'!AN135, Northern!AN135, Scotland!AN135, Southern!AN135, 'Wales & West'!AN135) -> 0 | AO135: =CHOOSE(m_identity,East!AO135, London!AO135, 'North West'!AO135, 'West Midlands'!AO135, Northern!AO135, Scotland!AO135, Southern!AO135, 'Wales & West'!AO135) -> 0
E136: Allocation to repex | G136: % | AH136: =CHOOSE(m_identity,East!AH136, London!AH136, 'North West'!AH136, 'West Midlands'!AH136, Northern!AH136, Scotland!AH136, Southern!AH136, 'Wales & West'!AH136) -> 0 | AI136: =CHOOSE(m_identity,East!AI136, London!AI136, 'North West'!AI136, 'West Midlands'!AI136, Northern!AI136, Scotland!AI136, Southern!AI136, 'Wales & West'!AI136) -> 0 | AJ136: =CHOOSE(m_identity,East!AJ136, London!AJ136, 'North West'!AJ136, 'West Midlands'!AJ136, Northern!AJ136, Scotland!AJ136, Southern!AJ136, 'Wales & West'!AJ136) -> 0 | AK136: =CHOOSE(m_identity,East!AK136, London!AK136, 'North West'!AK136, 'West Midlands'!AK136, Northern!AK136, Scotland!AK136, Southern!AK136, 'Wales & West'!AK136) -> 0 | AL136: =CHOOSE(m_identity,East!AL136, London!AL136, 'North West'!AL136, 'West Midlands'!AL136, Northern!AL136, Scotland!AL136, Southern!AL136, 'Wales & West'!AL136) -> 0 | AM136: =CHOOSE(m_identity,East!AM136, London!AM136, 'North West'!AM136, 'West Midlands'!AM136, Northern!AM136, Scotland!AM136, Southern!AM136, 'Wales & West'!AM136) -> 0 | AN136: =CHOOSE(m_identity,East!AN136, London!AN136, 'North West'!AN136, 'West Midlands'!AN136, Northern!AN136, Scotland!AN136, Southern!AN136, 'Wales & West'!AN136) -> 0 | AO136: =CHOOSE(m_identity,East!AO136, London!AO136, 'North West'!AO136, 'West Midlands'!AO136, Northern!AO136, Scotland!AO136, Southern!AO136, 'Wales & West'!AO136) -> 0
E138: =E21 -> Allowed innovation roll-out mechanism | G138: £m 09/10 prices | AH138: =AH21 -> 0 | AI138: =AI21 -> 0 | AJ138: 0 | AK138: 0 | AL138: 0 | AM138: 0 | AN138: 0 | AO138: 0
E139: Allocation to load related capex | G139: % | AH139: =CHOOSE(m_identity,East!AH139, London!AH139, 'North West'!AH139, 'West Midlands'!AH139, Northern!AH139, Scotland!AH139, Southern!AH139, 'Wales & West'!AH139) -> 0.5 | AI139: =CHOOSE(m_identity,East!AI139, London!AI139, 'North West'!AI139, 'West Midlands'!AI139, Northern!AI139, Scotland!AI139, Southern!AI139, 'Wales & West'!AI139) -> 0.5 | AJ139: =CHOOSE(m_identity,East!AJ139, London!AJ139, 'North West'!AJ139, 'West Midlands'!AJ139, Northern!AJ139, Scotland!AJ139, Southern!AJ139, 'Wales & West'!AJ139) -> 0.5 | AK139: =CHOOSE(m_identity,East!AK139, London!AK139, 'North West'!AK139, 'West Midlands'!AK139, Northern!AK139, Scotland!AK139, Southern!AK139, 'Wales & West'!AK139) -> 0.5 | AL139: =CHOOSE(m_identity,East!AL139, London!AL139, 'North West'!AL139, 'West Midlands'!AL139, Northern!AL139, Scotland!AL139, Southern!AL139, 'Wales & West'!AL139) -> 0.5 | AM139: =CHOOSE(m_identity,East!AM139, London!AM139, 'North West'!AM139, 'West Midlands'!AM139, Northern!AM139, Scotland!AM139, Southern!AM139, 'Wales & West'!AM139) -> 0.5 | AN139: =CHOOSE(m_identity,East!AN139, London!AN139, 'North West'!AN139, 'West Midlands'!AN139, Northern!AN139, Scotland!AN139, Southern!AN139, 'Wales & West'!AN139) -> 0.5 | AO139: =CHOOSE(m_identity,East!AO139, London!AO139, 'North West'!AO139, 'West Midlands'!AO139, Northern!AO139, Scotland!AO139, Southern!AO139, 'Wales & West'!AO139) -> 0.5
E140: Allocation to non-load related capex - other | G140: % | AH140: =CHOOSE(m_identity,East!AH140, London!AH140, 'North West'!AH140, 'West Midlands'!AH140, Northern!AH140, Scotland!AH140, Southern!AH140, 'Wales & West'!AH140) -> 0 | AI140: =CHOOSE(m_identity,East!AI140, London!AI140, 'North West'!AI140, 'West Midlands'!AI140, Northern!AI140, Scotland!AI140, Southern!AI140, 'Wales & West'!AI140) -> 0 | AJ140: =CHOOSE(m_identity,East!AJ140, London!AJ140, 'North West'!AJ140, 'West Midlands'!AJ140, Northern!AJ140, Scotland!AJ140, Southern!AJ140, 'Wales & West'!AJ140) -> 0 | AK140: =CHOOSE(m_identity,East!AK140, London!AK140, 'North West'!AK140, 'West Midlands'!AK140, Northern!AK140, Scotland!AK140, Southern!AK140, 'Wales & West'!AK140) -> 0 | AL140: =CHOOSE(m_identity,East!AL140, London!AL140, 'North West'!AL140, 'West Midlands'!AL140, Northern!AL140, Scotland!AL140, Southern!AL140, 'Wales & West'!AL140) -> 0 | AM140: =CHOOSE(m_identity,East!AM140, London!AM140, 'North West'!AM140, 'West Midlands'!AM140, Northern!AM140, Scotland!AM140, Southern!AM140, 'Wales & West'!AM140) -> 0 | AN140: =CHOOSE(m_identity,East!AN140, London!AN140, 'North West'!AN140, 'West Midlands'!AN140, Northern!AN140, Scotland!AN140, Southern!AN140, 'Wales & West'!AN140) -> 0 | AO140: =CHOOSE(m_identity,East!AO140, London!AO140, 'North West'!AO140, 'West Midlands'!AO140, Northern!AO140, Scotland!AO140, Southern!AO140, 'Wales & West'!AO140) -> 0
E141: Allocation to controllable opex | G141: % | AH141: =CHOOSE(m_identity,East!AH141, London!AH141, 'North West'!AH141, 'West Midlands'!AH141, Northern!AH141, Scotland!AH141, Southern!AH141, 'Wales & West'!AH141) -> 0.5 | AI141: =CHOOSE(m_identity,East!AI141, London!AI141, 'North West'!AI141, 'West Midlands'!AI141, Northern!AI141, Scotland!AI141, Southern!AI141, 'Wales & West'!AI141) -> 0.5 | AJ141: =CHOOSE(m_identity,East!AJ141, London!AJ141, 'North West'!AJ141, 'West Midlands'!AJ141, Northern!AJ141, Scotland!AJ141, Southern!AJ141, 'Wales & West'!AJ141) -> 0.5 | AK141: =CHOOSE(m_identity,East!AK141, London!AK141, 'North West'!AK141, 'West Midlands'!AK141, Northern!AK141, Scotland!AK141, Southern!AK141, 'Wales & West'!AK141) -> 0.5 | AL141: =CHOOSE(m_identity,East!AL141, London!AL141, 'North West'!AL141, 'West Midlands'!AL141, Northern!AL141, Scotland!AL141, Southern!AL141, 'Wales & West'!AL141) -> 0.5 | AM141: =CHOOSE(m_identity,East!AM141, London!AM141, 'North West'!AM141, 'West Midlands'!AM141, Northern!AM141, Scotland!AM141, Southern!AM141, 'Wales & West'!AM141) -> 0.5 | AN141: =CHOOSE(m_identity,East!AN141, London!AN141, 'North West'!AN141, 'West Midlands'!AN141, Northern!AN141, Scotland!AN141, Southern!AN141, 'Wales & West'!AN141) -> 0.5 | AO141: =CHOOSE(m_identity,East!AO141, London!AO141, 'North West'!AO141, 'West Midlands'!AO141, Northern!AO141, Scotland!AO141, Southern!AO141, 'Wales & West'!AO141) -> 0.5
E142: Allocation to repex | G142: % | AH142: =CHOOSE(m_identity,East!AH142, London!AH142, 'North West'!AH142, 'West Midlands'!AH142, Northern!AH142, Scotland!AH142, Southern!AH142, 'Wales & West'!AH142) -> 0 | AI142: =CHOOSE(m_identity,East!AI142, London!AI142, 'North West'!AI142, 'West Midlands'!AI142, Northern!AI142, Scotland!AI142, Southern!AI142, 'Wales & West'!AI142) -> 0 | AJ142: =CHOOSE(m_identity,East!AJ142, London!AJ142, 'North West'!AJ142, 'West Midlands'!AJ142, Northern!AJ142, Scotland!AJ142, Southern!AJ142, 'Wales & West'!AJ142) -> 0 | AK142: =CHOOSE(m_identity,East!AK142, London!AK142, 'North West'!AK142, 'West Midlands'!AK142, Northern!AK142, Scotland!AK142, Southern!AK142, 'Wales & West'!AK142) -> 0 | AL142: =CHOOSE(m_identity,East!AL142, London!AL142, 'North West'!AL142, 'West Midlands'!AL142, Northern!AL142, Scotland!AL142, Southern!AL142, 'Wales & West'!AL142) -> 0 | AM142: =CHOOSE(m_identity,East!AM142, London!AM142, 'North West'!AM142, 'West Midlands'!AM142, Northern!AM142, Scotland!AM142, Southern!AM142, 'Wales & West'!AM142) -> 0 | AN142: =CHOOSE(m_identity,East!AN142, London!AN142, 'North West'!AN142, 'West Midlands'!AN142, Northern!AN142, Scotland!AN142, Southern!AN142, 'Wales & West'!AN142) -> 0 | AO142: =CHOOSE(m_identity,East!AO142, London!AO142, 'North West'!AO142, 'West Midlands'!AO142, Northern!AO142, Scotland!AO142, Southern!AO142, 'Wales & West'!AO142) -> 0
E144: Variant allowed load related capex | G144: £m 09/10 prices | AH144: =(AH$90*AH91) + (AH$96*AH97) + (AH$102*AH103) + (AH$108*AH109) + (AH$114*AH115) + (AH$120*AH121) + (AH$126 * AH127) + (AH$132*AH133) + (AH$138*AH139) -> 1.350432072 | AI144: =(AI$90*AI91) + (AI$96*AI97) + (AI$102*AI103) + (AI$108*AI109) + (AI$114*AI115) + (AI$120*AI121) + (AI$126 * AI127) + (AI$132*AI133) + (AI$138*AI139) -> 1.341657547 | AJ144: 1.351132031 | AK144: 1.856051574 | AL144: 1.940062497 | AM144: 1.896167899 | AN144: 1.887738068 | AO144: 1.788150925
E145: Variant allowed non-load related capex - other | G145: £m 09/10 prices | AH145: =(AH$90*AH92) + (AH$96*AH98) + (AH$102*AH104) + (AH$108*AH110) + (AH$114*AH116) + (AH$120*AH122) + (AH$126 * AH128) + (AH$132*AH134) + (AH$138*AH140) -> -1.20920211 | AI145: 0.215320289 | AJ145: 0.4487248688 | AK145: 2.363695294 | AL145: 12.4072645 | AM145: 9.326177887 | AN145: 1.453440235 | AO145: -0.4082419968
E146: Variant allowed controllable opex | G146: £m 09/10 prices | AH146: =(AH$90*AH93) + (AH$96*AH99) + (AH$102*AH105) + (AH$108*AH111) + (AH$114*AH117) + (AH$120*AH123) + (AH$126 * AH129) + (AH$132*AH135) + (AH$138*AH141) -> 0.7520763919 | AI146: 0.7468846403 | AJ146: 0.882262234 | AK146: 0.8651685897 | AL146: -1.579999518 | AM146: -2.702426599 | AN146: -3.780111477 | AO146: -4.336516913
E147: Variant allowed repex | G147: £m 09/10 prices | AH147: =(AH$90*AH94) + (AH$96*AH100) + (AH$102*AH106) + (AH$108*AH112) + (AH$114*AH118) + (AH$120*AH124) + (AH$126 * AH130) + (AH$132*AH136) + (AH$138*AH142) -> 1.73510942 | AI147: 1.761361059 | AJ147: 1.950870009 | AK147: 2.435078595 | AL147: 2.396453233 | AM147: 2.356980237 | AN147: 2.318474283 | AO147: 2.27975382
D149: Actual
E151: Actual load related capex | G151: £m 09/10 prices | AH151: =AH9 -> 28.99470552 | AI151: 19.81350517 | AJ151: 19.73286031 | AK151: 0 | AL151: 0 | AM151: 0 | AN151: 0 | AO151: 0
E152: Actual non-load related capex - other | G152: £m 09/10 prices | AH152: 17.58540433 | AI152: 19.93498037 | AJ152: 16.77184999 | AK152: 0 | AL152: 0 | AM152: 0 | AN152: 0 | AO152: 0
E153: Actual controllable opex | G153: £m 09/10 prices | AH153: 126.8805521 | AI153: 124.5740359 | AJ153: 118.8583582 | AK153: 0 | AL153: 0 | AM153: 0 | AN153: 0 | AO153: 0
E154: Actual repex | G154: £m 09/10 prices | AH154: 80.9802796 | AI154: 87.29276861 | AJ154: 91.55845298 | AK154: 0 | AL154: 0 | AM154: 0 | AN154: 0 | AO154: 0
C156: Non-totex
E158: Non-controllable opex (Other) | G158: £m 09/10 prices | AH158: =CHOOSE(m_identity,East!AH158, London!AH158, 'North West'!AH158, 'West Midlands'!AH158, Northern!AH158, Scotland!AH158, Southern!AH158, 'Wales & West'!AH158) -> 59.02485927 | AI158: =CHOOSE(m_identity,East!AI158, London!AI158, 'North West'!AI158, 'West Midlands'!AI158, Northern!AI158, Scotland!AI158, Southern!AI158, 'Wales & West'!AI158) -> 59.10297087 | AJ158: =CHOOSE(m_identity,East!AJ158, London!AJ158, 'North West'!AJ158, 'West Midlands'!AJ158, Northern!AJ158, Scotland!AJ158, Southern!AJ158, 'Wales & West'!AJ158) -> 59.11694433 | AK158: =CHOOSE(m_identity,East!AK158, London!AK158, 'North West'!AK158, 'West Midlands'!AK158, Northern!AK158, Scotland!AK158, Southern!AK158, 'Wales & West'!AK158) -> 59.11694433 | AL158: =CHOOSE(m_identity,East!AL158, London!AL158, 'North West'!AL158, 'West Midlands'!AL158, Northern!AL158, Scotland!AL158, Southern!AL158, 'Wales & West'!AL158) -> 59.11694433 | AM158: =CHOOSE(m_identity,East!AM158, London!AM158, 'North West'!AM158, 'West Midlands'!AM158, Northern!AM158, Scotland!AM158, Southern!AM158, 'Wales & West'!AM158) -> 59.11694433 | AN158: =CHOOSE(m_identity,East!AN158, London!AN158, 'North West'!AN158, 'West Midlands'!AN158, Northern!AN158, Scotland!AN158, Southern!AN158, 'Wales & West'!AN158) -> 59.11694433 | AO158: =CHOOSE(m_identity,East!AO158, London!AO158, 'North West'!AO158, 'West Midlands'!AO158, Northern!AO158, Scotland!AO158, Southern!AO158, 'Wales & West'!AO158) -> 59.11694433
E159: Non-controllable opex (Exit Charges) | G159: £m 09/10 prices | AH159: =AH22 -> 24.74131596 | AI159: =AI22 -> 24.72007071 | AJ159: 24.67962565 | AK159: 24.67962565 | AL159: 24.67962565 | AM159: 24.67962565 | AN159: 24.67962565 | AO159: 24.67962565
E160: Non-controllable opex (Shrinkage) | G160: £m 09/10 prices | AH160: =AH23 -> 11.82647046 | AI160: 10.8 | AJ160: 10.67 | AK160: 7.92 | AL160: 7.74 | AM160: 7.55 | AN160: 7.36 | AO160: 7.18
E161: Non-controllable opex | G161: £m 09/10 prices | AH161: =SUM(AH158:AH160) -> 95.59264569 | AI161: =SUM(AI158:AI160) -> 94.62304159 | AJ161: 94.46656998 | AK161: 91.71656998 | AL161: 91.53656998 | AM161: 91.34656998 | AN161: 91.15656998 | AO161: 90.97656998
B163: Direct allowed revenue terms (DARTs)
E165: =E26 -> Pension scheme administration and Pension Protection Fund Levy | G165: £m 09/10 prices | AH165: =AH26 -> 0.09351164142 | AI165: 0.09351164142 | AJ165: 0.09351164142 | AK165: 0.09351164142 | AL165: 0.09351164142 | AM165: 0.09351164142 | AN165: 0.09351164142 | AO165: 0.09351164142
E166: =E27 -> Pension scheme deficit revenue allowances | G166: £m 09/10 prices | AH166: =AH27 -> 4.356157524 | AI166: 4.356157524 | AJ166: 3.486615572 | AK166: 3.486615572 | AL166: 3.486615572 | AM166: 3.486615572 | AN166: 3.486615572 | AO166: 3.486615572
E168: Pension true-up from previous price controls | G168: £m 09/10 prices | AH168: =CHOOSE(m_identity,East!AH168, London!AH168, 'North West'!AH168, 'West Midlands'!AH168, Northern!AH168, Scotland!AH168, Southern!AH168, 'Wales & West'!AH168) -> 0.2229442912 | AI168: =CHOOSE(m_identity,East!AI168, London!AI168, 'North West'!AI168, 'West Midlands'!AI168, Northern!AI168, Scotland!AI168, Southern!AI168, 'Wales & West'!AI168) -> 0.2321139899 | AJ168: =CHOOSE(m_identity,East!AJ168, London!AJ168, 'North West'!AJ168, 'West Midlands'!AJ168, Northern!AJ168, Scotland!AJ168, Southern!AJ168, 'Wales & West'!AJ168) -> 0.2414043523 | AK168: =CHOOSE(m_identity,East!AK168, London!AK168, 'North West'!AK168, 'West Midlands'!AK168, Northern!AK168, Scotland!AK168, Southern!AK168, 'Wales & West'!AK168) -> 0.2507998097 | AL168: =CHOOSE(m_identity,East!AL168, London!AL168, 'North West'!AL168, 'West Midlands'!AL168, Northern!AL168, Scotland!AL168, Southern!AL168, 'Wales & West'!AL168) -> 0.2603001065 | AM168: =CHOOSE(m_identity,East!AM168, London!AM168, 'North West'!AM168, 'West Midlands'!AM168, Northern!AM168, Scotland!AM168, Southern!AM168, 'Wales & West'!AM168) -> 0.2701602746 | AN168: =CHOOSE(m_identity,East!AN168, London!AN168, 'North West'!AN168, 'West Midlands'!AN168, Northern!AN168, Scotland!AN168, Southern!AN168, 'Wales & West'!AN168) -> 0.2803939458 | AO168: =CHOOSE(m_identity,East!AO168, London!AO168, 'North West'!AO168, 'West Midlands'!AO168, Northern!AO168, Scotland!AO168, Southern!AO168, 'Wales & West'!AO168) -> 0.2910152684
E170: Revenue adjustment from previous controls (Base) | G170: £m 09/10 prices | AH170: =CHOOSE(m_identity,East!AH170, London!AH170, 'North West'!AH170, 'West Midlands'!AH170, Northern!AH170, Scotland!AH170, Southern!AH170, 'Wales & West'!AH170) -> -0.5954191575 | AI170: =CHOOSE(m_identity,East!AI170, London!AI170, 'North West'!AI170, 'West Midlands'!AI170, Northern!AI170, Scotland!AI170, Southern!AI170, 'Wales & West'!AI170) -> -0.6199087475 | AJ170: =CHOOSE(m_identity,East!AJ170, London!AJ170, 'North West'!AJ170, 'West Midlands'!AJ170, Northern!AJ170, Scotland!AJ170, Southern!AJ170, 'Wales & West'!AJ170) -> -0.6447205951 | AK170: =CHOOSE(m_identity,East!AK170, London!AK170, 'North West'!AK170, 'West Midlands'!AK170, Northern!AK170, Scotland!AK170, Southern!AK170, 'Wales & West'!AK170) -> -0.6698131207 | AL170: =CHOOSE(m_identity,East!AL170, London!AL170, 'North West'!AL170, 'West Midlands'!AL170, Northern!AL170, Scotland!AL170, Southern!AL170, 'Wales & West'!AL170) -> -0.6951856417 | AM170: =CHOOSE(m_identity,East!AM170, London!AM170, 'North West'!AM170, 'West Midlands'!AM170, Northern!AM170, Scotland!AM170, Southern!AM170, 'Wales & West'!AM170) -> -0.7215192738 | AN170: =CHOOSE(m_identity,East!AN170, London!AN170, 'North West'!AN170, 'West Midlands'!AN170, Northern!AN170, Scotland!AN170, Southern!AN170, 'Wales & West'!AN170) -> -0.7488504239 | AO170: =CHOOSE(m_identity,East!AO170, London!AO170, 'North West'!AO170, 'West Midlands'!AO170, Northern!AO170, Scotland!AO170, Southern!AO170, 'Wales & West'!AO170) -> -0.7772168779
E171: =E28 -> Legacy price control allowed revenue adjustment | G171: £m 09/10 prices | AH171: =($AH$28/8) -> 0.1510759517 | AI171: =($AH$28/8)*(1+$AI$39) -> 0.1572897056 | AJ171: =($AH$28/8)*(1+$AI$39)*(1+$AJ$39) -> 0.1635852261 | AK171: =($AH$28/8)*(1+$AI$39)*(1+$AJ$39)*(1+$AK$39) -> 0.169951963 | AL171: =($AH$28/8)*(1+$AI$39)*(1+$AJ$39)*(1+$AK$39)*(1+$AL$39) -> 0.1763897434 | AM171: =($AH$28/8)*(1+$AI$39)*(1+$AJ$39)*(1+$AK$39)*(1+$AL$39)*(1+$AM$39) -> 0.1830713869 | AN171: =($AH$28/8)*(1+$AI$39)*(1+$AJ$39)*(1+$AK$39)*(1+$AL$39)*(1+$AM$39)*(1+$AN$39) -> 0.190006131 | AO171: =($AH$28/8)*(1+$AI$39)*(1+$AJ$39)*(1+$AK$39)*(1+$AL$39)*(1+$AM$39)*(1+$AN$39)*(1+$AO$39) -> 0.1972035633
E172: Revenue adjustment from previous controls | G172: £m 09/10 prices | AH172: =AH170+AH171 -> -0.4443432058 | AI172: =AI170+AI171 -> -0.4626190419 | AJ172: -0.4811353691 | AK172: -0.4998611576 | AL172: -0.5187958983 | AM172: -0.5384478869 | AN172: -0.5588442929 | AO172: -0.5800133147
E174: Excluded services revenue | G174: £m 09/10 prices | AH174: =CHOOSE(m_identity,East!AH174, London!AH174, 'North West'!AH174, 'West Midlands'!AH174, Northern!AH174, Scotland!AH174, Southern!AH174, 'Wales & West'!AH174) -> 4.036751487 | AI174: =CHOOSE(m_identity,East!AI174, London!AI174, 'North West'!AI174, 'West Midlands'!AI174, Northern!AI174, Scotland!AI174, Southern!AI174, 'Wales & West'!AI174) -> 3.752618356 | AJ174: =CHOOSE(m_identity,East!AJ174, London!AJ174, 'North West'!AJ174, 'West Midlands'!AJ174, Northern!AJ174, Scotland!AJ174, Southern!AJ174, 'Wales & West'!AJ174) -> 3.565686831 | AK174: =CHOOSE(m_identity,East!AK174, London!AK174, 'North West'!AK174, 'West Midlands'!AK174, Northern!AK174, Scotland!AK174, Southern!AK174, 'Wales & West'!AK174) -> 3.573021094 | AL174: =CHOOSE(m_identity,East!AL174, London!AL174, 'North West'!AL174, 'West Midlands'!AL174, Northern!AL174, Scotland!AL174, Southern!AL174, 'Wales & West'!AL174) -> 3.572379971 | AM174: =CHOOSE(m_identity,East!AM174, London!AM174, 'North West'!AM174, 'West Midlands'!AM174, Northern!AM174, Scotland!AM174, Southern!AM174, 'Wales & West'!AM174) -> 3.572796931 | AN174: =CHOOSE(m_identity,East!AN174, London!AN174, 'North West'!AN174, 'West Midlands'!AN174, Northern!AN174, Scotland!AN174, Southern!AN174, 'Wales & West'!AN174) -> 3.580593429 | AO174: =CHOOSE(m_identity,East!AO174, London!AO174, 'North West'!AO174, 'West Midlands'!AO174, Northern!AO174, Scotland!AO174, Southern!AO174, 'Wales & West'!AO174) -> 3.533930853
E175: Identified excluded services costs | G175: £m 09/10 prices | AH175: =CHOOSE(m_identity,East!AH175, London!AH175, 'North West'!AH175, 'West Midlands'!AH175, Northern!AH175, Scotland!AH175, Southern!AH175, 'Wales & West'!AH175) -> 4.036751487 | AI175: =CHOOSE(m_identity,East!AI175, London!AI175, 'North West'!AI175, 'West Midlands'!AI175, Northern!AI175, Scotland!AI175, Southern!AI175, 'Wales & West'!AI175) -> 3.752618356 | AJ175: =CHOOSE(m_identity,East!AJ175, London!AJ175, 'North West'!AJ175, 'West Midlands'!AJ175, Northern!AJ175, Scotland!AJ175, Southern!AJ175, 'Wales & West'!AJ175) -> 3.565686831 | AK175: =CHOOSE(m_identity,East!AK175, London!AK175, 'North West'!AK175, 'West Midlands'!AK175, Northern!AK175, Scotland!AK175, Southern!AK175, 'Wales & West'!AK175) -> 3.573021094 | AL175: =CHOOSE(m_identity,East!AL175, London!AL175, 'North West'!AL175, 'West Midlands'!AL175, Northern!AL175, Scotland!AL175, Southern!AL175, 'Wales & West'!AL175) -> 3.572379971 | AM175: =CHOOSE(m_identity,East!AM175, London!AM175, 'North West'!AM175, 'West Midlands'!AM175, Northern!AM175, Scotland!AM175, Southern!AM175, 'Wales & West'!AM175) -> 3.572796931 | AN175: =CHOOSE(m_identity,East!AN175, London!AN175, 'North West'!AN175, 'West Midlands'!AN175, Northern!AN175, Scotland!AN175, Southern!AN175, 'Wales & West'!AN175) -> 3.580593429 | AO175: =CHOOSE(m_identity,East!AO175, London!AO175, 'North West'!AO175, 'West Midlands'!AO175, Northern!AO175, Scotland!AO175, Southern!AO175, 'Wales & West'!AO175) -> 3.533930853
E176: Excluded services | G176: £m 09/10 prices | AH176: =SUM(AH174, -AH175) -> 0 | AI176: =SUM(AI174, -AI175) -> 0 | AJ176: 0 | AK176: 0 | AL176: 0 | AM176: 0 | AN176: 0 | AO176: 0
B178: RAV and assets
C180: Pre-vesting assets
E182: Pre-vesting RAV cost opening balance brought forward (before transfers) | G182: £m 09/10 prices | AH182: =CHOOSE(m_identity,East!AH182, London!AH182, 'North West'!AH182, 'West Midlands'!AH182, Northern!AH182, Scotland!AH182, Southern!AH182, 'Wales & West'!AH182) -> 2382.151306
E183: Pre-vesting RAV cumulative depreciation opening balance brought forward (before transfers) | G183: £m 09/10 prices | AH183: =CHOOSE(m_identity,East!AH183, London!AH183, 'North West'!AH183, 'West Midlands'!AH183, Northern!AH183, Scotland!AH183, Southern!AH183, 'Wales & West'!AH183) -> 837.7951219
E185: Pre-vesting asset life | G185: years | I185: =CHOOSE(m_identity,East!I185, London!I185, 'North West'!I185, 'West Midlands'!I185, Northern!I185, Scotland!I185, Southern!I185, 'Wales & West'!I185) -> 56
E186: Pre-vesting RAV disposals | G186: £m 09/10 prices | AH186: =CHOOSE(m_identity,East!AH186, London!AH186, 'North West'!AH186, 'West Midlands'!AH186, Northern!AH186, Scotland!AH186, Southern!AH186, 'Wales & West'!AH186) -> 0.472153243 | AI186: =CHOOSE(m_identity,East!AI186, London!AI186, 'North West'!AI186, 'West Midlands'!AI186, Northern!AI186, Scotland!AI186, Southern!AI186, 'Wales & West'!AI186) -> 0.3160327492 | AJ186: =CHOOSE(m_identity,East!AJ186, London!AJ186, 'North West'!AJ186, 'West Midlands'!AJ186, Northern!AJ186, Scotland!AJ186, Southern!AJ186, 'Wales & West'!AJ186) -> -0.1905437686 | AK186: =CHOOSE(m_identity,East!AK186, London!AK186, 'North West'!AK186, 'West Midlands'!AK186, Northern!AK186, Scotland!AK186, Southern!AK186, 'Wales & West'!AK186) -> -0.4536521402 | AL186: =CHOOSE(m_identity,East!AL186, London!AL186, 'North West'!AL186, 'West Midlands'!AL186, Northern!AL186, Scotland!AL186, Southern!AL186, 'Wales & West'!AL186) -> 0 | AM186: =CHOOSE(m_identity,East!AM186, London!AM186, 'North West'!AM186, 'West Midlands'!AM186, Northern!AM186, Scotland!AM186, Southern!AM186, 'Wales & West'!AM186) -> 0 | AN186: =CHOOSE(m_identity,East!AN186, London!AN186, 'North West'!AN186, 'West Midlands'!AN186, Northern!AN186, Scotland!AN186, Southern!AN186, 'Wales & West'!AN186) -> 0 | AO186: =CHOOSE(m_identity,East!AO186, London!AO186, 'North West'!AO186, 'West Midlands'!AO186, Northern!AO186, Scotland!AO186, Southern!AO186, 'Wales & West'!AO186) -> 0
E187: Years of pre-vesting depreciation remaining | G187: years | AH187: =CHOOSE(m_identity,East!AH187, London!AH187, 'North West'!AH187, 'West Midlands'!AH187, Northern!AH187, Scotland!AH187, Southern!AH187, 'Wales & West'!AH187) -> 45 | AI187: =CHOOSE(m_identity,East!AI187, London!AI187, 'North West'!AI187, 'West Midlands'!AI187, Northern!AI187, Scotland!AI187, Southern!AI187, 'Wales & West'!AI187) -> 44 | AJ187: =CHOOSE(m_identity,East!AJ187, London!AJ187, 'North West'!AJ187, 'West Midlands'!AJ187, Northern!AJ187, Scotland!AJ187, Southern!AJ187, 'Wales & West'!AJ187) -> 43 | AK187: =CHOOSE(m_identity,East!AK187, London!AK187, 'North West'!AK187, 'West Midlands'!AK187, Northern!AK187, Scotland!AK187, Southern!AK187, 'Wales & West'!AK187) -> 42 | AL187: =CHOOSE(m_identity,East!AL187, London!AL187, 'North West'!AL187, 'West Midlands'!AL187, Northern!AL187, Scotland!AL187, Southern!AL187, 'Wales & West'!AL187) -> 41 | AM187: =CHOOSE(m_identity,East!AM187, London!AM187, 'North West'!AM187, 'West Midlands'!AM187, Northern!AM187, Scotland!AM187, Southern!AM187, 'Wales & West'!AM187) -> 40 | AN187: =CHOOSE(m_identity,East!AN187, London!AN187, 'North West'!AN187, 'West Midlands'!AN187, Northern!AN187, Scotland!AN187, Southern!AN187, 'Wales & West'!AN187) -> 39 | AO187: =CHOOSE(m_identity,East!AO187, London!AO187, 'North West'!AO187, 'West Midlands'!AO187, Northern!AO187, Scotland!AO187, Southern!AO187, 'Wales & West'!AO187) -> 38
C189: Post-vesting assets
E191: Gas distribution
E192: GD post-vesting asset life | G192: years | I192: =CHOOSE(m_identity,East!I192, London!I192, 'North West'!I192, 'West Midlands'!I192, Northern!I192, Scotland!I192, Southern!I192, 'Wales & West'!I192) -> 45
E193: GD smoothing profile for recovery of backlog depreciation | G193: years | AH193: =CHOOSE(m_identity,East!AH193, London!AH193, 'North West'!AH193, 'West Midlands'!AH193, Northern!AH193, Scotland!AH193, Southern!AH193, 'Wales & West'!AH193) -> 0.15 | AI193: =CHOOSE(m_identity,East!AI193, London!AI193, 'North West'!AI193, 'West Midlands'!AI193, Northern!AI193, Scotland!AI193, Southern!AI193, 'Wales & West'!AI193) -> 0.15 | AJ193: =CHOOSE(m_identity,East!AJ193, London!AJ193, 'North West'!AJ193, 'West Midlands'!AJ193, Northern!AJ193, Scotland!AJ193, Southern!AJ193, 'Wales & West'!AJ193) -> 0.025 | AK193: =CHOOSE(m_identity,East!AK193, London!AK193, 'North West'!AK193, 'West Midlands'!AK193, Northern!AK193, Scotland!AK193, Southern!AK193, 'Wales & West'!AK193) -> 0 | AL193: =CHOOSE(m_identity,East!AL193, London!AL193, 'North West'!AL193, 'West Midlands'!AL193, Northern!AL193, Scotland!AL193, Southern!AL193, 'Wales & West'!AL193) -> 0.05 | AM193: =CHOOSE(m_identity,East!AM193, London!AM193, 'North West'!AM193, 'West Midlands'!AM193, Northern!AM193, Scotland!AM193, Southern!AM193, 'Wales & West'!AM193) -> 0.125 | AN193: =CHOOSE(m_identity,East!AN193, London!AN193, 'North West'!AN193, 'West Midlands'!AN193, Northern!AN193, Scotland!AN193, Southern!AN193, 'Wales & West'!AN193) -> 0.2 | AO193: =CHOOSE(m_identity,East!AO193, London!AO193, 'North West'!AO193, 'West Midlands'!AO193, Northern!AO193, Scotland!AO193, Southern!AO193, 'Wales & West'!AO193) -> 0.3
E194: GD start of smoothing period | G194: year ending | I194: =CHOOSE(m_identity,East!I194, London!I194, 'North West'!I194, 'West Midlands'!I194, Northern!I194, Scotland!I194, Southern!I194, 'Wales & West'!I194) -> 2014-03-31
E195: Pre-RIIO net additions to RAV | G195: £m 09/10 prices | J195: > | W195: =CHOOSE(m_identity,East!W195, London!W195, 'North West'!W195, 'West Midlands'!W195, Northern!W195, Scotland!W195, Southern!W195, 'Wales & West'!W195) -> 81.90091089 | X195: =CHOOSE(m_identity,East!X195, London!X195, 'North West'!X195, 'West Midlands'!X195, Northern!X195, Scotland!X195, Southern!X195, 'Wales & West'!X195) -> 58.77200427 | Y195: =CHOOSE(m_identity,East!Y195, London!Y195, 'North West'!Y195, 'West Midlands'!Y195, Northern!Y195, Scotland!Y195, Southern!Y195, 'Wales & West'!Y195) -> 60.11281045 | Z195: =CHOOSE(m_identity,East!Z195, London!Z195, 'North West'!Z195, 'West Midlands'!Z195, Northern!Z195, Scotland!Z195, Southern!Z195, 'Wales & West'!Z195) -> 60.14993076 | AA195: =CHOOSE(m_identity,East!AA195, London!AA195, 'North West'!AA195, 'West Midlands'!AA195, Northern!AA195, Scotland!AA195, Southern!AA195, 'Wales & West'!AA195) -> 56.2180614 | AB195: =CHOOSE(m_identity,East!AB195, London!AB195, 'North West'!AB195, 'West Midlands'!AB195, Northern!AB195, Scotland!AB195, Southern!AB195, 'Wales & West'!AB195) -> 129.3201876 | AC195: =CHOOSE(m_identity,East!AC195, London!AC195, 'North West'!AC195, 'West Midlands'!AC195, Northern!AC195, Scotland!AC195, Southern!AC195, 'Wales & West'!AC195) -> 107.4805904 | AD195: =CHOOSE(m_identity,East!AD195, London!AD195, 'North West'!AD195, 'West Midlands'!AD195, Northern!AD195, Scotland!AD195, Southern!AD195, 'Wales & West'!AD195) -> 122.5166077 | AE195: =CHOOSE(m_identity,East!AE195, London!AE195, 'North West'!AE195, 'West Midlands'!AE195, Northern!AE195, Scotland!AE195, Southern!AE195, 'Wales & West'!AE195) -> 157.9847402 | AF195: =CHOOSE(m_identity,East!AF195, London!AF195, 'North West'!AF195, 'West Midlands'!AF195, Northern!AF195, Scotland!AF195, Southern!AF195, 'Wales & West'!AF195) -> 152.2590701 | AG195: =CHOOSE(m_identity,East!AG195, London!AG195, 'North West'!AG195, 'West Midlands'!AG195, Northern!AG195, Scotland!AG195, Southern!AG195, 'Wales & West'!AG195) -> 110.9381496
E196: LRAV | AH196: =AH29 -> -3.437601362
E197: RIIO post-vesting RAV additions | G197: £m 09/10 prices | AH197: =CHOOSE(m_identity,East!AH197, London!AH197, 'North West'!AH197, 'West Midlands'!AH197, Northern!AH197, Scotland!AH197, Southern!AH197, 'Wales & West'!AH197) -> 11.87129724 | AI197: =CHOOSE(m_identity,East!AI197, London!AI197, 'North West'!AI197, 'West Midlands'!AI197, Northern!AI197, Scotland!AI197, Southern!AI197, 'Wales & West'!AI197) -> 0 | AJ197: =CHOOSE(m_identity,East!AJ197, London!AJ197, 'North West'!AJ197, 'West Midlands'!AJ197, Northern!AJ197, Scotland!AJ197, Southern!AJ197, 'Wales & West'!AJ197) -> 0 | AK197: =CHOOSE(m_identity,East!AK197, London!AK197, 'North West'!AK197, 'West Midlands'!AK197, Northern!AK197, Scotland!AK197, Southern!AK197, 'Wales & West'!AK197) -> 0 | AL197: =CHOOSE(m_identity,East!AL197, London!AL197, 'North West'!AL197, 'West Midlands'!AL197, Northern!AL197, Scotland!AL197, Southern!AL197, 'Wales & West'!AL197) -> 0 | AM197: =CHOOSE(m_identity,East!AM197, London!AM197, 'North West'!AM197, 'West Midlands'!AM197, Northern!AM197, Scotland!AM197, Southern!AM197, 'Wales & West'!AM197) -> 0 | AN197: =CHOOSE(m_identity,East!AN197, London!AN197, 'North West'!AN197, 'West Midlands'!AN197, Northern!AN197, Scotland!AN197, Southern!AN197, 'Wales & West'!AN197) -> 0 | AO197: =CHOOSE(m_identity,East!AO197, London!AO197, 'North West'!AO197, 'West Midlands'!AO197, Northern!AO197, Scotland!AO197, Southern!AO197, 'Wales & West'!AO197) -> 0
E198: RIIO post-vesting RAV disposals | AH198: =CHOOSE(m_identity,East!AH198, London!AH198, 'North West'!AH198, 'West Midlands'!AH198, Northern!AH198, Scotland!AH198, Southern!AH198, 'Wales & West'!AH198) -> 0 | AI198: =CHOOSE(m_identity,East!AI198, London!AI198, 'North West'!AI198, 'West Midlands'!AI198, Northern!AI198, Scotland!AI198, Southern!AI198, 'Wales & West'!AI198) -> 0 | AJ198: =CHOOSE(m_identity,East!AJ198, London!AJ198, 'North West'!AJ198, 'West Midlands'!AJ198, Northern!AJ198, Scotland!AJ198, Southern!AJ198, 'Wales & West'!AJ198) -> -0.1905437686 | AK198: =CHOOSE(m_identity,East!AK198, London!AK198, 'North West'!AK198, 'West Midlands'!AK198, Northern!AK198, Scotland!AK198, Southern!AK198, 'Wales & West'!AK198) -> -0.3434279144 | AL198: =CHOOSE(m_identity,East!AL198, London!AL198, 'North West'!AL198, 'West Midlands'!AL198, Northern!AL198, Scotland!AL198, Southern!AL198, 'Wales & West'!AL198) -> -0.08843344755 | AM198: =CHOOSE(m_identity,East!AM198, London!AM198, 'North West'!AM198, 'West Midlands'!AM198, Northern!AM198, Scotland!AM198, Southern!AM198, 'Wales & West'!AM198) -> -1.3 | AN198: =CHOOSE(m_identity,East!AN198, London!AN198, 'North West'!AN198, 'West Midlands'!AN198, Northern!AN198, Scotland!AN198, Southern!AN198, 'Wales & West'!AN198) -> -4.4 | AO198: =CHOOSE(m_identity,East!AO198, London!AO198, 'North West'!AO198, 'West Midlands'!AO198, Northern!AO198, Scotland!AO198, Southern!AO198, 'Wales & West'!AO198) -> -1.7
E199: Pre-RIIO transfers to depreciation | G199: £m 09/10 prices | J199: > | V199: =CHOOSE(m_identity,East!V199, London!V199, 'North West'!V199, 'West Midlands'!V199, Northern!V199, Scotland!V199, Southern!V199, 'Wales & West'!V199) -> 0 | W199: =CHOOSE(m_identity,East!W199, London!W199, 'North West'!W199, 'West Midlands'!W199, Northern!W199, Scotland!W199, Southern!W199, 'Wales & West'!W199) -> 0 | X199: =CHOOSE(m_identity,East!X199, London!X199, 'North West'!X199, 'West Midlands'!X199, Northern!X199, Scotland!X199, Southern!X199, 'Wales & West'!X199) -> 0 | Y199: =CHOOSE(m_identity,East!Y199, London!Y199, 'North West'!Y199, 'West Midlands'!Y199, Northern!Y199, Scotland!Y199, Southern!Y199, 'Wales & West'!Y199) -> 0 | Z199: =CHOOSE(m_identity,East!Z199, London!Z199, 'North West'!Z199, 'West Midlands'!Z199, Northern!Z199, Scotland!Z199, Southern!Z199, 'Wales & West'!Z199) -> 0 | AA199: =CHOOSE(m_identity,East!AA199, London!AA199, 'North West'!AA199, 'West Midlands'!AA199, Northern!AA199, Scotland!AA199, Southern!AA199, 'Wales & West'!AA199) -> 0 | AB199: =CHOOSE(m_identity,East!AB199, London!AB199, 'North West'!AB199, 'West Midlands'!AB199, Northern!AB199, Scotland!AB199, Southern!AB199, 'Wales & West'!AB199) -> 2.013542336 | AC199: =CHOOSE(m_identity,East!AC199, London!AC199, 'North West'!AC199, 'West Midlands'!AC199, Northern!AC199, Scotland!AC199, Southern!AC199, 'Wales & West'!AC199) -> 2.073492388 | AD199: =CHOOSE(m_identity,East!AD199, London!AD199, 'North West'!AD199, 'West Midlands'!AD199, Northern!AD199, Scotland!AD199, Southern!AD199, 'Wales & West'!AD199) -> 1.72124005 | AE199: =CHOOSE(m_identity,East!AE199, London!AE199, 'North West'!AE199, 'West Midlands'!AE199, Northern!AE199, Scotland!AE199, Southern!AE199, 'Wales & West'!AE199) -> 4.349823997 | AF199: =CHOOSE(m_identity,East!AF199, London!AF199, 'North West'!AF199, 'West Midlands'!AF199, Northern!AF199, Scotland!AF199, Southern!AF199, 'Wales & West'!AF199) -> 3.930472265 | AG199: =CHOOSE(m_identity,East!AG199, London!AG199, 'North West'!AG199, 'West Midlands'!AG199, Northern!AG199, Scotland!AG199, Southern!AG199, 'Wales & West'!AG199) -> 0
C201: Fuel Poor
E203: Post-vesting asset life | G203: years | I203: =CHOOSE(m_identity,East!I203, London!I203, 'North West'!I203, 'West Midlands'!I203, Northern!I203, Scotland!I203, Southern!I203, 'Wales & West'!I203) -> 45
E204: Years additional customer discount applied | G204: years | I204: =CHOOSE(m_identity,East!I204, London!I204, 'North West'!I204, 'West Midlands'!I204, Northern!I204, Scotland!I204, Southern!I204, 'Wales & West'!I204) -> 5
E206: NPV of future transportation revenue | G206: £m 09/10 prices | J206: > | AC206: =CHOOSE(m_identity,East!AC206, London!AC206, 'North West'!AC206, 'West Midlands'!AC206, Northern!AC206, Scotland!AC206, Southern!AC206, 'Wales & West'!AC206) -> 0 | AD206: =CHOOSE(m_identity,East!AD206, London!AD206, 'North West'!AD206, 'West Midlands'!AD206, Northern!AD206, Scotland!AD206, Southern!AD206, 'Wales & West'!AD206) -> 0 | AE206: =CHOOSE(m_identity,East!AE206, London!AE206, 'North West'!AE206, 'West Midlands'!AE206, Northern!AE206, Scotland!AE206, Southern!AE206, 'Wales & West'!AE206) -> 0 | AF206: =CHOOSE(m_identity,East!AF206, London!AF206, 'North West'!AF206, 'West Midlands'!AF206, Northern!AF206, Scotland!AF206, Southern!AF206, 'Wales & West'!AF206) -> 0 | AG206: =CHOOSE(m_identity,East!AG206, London!AG206, 'North West'!AG206, 'West Midlands'!AG206, Northern!AG206, Scotland!AG206, Southern!AG206, 'Wales & West'!AG206) -> 0
E207: Community based schemes actual capex spend | G207: £m 09/10 prices | J207: > | AC207: =CHOOSE(m_identity,East!AC207, London!AC207, 'North West'!AC207, 'West Midlands'!AC207, Northern!AC207, Scotland!AC207, Southern!AC207, 'Wales & West'!AC207) -> 0 | AD207: =CHOOSE(m_identity,East!AD207, London!AD207, 'North West'!AD207, 'West Midlands'!AD207, Northern!AD207, Scotland!AD207, Southern!AD207, 'Wales & West'!AD207) -> 0.4381488789 | AE207: =CHOOSE(m_identity,East!AE207, London!AE207, 'North West'!AE207, 'West Midlands'!AE207, Northern!AE207, Scotland!AE207, Southern!AE207, 'Wales & West'!AE207) -> 0.6025265517 | AF207: =CHOOSE(m_identity,East!AF207, London!AF207, 'North West'!AF207, 'West Midlands'!AF207, Northern!AF207, Scotland!AF207, Southern!AF207, 'Wales & West'!AF207) -> 1.372702747 | AG207: =CHOOSE(m_identity,East!AG207, London!AG207, 'North West'!AG207, 'West Midlands'!AG207, Northern!AG207, Scotland!AG207, Southern!AG207, 'Wales & West'!AG207) -> 1.364667631
E209: One off schemes actual capex spend | G209: £m 09/10 prices | J209: > | AC209: =CHOOSE(m_identity,East!AC209, London!AC209, 'North West'!AC209, 'West Midlands'!AC209, Northern!AC209, Scotland!AC209, Southern!AC209, 'Wales & West'!AC209) -> 0 | AD209: =CHOOSE(m_identity,East!AD209, London!AD209, 'North West'!AD209, 'West Midlands'!AD209, Northern!AD209, Scotland!AD209, Southern!AD209, 'Wales & West'!AD209) -> 1.54673101 | AE209: =CHOOSE(m_identity,East!AE209, London!AE209, 'North West'!AE209, 'West Midlands'!AE209, Northern!AE209, Scotland!AE209, Southern!AE209, 'Wales & West'!AE209) -> 1.257882794 | AF209: =CHOOSE(m_identity,East!AF209, London!AF209, 'North West'!AF209, 'West Midlands'!AF209, Northern!AF209, Scotland!AF209, Southern!AF209, 'Wales & West'!AF209) -> 0.9646257278 | AG209: =CHOOSE(m_identity,East!AG209, London!AG209, 'North West'!AG209, 'West Midlands'!AG209, Northern!AG209, Scotland!AG209, Southern!AG209, 'Wales & West'!AG209) -> 0
B211: Tax
C213: Tax policy
E215: =E24 -> Tax liability allowance adjustments - gearing/interest costs | G215: £m nominal | AH215: =AH24 -> 0 | AI215: =AI24 -> 0 | AJ215: 0 | AK215: 0 | AL215: 0 | AM215: 0 | AN215: 0 | AO215: 0
E216: =E25 -> Tax liability allowance adjustments - driven by tax trigger events | G216: £m 09/10 prices | AH216: =AH25 -> 0 | AI216: =AI25 -> 0 | AJ216: -0.3619869907 | AK216: -0.3820467421 | AL216: -2.56885842 | AM216: 0 | AN216: 0 | AO216: 0
E218: Corporation tax rate | G218: % | J218: > | Y218: =CHOOSE(m_identity,East!Y218, London!Y218, 'North West'!Y218, 'West Midlands'!Y218, Northern!Y218, Scotland!Y218, Southern!Y218, 'Wales & West'!Y218) -> 0.3 | Z218: =CHOOSE(m_identity,East!Z218, London!Z218, 'North West'!Z218, 'West Midlands'!Z218, Northern!Z218, Scotland!Z218, Southern!Z218, 'Wales & West'!Z218) -> 0.3 | AA218: =CHOOSE(m_identity,East!AA218, London!AA218, 'North West'!AA218, 'West Midlands'!AA218, Northern!AA218, Scotland!AA218, Southern!AA218, 'Wales & West'!AA218) -> 0.3 | AB218: =CHOOSE(m_identity,East!AB218, London!AB218, 'North West'!AB218, 'West Midlands'!AB218, Northern!AB218, Scotland!AB218, Southern!AB218, 'Wales & West'!AB218) -> 0.3 | AC218: =CHOOSE(m_identity,East!AC218, London!AC218, 'North West'!AC218, 'West Midlands'!AC218, Northern!AC218, Scotland!AC218, Southern!AC218, 'Wales & West'!AC218) -> 0.28 | AD218: =CHOOSE(m_identity,East!AD218, London!AD218, 'North West'!AD218, 'West Midlands'!AD218, Northern!AD218, Scotland!AD218, Southern!AD218, 'Wales & West'!AD218) -> 0.28 | AE218: =CHOOSE(m_identity,East!AE218, London!AE218, 'North West'!AE218, 'West Midlands'!AE218, Northern!AE218, Scotland!AE218, Southern!AE218, 'Wales & West'!AE218) -> 0.28 | AF218: =CHOOSE(m_identity,East!AF218, London!AF218, 'North West'!AF218, 'West Midlands'!AF218, Northern!AF218, Scotland!AF218, Southern!AF218, 'Wales & West'!AF218) -> 0.26 | AG218: =CHOOSE(m_identity,East!AG218, London!AG218, 'North West'!AG218, 'West Midlands'!AG218, Northern!AG218, Scotland!AG218, Southern!AG218, 'Wales & West'!AG218) -> 0.24 | AH218: =CHOOSE(m_identity,East!AH218, London!AH218, 'North West'!AH218, 'West Midlands'!AH218, Northern!AH218, Scotland!AH218, Southern!AH218, 'Wales & West'!AH218) -> 0.23 | AI218: =CHOOSE(m_identity,East!AI218, London!AI218, 'North West'!AI218, 'West Midlands'!AI218, Northern!AI218, Scotland!AI218, Southern!AI218, 'Wales & West'!AI218) -> 0.21 | AJ218: =CHOOSE(m_identity,East!AJ218, London!AJ218, 'North West'!AJ218, 'West Midlands'!AJ218, Northern!AJ218, Scotland!AJ218, Southern!AJ218, 'Wales & West'!AJ218) -> 0.21 | AK218: =CHOOSE(m_identity,East!AK218, London!AK218, 'North West'!AK218, 'West Midlands'!AK218, Northern!AK218, Scotland!AK218, Southern!AK218, 'Wales & West'!AK218) -> 0.21 | AL218: =CHOOSE(m_identity,East!AL218, London!AL218, 'North West'!AL218, 'West Midlands'!AL218, Northern!AL218, Scotland!AL218, Southern!AL218, 'Wales & West'!AL218) -> 0.21 | AM218: =CHOOSE(m_identity,East!AM218, London!AM218, 'North West'!AM218, 'West Midlands'!AM218, Northern!AM218, Scotland!AM218, Southern!AM218, 'Wales & West'!AM218) -> 0.21 | AN218: =CHOOSE(m_identity,East!AN218, London!AN218, 'North West'!AN218, 'West Midlands'!AN218, Northern!AN218, Scotland!AN218, Southern!AN218, 'Wales & West'!AN218) -> 0.21 | AO218: =CHOOSE(m_identity,East!AO218, London!AO218, 'North West'!AO218, 'West Midlands'!AO218, Northern!AO218, Scotland!AO218, Southern!AO218, 'Wales & West'!AO218) -> 0.21
E220: General pool capital allowance rate | G220: % | J220: > | V220: =CHOOSE(m_identity,East!V220, London!V220, 'North West'!V220, 'West Midlands'!V220, Northern!V220, Scotland!V220, Southern!V220, 'Wales & West'!V220) -> 0.25 | W220: =CHOOSE(m_identity,East!W220, London!W220, 'North West'!W220, 'West Midlands'!W220, Northern!W220, Scotland!W220, Southern!W220, 'Wales & West'!W220) -> 0.25 | X220: =CHOOSE(m_identity,East!X220, London!X220, 'North West'!X220, 'West Midlands'!X220, Northern!X220, Scotland!X220, Southern!X220, 'Wales & West'!X220) -> 0.25 | Y220: =CHOOSE(m_identity,East!Y220, London!Y220, 'North West'!Y220, 'West Midlands'!Y220, Northern!Y220, Scotland!Y220, Southern!Y220, 'Wales & West'!Y220) -> 0.25 | Z220: =CHOOSE(m_identity,East!Z220, London!Z220, 'North West'!Z220, 'West Midlands'!Z220, Northern!Z220, Scotland!Z220, Southern!Z220, 'Wales & West'!Z220) -> 0.25 | AA220: =CHOOSE(m_identity,East!AA220, London!AA220, 'North West'!AA220, 'West Midlands'!AA220, Northern!AA220, Scotland!AA220, Southern!AA220, 'Wales & West'!AA220) -> 0.25 | AB220: =CHOOSE(m_identity,East!AB220, London!AB220, 'North West'!AB220, 'West Midlands'!AB220, Northern!AB220, Scotland!AB220, Southern!AB220, 'Wales & West'!AB220) -> 0.25 | AC220: =CHOOSE(m_identity,East!AC220, London!AC220, 'North West'!AC220, 'West Midlands'!AC220, Northern!AC220, Scotland!AC220, Southern!AC220, 'Wales & West'!AC220) -> 0.2 | AD220: =CHOOSE(m_identity,East!AD220, London!AD220, 'North West'!AD220, 'West Midlands'!AD220, Northern!AD220, Scotland!AD220, Southern!AD220, 'Wales & West'!AD220) -> 0.2 | AE220: =CHOOSE(m_identity,East!AE220, London!AE220, 'North West'!AE220, 'West Midlands'!AE220, Northern!AE220, Scotland!AE220, Southern!AE220, 'Wales & West'!AE220) -> 0.2 | AF220: =CHOOSE(m_identity,East!AF220, London!AF220, 'North West'!AF220, 'West Midlands'!AF220, Northern!AF220, Scotland!AF220, Southern!AF220, 'Wales & West'!AF220) -> 0.2 | AG220: =CHOOSE(m_identity,East!AG220, London!AG220, 'North West'!AG220, 'West Midlands'!AG220, Northern!AG220, Scotland!AG220, Southern!AG220, 'Wales & West'!AG220) -> 0.18 | AH220: =CHOOSE(m_identity,East!AH220, London!AH220, 'North West'!AH220, 'West Midlands'!AH220, Northern!AH220, Scotland!AH220, Southern!AH220, 'Wales & West'!AH220) -> 0.18 | AI220: =CHOOSE(m_identity,East!AI220, London!AI220, 'North West'!AI220, 'West Midlands'!AI220, Northern!AI220, Scotland!AI220, Southern!AI220, 'Wales & West'!AI220) -> 0.18 | AJ220: =CHOOSE(m_identity,East!AJ220, London!AJ220, 'North West'!AJ220, 'West Midlands'!AJ220, Northern!AJ220, Scotland!AJ220, Southern!AJ220, 'Wales & West'!AJ220) -> 0.18 | AK220: =CHOOSE(m_identity,East!AK220, London!AK220, 'North West'!AK220, 'West Midlands'!AK220, Northern!AK220, Scotland!AK220, Southern!AK220, 'Wales & West'!AK220) -> 0.18 | AL220: =CHOOSE(m_identity,East!AL220, London!AL220, 'North West'!AL220, 'West Midlands'!AL220, Northern!AL220, Scotland!AL220, Southern!AL220, 'Wales & West'!AL220) -> 0.18 | AM220: =CHOOSE(m_identity,East!AM220, London!AM220, 'North West'!AM220, 'West Midlands'!AM220, Northern!AM220, Scotland!AM220, Southern!AM220, 'Wales & West'!AM220) -> 0.18 | AN220: =CHOOSE(m_identity,East!AN220, London!AN220, 'North West'!AN220, 'West Midlands'!AN220, Northern!AN220, Scotland!AN220, Southern!AN220, 'Wales & West'!AN220) -> 0.18 | AO220: =CHOOSE(m_identity,East!AO220, London!AO220, 'North West'!AO220, 'West Midlands'!AO220, Northern!AO220, Scotland!AO220, Southern!AO220, 'Wales & West'!AO220) -> 0.18
E221: Special Rates capital allowance rate | G221: % | J221: > | V221: =CHOOSE(m_identity,East!V221, London!V221, 'North West'!V221, 'West Midlands'!V221, Northern!V221, Scotland!V221, Southern!V221, 'Wales & West'!V221) -> 0.06 | W221: =CHOOSE(m_identity,East!W221, London!W221, 'North West'!W221, 'West Midlands'!W221, Northern!W221, Scotland!W221, Southern!W221, 'Wales & West'!W221) -> 0.06 | X221: =CHOOSE(m_identity,East!X221, London!X221, 'North West'!X221, 'West Midlands'!X221, Northern!X221, Scotland!X221, Southern!X221, 'Wales & West'!X221) -> 0.06 | Y221: =CHOOSE(m_identity,East!Y221, London!Y221, 'North West'!Y221, 'West Midlands'!Y221, Northern!Y221, Scotland!Y221, Southern!Y221, 'Wales & West'!Y221) -> 0.06 | Z221: =CHOOSE(m_identity,East!Z221, London!Z221, 'North West'!Z221, 'West Midlands'!Z221, Northern!Z221, Scotland!Z221, Southern!Z221, 'Wales & West'!Z221) -> 0.06 | AA221: =CHOOSE(m_identity,East!AA221, London!AA221, 'North West'!AA221, 'West Midlands'!AA221, Northern!AA221, Scotland!AA221, Southern!AA221, 'Wales & West'!AA221) -> 0.06 | AB221: =CHOOSE(m_identity,East!AB221, London!AB221, 'North West'!AB221, 'West Midlands'!AB221, Northern!AB221, Scotland!AB221, Southern!AB221, 'Wales & West'!AB221) -> 0.06 | AC221: =CHOOSE(m_identity,East!AC221, London!AC221, 'North West'!AC221, 'West Midlands'!AC221, Northern!AC221, Scotland!AC221, Southern!AC221, 'Wales & West'!AC221) -> 0.1 | AD221: =CHOOSE(m_identity,East!AD221, London!AD221, 'North West'!AD221, 'West Midlands'!AD221, Northern!AD221, Scotland!AD221, Southern!AD221, 'Wales & West'!AD221) -> 0.1 | AE221: =CHOOSE(m_identity,East!AE221, London!AE221, 'North West'!AE221, 'West Midlands'!AE221, Northern!AE221, Scotland!AE221, Southern!AE221, 'Wales & West'!AE221) -> 0.1 | AF221: =CHOOSE(m_identity,East!AF221, London!AF221, 'North West'!AF221, 'West Midlands'!AF221, Northern!AF221, Scotland!AF221, Southern!AF221, 'Wales & West'!AF221) -> 0.1 | AG221: =CHOOSE(m_identity,East!AG221, London!AG221, 'North West'!AG221, 'West Midlands'!AG221, Northern!AG221, Scotland!AG221, Southern!AG221, 'Wales & West'!AG221) -> 0.08 | AH221: =CHOOSE(m_identity,East!AH221, London!AH221, 'North West'!AH221, 'West Midlands'!AH221, Northern!AH221, Scotland!AH221, Southern!AH221, 'Wales & West'!AH221) -> 0.08 | AI221: =CHOOSE(m_identity,East!AI221, London!AI221, 'North West'!AI221, 'West Midlands'!AI221, Northern!AI221, Scotland!AI221, Southern!AI221, 'Wales & West'!AI221) -> 0.08 | AJ221: =CHOOSE(m_identity,East!AJ221, London!AJ221, 'North West'!AJ221, 'West Midlands'!AJ221, Northern!AJ221, Scotland!AJ221, Southern!AJ221, 'Wales & West'!AJ221) -> 0.08 | AK221: =CHOOSE(m_identity,East!AK221, London!AK221, 'North West'!AK221, 'West Midlands'!AK221, Northern!AK221, Scotland!AK221, Southern!AK221, 'Wales & West'!AK221) -> 0.08 | AL221: =CHOOSE(m_identity,East!AL221, London!AL221, 'North West'!AL221, 'West Midlands'!AL221, Northern!AL221, Scotland!AL221, Southern!AL221, 'Wales & West'!AL221) -> 0.08 | AM221: =CHOOSE(m_identity,East!AM221, London!AM221, 'North West'!AM221, 'West Midlands'!AM221, Northern!AM221, Scotland!AM221, Southern!AM221, 'Wales & West'!AM221) -> 0.08 | AN221: =CHOOSE(m_identity,East!AN221, London!AN221, 'North West'!AN221, 'West Midlands'!AN221, Northern!AN221, Scotland!AN221, Southern!AN221, 'Wales & West'!AN221) -> 0.08 | AO221: =CHOOSE(m_identity,East!AO221, London!AO221, 'North West'!AO221, 'West Midlands'!AO221, Northern!AO221, Scotland!AO221, Southern!AO221, 'Wales & West'!AO221) -> 0.08
E222: Deferred Revenue Expenditure capital allowance rate | G222: % | AH222: =CHOOSE(m_identity,East!AH222, London!AH222, 'North West'!AH222, 'West Midlands'!AH222, Northern!AH222, Scotland!AH222, Southern!AH222, 'Wales & West'!AH222) -> 0.0222 | AI222: =CHOOSE(m_identity,East!AI222, London!AI222, 'North West'!AI222, 'West Midlands'!AI222, Northern!AI222, Scotland!AI222, Southern!AI222, 'Wales & West'!AI222) -> 0.0222 | AJ222: =CHOOSE(m_identity,East!AJ222, London!AJ222, 'North West'!AJ222, 'West Midlands'!AJ222, Northern!AJ222, Scotland!AJ222, Southern!AJ222, 'Wales & West'!AJ222) -> 0.0222 | AK222: =CHOOSE(m_identity,East!AK222, London!AK222, 'North West'!AK222, 'West Midlands'!AK222, Northern!AK222, Scotland!AK222, Southern!AK222, 'Wales & West'!AK222) -> 0.0222 | AL222: =CHOOSE(m_identity,East!AL222, London!AL222, 'North West'!AL222, 'West Midlands'!AL222, Northern!AL222, Scotland!AL222, Southern!AL222, 'Wales & West'!AL222) -> 0.0222 | AM222: =CHOOSE(m_identity,East!AM222, London!AM222, 'North West'!AM222, 'West Midlands'!AM222, Northern!AM222, Scotland!AM222, Southern!AM222, 'Wales & West'!AM222) -> 0.0222 | AN222: =CHOOSE(m_identity,East!AN222, London!AN222, 'North West'!AN222, 'West Midlands'!AN222, Northern!AN222, Scotland!AN222, Southern!AN222, 'Wales & West'!AN222) -> 0.0222 | AO222: =CHOOSE(m_identity,East!AO222, London!AO222, 'North West'!AO222, 'West Midlands'!AO222, Northern!AO222, Scotland!AO222, Southern!AO222, 'Wales & West'!AO222) -> 0.0222
C224: Capital allowances and tax losses
E226: General pool capital allowance opening balance brought forward | G226: £m nominal | AH226: =CHOOSE(m_identity,East!AH226, London!AH226, 'North West'!AH226, 'West Midlands'!AH226, Northern!AH226, Scotland!AH226, Southern!AH226, 'Wales & West'!AH226) -> 93.34716572
E228: Special Rate capital allowance opening balance brought forward | G228: £m nominal | AH228: =CHOOSE(m_identity,East!AH228, London!AH228, 'North West'!AH228, 'West Midlands'!AH228, Northern!AH228, Scotland!AH228, Southern!AH228, 'Wales & West'!AH228) -> 246.8830666
E230: Deferred revenue expenditure opening balance brought forward | G230: £m nominal | AH230: =CHOOSE(m_identity,East!AH230, London!AH230, 'North West'!AH230, 'West Midlands'!AH230, Northern!AH230, Scotland!AH230, Southern!AH230, 'Wales & West'!AH230) -> 10.40694478
E232: Tax loss brought forward | G232: £m nominal | AH232: =CHOOSE(m_identity,East!AH232, London!AH232, 'North West'!AH232, 'West Midlands'!AH232, Northern!AH232, Scotland!AH232, Southern!AH232, 'Wales & West'!AH232) -> 0
C234: Tax pool allocation
D236: Allocation to "General" pool
E238: Load Related | G238: % | AH238: =CHOOSE(m_identity,East!AH238, London!AH238, 'North West'!AH238, 'West Midlands'!AH238, Northern!AH238, Scotland!AH238, Southern!AH238, 'Wales & West'!AH238) -> 0.0029 | AI238: =CHOOSE(m_identity,East!AI238, London!AI238, 'North West'!AI238, 'West Midlands'!AI238, Northern!AI238, Scotland!AI238, Southern!AI238, 'Wales & West'!AI238) -> 0.0029 | AJ238: =CHOOSE(m_identity,East!AJ238, London!AJ238, 'North West'!AJ238, 'West Midlands'!AJ238, Northern!AJ238, Scotland!AJ238, Southern!AJ238, 'Wales & West'!AJ238) -> 0.0029 | AK238: =CHOOSE(m_identity,East!AK238, London!AK238, 'North West'!AK238, 'West Midlands'!AK238, Northern!AK238, Scotland!AK238, Southern!AK238, 'Wales & West'!AK238) -> 0.0029 | AL238: =CHOOSE(m_identity,East!AL238, London!AL238, 'North West'!AL238, 'West Midlands'!AL238, Northern!AL238, Scotland!AL238, Southern!AL238, 'Wales & West'!AL238) -> 0.0029 | AM238: =CHOOSE(m_identity,East!AM238, London!AM238, 'North West'!AM238, 'West Midlands'!AM238, Northern!AM238, Scotland!AM238, Southern!AM238, 'Wales & West'!AM238) -> 0.0029 | AN238: =CHOOSE(m_identity,East!AN238, London!AN238, 'North West'!AN238, 'West Midlands'!AN238, Northern!AN238, Scotland!AN238, Southern!AN238, 'Wales & West'!AN238) -> 0.0029 | AO238: =CHOOSE(m_identity,East!AO238, London!AO238, 'North West'!AO238, 'West Midlands'!AO238, Northern!AO238, Scotland!AO238, Southern!AO238, 'Wales & West'!AO238) -> 0.0029
E239: Non-Load Related - other | G239: % | AH239: =CHOOSE(m_identity,East!AH239, London!AH239, 'North West'!AH239, 'West Midlands'!AH239, Northern!AH239, Scotland!AH239, Southern!AH239, 'Wales & West'!AH239) -> 0.8975609839 | AI239: =CHOOSE(m_identity,East!AI239, London!AI239, 'North West'!AI239, 'West Midlands'!AI239, Northern!AI239, Scotland!AI239, Southern!AI239, 'Wales & West'!AI239) -> 0.8975609839 | AJ239: =CHOOSE(m_identity,East!AJ239, London!AJ239, 'North West'!AJ239, 'West Midlands'!AJ239, Northern!AJ239, Scotland!AJ239, Southern!AJ239, 'Wales & West'!AJ239) -> 0.8975609839 | AK239: =CHOOSE(m_identity,East!AK239, London!AK239, 'North West'!AK239, 'West Midlands'!AK239, Northern!AK239, Scotland!AK239, Southern!AK239, 'Wales & West'!AK239) -> 0.8975609839 | AL239: =CHOOSE(m_identity,East!AL239, London!AL239, 'North West'!AL239, 'West Midlands'!AL239, Northern!AL239, Scotland!AL239, Southern!AL239, 'Wales & West'!AL239) -> 0.8975609839 | AM239: =CHOOSE(m_identity,East!AM239, London!AM239, 'North West'!AM239, 'West Midlands'!AM239, Northern!AM239, Scotland!AM239, Southern!AM239, 'Wales & West'!AM239) -> 0.8975609839 | AN239: =CHOOSE(m_identity,East!AN239, London!AN239, 'North West'!AN239, 'West Midlands'!AN239, Northern!AN239, Scotland!AN239, Southern!AN239, 'Wales & West'!AN239) -> 0.8975609839 | AO239: =CHOOSE(m_identity,East!AO239, London!AO239, 'North West'!AO239, 'West Midlands'!AO239, Northern!AO239, Scotland!AO239, Southern!AO239, 'Wales & West'!AO239) -> 0.8975609839
E240: Opex | G240: % | AH240: =CHOOSE(m_identity,East!AH240, London!AH240, 'North West'!AH240, 'West Midlands'!AH240, Northern!AH240, Scotland!AH240, Southern!AH240, 'Wales & West'!AH240) -> 0 | AI240: =CHOOSE(m_identity,East!AI240, London!AI240, 'North West'!AI240, 'West Midlands'!AI240, Northern!AI240, Scotland!AI240, Southern!AI240, 'Wales & West'!AI240) -> 0 | AJ240: =CHOOSE(m_identity,East!AJ240, London!AJ240, 'North West'!AJ240, 'West Midlands'!AJ240, Northern!AJ240, Scotland!AJ240, Southern!AJ240, 'Wales & West'!AJ240) -> 0 | AK240: =CHOOSE(m_identity,East!AK240, London!AK240, 'North West'!AK240, 'West Midlands'!AK240, Northern!AK240, Scotland!AK240, Southern!AK240, 'Wales & West'!AK240) -> 0 | AL240: =CHOOSE(m_identity,East!AL240, London!AL240, 'North West'!AL240, 'West Midlands'!AL240, Northern!AL240, Scotland!AL240, Southern!AL240, 'Wales & West'!AL240) -> 0 | AM240: =CHOOSE(m_identity,East!AM240, London!AM240, 'North West'!AM240, 'West Midlands'!AM240, Northern!AM240, Scotland!AM240, Southern!AM240, 'Wales & West'!AM240) -> 0 | AN240: =CHOOSE(m_identity,East!AN240, London!AN240, 'North West'!AN240, 'West Midlands'!AN240, Northern!AN240, Scotland!AN240, Southern!AN240, 'Wales & West'!AN240) -> 0 | AO240: =CHOOSE(m_identity,East!AO240, London!AO240, 'North West'!AO240, 'West Midlands'!AO240, Northern!AO240, Scotland!AO240, Southern!AO240, 'Wales & West'!AO240) -> 0
E241: Repex | G241: % | AH241: =CHOOSE(m_identity,East!AH241, London!AH241, 'North West'!AH241, 'West Midlands'!AH241, Northern!AH241, Scotland!AH241, Southern!AH241, 'Wales & West'!AH241) -> 0 | AI241: =CHOOSE(m_identity,East!AI241, London!AI241, 'North West'!AI241, 'West Midlands'!AI241, Northern!AI241, Scotland!AI241, Southern!AI241, 'Wales & West'!AI241) -> 0 | AJ241: =CHOOSE(m_identity,East!AJ241, London!AJ241, 'North West'!AJ241, 'West Midlands'!AJ241, Northern!AJ241, Scotland!AJ241, Southern!AJ241, 'Wales & West'!AJ241) -> 0 | AK241: =CHOOSE(m_identity,East!AK241, London!AK241, 'North West'!AK241, 'West Midlands'!AK241, Northern!AK241, Scotland!AK241, Southern!AK241, 'Wales & West'!AK241) -> 0 | AL241: =CHOOSE(m_identity,East!AL241, London!AL241, 'North West'!AL241, 'West Midlands'!AL241, Northern!AL241, Scotland!AL241, Southern!AL241, 'Wales & West'!AL241) -> 0 | AM241: =CHOOSE(m_identity,East!AM241, London!AM241, 'North West'!AM241, 'West Midlands'!AM241, Northern!AM241, Scotland!AM241, Southern!AM241, 'Wales & West'!AM241) -> 0 | AN241: =CHOOSE(m_identity,East!AN241, London!AN241, 'North West'!AN241, 'West Midlands'!AN241, Northern!AN241, Scotland!AN241, Southern!AN241, 'Wales & West'!AN241) -> 0 | AO241: =CHOOSE(m_identity,East!AO241, London!AO241, 'North West'!AO241, 'West Midlands'!AO241, Northern!AO241, Scotland!AO241, Southern!AO241, 'Wales & West'!AO241) -> 0
D243: Allocation to "Special Rate" pool
E245: Load Related | G245: % | AH245: =CHOOSE(m_identity,East!AH245, London!AH245, 'North West'!AH245, 'West Midlands'!AH245, Northern!AH245, Scotland!AH245, Southern!AH245, 'Wales & West'!AH245) -> 0.9887 | AI245: =CHOOSE(m_identity,East!AI245, London!AI245, 'North West'!AI245, 'West Midlands'!AI245, Northern!AI245, Scotland!AI245, Southern!AI245, 'Wales & West'!AI245) -> 0.9887 | AJ245: =CHOOSE(m_identity,East!AJ245, London!AJ245, 'North West'!AJ245, 'West Midlands'!AJ245, Northern!AJ245, Scotland!AJ245, Southern!AJ245, 'Wales & West'!AJ245) -> 0.9887 | AK245: =CHOOSE(m_identity,East!AK245, London!AK245, 'North West'!AK245, 'West Midlands'!AK245, Northern!AK245, Scotland!AK245, Southern!AK245, 'Wales & West'!AK245) -> 0.9887 | AL245: =CHOOSE(m_identity,East!AL245, London!AL245, 'North West'!AL245, 'West Midlands'!AL245, Northern!AL245, Scotland!AL245, Southern!AL245, 'Wales & West'!AL245) -> 0.9887 | AM245: =CHOOSE(m_identity,East!AM245, London!AM245, 'North West'!AM245, 'West Midlands'!AM245, Northern!AM245, Scotland!AM245, Southern!AM245, 'Wales & West'!AM245) -> 0.9887 | AN245: =CHOOSE(m_identity,East!AN245, London!AN245, 'North West'!AN245, 'West Midlands'!AN245, Northern!AN245, Scotland!AN245, Southern!AN245, 'Wales & West'!AN245) -> 0.9887 | AO245: =CHOOSE(m_identity,East!AO245, London!AO245, 'North West'!AO245, 'West Midlands'!AO245, Northern!AO245, Scotland!AO245, Southern!AO245, 'Wales & West'!AO245) -> 0.9887
E246: Non-Load Related - other | G246: % | AH246: =CHOOSE(m_identity,East!AH246, London!AH246, 'North West'!AH246, 'West Midlands'!AH246, Northern!AH246, Scotland!AH246, Southern!AH246, 'Wales & West'!AH246) -> 0.01627111379 | AI246: =CHOOSE(m_identity,East!AI246, London!AI246, 'North West'!AI246, 'West Midlands'!AI246, Northern!AI246, Scotland!AI246, Southern!AI246, 'Wales & West'!AI246) -> 0.01627111379 | AJ246: =CHOOSE(m_identity,East!AJ246, London!AJ246, 'North West'!AJ246, 'West Midlands'!AJ246, Northern!AJ246, Scotland!AJ246, Southern!AJ246, 'Wales & West'!AJ246) -> 0.01627111379 | AK246: =CHOOSE(m_identity,East!AK246, London!AK246, 'North West'!AK246, 'West Midlands'!AK246, Northern!AK246, Scotland!AK246, Southern!AK246, 'Wales & West'!AK246) -> 0.01627111379 | AL246: =CHOOSE(m_identity,East!AL246, London!AL246, 'North West'!AL246, 'West Midlands'!AL246, Northern!AL246, Scotland!AL246, Southern!AL246, 'Wales & West'!AL246) -> 0.01627111379 | AM246: =CHOOSE(m_identity,East!AM246, London!AM246, 'North West'!AM246, 'West Midlands'!AM246, Northern!AM246, Scotland!AM246, Southern!AM246, 'Wales & West'!AM246) -> 0.01627111379 | AN246: =CHOOSE(m_identity,East!AN246, London!AN246, 'North West'!AN246, 'West Midlands'!AN246, Northern!AN246, Scotland!AN246, Southern!AN246, 'Wales & West'!AN246) -> 0.01627111379 | AO246: =CHOOSE(m_identity,East!AO246, London!AO246, 'North West'!AO246, 'West Midlands'!AO246, Northern!AO246, Scotland!AO246, Southern!AO246, 'Wales & West'!AO246) -> 0.01627111379
E247: Opex | G247: % | AH247: =CHOOSE(m_identity,East!AH247, London!AH247, 'North West'!AH247, 'West Midlands'!AH247, Northern!AH247, Scotland!AH247, Southern!AH247, 'Wales & West'!AH247) -> 0 | AI247: =CHOOSE(m_identity,East!AI247, London!AI247, 'North West'!AI247, 'West Midlands'!AI247, Northern!AI247, Scotland!AI247, Southern!AI247, 'Wales & West'!AI247) -> 0 | AJ247: =CHOOSE(m_identity,East!AJ247, London!AJ247, 'North West'!AJ247, 'West Midlands'!AJ247, Northern!AJ247, Scotland!AJ247, Southern!AJ247, 'Wales & West'!AJ247) -> 0 | AK247: =CHOOSE(m_identity,East!AK247, London!AK247, 'North West'!AK247, 'West Midlands'!AK247, Northern!AK247, Scotland!AK247, Southern!AK247, 'Wales & West'!AK247) -> 0 | AL247: =CHOOSE(m_identity,East!AL247, London!AL247, 'North West'!AL247, 'West Midlands'!AL247, Northern!AL247, Scotland!AL247, Southern!AL247, 'Wales & West'!AL247) -> 0 | AM247: =CHOOSE(m_identity,East!AM247, London!AM247, 'North West'!AM247, 'West Midlands'!AM247, Northern!AM247, Scotland!AM247, Southern!AM247, 'Wales & West'!AM247) -> 0 | AN247: =CHOOSE(m_identity,East!AN247, London!AN247, 'North West'!AN247, 'West Midlands'!AN247, Northern!AN247, Scotland!AN247, Southern!AN247, 'Wales & West'!AN247) -> 0 | AO247: =CHOOSE(m_identity,East!AO247, London!AO247, 'North West'!AO247, 'West Midlands'!AO247, Northern!AO247, Scotland!AO247, Southern!AO247, 'Wales & West'!AO247) -> 0
E248: Repex | G248: % | AH248: =CHOOSE(m_identity,East!AH248, London!AH248, 'North West'!AH248, 'West Midlands'!AH248, Northern!AH248, Scotland!AH248, Southern!AH248, 'Wales & West'!AH248) -> 0 | AI248: =CHOOSE(m_identity,East!AI248, London!AI248, 'North West'!AI248, 'West Midlands'!AI248, Northern!AI248, Scotland!AI248, Southern!AI248, 'Wales & West'!AI248) -> 0 | AJ248: =CHOOSE(m_identity,East!AJ248, London!AJ248, 'North West'!AJ248, 'West Midlands'!AJ248, Northern!AJ248, Scotland!AJ248, Southern!AJ248, 'Wales & West'!AJ248) -> 0 | AK248: =CHOOSE(m_identity,East!AK248, London!AK248, 'North West'!AK248, 'West Midlands'!AK248, Northern!AK248, Scotland!AK248, Southern!AK248, 'Wales & West'!AK248) -> 0 | AL248: =CHOOSE(m_identity,East!AL248, London!AL248, 'North West'!AL248, 'West Midlands'!AL248, Northern!AL248, Scotland!AL248, Southern!AL248, 'Wales & West'!AL248) -> 0 | AM248: =CHOOSE(m_identity,East!AM248, London!AM248, 'North West'!AM248, 'West Midlands'!AM248, Northern!AM248, Scotland!AM248, Southern!AM248, 'Wales & West'!AM248) -> 0 | AN248: =CHOOSE(m_identity,East!AN248, London!AN248, 'North West'!AN248, 'West Midlands'!AN248, Northern!AN248, Scotland!AN248, Southern!AN248, 'Wales & West'!AN248) -> 0 | AO248: =CHOOSE(m_identity,East!AO248, London!AO248, 'North West'!AO248, 'West Midlands'!AO248, Northern!AO248, Scotland!AO248, Southern!AO248, 'Wales & West'!AO248) -> 0
D250: Allocation to "Deferred Revenue" pool
E252: Load Related | G252: % | AH252: =CHOOSE(m_identity,East!AH252, London!AH252, 'North West'!AH252, 'West Midlands'!AH252, Northern!AH252, Scotland!AH252, Southern!AH252, 'Wales & West'!AH252) -> 0 | AI252: =CHOOSE(m_identity,East!AI252, London!AI252, 'North West'!AI252, 'West Midlands'!AI252, Northern!AI252, Scotland!AI252, Southern!AI252, 'Wales & West'!AI252) -> 0 | AJ252: =CHOOSE(m_identity,East!AJ252, London!AJ252, 'North West'!AJ252, 'West Midlands'!AJ252, Northern!AJ252, Scotland!AJ252, Southern!AJ252, 'Wales & West'!AJ252) -> 0 | AK252: =CHOOSE(m_identity,East!AK252, London!AK252, 'North West'!AK252, 'West Midlands'!AK252, Northern!AK252, Scotland!AK252, Southern!AK252, 'Wales & West'!AK252) -> 0 | AL252: =CHOOSE(m_identity,East!AL252, London!AL252, 'North West'!AL252, 'West Midlands'!AL252, Northern!AL252, Scotland!AL252, Southern!AL252, 'Wales & West'!AL252) -> 0 | AM252: =CHOOSE(m_identity,East!AM252, London!AM252, 'North West'!AM252, 'West Midlands'!AM252, Northern!AM252, Scotland!AM252, Southern!AM252, 'Wales & West'!AM252) -> 0 | AN252: =CHOOSE(m_identity,East!AN252, London!AN252, 'North West'!AN252, 'West Midlands'!AN252, Northern!AN252, Scotland!AN252, Southern!AN252, 'Wales & West'!AN252) -> 0 | AO252: =CHOOSE(m_identity,East!AO252, London!AO252, 'North West'!AO252, 'West Midlands'!AO252, Northern!AO252, Scotland!AO252, Southern!AO252, 'Wales & West'!AO252) -> 0
E253: Non-Load Related - other | G253: % | AH253: =CHOOSE(m_identity,East!AH253, London!AH253, 'North West'!AH253, 'West Midlands'!AH253, Northern!AH253, Scotland!AH253, Southern!AH253, 'Wales & West'!AH253) -> 0 | AI253: =CHOOSE(m_identity,East!AI253, London!AI253, 'North West'!AI253, 'West Midlands'!AI253, Northern!AI253, Scotland!AI253, Southern!AI253, 'Wales & West'!AI253) -> 0 | AJ253: =CHOOSE(m_identity,East!AJ253, London!AJ253, 'North West'!AJ253, 'West Midlands'!AJ253, Northern!AJ253, Scotland!AJ253, Southern!AJ253, 'Wales & West'!AJ253) -> 0 | AK253: =CHOOSE(m_identity,East!AK253, London!AK253, 'North West'!AK253, 'West Midlands'!AK253, Northern!AK253, Scotland!AK253, Southern!AK253, 'Wales & West'!AK253) -> 0 | AL253: =CHOOSE(m_identity,East!AL253, London!AL253, 'North West'!AL253, 'West Midlands'!AL253, Northern!AL253, Scotland!AL253, Southern!AL253, 'Wales & West'!AL253) -> 0 | AM253: =CHOOSE(m_identity,East!AM253, London!AM253, 'North West'!AM253, 'West Midlands'!AM253, Northern!AM253, Scotland!AM253, Southern!AM253, 'Wales & West'!AM253) -> 0 | AN253: =CHOOSE(m_identity,East!AN253, London!AN253, 'North West'!AN253, 'West Midlands'!AN253, Northern!AN253, Scotland!AN253, Southern!AN253, 'Wales & West'!AN253) -> 0 | AO253: =CHOOSE(m_identity,East!AO253, London!AO253, 'North West'!AO253, 'West Midlands'!AO253, Northern!AO253, Scotland!AO253, Southern!AO253, 'Wales & West'!AO253) -> 0
E254: Opex | G254: % | AH254: =CHOOSE(m_identity,East!AH254, London!AH254, 'North West'!AH254, 'West Midlands'!AH254, Northern!AH254, Scotland!AH254, Southern!AH254, 'Wales & West'!AH254) -> 0 | AI254: =CHOOSE(m_identity,East!AI254, London!AI254, 'North West'!AI254, 'West Midlands'!AI254, Northern!AI254, Scotland!AI254, Southern!AI254, 'Wales & West'!AI254) -> 0 | AJ254: =CHOOSE(m_identity,East!AJ254, London!AJ254, 'North West'!AJ254, 'West Midlands'!AJ254, Northern!AJ254, Scotland!AJ254, Southern!AJ254, 'Wales & West'!AJ254) -> 0 | AK254: =CHOOSE(m_identity,East!AK254, London!AK254, 'North West'!AK254, 'West Midlands'!AK254, Northern!AK254, Scotland!AK254, Southern!AK254, 'Wales & West'!AK254) -> 0 | AL254: =CHOOSE(m_identity,East!AL254, London!AL254, 'North West'!AL254, 'West Midlands'!AL254, Northern!AL254, Scotland!AL254, Southern!AL254, 'Wales & West'!AL254) -> 0 | AM254: =CHOOSE(m_identity,East!AM254, London!AM254, 'North West'!AM254, 'West Midlands'!AM254, Northern!AM254, Scotland!AM254, Southern!AM254, 'Wales & West'!AM254) -> 0 | AN254: =CHOOSE(m_identity,East!AN254, London!AN254, 'North West'!AN254, 'West Midlands'!AN254, Northern!AN254, Scotland!AN254, Southern!AN254, 'Wales & West'!AN254) -> 0 | AO254: =CHOOSE(m_identity,East!AO254, London!AO254, 'North West'!AO254, 'West Midlands'!AO254, Northern!AO254, Scotland!AO254, Southern!AO254, 'Wales & West'!AO254) -> 0
E255: Repex | G255: % | AH255: =CHOOSE(m_identity,East!AH255, London!AH255, 'North West'!AH255, 'West Midlands'!AH255, Northern!AH255, Scotland!AH255, Southern!AH255, 'Wales & West'!AH255) -> 0 | AI255: =CHOOSE(m_identity,East!AI255, London!AI255, 'North West'!AI255, 'West Midlands'!AI255, Northern!AI255, Scotland!AI255, Southern!AI255, 'Wales & West'!AI255) -> 0 | AJ255: =CHOOSE(m_identity,East!AJ255, London!AJ255, 'North West'!AJ255, 'West Midlands'!AJ255, Northern!AJ255, Scotland!AJ255, Southern!AJ255, 'Wales & West'!AJ255) -> 1 | AK255: =CHOOSE(m_identity,East!AK255, London!AK255, 'North West'!AK255, 'West Midlands'!AK255, Northern!AK255, Scotland!AK255, Southern!AK255, 'Wales & West'!AK255) -> 1 | AL255: =CHOOSE(m_identity,East!AL255, London!AL255, 'North West'!AL255, 'West Midlands'!AL255, Northern!AL255, Scotland!AL255, Southern!AL255, 'Wales & West'!AL255) -> 1 | AM255: =CHOOSE(m_identity,East!AM255, London!AM255, 'North West'!AM255, 'West Midlands'!AM255, Northern!AM255, Scotland!AM255, Southern!AM255, 'Wales & West'!AM255) -> 1 | AN255: =CHOOSE(m_identity,East!AN255, London!AN255, 'North West'!AN255, 'West Midlands'!AN255, Northern!AN255, Scotland!AN255, Southern!AN255, 'Wales & West'!AN255) -> 1 | AO255: =CHOOSE(m_identity,East!AO255, London!AO255, 'North West'!AO255, 'West Midlands'!AO255, Northern!AO255, Scotland!AO255, Southern!AO255, 'Wales & West'!AO255) -> 1
D257: Allocation to "Revenue" pool
E259: Load Related | G259: % | AH259: =CHOOSE(m_identity,East!AH259, London!AH259, 'North West'!AH259, 'West Midlands'!AH259, Northern!AH259, Scotland!AH259, Southern!AH259, 'Wales & West'!AH259) -> 0 | AI259: =CHOOSE(m_identity,East!AI259, London!AI259, 'North West'!AI259, 'West Midlands'!AI259, Northern!AI259, Scotland!AI259, Southern!AI259, 'Wales & West'!AI259) -> 0 | AJ259: =CHOOSE(m_identity,East!AJ259, London!AJ259, 'North West'!AJ259, 'West Midlands'!AJ259, Northern!AJ259, Scotland!AJ259, Southern!AJ259, 'Wales & West'!AJ259) -> 0 | AK259: =CHOOSE(m_identity,East!AK259, London!AK259, 'North West'!AK259, 'West Midlands'!AK259, Northern!AK259, Scotland!AK259, Southern!AK259, 'Wales & West'!AK259) -> 0 | AL259: =CHOOSE(m_identity,East!AL259, London!AL259, 'North West'!AL259, 'West Midlands'!AL259, Northern!AL259, Scotland!AL259, Southern!AL259, 'Wales & West'!AL259) -> 0 | AM259: =CHOOSE(m_identity,East!AM259, London!AM259, 'North West'!AM259, 'West Midlands'!AM259, Northern!AM259, Scotland!AM259, Southern!AM259, 'Wales & West'!AM259) -> 0 | AN259: =CHOOSE(m_identity,East!AN259, London!AN259, 'North West'!AN259, 'West Midlands'!AN259, Northern!AN259, Scotland!AN259, Southern!AN259, 'Wales & West'!AN259) -> 0 | AO259: =CHOOSE(m_identity,East!AO259, London!AO259, 'North West'!AO259, 'West Midlands'!AO259, Northern!AO259, Scotland!AO259, Southern!AO259, 'Wales & West'!AO259) -> 0
E260: Non-Load Related - other | G260: % | AH260: =CHOOSE(m_identity,East!AH260, London!AH260, 'North West'!AH260, 'West Midlands'!AH260, Northern!AH260, Scotland!AH260, Southern!AH260, 'Wales & West'!AH260) -> 0 | AI260: =CHOOSE(m_identity,East!AI260, London!AI260, 'North West'!AI260, 'West Midlands'!AI260, Northern!AI260, Scotland!AI260, Southern!AI260, 'Wales & West'!AI260) -> 0 | AJ260: =CHOOSE(m_identity,East!AJ260, London!AJ260, 'North West'!AJ260, 'West Midlands'!AJ260, Northern!AJ260, Scotland!AJ260, Southern!AJ260, 'Wales & West'!AJ260) -> 0 | AK260: =CHOOSE(m_identity,East!AK260, London!AK260, 'North West'!AK260, 'West Midlands'!AK260, Northern!AK260, Scotland!AK260, Southern!AK260, 'Wales & West'!AK260) -> 0 | AL260: =CHOOSE(m_identity,East!AL260, London!AL260, 'North West'!AL260, 'West Midlands'!AL260, Northern!AL260, Scotland!AL260, Southern!AL260, 'Wales & West'!AL260) -> 0 | AM260: =CHOOSE(m_identity,East!AM260, London!AM260, 'North West'!AM260, 'West Midlands'!AM260, Northern!AM260, Scotland!AM260, Southern!AM260, 'Wales & West'!AM260) -> 0 | AN260: =CHOOSE(m_identity,East!AN260, London!AN260, 'North West'!AN260, 'West Midlands'!AN260, Northern!AN260, Scotland!AN260, Southern!AN260, 'Wales & West'!AN260) -> 0 | AO260: =CHOOSE(m_identity,East!AO260, London!AO260, 'North West'!AO260, 'West Midlands'!AO260, Northern!AO260, Scotland!AO260, Southern!AO260, 'Wales & West'!AO260) -> 0
E261: Opex | G261: % | AH261: =CHOOSE(m_identity,East!AH261, London!AH261, 'North West'!AH261, 'West Midlands'!AH261, Northern!AH261, Scotland!AH261, Southern!AH261, 'Wales & West'!AH261) -> 1 | AI261: =CHOOSE(m_identity,East!AI261, London!AI261, 'North West'!AI261, 'West Midlands'!AI261, Northern!AI261, Scotland!AI261, Southern!AI261, 'Wales & West'!AI261) -> 1 | AJ261: =CHOOSE(m_identity,East!AJ261, London!AJ261, 'North West'!AJ261, 'West Midlands'!AJ261, Northern!AJ261, Scotland!AJ261, Southern!AJ261, 'Wales & West'!AJ261) -> 1 | AK261: =CHOOSE(m_identity,East!AK261, London!AK261, 'North West'!AK261, 'West Midlands'!AK261, Northern!AK261, Scotland!AK261, Southern!AK261, 'Wales & West'!AK261) -> 1 | AL261: =CHOOSE(m_identity,East!AL261, London!AL261, 'North West'!AL261, 'West Midlands'!AL261, Northern!AL261, Scotland!AL261, Southern!AL261, 'Wales & West'!AL261) -> 1 | AM261: =CHOOSE(m_identity,East!AM261, London!AM261, 'North West'!AM261, 'West Midlands'!AM261, Northern!AM261, Scotland!AM261, Southern!AM261, 'Wales & West'!AM261) -> 1 | AN261: =CHOOSE(m_identity,East!AN261, London!AN261, 'North West'!AN261, 'West Midlands'!AN261, Northern!AN261, Scotland!AN261, Southern!AN261, 'Wales & West'!AN261) -> 1 | AO261: =CHOOSE(m_identity,East!AO261, London!AO261, 'North West'!AO261, 'West Midlands'!AO261, Northern!AO261, Scotland!AO261, Southern!AO261, 'Wales & West'!AO261) -> 1
E262: Repex | G262: % | AH262: =CHOOSE(m_identity,East!AH262, London!AH262, 'North West'!AH262, 'West Midlands'!AH262, Northern!AH262, Scotland!AH262, Southern!AH262, 'Wales & West'!AH262) -> 1 | AI262: =CHOOSE(m_identity,East!AI262, London!AI262, 'North West'!AI262, 'West Midlands'!AI262, Northern!AI262, Scotland!AI262, Southern!AI262, 'Wales & West'!AI262) -> 1 | AJ262: =CHOOSE(m_identity,East!AJ262, London!AJ262, 'North West'!AJ262, 'West Midlands'!AJ262, Northern!AJ262, Scotland!AJ262, Southern!AJ262, 'Wales & West'!AJ262) -> 0 | AK262: =CHOOSE(m_identity,East!AK262, London!AK262, 'North West'!AK262, 'West Midlands'!AK262, Northern!AK262, Scotland!AK262, Southern!AK262, 'Wales & West'!AK262) -> 0 | AL262: =CHOOSE(m_identity,East!AL262, London!AL262, 'North West'!AL262, 'West Midlands'!AL262, Northern!AL262, Scotland!AL262, Southern!AL262, 'Wales & West'!AL262) -> 0 | AM262: =CHOOSE(m_identity,East!AM262, London!AM262, 'North West'!AM262, 'West Midlands'!AM262, Northern!AM262, Scotland!AM262, Southern!AM262, 'Wales & West'!AM262) -> 0 | AN262: =CHOOSE(m_identity,East!AN262, London!AN262, 'North West'!AN262, 'West Midlands'!AN262, Northern!AN262, Scotland!AN262, Southern!AN262, 'Wales & West'!AN262) -> 0 | AO262: =CHOOSE(m_identity,East!AO262, London!AO262, 'North West'!AO262, 'West Midlands'!AO262, Northern!AO262, Scotland!AO262, Southern!AO262, 'Wales & West'!AO262) -> 0
D264: Allocation to "Non Qualifying" pool
E266: Load Related | G266: % | AH266: =CHOOSE(m_identity,East!AH266, London!AH266, 'North West'!AH266, 'West Midlands'!AH266, Northern!AH266, Scotland!AH266, Southern!AH266, 'Wales & West'!AH266) -> 0.0084 | AI266: =CHOOSE(m_identity,East!AI266, London!AI266, 'North West'!AI266, 'West Midlands'!AI266, Northern!AI266, Scotland!AI266, Southern!AI266, 'Wales & West'!AI266) -> 0.0084 | AJ266: =CHOOSE(m_identity,East!AJ266, London!AJ266, 'North West'!AJ266, 'West Midlands'!AJ266, Northern!AJ266, Scotland!AJ266, Southern!AJ266, 'Wales & West'!AJ266) -> 0.0084 | AK266: =CHOOSE(m_identity,East!AK266, London!AK266, 'North West'!AK266, 'West Midlands'!AK266, Northern!AK266, Scotland!AK266, Southern!AK266, 'Wales & West'!AK266) -> 0.0084 | AL266: =CHOOSE(m_identity,East!AL266, London!AL266, 'North West'!AL266, 'West Midlands'!AL266, Northern!AL266, Scotland!AL266, Southern!AL266, 'Wales & West'!AL266) -> 0.0084 | AM266: =CHOOSE(m_identity,East!AM266, London!AM266, 'North West'!AM266, 'West Midlands'!AM266, Northern!AM266, Scotland!AM266, Southern!AM266, 'Wales & West'!AM266) -> 0.0084 | AN266: =CHOOSE(m_identity,East!AN266, London!AN266, 'North West'!AN266, 'West Midlands'!AN266, Northern!AN266, Scotland!AN266, Southern!AN266, 'Wales & West'!AN266) -> 0.0084 | AO266: =CHOOSE(m_identity,East!AO266, London!AO266, 'North West'!AO266, 'West Midlands'!AO266, Northern!AO266, Scotland!AO266, Southern!AO266, 'Wales & West'!AO266) -> 0.0084
E267: Non-Load Related - other | G267: % | AH267: =CHOOSE(m_identity,East!AH267, London!AH267, 'North West'!AH267, 'West Midlands'!AH267, Northern!AH267, Scotland!AH267, Southern!AH267, 'Wales & West'!AH267) -> 0.0861679023 | AI267: =CHOOSE(m_identity,East!AI267, London!AI267, 'North West'!AI267, 'West Midlands'!AI267, Northern!AI267, Scotland!AI267, Southern!AI267, 'Wales & West'!AI267) -> 0.0861679023 | AJ267: =CHOOSE(m_identity,East!AJ267, London!AJ267, 'North West'!AJ267, 'West Midlands'!AJ267, Northern!AJ267, Scotland!AJ267, Southern!AJ267, 'Wales & West'!AJ267) -> 0.0861679023 | AK267: =CHOOSE(m_identity,East!AK267, London!AK267, 'North West'!AK267, 'West Midlands'!AK267, Northern!AK267, Scotland!AK267, Southern!AK267, 'Wales & West'!AK267) -> 0.0861679023 | AL267: =CHOOSE(m_identity,East!AL267, London!AL267, 'North West'!AL267, 'West Midlands'!AL267, Northern!AL267, Scotland!AL267, Southern!AL267, 'Wales & West'!AL267) -> 0.0861679023 | AM267: =CHOOSE(m_identity,East!AM267, London!AM267, 'North West'!AM267, 'West Midlands'!AM267, Northern!AM267, Scotland!AM267, Southern!AM267, 'Wales & West'!AM267) -> 0.0861679023 | AN267: =CHOOSE(m_identity,East!AN267, London!AN267, 'North West'!AN267, 'West Midlands'!AN267, Northern!AN267, Scotland!AN267, Southern!AN267, 'Wales & West'!AN267) -> 0.0861679023 | AO267: =CHOOSE(m_identity,East!AO267, London!AO267, 'North West'!AO267, 'West Midlands'!AO267, Northern!AO267, Scotland!AO267, Southern!AO267, 'Wales & West'!AO267) -> 0.0861679023
E268: Opex | G268: % | AH268: =CHOOSE(m_identity,East!AH268, London!AH268, 'North West'!AH268, 'West Midlands'!AH268, Northern!AH268, Scotland!AH268, Southern!AH268, 'Wales & West'!AH268) -> 0 | AI268: =CHOOSE(m_identity,East!AI268, London!AI268, 'North West'!AI268, 'West Midlands'!AI268, Northern!AI268, Scotland!AI268, Southern!AI268, 'Wales & West'!AI268) -> 0 | AJ268: =CHOOSE(m_identity,East!AJ268, London!AJ268, 'North West'!AJ268, 'West Midlands'!AJ268, Northern!AJ268, Scotland!AJ268, Southern!AJ268, 'Wales & West'!AJ268) -> 0 | AK268: =CHOOSE(m_identity,East!AK268, London!AK268, 'North West'!AK268, 'West Midlands'!AK268, Northern!AK268, Scotland!AK268, Southern!AK268, 'Wales & West'!AK268) -> 0 | AL268: =CHOOSE(m_identity,East!AL268, London!AL268, 'North West'!AL268, 'West Midlands'!AL268, Northern!AL268, Scotland!AL268, Southern!AL268, 'Wales & West'!AL268) -> 0 | AM268: =CHOOSE(m_identity,East!AM268, London!AM268, 'North West'!AM268, 'West Midlands'!AM268, Northern!AM268, Scotland!AM268, Southern!AM268, 'Wales & West'!AM268) -> 0 | AN268: =CHOOSE(m_identity,East!AN268, London!AN268, 'North West'!AN268, 'West Midlands'!AN268, Northern!AN268, Scotland!AN268, Southern!AN268, 'Wales & West'!AN268) -> 0 | AO268: =CHOOSE(m_identity,East!AO268, London!AO268, 'North West'!AO268, 'West Midlands'!AO268, Northern!AO268, Scotland!AO268, Southern!AO268, 'Wales & West'!AO268) -> 0
E269: Repex | G269: % | AH269: =CHOOSE(m_identity,East!AH269, London!AH269, 'North West'!AH269, 'West Midlands'!AH269, Northern!AH269, Scotland!AH269, Southern!AH269, 'Wales & West'!AH269) -> 0 | AI269: =CHOOSE(m_identity,East!AI269, London!AI269, 'North West'!AI269, 'West Midlands'!AI269, Northern!AI269, Scotland!AI269, Southern!AI269, 'Wales & West'!AI269) -> 0 | AJ269: =CHOOSE(m_identity,East!AJ269, London!AJ269, 'North West'!AJ269, 'West Midlands'!AJ269, Northern!AJ269, Scotland!AJ269, Southern!AJ269, 'Wales & West'!AJ269) -> 0 | AK269: =CHOOSE(m_identity,East!AK269, London!AK269, 'North West'!AK269, 'West Midlands'!AK269, Northern!AK269, Scotland!AK269, Southern!AK269, 'Wales & West'!AK269) -> 0 | AL269: =CHOOSE(m_identity,East!AL269, London!AL269, 'North West'!AL269, 'West Midlands'!AL269, Northern!AL269, Scotland!AL269, Southern!AL269, 'Wales & West'!AL269) -> 0 | AM269: =CHOOSE(m_identity,East!AM269, London!AM269, 'North West'!AM269, 'West Midlands'!AM269, Northern!AM269, Scotland!AM269, Southern!AM269, 'Wales & West'!AM269) -> 0 | AN269: =CHOOSE(m_identity,East!AN269, London!AN269, 'North West'!AN269, 'West Midlands'!AN269, Northern!AN269, Scotland!AN269, Southern!AN269, 'Wales & West'!AN269) -> 0 | AO269: =CHOOSE(m_identity,East!AO269, London!AO269, 'North West'!AO269, 'West Midlands'!AO269, Northern!AO269, Scotland!AO269, Southern!AO269, 'Wales & West'!AO269) -> 0
D271: Allocation check
D272: Note: All categories should equal 100%
E274: Load Related | G274: % | AH274: =AH238+AH245+AH252+AH259+AH266 -> 1 | AI274: 1 | AJ274: 1 | AK274: 1 | AL274: 1 | AM274: 1 | AN274: 1 | AO274: 1
E275: Non-Load Related - other | G275: % | AH275: 1 | AI275: 1 | AJ275: 1 | AK275: 1 | AL275: 1 | AM275: 1 | AN275: 1 | AO275: 1
E276: Opex | G276: % | AH276: 1 | AI276: 1 | AJ276: 1 | AK276: 1 | AL276: 1 | AM276: 1 | AN276: 1 | AO276: 1
... 9 more rows

Sheet Totex
A1: Totex
B2: =UserInterface!G17 -> East
E3: Parameter | G3: Units | I3: Constant | AH3: Annual values
E4: PCFM year ending | I4: =UserInterface!$G$10 -> 2019-03-31 | K4: 1991-03-31 | L4: 1992-03-31 | M4: 1993-03-31 | N4: 1994-03-31 | O4: 1995-03-31 | P4: 1996-03-31 | Q4: 1997-03-31 | R4: 1998-03-31 | S4: 1999-03-31 | T4: 2000-03-31 | U4: 2001-03-31 | V4: 2002-03-31 | W4: 2003-03-31 | X4: 2004-03-31 | Y4: 2005-03-31 | Z4: 2006-03-31 | AA4: 2007-03-31 | AB4: 2008-03-31 | AC4: 2009-03-31 | AD4: 2010-03-31 | AE4: 2011-03-31 | AF4: 2012-03-31 | AG4: 2013-03-31 | AH4: 2014-03-31 | AI4: 2015-03-31 | AJ4: 2016-03-31 | AK4: 2017-03-31 | AL4: 2018-03-31 | AM4: 2019-03-31 | AN4: 2020-03-31 | AO4: 2021-03-31
B6: Totex
C8: Allowed totex aggregated by sub-category
C9: Note: Totex is the sum of a number of cost categories, with all totex allowances falling under one (or more) of them. They have significance in the model as each sub-category can have its own set of tax pool allocation rules.
D11: Non-variant allowances
D12: Note: These values are set at final proposals and are not updated during the price control
E14: Non-variant allowed load related capex | G14: £m 09/10 prices | AH14: =Input!AH83 -> 22.84391815 | AI14: =Input!AI83 -> 24.19358879 | AJ14: =Input!AJ83 -> 22.47671995 | AK14: =Input!AK83 -> 21.839899 | AL14: =Input!AL83 -> 19.57308465 | AM14: =Input!AM83 -> 19.68659268 | AN14: =Input!AN83 -> 19.08692352 | AO14: =Input!AO83 -> 19.0272661
E15: Non-variant allowed non-load related capex - other | G15: £m 09/10 prices | AH15: =Input!AH84 -> 30.55045388 | AI15: =Input!AI84 -> 20.48313871 | AJ15: =Input!AJ84 -> 16.1378747 | AK15: =Input!AK84 -> 16.82348847 | AL15: =Input!AL84 -> 20.97500754 | AM15: =Input!AM84 -> 18.6161064 | AN15: =Input!AN84 -> 14.89758992 | AO15: =Input!AO84 -> 12.54433785
E16: Non-variant allowed controllable opex | G16: £m 09/10 prices | AH16: =Input!AH85 -> 114.720211 | AI16: =Input!AI85 -> 112.9272229 | AJ16: =Input!AJ85 -> 113.8563041 | AK16: =Input!AK85 -> 114.8659328 | AL16: =Input!AL85 -> 113.0188186 | AM16: =Input!AM85 -> 112.8953675 | AN16: =Input!AN85 -> 112.7939991 | AO16: =Input!AO85 -> 112.330053
E17: Non-variant allowed repex | G17: £m 09/10 prices | AH17: =Input!AH86 -> 106.8746236 | AI17: =Input!AI86 -> 104.8802384 | AJ17: =Input!AJ86 -> 105.988291 | AK17: =Input!AK86 -> 106.0867633 | AL17: =Input!AL86 -> 106.6234764 | AM17: =Input!AM86 -> 107.1427769 | AN17: =Input!AN86 -> 107.6772755 | AO17: =Input!AO86 -> 108.1835418
D19: Variant
D20: Note: Licence conditions may allow for non-baseline allowances to be granted. These are added to the baseline to generate the allowed sub-categories and thereby the overall allowed totex.
E22: =Input!E144 -> Variant allowed load related capex | G22: =Input!G144 -> £m 09/10 prices | AH22: =Input!AH144 -> 1.350432072 | AI22: =Input!AI144 -> 1.341657547 | AJ22: =Input!AJ144 -> 1.351132031 | AK22: =Input!AK144 -> 1.856051574 | AL22: =Input!AL144 -> 1.940062497 | AM22: =Input!AM144 -> 1.896167899 | AN22: =Input!AN144 -> 1.887738068 | AO22: =Input!AO144 -> 1.788150925
E23: =Input!E145 -> Variant allowed non-load related capex - other | G23: =Input!G145 -> £m 09/10 prices | AH23: =Input!AH145 -> -1.20920211 | AI23: =Input!AI145 -> 0.215320289 | AJ23: =Input!AJ145 -> 0.4487248688 | AK23: =Input!AK145 -> 2.363695294 | AL23: =Input!AL145 -> 12.4072645 | AM23: =Input!AM145 -> 9.326177887 | AN23: =Input!AN145 -> 1.453440235 | AO23: =Input!AO145 -> -0.4082419968
E24: =Input!E146 -> Variant allowed controllable opex | G24: =Input!G146 -> £m 09/10 prices | AH24: =Input!AH146 -> 0.7520763919 | AI24: =Input!AI146 -> 0.7468846403 | AJ24: =Input!AJ146 -> 0.882262234 | AK24: =Input!AK146 -> 0.8651685897 | AL24: =Input!AL146 -> -1.579999518 | AM24: =Input!AM146 -> -2.702426599 | AN24: =Input!AN146 -> -3.780111477 | AO24: =Input!AO146 -> -4.336516913
E25: =Input!E147 -> Variant allowed repex | G25: =Input!G147 -> £m 09/10 prices | AH25: =Input!AH147 -> 1.73510942 | AI25: =Input!AI147 -> 1.761361059 | AJ25: =Input!AJ147 -> 1.950870009 | AK25: =Input!AK147 -> 2.435078595 | AL25: =Input!AL147 -> 2.396453233 | AM25: =Input!AM147 -> 2.356980237 | AN25: =Input!AN147 -> 2.318474283 | AO25: =Input!AO147 -> 2.27975382
D27: Allowance
D28: Note: "Allowed totex" is exported to be used in the TIM calculation. The allowed totex sub-categories are used below to create forecast actuals for the tax calculation and the TIM calculation when actuals are not yet available.
E30: Allowed load related capex | G30: £m 09/10 prices | AH30: =AH14 + AH22 -> 24.19435023 | AI30: 25.53524633 | AJ30: 23.82785198 | AK30: 23.69595057 | AL30: 21.51314715 | AM30: 21.58276058 | AN30: 20.97466159 | AO30: 20.81541702
E31: Allowed non-load related capex - other | G31: £m 09/10 prices | AH31: 29.34125177 | AI31: 20.698459 | AJ31: 16.58659957 | AK31: 19.18718376 | AL31: 33.38227203 | AM31: 27.94228429 | AN31: 16.35103015 | AO31: 12.13609586
E32: Allowed controllable opex | G32: £m 09/10 prices | AH32: 115.4722874 | AI32: 113.6741075 | AJ32: 114.7385663 | AK32: 115.7311014 | AL32: 111.4388191 | AM32: 110.1929409 | AN32: 109.0138876 | AO32: 107.9935361
E33: Allowed repex | G33: £m 09/10 prices | AH33: 108.609733 | AI33: 106.6415994 | AJ33: 107.939161 | AK33: 108.5218419 | AL33: 109.0199296 | AM33: 109.4997571 | AN33: 109.9957498 | AO33: 110.4632956
E34: Allowed totex | G34: £m 09/10 prices | AH34: =SUM(AH30:AH33) -> 277.6176225 | AI34: 266.5494123 | AJ34: 263.0921789 | AK34: 267.1360777 | AL34: 275.3541679 | AM34: 269.217743 | AN34: 256.3353292 | AO34: 251.4083445
C36: Actual totex
D38: Source of actuals
D39: Note: The model assumes that there is a time lag from year t until actual expenditure data becomes available for the model. After the lag, actual expenditure inputs are used. Up to that point the model generates a forecast actual expenditure.
D40: When required in the model, forecasts assume that actuals are equal to their corresponding allowance.
D41: In a year where actual totex is assumed to be available, values must be inputted to the model as it will not generate a forecast and the empty input cell will be read as an actual spend of zero.
E43: Years from t until normal reporting of actual costs | G43: years | I43: =Input!I47 -> 2
E44: Input actuals used | G44: text | AH44: =YEAR($I$4) >= YEAR(AH$4) + $I43 -> TRUE | AI44: TRUE | AJ44: TRUE | AK44: TRUE | AL44: FALSE | AM44: FALSE | AN44: FALSE | AO44: FALSE
E45: Forecast actuals generated from allowances | G45: text | AH45: =YEAR($I$4) < YEAR(AH$4) + $I43 -> FALSE | AI45: FALSE | AJ45: FALSE | AK45: FALSE | AL45: TRUE | AM45: TRUE | AN45: TRUE | AO45: TRUE
D47: Actual totex from cost reporting processes and final proposals
E49: Actual load related capex | G49: £m 09/10 prices | AH49: =IF(AH$44, Input!AH151, 0) -> 28.99470552 | AI49: =IF(AI$44, Input!AI151, 0) -> 19.81350517 | AJ49: =IF(AJ$44, Input!AJ151, 0) -> 19.73286031 | AK49: =IF(AK$44, Input!AK151, 0) -> 0 | AL49: =IF(AL$44, Input!AL151, 0) -> 0 | AM49: =IF(AM$44, Input!AM151, 0) -> 0 | AN49: =IF(AN$44, Input!AN151, 0) -> 0 | AO49: =IF(AO$44, Input!AO151, 0) -> 0
E50: Actual non-load related capex - other | G50: £m 09/10 prices | AH50: =IF(AH$44, Input!AH152, 0) -> 17.58540433 | AI50: =IF(AI$44, Input!AI152, 0) -> 19.93498037 | AJ50: =IF(AJ$44, Input!AJ152, 0) -> 16.77184999 | AK50: =IF(AK$44, Input!AK152, 0) -> 0 | AL50: =IF(AL$44, Input!AL152, 0) -> 0 | AM50: =IF(AM$44, Input!AM152, 0) -> 0 | AN50: =IF(AN$44, Input!AN152, 0) -> 0 | AO50: =IF(AO$44, Input!AO152, 0) -> 0
E51: Actual controllable opex | G51: £m 09/10 prices | AH51: =IF(AH$44, Input!AH153, 0) -> 126.8805521 | AI51: =IF(AI$44, Input!AI153, 0) -> 124.5740359 | AJ51: =IF(AJ$44, Input!AJ153, 0) -> 118.8583582 | AK51: =IF(AK$44, Input!AK153, 0) -> 0 | AL51: =IF(AL$44, Input!AL153, 0) -> 0 | AM51: =IF(AM$44, Input!AM153, 0) -> 0 | AN51: =IF(AN$44, Input!AN153, 0) -> 0 | AO51: =IF(AO$44, Input!AO153, 0) -> 0
E52: Actual repex | G52: £m 09/10 prices | AH52: =IF(AH$44, Input!AH154, 0) -> 80.9802796 | AI52: =IF(AI$44, Input!AI154, 0) -> 87.29276861 | AJ52: =IF(AJ$44, Input!AJ154, 0) -> 91.55845298 | AK52: =IF(AK$44, Input!AK154, 0) -> 0 | AL52: =IF(AL$44, Input!AL154, 0) -> 0 | AM52: =IF(AM$44, Input!AM154, 0) -> 0 | AN52: =IF(AN$44, Input!AN154, 0) -> 0 | AO52: =IF(AO$44, Input!AO154, 0) -> 0
D55: Forecast totex from new allowances
E57: Forecast actual load related capex | G57: £m 09/10 prices | AH57: =IF(AH$45, AH30, 0) -> 0 | AI57: 0 | AJ57: 0 | AK57: 0 | AL57: 21.51314715 | AM57: 21.58276058 | AN57: 20.97466159 | AO57: 20.81541702
E58: Forecast actual non-load related capex - other | G58: £m 09/10 prices | AH58: 0 | AI58: 0 | AJ58: 0 | AK58: 0 | AL58: 33.38227203 | AM58: 27.94228429 | AN58: 16.35103015 | AO58: 12.13609586
E59: Forecast actual controllable opex | G59: £m 09/10 prices | AH59: 0 | AI59: 0 | AJ59: 0 | AK59: 0 | AL59: 111.4388191 | AM59: 110.1929409 | AN59: 109.0138876 | AO59: 107.9935361
E60: Forecast actual repex | G60: £m 09/10 prices | AH60: 0 | AI60: 0 | AJ60: 0 | AK60: 0 | AL60: 109.0199296 | AM60: 109.4997571 | AN60: 109.9957498 | AO60: 110.4632956
D62: Totex applied
D63: Note: Actuals are exported both to identify performance against the allowance and to generate writing down allowances used in the tax calculation.
E65: Actual load related capex | G65: £m 09/10 prices | AH65: =AH49 + AH57 -> 28.99470552 | AI65: 19.81350517 | AJ65: 19.73286031 | AK65: 0 | AL65: 21.51314715 | AM65: 21.58276058 | AN65: 20.97466159 | AO65: 20.81541702
E66: Actual non-load related capex - other | G66: £m 09/10 prices | AH66: 17.58540433 | AI66: 19.93498037 | AJ66: 16.77184999 | AK66: 0 | AL66: 33.38227203 | AM66: 27.94228429 | AN66: 16.35103015 | AO66: 12.13609586
E67: Actual controllable opex | G67: £m 09/10 prices | AH67: 126.8805521 | AI67: 124.5740359 | AJ67: 118.8583582 | AK67: 0 | AL67: 111.4388191 | AM67: 110.1929409 | AN67: 109.0138876 | AO67: 107.9935361
E68: Actual repex | G68: £m 09/10 prices | AH68: 80.9802796 | AI68: 87.29276861 | AJ68: 91.55845298 | AK68: 0 | AL68: 109.0199296 | AM68: 109.4997571 | AN68: 109.9957498 | AO68: 110.4632956
E69: Actual totex | G69: £m 09/10 prices | AH69: =SUM(AH65:AH68) -> 254.4409416 | AI69: 251.61529 | AJ69: 246.9215215 | AK69: 0 | AL69: 275.3541679 | AM69: 269.217743 | AN69: 256.3353292 | AO69: 251.4083445
B71: End of sheet

Sheet TIM
A1: Totex Incentive Mechanism (TIM)
B2: =UserInterface!G17 -> East
E3: Parameter | G3: Units | I3: Constant | AH3: Annual values
E4: PCFM year ending | I4: =UserInterface!$G$10 -> 2019-03-31 | K4: 1991-03-31 | L4: 1992-03-31 | M4: 1993-03-31 | N4: 1994-03-31 | O4: 1995-03-31 | P4: 1996-03-31 | Q4: 1997-03-31 | R4: 1998-03-31 | S4: 1999-03-31 | T4: 2000-03-31 | U4: 2001-03-31 | V4: 2002-03-31 | W4: 2003-03-31 | X4: 2004-03-31 | Y4: 2005-03-31 | Z4: 2006-03-31 | AA4: 2007-03-31 | AB4: 2008-03-31 | AC4: 2009-03-31 | AD4: 2010-03-31 | AE4: 2011-03-31 | AF4: 2012-03-31 | AG4: 2013-03-31 | AH4: 2014-03-31 | AI4: 2015-03-31 | AJ4: 2016-03-31 | AK4: 2017-03-31 | AL4: 2018-03-31 | AM4: 2019-03-31 | AN4: 2020-03-31 | AO4: 2021-03-31
B6: Efficiency incentive
C8: Incentive strength
E10: Incentive rate (slope) | G10: scalar | I10: =Input!I52 -> -0.001666666667
E11: Incentive rate (intercept) | G11: scalar | I11: =Input!I53 -> 0.8166666667
E12: Group rate | G12: ratio | I12: =Input!I65/Input!I64*100 -> 111.7747974
E14: Incentive strength | G14: % | I14: =ROUND(I11+I10*I12,4) -> 0.6304
C16: Additional income
E18: Ofgem view | G18: % | I18: =Input!I56 -> 0.75
E19: Operator view | G19: % | I19: =Input!I57 -> 0.25
E21: Ofgem view of group price control totex | G21: £m 09/10 prices | I21: =Input!I64 -> 6729.057111
E23: Additional income (intercept) | G23: scalar | I23: =Input!I54 -> 14.58333333
E24: First order parameter | G24: % | I24: =(-(I10 * I18*100) - (I11 * I19)) -> -0.07916666667
E25: Second order parameter | G25: % | I25: =(0.5-I19) * I10 -> -0.0004166666667
E26: Additional income scalar | G26: % | I26: =(I23+I24*(I12)+I25*(I12)^2) -> 0.5288263145
E28: Additional income at group level | G28: £m 09/10 prices | I28: =I21*I26/100 -> 35.58502472
E30: Forecast licensee totex | G30: £m 09/10 prices | I30: =Input!I61*Input!$I$56+Input!I62*Input!$I$57 -> 2116.741442
E31: Forecast group totex | G31: £m 09/10 prices | I31: =Input!I64*I18 + Input!I65*I19 -> 6927.140321
E32: Percentage of group totex at licensee level | G32: % | I32: =I30 / I31 -> 0.3055721905
B34: Efficiency incentive
C36: Post-TIM overspend (underspend)
C37: Note: Totex overspend (underspend) is identified and subject to the "efficiency incentive rate." Repex is separated at this stage in order to apply the repex capitalisation rate to any overspend (underspend)
D39: Totex excluding repex
E41: Actual totex excluding repex | G41: £m 09/10 prices | AH41: =Totex!AH69 - Totex!AH68 -> 173.460662 | AI41: =Totex!AI69 - Totex!AI68 -> 164.3225214 | AJ41: =Totex!AJ69 - Totex!AJ68 -> 155.3630685 | AK41: =Totex!AK69 - Totex!AK68 -> 0 | AL41: =Totex!AL69 - Totex!AL68 -> 166.3342383 | AM41: =Totex!AM69 - Totex!AM68 -> 159.7179858 | AN41: =Totex!AN69 - Totex!AN68 -> 146.3395793 | AO41: =Totex!AO69 - Totex!AO68 -> 140.945049
E42: Less allowed totex excluding repex | G42: £m 09/10 prices | AH42: =-Totex!AH34 + Totex!AH33 -> -169.0078894 | AI42: =-Totex!AI34 + Totex!AI33 -> -159.9078129 | AJ42: =-Totex!AJ34 + Totex!AJ33 -> -155.1530179 | AK42: =-Totex!AK34 + Totex!AK33 -> -158.6142358 | AL42: =-Totex!AL34 + Totex!AL33 -> -166.3342383 | AM42: =-Totex!AM34 + Totex!AM33 -> -159.7179858 | AN42: =-Totex!AN34 + Totex!AN33 -> -146.3395793 | AO42: =-Totex!AO34 + Totex!AO33 -> -140.945049
E43: Pre-TIM totex excluding repex overspend (underspend) | G43: £m 09/10 prices | AH43: =SUM(AH41:AH42) -> 4.452772552 | AI43: 4.414708533 | AJ43: 0.2100506644 | AK43: -158.6142358 | AL43: 0 | AM43: 0 | AN43: 0 | AO43: 0
E45: Funding Adjustment Rate (often referred to as 'sharing factor') | G45: % | AH45: =(1 - $I$14) -> 0.3696 | AI45: =(1 - $I$14) -> 0.3696 | AJ45: 0.3696 | AK45: 0.3696 | AL45: 0.3696 | AM45: 0.3696 | AN45: 0.3696 | AO45: 0.3696
E47: Post-TIM totex excluding repex overspend (underspend) | G47: £m 09/10 prices | AH47: =AH$45 * AH43 -> 1.645744735 | AI47: =AI$45 * AI43 -> 1.631676274 | AJ47: =AJ$45 * AJ43 -> 0.07763472556 | AK47: -58.62382154 | AL47: 0 | AM47: 0 | AN47: 0 | AO47: 0
D49: Repex
E51: Actual repex | G51: £m 09/10 prices | AH51: =Totex!AH68 -> 80.9802796 | AI51: =Totex!AI68 -> 87.29276861 | AJ51: =Totex!AJ68 -> 91.55845298 | AK51: =Totex!AK68 -> 0 | AL51: =Totex!AL68 -> 109.0199296 | AM51: =Totex!AM68 -> 109.4997571 | AN51: =Totex!AN68 -> 109.9957498 | AO51: =Totex!AO68 -> 110.4632956
E52: Less allowed repex | G52: £m 09/10 prices | AH52: =-Totex!AH33 -> -108.609733 | AI52: =-Totex!AI33 -> -106.6415994 | AJ52: =-Totex!AJ33 -> -107.939161 | AK52: =-Totex!AK33 -> -108.5218419 | AL52: =-Totex!AL33 -> -109.0199296 | AM52: =-Totex!AM33 -> -109.4997571 | AN52: =-Totex!AN33 -> -109.9957498 | AO52: =-Totex!AO33 -> -110.4632956
E53: Pre-TIM repex overspend (underspend) | G53: £m 09/10 prices | AH53: =SUM(AH51:AH52) -> -27.62945345 | AI53: -19.34883082 | AJ53: -16.38070807 | AK53: -108.5218419 | AL53: 0 | AM53: 0 | AN53: 0 | AO53: 0
E55: Funding Adjustment Rate (often referred to as 'sharing factor') | G55: % | AH55: =(1 - $I$14) -> 0.3696 | AI55: =(1 - $I$14) -> 0.3696 | AJ55: 0.3696 | AK55: 0.3696 | AL55: 0.3696 | AM55: 0.3696 | AN55: 0.3696 | AO55: 0.3696
E57: Post-TIM repex overspend (underspend) | G57: £m 09/10 prices | AH57: =AH$55 * AH53 -> -10.21184599 | AI57: =AI$55 * AI53 -> -7.151327872 | AJ57: -6.054309702 | AK57: -40.10967278 | AL57: 0 | AM57: 0 | AN57: 0 | AO57: 0
C59: Post-TIM totex
C60: Note: "Post-TIM overspend (underspend)" is added to the allowed totex value to give the Post-TIM totex allowance to be split into fast and slow money.
D62: Totex excluding repex
E64: Allowed totex excluding repex | G64: £m 09/10 prices | AH64: =-AH42 -> 169.0078894 | AI64: =-AI42 -> 159.9078129 | AJ64: 155.1530179 | AK64: 158.6142358 | AL64: 166.3342383 | AM64: 159.7179858 | AN64: 146.3395793 | AO64: 140.945049
E65: Post-TIM totex excluding repex overspend (underspend) | G65: £m 09/10 prices | AH65: =AH47 -> 1.645744735 | AI65: 1.631676274 | AJ65: 0.07763472556 | AK65: -58.62382154 | AL65: 0 | AM65: 0 | AN65: 0 | AO65: 0
E66: Post-TIM totex excluding repex | G66: £m 09/10 prices | AH66: =SUM(AH64:AH65) -> 170.6536342 | AI66: 161.5394891 | AJ66: 155.2306526 | AK66: 99.99041422 | AL66: 166.3342383 | AM66: 159.7179858 | AN66: 146.3395793 | AO66: 140.945049
D68: Repex
E70: Allowed repex | G70: £m 09/10 prices | AH70: =-AH52 -> 108.609733 | AI70: =-AI52 -> 106.6415994 | AJ70: 107.939161 | AK70: 108.5218419 | AL70: 109.0199296 | AM70: 109.4997571 | AN70: 109.9957498 | AO70: 110.4632956
E71: Post-TIM repex overspend (underspend) | G71: £m 09/10 prices | AH71: =AH57 -> -10.21184599 | AI71: =AI57 -> -7.151327872 | AJ71: -6.054309702 | AK71: -40.10967278 | AL71: 0 | AM71: 0 | AN71: 0 | AO71: 0
E72: Post-TIM repex | G72: £m 09/10 prices | AH72: =SUM(AH70:AH71) -> 98.39788705 | AI72: =SUM(AI70:AI71) -> 99.49027156 | AJ72: 101.8848513 | AK72: 68.41216915 | AL72: 109.0199296 | AM72: 109.4997571 | AN72: 109.9957498 | AO72: 110.4632956
B74: Capitalisation
B75: Note: Post-TIM totex (excluding repex) and repex are allocated into "fast" and "slow" elements based on a pre-set percentage split:
B76: - "fast money " is exported to the "Revenue" sheet where it is included as an element of "recalculated base revenue;" and
B77: - "slow money " is exported to the "Depn" sheet where it is added to RAV. Slow money is recovered over the life of the RAV through regulatory depreciation and return allowances.
C79: Separate capitalisation
D81: Totex excluding repex
E83: Post-TIM totex excluding repex | G83: £m 09/10 prices | AH83: =AH66 -> 170.6536342 | AI83: 161.5394891 | AJ83: 155.2306526 | AK83: 99.99041422 | AL83: 166.3342383 | AM83: 159.7179858 | AN83: 146.3395793 | AO83: 140.945049
E84: Capitalised share of totex (excluding repex) | G84: % | AH84: =Input!AH49 -> 0.2663450186 | AI84: =Input!AI49 -> 0.2663450186 | AJ84: =Input!AJ49 -> 0.2663450186 | AK84: =Input!AK49 -> 0.2663450186 | AL84: =Input!AL49 -> 0.2663450186 | AM84: =Input!AM49 -> 0.2663450186 | AN84: =Input!AN49 -> 0.2663450186 | AO84: =Input!AO49 -> 0.2663450186
E85: Totex excluding repex fast pot expenditure | G85: £m 09/10 prices | AH85: =AH83-AH86 -> 125.2008888 | AI85: 118.5142509 | AJ85: 113.8857415 | AK85: 73.35846549 | AL85: 122.0319425 | AM85: 117.1778959 | AN85: 107.3627614 | AO85: 103.4050373
E86: Totex excluding repex slow pot expenditure | G86: £m 09/10 prices | AH86: =AH83 * AH84 -> 45.45274536 | AI86: =AI83 * AI84 -> 43.02523823 | AJ86: 41.34491104 | AK86: 26.63194873 | AL86: 44.30229578 | AM86: 42.5400899 | AN86: 38.97681797 | AO86: 37.54001168
D88: Repex
E90: Post-TIM repex | G90: £m 09/10 prices | AH90: =AH72 -> 98.39788705 | AI90: =AI72 -> 99.49027156 | AJ90: 101.8848513 | AK90: 68.41216915 | AL90: 109.0199296 | AM90: 109.4997571 | AN90: 109.9957498 | AO90: 110.4632956
E91: Capitalised share of repex | G91: % | AH91: =Input!AH50 -> 0.5 | AI91: =Input!AI50 -> 0.5714285714 | AJ91: =Input!AJ50 -> 0.6428571429 | AK91: =Input!AK50 -> 0.7142857143 | AL91: =Input!AL50 -> 0.7857142857 | AM91: =Input!AM50 -> 0.8571428571 | AN91: =Input!AN50 -> 0.9285714286 | AO91: =Input!AO50 -> 1
E92: Fast pot expenditure | G92: £m 09/10 prices | AH92: =AH90-AH93 -> 49.19894353 | AI92: =AI90-AI93 -> 42.63868781 | AJ92: 36.38744691 | AK92: 19.54633404 | AL92: 23.36141348 | AM92: 15.64282245 | AN92: 7.856839273 | AO92: 0
E93: Slow pot expenditure | G93: £m 09/10 prices | AH93: =AH90 * AH91 -> 49.19894353 | AI93: =AI90 * AI91 -> 56.85158375 | AJ93: 65.49740444 | AK93: 48.86583511 | AL93: 85.65851611 | AM93: 93.85693469 | AN93: 102.1389106 | AO93: 110.4632956
C95: Totex
E97: Fast pot expenditure | G97: £m 09/10 prices | AH97: =AH85 + AH92 -> 174.3998323 | AI97: =AI85 + AI92 -> 161.1529387 | AJ97: 150.2731885 | AK97: 92.90479954 | AL97: 145.393356 | AM97: 132.8207184 | AN97: 115.2196006 | AO97: 103.4050373
E99: Slow pot expenditure | G99: £m 09/10 prices | AH99: =AH86 + AH93 -> 94.65168889 | AI99: =AI86 + AI93 -> 99.87682198 | AJ99: 106.8423155 | AK99: 75.49778384 | AL99: 129.9608119 | AM99: 136.3970246 | AN99: 141.1157285 | AO99: 148.0033073
B101: Additional income
B102: Note: The additional income lump sum is recovered across the price control and is matched to the profile of allowed totex set at final proposals.
E104: Additional income | G104: £m 09/10 prices | I104: =I28*I32 -> 10.87379395
E106: Original allowed totex (set at final proposals) | G106: £m 09/10 prices | AH106: =Input!AH$289 -> 274.9892067 | AI106: =Input!AI$289 -> 262.4841888 | AJ106: =Input!AJ$289 -> 258.4591898 | AK106: =Input!AK$289 -> 259.6160836 | AL106: =Input!AL$289 -> 260.1903872 | AM106: =Input!AM$289 -> 258.3408435 | AN106: =Input!AN$289 -> 254.4557881 | AO106: =Input!AO$289 -> 252.0851987
E107: Total allowed totex in price control (set at final proposals) | G107: £m 09/10 prices | I107: =Input!$I$290 -> 2080.620886
E109: Share of additional income allowed in year | G109: % | AH109: =AH106 / $I107 -> 0.1321668972 | AI109: 0.1261566634 | AJ109: 0.1242221452 | AK109: 0.1247781782 | AL109: 0.1250542032 | AM109: 0.1241652649 | AN109: 0.1222980072 | AO109: 0.1211586409
E111: Additional income | G111: £m 09/10 prices | AH111: =$I104 * AH109 -> 1.437155607 | AI111: =$I104 * AI109 -> 1.371801563 | AJ111: 1.350766011 | AK111: 1.356812199 | AL111: 1.359813639 | AM111: 1.350147507 | AN111: 1.329843331 | AO111: 1.317454096
B113: End of sheet

Sheet DARTs
A1: Direct Allowed Revenue Terms (DARTs)
B2: =UserInterface!G17 -> East
E3: Parameter | G3: Units | I3: Constant | AH3: Annual values
E4: PCFM year ending | I4: =UserInterface!$G$10 -> 2019-03-31 | K4: 1991-03-31 | L4: 1992-03-31 | M4: 1993-03-31 | N4: 1994-03-31 | O4: 1995-03-31 | P4: 1996-03-31 | Q4: 1997-03-31 | R4: 1998-03-31 | S4: 1999-03-31 | T4: 2000-03-31 | U4: 2001-03-31 | V4: 2002-03-31 | W4: 2003-03-31 | X4: 2004-03-31 | Y4: 2005-03-31 | Z4: 2006-03-31 | AA4: 2007-03-31 | AB4: 2008-03-31 | AC4: 2009-03-31 | AD4: 2010-03-31 | AE4: 2011-03-31 | AF4: 2012-03-31 | AG4: 2013-03-31 | AH4: 2014-03-31 | AI4: 2015-03-31 | AJ4: 2016-03-31 | AK4: 2017-03-31 | AL4: 2018-03-31 | AM4: 2019-03-31 | AN4: 2020-03-31 | AO4: 2021-03-31
B6: Direct Allowed Revenue Terms (DARTs)
B7: Note: DARTs are allowances with minimal processing required in the model as they flow directly from input to revenue.
B8: They do however have different indirect impacts on equity issuance and tax. They are grouped here by their treatment type to aid common treatment of DARTs through the rest of the model.
B9: "Post-tax" allowances can be included in the tax calculation but "Pre-tax" allowances cannot.
B10: "Passthrough-style" allowances are treated as an equal revenue and cost. Therefore they have no net cash flow impact. "Revenue" allowances are just set as a revenue amount with any costs relating to them are dealt with elsewhere.
C12: Base Revenue
D14: No impact on net debt or tax
E16: Pension admin and PPF levy | G16: £m 09/10 prices | AH16: =Input!AH165 -> 0.09351164142 | AI16: =Input!AI165 -> 0.09351164142 | AJ16: =Input!AJ165 -> 0.09351164142 | AK16: =Input!AK165 -> 0.09351164142 | AL16: =Input!AL165 -> 0.09351164142 | AM16: =Input!AM165 -> 0.09351164142 | AN16: =Input!AN165 -> 0.09351164142 | AO16: =Input!AO165 -> 0.09351164142
E17: Established pension deficit repair | G17: £m 09/10 prices | AH17: =Input!AH166 -> 4.356157524 | AI17: =Input!AI166 -> 4.356157524 | AJ17: =Input!AJ166 -> 3.486615572 | AK17: =Input!AK166 -> 3.486615572 | AL17: =Input!AL166 -> 3.486615572 | AM17: =Input!AM166 -> 3.486615572 | AN17: =Input!AN166 -> 3.486615572 | AO17: =Input!AO166 -> 3.486615572
E18: Base Revenue DARTs with no impact on net debt or tax | G18: £m 09/10 prices | AH18: =SUM(AH16:AH17) -> 4.449669166 | AI18: 4.449669166 | AJ18: 3.580127214 | AK18: 3.580127214 | AL18: 3.580127214 | AM18: 3.580127214 | AN18: 3.580127214 | AO18: 3.580127214
D20: Impact net debt and tax
E22: Pension true-up from previous price controls | G22: £m 09/10 prices | AH22: =Input!AH168 -> 0.2229442912 | AI22: =Input!AI168 -> 0.2321139899 | AJ22: =Input!AJ168 -> 0.2414043523 | AK22: =Input!AK168 -> 0.2507998097 | AL22: =Input!AL168 -> 0.2603001065 | AM22: =Input!AM168 -> 0.2701602746 | AN22: =Input!AN168 -> 0.2803939458 | AO22: =Input!AO168 -> 0.2910152684
E23: Base Revenue DARTs impacting both net debt and tax | G23: £m 09/10 prices | AH23: =SUM(AH22:AH22) -> 0.2229442912 | AI23: 0.2321139899 | AJ23: 0.2414043523 | AK23: 0.2507998097 | AL23: 0.2603001065 | AM23: 0.2701602746 | AN23: 0.2803939458 | AO23: 0.2910152684
D25: Impact net debt, no impact on tax
E27: Revenue adjustment from previous controls | G27: £m 09/10 prices | AH27: =Input!AH172 -> -0.4443432058 | AI27: =Input!AI172 -> -0.4626190419 | AJ27: =Input!AJ172 -> -0.4811353691 | AK27: =Input!AK172 -> -0.4998611576 | AL27: =Input!AL172 -> -0.5187958983 | AM27: =Input!AM172 -> -0.5384478869 | AN27: =Input!AN172 -> -0.5588442929 | AO27: =Input!AO172 -> -0.5800133147
E28: Base Revenue DARTs impacting net debt but not tax | G28: £m 09/10 prices | AH28: =SUM(AH27) -> -0.4443432058 | AI28: =SUM(AI27) -> -0.4626190419 | AJ28: -0.4811353691 | AK28: -0.4998611576 | AL28: -0.5187958983 | AM28: -0.5384478869 | AN28: -0.5588442929 | AO28: -0.5800133147
C30: Directly-charged
D32: No impact on debt or tax
E34: Excluded services net position | G34: £m 09/10 prices | AH34: =Input!AH176 -> 0 | AI34: =Input!AI176 -> 0 | AJ34: =Input!AJ176 -> 0 | AK34: =Input!AK176 -> 0 | AL34: =Input!AL176 -> 0 | AM34: =Input!AM176 -> 0 | AN34: =Input!AN176 -> 0 | AO34: =Input!AO176 -> 0
E35: Directly-charged post-tax passthrough-style allowance | G35: £m 09/10 prices | AH35: =SUM(AH34) -> 0 | AI35: =SUM(AI34) -> 0 | AJ35: 0 | AK35: 0 | AL35: 0 | AM35: 0 | AN35: 0 | AO35: 0
C37: DART groups
C38: Note: The following subtotals are exported to the rest of the model allowing common treatment of DARTs after this stage.
C39: Excluded services are directly charged to users. It is treated here as a negative Base Revenue DART and positive Non Base Revenue DART. It is tax and cash flow neutral.
C40: "Net impact of DARTs on core net debt" removes the passthrough-style allowances from the cash flow, netting off their impact after being added to revenue.
C41: "Net DART impact on core tax calculation" removes passthrough and pre-tax allowances from the tax base such that only post-tax revenue allowances have an impact.
E43: Base revenue DARTs | G43: £m 09/10 prices | AH43: =AH18 + AH23 + AH28 - AH35 -> 4.228270251 | AI43: 4.219164114 | AJ43: 3.340396197 | AK43: 3.331065866 | AL43: 3.321631422 | AM43: 3.311839601 | AN43: 3.301676867 | AO43: 3.291129167
E45: Non Base Revenue DARTs | G45: £m 09/10 prices | AH45: =AH35 -> 0 | AI45: =AI35 -> 0 | AJ45: 0 | AK45: 0 | AL45: 0 | AM45: 0 | AN45: 0 | AO45: 0
E47: Net impact of DARTs on core net debt | G47: £m 09/10 prices | AH47: =- AH18 + AH35 -> -4.449669166 | AI47: -4.449669166 | AJ47: -3.580127214 | AK47: -3.580127214 | AL47: -3.580127214 | AM47: -3.580127214 | AN47: -3.580127214 | AO47: -3.580127214
E49: Net DART impact on core tax calculation | G49: £m 09/10 prices | AH49: =- AH18 - AH28 + AH35 -> -4.00532596 | AI49: -3.987050124 | AJ49: -3.098991845 | AK49: -3.080266056 | AL49: -3.061331315 | AM49: -3.041679327 | AN49: -3.021282921 | AO49: -3.000113899
B51: End of sheet

Sheet Depn
A1: Regulatory Depreciation
B2: =UserInterface!G17 -> East
E3: Parameter | G3: Units | I3: Constant | AH3: Annual values
E4: PCFM year ending | I4: =UserInterface!$G$10 -> 2019-03-31 | K4: 1991-03-31 | L4: 1992-03-31 | M4: 1993-03-31 | N4: 1994-03-31 | O4: 1995-03-31 | P4: 1996-03-31 | Q4: 1997-03-31 | R4: 1998-03-31 | S4: 1999-03-31 | T4: 2000-03-31 | U4: 2001-03-31 | V4: 2002-03-31 | W4: 2003-03-31 | X4: 2004-03-31 | Y4: 2005-03-31 | Z4: 2006-03-31 | AA4: 2007-03-31 | AB4: 2008-03-31 | AC4: 2009-03-31 | AD4: 2010-03-31 | AE4: 2011-03-31 | AF4: 2012-03-31 | AG4: 2013-03-31 | AH4: 2014-03-31 | AI4: 2015-03-31 | AJ4: 2016-03-31 | AK4: 2017-03-31 | AL4: 2018-03-31 | AM4: 2019-03-31 | AN4: 2020-03-31 | AO4: 2021-03-31
B6: Regulatory depreciation
C8: Net RAV additions (after disposals)
C9: Note: Additions to RAV are combined before feeding into the depreciation calculations. Disposals are treated as negative additions. Pre-RIIO values are used to build up the post-vesting RAV from vesting.
E11: Slow money | G11: £m 09/10 prices | AH11: =TIM!AH99 -> 94.65168889 | AI11: =TIM!AI99 -> 99.87682198 | AJ11: =TIM!AJ99 -> 106.8423155 | AK11: =TIM!AK99 -> 75.49778384 | AL11: =TIM!AL99 -> 129.9608119 | AM11: =TIM!AM99 -> 136.3970246 | AN11: =TIM!AN99 -> 141.1157285 | AO11: =TIM!AO99 -> 148.0033073
E12: Net adjustments | G12: £m 09/10 prices | AH12: =SUM(Input!AH196:AH198) -> 8.433695876 | AI12: =SUM(Input!AI196:AI198) -> 0 | AJ12: =SUM(Input!AJ196:AJ198) -> -0.1905437686 | AK12: =SUM(Input!AK196:AK198) -> -0.3434279144 | AL12: =SUM(Input!AL196:AL198) -> -0.08843344755 | AM12: =SUM(Input!AM196:AM198) -> -1.3 | AN12: =SUM(Input!AN196:AN198) -> -4.4 | AO12: =SUM(Input!AO196:AO198) -> -1.7
E13: Pre-RIIO net RAV additions (after disposals) | G13: £m 09/10 prices | W13: =Input!W195 -> 81.90091089 | X13: =Input!X195 -> 58.77200427 | Y13: =Input!Y195 -> 60.11281045 | Z13: =Input!Z195 -> 60.14993076 | AA13: =Input!AA195 -> 56.2180614 | AB13: =Input!AB195 -> 129.3201876 | AC13: =Input!AC195 -> 107.4805904 | AD13: =Input!AD195 -> 122.5166077 | AE13: =Input!AE195 -> 157.9847402 | AF13: =Input!AF195 -> 152.2590701 | AG13: =Input!AG195 -> 110.9381496
E14: Net RAV additions (after disposals) | G14: £m 09/10 prices | J14: > | W14: =SUM(W11:W13) -> 81.90091089 | X14: 58.77200427 | Y14: 60.11281045 | Z14: 60.14993076 | AA14: 56.2180614 | AB14: 129.3201876 | AC14: 107.4805904 | AD14: 122.5166077 | AE14: 157.9847402 | AF14: 152.2590701 | AG14: 110.9381496 | AH14: 103.0853848 | AI14: 99.87682198 | AJ14: 106.6517717 | AK14: 75.15435593 | AL14: 129.8723784 | AM14: 135.0970246 | AN14: 136.7157285 | AO14: 146.3033073
C16: Net depreciation additions (after disposals)
C17: Note:
E19: Pre-RIIO transfers to depreciation | G19: £m 09/10 prices | J19: > | V19: =Input!V199 -> 0 | W19: =Input!W199 -> 0 | X19: =Input!X199 -> 0 | Y19: =Input!Y199 -> 0 | Z19: =Input!Z199 -> 0 | AA19: =Input!AA199 -> 0 | AB19: =Input!AB199 -> 2.013542336 | AC19: =Input!AC199 -> 2.073492388 | AD19: =Input!AD199 -> 1.72124005 | AE19: =Input!AE199 -> 4.349823997 | AF19: =Input!AF199 -> 3.930472265 | AG19: =Input!AG199 -> 0
C21: Pre-vesting depreciation
C22: Note: The following depreciation factor is used to depreciate the pre-vesting balance on the "Return&RAV" sheet.
E24: Pre-vesting asset life | G24: years | I24: =Input!I185 -> 56
E25: Sum of digits | G25: integer | I25: =I24 * (1 + I24) / 2 -> 1596
E26: Years of pre-vesting depreciation remaining | G26: years | AH26: =Input!AH187 -> 45 | AI26: =Input!AI187 -> 44 | AJ26: =Input!AJ187 -> 43 | AK26: =Input!AK187 -> 42 | AL26: =Input!AL187 -> 41 | AM26: =Input!AM187 -> 40 | AN26: =Input!AN187 -> 39 | AO26: =Input!AO187 -> 38
E28: Sum-of-digits pre-vesting depreciation factor | G28: % | AH28: =AH26 / $I25 -> 0.02819548872 | AI28: =AI26 / $I25 -> 0.02756892231 | AJ28: 0.02694235589 | AK28: 0.02631578947 | AL28: 0.02568922306 | AM28: 0.02506265664 | AN28: 0.02443609023 | AO28: 0.02380952381
C30: Sum-of-digit post-vesting depreciation
C31: Note: Sum-of-digit depreciation calculations provide the main allowed depreciation after the start of RIIO but are also used to establish the "RAV differential" generated before the start of the price control.
D33: Depreciation parameters
E35: Post-vesting asset life | G35: years | I35: =Input!$I$192 -> 45
E36: Post-vesting asset life sum of digits | G36: integer | I36: =I35 * (I35 + 1) / 2 -> 1035
E37: Sum-of-digit post-vesting depreciation applied | G37: text | J37: > | X37: =X$4 >= $I98 -> FALSE | Y37: FALSE | Z37: FALSE | AA37: FALSE | AB37: FALSE | AC37: FALSE | AD37: FALSE | AE37: FALSE | AF37: FALSE | AG37: FALSE | AH37: TRUE | AI37: TRUE | AJ37: TRUE | AK37: TRUE | AL37: TRUE | AM37: TRUE | AN37: TRUE | AO37: TRUE
D39: Depreciation schedule
E41: Sum-of-digit depreciation of additions from year ending | I41: Net additions
E42: 2003-03-31 | G42: £m 09/10 prices | I42: =I73 -> 81.90091089 | J42: > | X42: =$I42 * ($I$35 - COUNT($W42:W42)) / $I$36 -> 3.560909169 | Y42: =$I42 * ($I$35 - COUNT($W42:X42)) / $I$36 -> 3.481777854 | Z42: =$I42 * ($I$35 - COUNT($W42:Y42)) / $I$36 -> 3.402646539 | AA42: =$I42 * ($I$35 - COUNT($W42:Z42)) / $I$36 -> 3.323515224 | AB42: =$I42 * ($I$35 - COUNT($W42:AA42)) / $I$36 -> 3.24438391 | AC42: =$I42 * ($I$35 - COUNT($W42:AB42)) / $I$36 -> 3.165252595 | AD42: =$I42 * ($I$35 - COUNT($W42:AC42)) / $I$36 -> 3.08612128 | AE42: =$I42 * ($I$35 - COUNT($W42:AD42)) / $I$36 -> 3.006989965 | AF42: =$I42 * ($I$35 - COUNT($W42:AE42)) / $I$36 -> 2.92785865 | AG42: =$I42 * ($I$35 - COUNT($W42:AF42)) / $I$36 -> 2.848727335 | AH42: =$I42 * ($I$35 - COUNT($W42:AG42)) / $I$36 -> 2.76959602 | AI42: =$I42 * ($I$35 - COUNT($W42:AH42)) / $I$36 -> 2.690464706 | AJ42: =$I42 * ($I$35 - COUNT($W42:AI42)) / $I$36 -> 2.611333391 | AK42: =$I42 * ($I$35 - COUNT($W42:AJ42)) / $I$36 -> 2.532202076 | AL42: =$I42 * ($I$35 - COUNT($W42:AK42)) / $I$36 -> 2.453070761 | AM42: =$I42 * ($I$35 - COUNT($W42:AL42)) / $I$36 -> 2.373939446 | AN42: =$I42 * ($I$35 - COUNT($W42:AM42)) / $I$36 -> 2.294808131 | AO42: =$I42 * ($I$35 - COUNT($W42:AN42)) / $I$36 -> 2.215676816
E43: 2004-03-31 | G43: £m 09/10 prices | I43: =I74 -> 58.77200427 | J43: > | Y43: =$I43 * ($I$35 - COUNT($W43:X43)) / $I$36 -> 2.555304533 | Z43: =$I43 * ($I$35 - COUNT($W43:Y43)) / $I$36 -> 2.498519988 | AA43: =$I43 * ($I$35 - COUNT($W43:Z43)) / $I$36 -> 2.441735443 | AB43: =$I43 * ($I$35 - COUNT($W43:AA43)) / $I$36 -> 2.384950898 | AC43: =$I43 * ($I$35 - COUNT($W43:AB43)) / $I$36 -> 2.328166353 | AD43: =$I43 * ($I$35 - COUNT($W43:AC43)) / $I$36 -> 2.271381807 | AE43: =$I43 * ($I$35 - COUNT($W43:AD43)) / $I$36 -> 2.214597262 | AF43: =$I43 * ($I$35 - COUNT($W43:AE43)) / $I$36 -> 2.157812717 | AG43: =$I43 * ($I$35 - COUNT($W43:AF43)) / $I$36 -> 2.101028172 | AH43: =$I43 * ($I$35 - COUNT($W43:AG43)) / $I$36 -> 2.044243627 | AI43: =$I43 * ($I$35 - COUNT($W43:AH43)) / $I$36 -> 1.987459081 | AJ43: =$I43 * ($I$35 - COUNT($W43:AI43)) / $I$36 -> 1.930674536 | AK43: =$I43 * ($I$35 - COUNT($W43:AJ43)) / $I$36 -> 1.873889991 | AL43: =$I43 * ($I$35 - COUNT($W43:AK43)) / $I$36 -> 1.817105446 | AM43: =$I43 * ($I$35 - COUNT($W43:AL43)) / $I$36 -> 1.760320901 | AN43: =$I43 * ($I$35 - COUNT($W43:AM43)) / $I$36 -> 1.703536356 | AO43: =$I43 * ($I$35 - COUNT($W43:AN43)) / $I$36 -> 1.64675181
E44: 2005-03-31 | G44: £m 09/10 prices | I44: 60.11281045 | J44: > | Z44: =$I44 * ($I$35 - COUNT($W44:Y44)) / $I$36 -> 2.613600454 | AA44: =$I44 * ($I$35 - COUNT($W44:Z44)) / $I$36 -> 2.555520444 | AB44: =$I44 * ($I$35 - COUNT($W44:AA44)) / $I$36 -> 2.497440434 | AC44: =$I44 * ($I$35 - COUNT($W44:AB44)) / $I$36 -> 2.439360424 | AD44: =$I44 * ($I$35 - COUNT($W44:AC44)) / $I$36 -> 2.381280414 | AE44: =$I44 * ($I$35 - COUNT($W44:AD44)) / $I$36 -> 2.323200404 | AF44: =$I44 * ($I$35 - COUNT($W44:AE44)) / $I$36 -> 2.265120394 | AG44: =$I44 * ($I$35 - COUNT($W44:AF44)) / $I$36 -> 2.207040384 | AH44: =$I44 * ($I$35 - COUNT($W44:AG44)) / $I$36 -> 2.148960374 | AI44: =$I44 * ($I$35 - COUNT($W44:AH44)) / $I$36 -> 2.090880363 | AJ44: =$I44 * ($I$35 - COUNT($W44:AI44)) / $I$36 -> 2.032800353 | AK44: =$I44 * ($I$35 - COUNT($W44:AJ44)) / $I$36 -> 1.974720343 | AL44: =$I44 * ($I$35 - COUNT($W44:AK44)) / $I$36 -> 1.916640333 | AM44: =$I44 * ($I$35 - COUNT($W44:AL44)) / $I$36 -> 1.858560323 | AN44: =$I44 * ($I$35 - COUNT($W44:AM44)) / $I$36 -> 1.800480313 | AO44: =$I44 * ($I$35 - COUNT($W44:AN44)) / $I$36 -> 1.742400303
E45: 2006-03-31 | G45: £m 09/10 prices | I45: 60.14993076 | J45: > | AA45: =$I45 * ($I$35 - COUNT($W45:Z45)) / $I$36 -> 2.615214381 | AB45: =$I45 * ($I$35 - COUNT($W45:AA45)) / $I$36 -> 2.557098506 | AC45: =$I45 * ($I$35 - COUNT($W45:AB45)) / $I$36 -> 2.498982631 | AD45: =$I45 * ($I$35 - COUNT($W45:AC45)) / $I$36 -> 2.440866756 | AE45: =$I45 * ($I$35 - COUNT($W45:AD45)) / $I$36 -> 2.382750881 | AF45: =$I45 * ($I$35 - COUNT($W45:AE45)) / $I$36 -> 2.324635005 | AG45: =$I45 * ($I$35 - COUNT($W45:AF45)) / $I$36 -> 2.26651913 | AH45: =$I45 * ($I$35 - COUNT($W45:AG45)) / $I$36 -> 2.208403255 | AI45: =$I45 * ($I$35 - COUNT($W45:AH45)) / $I$36 -> 2.15028738 | AJ45: =$I45 * ($I$35 - COUNT($W45:AI45)) / $I$36 -> 2.092171505 | AK45: =$I45 * ($I$35 - COUNT($W45:AJ45)) / $I$36 -> 2.03405563 | AL45: =$I45 * ($I$35 - COUNT($W45:AK45)) / $I$36 -> 1.975939755 | AM45: =$I45 * ($I$35 - COUNT($W45:AL45)) / $I$36 -> 1.917823879 | AN45: =$I45 * ($I$35 - COUNT($W45:AM45)) / $I$36 -> 1.859708004 | AO45: =$I45 * ($I$35 - COUNT($W45:AN45)) / $I$36 -> 1.801592129
E46: 2007-03-31 | G46: £m 09/10 prices | I46: 56.2180614 | J46: > | AB46: =$I46 * ($I$35 - COUNT($W46:AA46)) / $I$36 -> 2.444263539 | AC46: =$I46 * ($I$35 - COUNT($W46:AB46)) / $I$36 -> 2.389946572 | AD46: =$I46 * ($I$35 - COUNT($W46:AC46)) / $I$36 -> 2.335629604 | AE46: =$I46 * ($I$35 - COUNT($W46:AD46)) / $I$36 -> 2.281312636 | AF46: =$I46 * ($I$35 - COUNT($W46:AE46)) / $I$36 -> 2.226995669 | AG46: =$I46 * ($I$35 - COUNT($W46:AF46)) / $I$36 -> 2.172678701 | AH46: =$I46 * ($I$35 - COUNT($W46:AG46)) / $I$36 -> 2.118361734 | AI46: =$I46 * ($I$35 - COUNT($W46:AH46)) / $I$36 -> 2.064044766 | AJ46: =$I46 * ($I$35 - COUNT($W46:AI46)) / $I$36 -> 2.009727799 | AK46: =$I46 * ($I$35 - COUNT($W46:AJ46)) / $I$36 -> 1.955410831 | AL46: =$I46 * ($I$35 - COUNT($W46:AK46)) / $I$36 -> 1.901093864 | AM46: =$I46 * ($I$35 - COUNT($W46:AL46)) / $I$36 -> 1.846776896 | AN46: =$I46 * ($I$35 - COUNT($W46:AM46)) / $I$36 -> 1.792459929 | AO46: =$I46 * ($I$35 - COUNT($W46:AN46)) / $I$36 -> 1.738142961
E47: 2008-03-31 | G47: £m 09/10 prices | I47: 129.3201876 | J47: > | AC47: =$I47 * ($I$35 - COUNT($W47:AB47)) / $I$36 -> 5.622616851 | AD47: =$I47 * ($I$35 - COUNT($W47:AC47)) / $I$36 -> 5.49766981 | AE47: =$I47 * ($I$35 - COUNT($W47:AD47)) / $I$36 -> 5.372722769 | AF47: =$I47 * ($I$35 - COUNT($W47:AE47)) / $I$36 -> 5.247775727 | AG47: =$I47 * ($I$35 - COUNT($W47:AF47)) / $I$36 -> 5.122828686 | AH47: =$I47 * ($I$35 - COUNT($W47:AG47)) / $I$36 -> 4.997881645 | AI47: =$I47 * ($I$35 - COUNT($W47:AH47)) / $I$36 -> 4.872934604 | AJ47: =$I47 * ($I$35 - COUNT($W47:AI47)) / $I$36 -> 4.747987563 | AK47: =$I47 * ($I$35 - COUNT($W47:AJ47)) / $I$36 -> 4.623040522 | AL47: =$I47 * ($I$35 - COUNT($W47:AK47)) / $I$36 -> 4.498093481 | AM47: =$I47 * ($I$35 - COUNT($W47:AL47)) / $I$36 -> 4.37314644 | AN47: =$I47 * ($I$35 - COUNT($W47:AM47)) / $I$36 -> 4.248199398 | AO47: =$I47 * ($I$35 - COUNT($W47:AN47)) / $I$36 -> 4.123252357
E48: 2009-03-31 | G48: £m 09/10 prices | I48: 107.4805904 | J48: > | AD48: =$I48 * ($I$35 - COUNT($W48:AC48)) / $I$36 -> 4.673069149 | AE48: =$I48 * ($I$35 - COUNT($W48:AD48)) / $I$36 -> 4.569223168 | AF48: =$I48 * ($I$35 - COUNT($W48:AE48)) / $I$36 -> 4.465377187 | AG48: =$I48 * ($I$35 - COUNT($W48:AF48)) / $I$36 -> 4.361531206 | AH48: =$I48 * ($I$35 - COUNT($W48:AG48)) / $I$36 -> 4.257685225 | AI48: =$I48 * ($I$35 - COUNT($W48:AH48)) / $I$36 -> 4.153839244 | AJ48: =$I48 * ($I$35 - COUNT($W48:AI48)) / $I$36 -> 4.049993263 | AK48: =$I48 * ($I$35 - COUNT($W48:AJ48)) / $I$36 -> 3.946147282 | AL48: =$I48 * ($I$35 - COUNT($W48:AK48)) / $I$36 -> 3.842301301 | AM48: =$I48 * ($I$35 - COUNT($W48:AL48)) / $I$36 -> 3.738455319 | AN48: =$I48 * ($I$35 - COUNT($W48:AM48)) / $I$36 -> 3.634609338 | AO48: =$I48 * ($I$35 - COUNT($W48:AN48)) / $I$36 -> 3.530763357
E49: 2010-03-31 | G49: £m 09/10 prices | I49: 122.5166077 | J49: > | AE49: =$I49 * ($I$35 - COUNT($W49:AD49)) / $I$36 -> 5.326809029 | AF49: =$I49 * ($I$35 - COUNT($W49:AE49)) / $I$36 -> 5.208435495 | AG49: =$I49 * ($I$35 - COUNT($W49:AF49)) / $I$36 -> 5.090061961 | AH49: =$I49 * ($I$35 - COUNT($W49:AG49)) / $I$36 -> 4.971688427 | AI49: =$I49 * ($I$35 - COUNT($W49:AH49)) / $I$36 -> 4.853314893 | AJ49: =$I49 * ($I$35 - COUNT($W49:AI49)) / $I$36 -> 4.734941359 | AK49: =$I49 * ($I$35 - COUNT($W49:AJ49)) / $I$36 -> 4.616567825 | AL49: =$I49 * ($I$35 - COUNT($W49:AK49)) / $I$36 -> 4.498194292 | AM49: =$I49 * ($I$35 - COUNT($W49:AL49)) / $I$36 -> 4.379820758 | AN49: =$I49 * ($I$35 - COUNT($W49:AM49)) / $I$36 -> 4.261447224 | AO49: =$I49 * ($I$35 - COUNT($W49:AN49)) / $I$36 -> 4.14307369
E50: 2011-03-31 | G50: £m 09/10 prices | I50: 157.9847402 | J50: > | AF50: =$I50 * ($I$35 - COUNT($W50:AE50)) / $I$36 -> 6.868901747 | AG50: =$I50 * ($I$35 - COUNT($W50:AF50)) / $I$36 -> 6.716259486 | AH50: =$I50 * ($I$35 - COUNT($W50:AG50)) / $I$36 -> 6.563617225 | AI50: =$I50 * ($I$35 - COUNT($W50:AH50)) / $I$36 -> 6.410974964 | AJ50: =$I50 * ($I$35 - COUNT($W50:AI50)) / $I$36 -> 6.258332703 | AK50: =$I50 * ($I$35 - COUNT($W50:AJ50)) / $I$36 -> 6.105690442 | AL50: =$I50 * ($I$35 - COUNT($W50:AK50)) / $I$36 -> 5.953048181 | AM50: =$I50 * ($I$35 - COUNT($W50:AL50)) / $I$36 -> 5.80040592 | AN50: =$I50 * ($I$35 - COUNT($W50:AM50)) / $I$36 -> 5.647763659 | AO50: =$I50 * ($I$35 - COUNT($W50:AN50)) / $I$36 -> 5.495121398
E51: 2012-03-31 | G51: £m 09/10 prices | I51: 152.2590701 | J51: > | AG51: =$I51 * ($I$35 - COUNT($W51:AF51)) / $I$36 -> 6.619959571 | AH51: =$I51 * ($I$35 - COUNT($W51:AG51)) / $I$36 -> 6.472849358 | AI51: =$I51 * ($I$35 - COUNT($W51:AH51)) / $I$36 -> 6.325739146 | AJ51: =$I51 * ($I$35 - COUNT($W51:AI51)) / $I$36 -> 6.178628933 | AK51: =$I51 * ($I$35 - COUNT($W51:AJ51)) / $I$36 -> 6.03151872 | AL51: =$I51 * ($I$35 - COUNT($W51:AK51)) / $I$36 -> 5.884408507 | AM51: =$I51 * ($I$35 - COUNT($W51:AL51)) / $I$36 -> 5.737298295 | AN51: =$I51 * ($I$35 - COUNT($W51:AM51)) / $I$36 -> 5.590188082 | AO51: =$I51 * ($I$35 - COUNT($W51:AN51)) / $I$36 -> 5.443077869
E52: 2013-03-31 | G52: £m 09/10 prices | I52: 110.9381496 | AH52: =$I52 * ($I$35 - COUNT($W52:AG52)) / $I$36 -> 4.823397809 | AI52: =$I52 * ($I$35 - COUNT($W52:AH52)) / $I$36 -> 4.716211191 | AJ52: =$I52 * ($I$35 - COUNT($W52:AI52)) / $I$36 -> 4.609024573 | AK52: =$I52 * ($I$35 - COUNT($W52:AJ52)) / $I$36 -> 4.501837955 | AL52: =$I52 * ($I$35 - COUNT($W52:AK52)) / $I$36 -> 4.394651337 | AM52: =$I52 * ($I$35 - COUNT($W52:AL52)) / $I$36 -> 4.287464719 | AN52: =$I52 * ($I$35 - COUNT($W52:AM52)) / $I$36 -> 4.180278101 | AO52: =$I52 * ($I$35 - COUNT($W52:AN52)) / $I$36 -> 4.073091483
E53: 2014-03-31 | G53: £m 09/10 prices | I53: 103.0853848 | AI53: =$I53 * ($I$35 - COUNT($W53:AH53)) / $I$36 -> 4.481973251 | AJ53: =$I53 * ($I$35 - COUNT($W53:AI53)) / $I$36 -> 4.382373845 | AK53: =$I53 * ($I$35 - COUNT($W53:AJ53)) / $I$36 -> 4.282774439 | AL53: =$I53 * ($I$35 - COUNT($W53:AK53)) / $I$36 -> 4.183175034 | AM53: =$I53 * ($I$35 - COUNT($W53:AL53)) / $I$36 -> 4.083575628 | AN53: =$I53 * ($I$35 - COUNT($W53:AM53)) / $I$36 -> 3.983976223 | AO53: =$I53 * ($I$35 - COUNT($W53:AN53)) / $I$36 -> 3.884376817
E54: 2015-03-31 | G54: £m 09/10 prices | I54: 99.87682198 | AJ54: =$I54 * ($I$35 - COUNT($W54:AI54)) / $I$36 -> 4.342470521 | AK54: =$I54 * ($I$35 - COUNT($W54:AJ54)) / $I$36 -> 4.245971176 | AL54: =$I54 * ($I$35 - COUNT($W54:AK54)) / $I$36 -> 4.149471831 | AM54: =$I54 * ($I$35 - COUNT($W54:AL54)) / $I$36 -> 4.052972486 | AN54: =$I54 * ($I$35 - COUNT($W54:AM54)) / $I$36 -> 3.956473141 | AO54: =$I54 * ($I$35 - COUNT($W54:AN54)) / $I$36 -> 3.859973796
E55: 2016-03-31 | G55: £m 09/10 prices | I55: 106.6517717 | AK55: =$I55 * ($I$35 - COUNT($W55:AJ55)) / $I$36 -> 4.637033553 | AL55: =$I55 * ($I$35 - COUNT($W55:AK55)) / $I$36 -> 4.533988363 | AM55: =$I55 * ($I$35 - COUNT($W55:AL55)) / $I$36 -> 4.430943173 | AN55: =$I55 * ($I$35 - COUNT($W55:AM55)) / $I$36 -> 4.327897983 | AO55: =$I55 * ($I$35 - COUNT($W55:AN55)) / $I$36 -> 4.224852792
E56: 2017-03-31 | G56: £m 09/10 prices | I56: 75.15435593 | AL56: =$I56 * ($I$35 - COUNT($W56:AK56)) / $I$36 -> 3.267580692 | AM56: =$I56 * ($I$35 - COUNT($W56:AL56)) / $I$36 -> 3.194967788 | AN56: =$I56 * ($I$35 - COUNT($W56:AM56)) / $I$36 -> 3.122354884 | AO56: =$I56 * ($I$35 - COUNT($W56:AN56)) / $I$36 -> 3.04974198
E57: 2018-03-31 | G57: £m 09/10 prices | I57: 129.8723784 | AM57: =$I57 * ($I$35 - COUNT($W57:AL57)) / $I$36 -> 5.64662515 | AN57: =$I57 * ($I$35 - COUNT($W57:AM57)) / $I$36 -> 5.521144591 | AO57: =$I57 * ($I$35 - COUNT($W57:AN57)) / $I$36 -> 5.395664032
E58: 2019-03-31 | G58: £m 09/10 prices | I58: 135.0970246 | AN58: =$I58 * ($I$35 - COUNT($W58:AM58)) / $I$36 -> 5.873783678 | AO58: =$I58 * ($I$35 - COUNT($W58:AN58)) / $I$36 -> 5.743255152
E59: 2020-03-31 | G59: £m 09/10 prices | I59: 136.7157285 | AO59: =$I59 * ($I$35 - COUNT($W59:AN59)) / $I$36 -> 5.94416211
E60: 2021-03-31 | G60: £m 09/10 prices | I60: 146.3033073
C62: Straight line post-vesting depreciation
C63: Note: Straight line calculations are used to establish the "RAV differential" based on the accumulated difference between it and if sum-of-digit depreciation was in place before RIIO.
D65: Depreciation parameters
E67: Post-vesting asset life | G67: years | I67: =I35 -> 45
E68: Straight line depreciation applied | G68: text | J68: > | X68: =X$4<$I98 -> TRUE | Y68: =Y4<$I98 -> TRUE | Z68: TRUE | AA68: TRUE | AB68: TRUE | AC68: TRUE | AD68: TRUE | AE68: TRUE | AF68: TRUE | AG68: TRUE | AH68: FALSE | AI68: FALSE | AJ68: FALSE | AK68: FALSE | AL68: FALSE | AM68: FALSE | AN68: FALSE | AO68: FALSE
D70: Depreciation schedule
E72: Straight line depreciation of additions from year ending | I72: Net additions
E73: 2003-03-31 | G73: £m 09/10 prices | I73: =TRANSPOSE(W14:AO14) -> 81.90091089 | J73: > | X73: =$I73 / $I$67 -> 1.820020242 | Y73: =IF($I73 >0, MIN(X73,$I73-SUM($W73:X73)), MAX(X73,$I73-SUM($W73:X73))) -> 1.820020242 | Z73: =IF($I73 >0, MIN(Y73,$I73-SUM($W73:Y73)), MAX(Y73,$I73-SUM($W73:Y73))) -> 1.820020242 | AA73: =IF($I73 >0, MIN(Z73,$I73-SUM($W73:Z73)), MAX(Z73,$I73-SUM($W73:Z73))) -> 1.820020242 | AB73: =IF($I73 >0, MIN(AA73,$I73-SUM($W73:AA73)), MAX(AA73,$I73-SUM($W73:AA73))) -> 1.820020242 | AC73: =IF($I73 >0, MIN(AB73,$I73-SUM($W73:AB73)), MAX(AB73,$I73-SUM($W73:AB73))) -> 1.820020242 | AD73: =IF($I73 >0, MIN(AC73,$I73-SUM($W73:AC73)), MAX(AC73,$I73-SUM($W73:AC73))) -> 1.820020242 | AE73: =IF($I73 >0, MIN(AD73,$I73-SUM($W73:AD73)), MAX(AD73,$I73-SUM($W73:AD73))) -> 1.820020242 | AF73: =IF($I73 >0, MIN(AE73,$I73-SUM($W73:AE73)), MAX(AE73,$I73-SUM($W73:AE73))) -> 1.820020242 | AG73: =IF($I73 >0, MIN(AF73,$I73-SUM($W73:AF73)), MAX(AF73,$I73-SUM($W73:AF73))) -> 1.820020242 | AH73: =IF($I73 >0, MIN(AG73,$I73-SUM($W73:AG73)), MAX(AG73,$I73-SUM($W73:AG73))) -> 1.820020242 | AI73: =IF($I73 >0, MIN(AH73,$I73-SUM($W73:AH73)), MAX(AH73,$I73-SUM($W73:AH73))) -> 1.820020242 | AJ73: =IF($I73 >0, MIN(AI73,$I73-SUM($W73:AI73)), MAX(AI73,$I73-SUM($W73:AI73))) -> 1.820020242 | AK73: =IF($I73 >0, MIN(AJ73,$I73-SUM($W73:AJ73)), MAX(AJ73,$I73-SUM($W73:AJ73))) -> 1.820020242 | AL73: =IF($I73 >0, MIN(AK73,$I73-SUM($W73:AK73)), MAX(AK73,$I73-SUM($W73:AK73))) -> 1.820020242 | AM73: =IF($I73 >0, MIN(AL73,$I73-SUM($W73:AL73)), MAX(AL73,$I73-SUM($W73:AL73))) -> 1.820020242 | AN73: =IF($I73 >0, MIN(AM73,$I73-SUM($W73:AM73)), MAX(AM73,$I73-SUM($W73:AM73))) -> 1.820020242 | AO73: =IF($I73 >0, MIN(AN73,$I73-SUM($W73:AN73)), MAX(AN73,$I73-SUM($W73:AN73))) -> 1.820020242
E74: 2004-03-31 | G74: £m 09/10 prices | I74: 58.77200427 | J74: > | Y74: =$I74 / $I$67 -> 1.306044539 | Z74: =IF($I74 >0, MIN(Y74,$I74-SUM($W74:Y74)), MAX(Y74,$I74-SUM($W74:Y74))) -> 1.306044539 | AA74: =IF($I74 >0, MIN(Z74,$I74-SUM($W74:Z74)), MAX(Z74,$I74-SUM($W74:Z74))) -> 1.306044539 | AB74: =IF($I74 >0, MIN(AA74,$I74-SUM($W74:AA74)), MAX(AA74,$I74-SUM($W74:AA74))) -> 1.306044539 | AC74: =IF($I74 >0, MIN(AB74,$I74-SUM($W74:AB74)), MAX(AB74,$I74-SUM($W74:AB74))) -> 1.306044539 | AD74: =IF($I74 >0, MIN(AC74,$I74-SUM($W74:AC74)), MAX(AC74,$I74-SUM($W74:AC74))) -> 1.306044539 | AE74: =IF($I74 >0, MIN(AD74,$I74-SUM($W74:AD74)), MAX(AD74,$I74-SUM($W74:AD74))) -> 1.306044539 | AF74: =IF($I74 >0, MIN(AE74,$I74-SUM($W74:AE74)), MAX(AE74,$I74-SUM($W74:AE74))) -> 1.306044539 | AG74: =IF($I74 >0, MIN(AF74,$I74-SUM($W74:AF74)), MAX(AF74,$I74-SUM($W74:AF74))) -> 1.306044539 | AH74: =IF($I74 >0, MIN(AG74,$I74-SUM($W74:AG74)), MAX(AG74,$I74-SUM($W74:AG74))) -> 1.306044539 | AI74: =IF($I74 >0, MIN(AH74,$I74-SUM($W74:AH74)), MAX(AH74,$I74-SUM($W74:AH74))) -> 1.306044539 | AJ74: =IF($I74 >0, MIN(AI74,$I74-SUM($W74:AI74)), MAX(AI74,$I74-SUM($W74:AI74))) -> 1.306044539 | AK74: =IF($I74 >0, MIN(AJ74,$I74-SUM($W74:AJ74)), MAX(AJ74,$I74-SUM($W74:AJ74))) -> 1.306044539 | AL74: =IF($I74 >0, MIN(AK74,$I74-SUM($W74:AK74)), MAX(AK74,$I74-SUM($W74:AK74))) -> 1.306044539 | AM74: =IF($I74 >0, MIN(AL74,$I74-SUM($W74:AL74)), MAX(AL74,$I74-SUM($W74:AL74))) -> 1.306044539 | AN74: =IF($I74 >0, MIN(AM74,$I74-SUM($W74:AM74)), MAX(AM74,$I74-SUM($W74:AM74))) -> 1.306044539 | AO74: =IF($I74 >0, MIN(AN74,$I74-SUM($W74:AN74)), MAX(AN74,$I74-SUM($W74:AN74))) -> 1.306044539
E75: 2005-03-31 | G75: £m 09/10 prices | I75: 60.11281045 | J75: > | Z75: =$I75 / $I$67 -> 1.335840232 | AA75: =IF($I75 >0, MIN(Z75,$I75-SUM($W75:Z75)), MAX(Z75,$I75-SUM($W75:Z75))) -> 1.335840232 | AB75: =IF($I75 >0, MIN(AA75,$I75-SUM($W75:AA75)), MAX(AA75,$I75-SUM($W75:AA75))) -> 1.335840232 | AC75: =IF($I75 >0, MIN(AB75,$I75-SUM($W75:AB75)), MAX(AB75,$I75-SUM($W75:AB75))) -> 1.335840232 | AD75: =IF($I75 >0, MIN(AC75,$I75-SUM($W75:AC75)), MAX(AC75,$I75-SUM($W75:AC75))) -> 1.335840232 | AE75: =IF($I75 >0, MIN(AD75,$I75-SUM($W75:AD75)), MAX(AD75,$I75-SUM($W75:AD75))) -> 1.335840232 | AF75: =IF($I75 >0, MIN(AE75,$I75-SUM($W75:AE75)), MAX(AE75,$I75-SUM($W75:AE75))) -> 1.335840232 | AG75: =IF($I75 >0, MIN(AF75,$I75-SUM($W75:AF75)), MAX(AF75,$I75-SUM($W75:AF75))) -> 1.335840232 | AH75: =IF($I75 >0, MIN(AG75,$I75-SUM($W75:AG75)), MAX(AG75,$I75-SUM($W75:AG75))) -> 1.335840232 | AI75: =IF($I75 >0, MIN(AH75,$I75-SUM($W75:AH75)), MAX(AH75,$I75-SUM($W75:AH75))) -> 1.335840232 | AJ75: =IF($I75 >0, MIN(AI75,$I75-SUM($W75:AI75)), MAX(AI75,$I75-SUM($W75:AI75))) -> 1.335840232 | AK75: =IF($I75 >0, MIN(AJ75,$I75-SUM($W75:AJ75)), MAX(AJ75,$I75-SUM($W75:AJ75))) -> 1.335840232 | AL75: =IF($I75 >0, MIN(AK75,$I75-SUM($W75:AK75)), MAX(AK75,$I75-SUM($W75:AK75))) -> 1.335840232 | AM75: =IF($I75 >0, MIN(AL75,$I75-SUM($W75:AL75)), MAX(AL75,$I75-SUM($W75:AL75))) -> 1.335840232 | AN75: =IF($I75 >0, MIN(AM75,$I75-SUM($W75:AM75)), MAX(AM75,$I75-SUM($W75:AM75))) -> 1.335840232 | AO75: =IF($I75 >0, MIN(AN75,$I75-SUM($W75:AN75)), MAX(AN75,$I75-SUM($W75:AN75))) -> 1.335840232
E76: 2006-03-31 | G76: £m 09/10 prices | I76: 60.14993076 | J76: > | AA76: =$I76 / $I$67 -> 1.336665128 | AB76: =IF($I76 >0, MIN(AA76,$I76-SUM($W76:AA76)), MAX(AA76,$I76-SUM($W76:AA76))) -> 1.336665128 | AC76: =IF($I76 >0, MIN(AB76,$I76-SUM($W76:AB76)), MAX(AB76,$I76-SUM($W76:AB76))) -> 1.336665128 | AD76: =IF($I76 >0, MIN(AC76,$I76-SUM($W76:AC76)), MAX(AC76,$I76-SUM($W76:AC76))) -> 1.336665128 | AE76: =IF($I76 >0, MIN(AD76,$I76-SUM($W76:AD76)), MAX(AD76,$I76-SUM($W76:AD76))) -> 1.336665128 | AF76: =IF($I76 >0, MIN(AE76,$I76-SUM($W76:AE76)), MAX(AE76,$I76-SUM($W76:AE76))) -> 1.336665128 | AG76: =IF($I76 >0, MIN(AF76,$I76-SUM($W76:AF76)), MAX(AF76,$I76-SUM($W76:AF76))) -> 1.336665128 | AH76: =IF($I76 >0, MIN(AG76,$I76-SUM($W76:AG76)), MAX(AG76,$I76-SUM($W76:AG76))) -> 1.336665128 | AI76: =IF($I76 >0, MIN(AH76,$I76-SUM($W76:AH76)), MAX(AH76,$I76-SUM($W76:AH76))) -> 1.336665128 | AJ76: =IF($I76 >0, MIN(AI76,$I76-SUM($W76:AI76)), MAX(AI76,$I76-SUM($W76:AI76))) -> 1.336665128 | AK76: =IF($I76 >0, MIN(AJ76,$I76-SUM($W76:AJ76)), MAX(AJ76,$I76-SUM($W76:AJ76))) -> 1.336665128 | AL76: =IF($I76 >0, MIN(AK76,$I76-SUM($W76:AK76)), MAX(AK76,$I76-SUM($W76:AK76))) -> 1.336665128 | AM76: =IF($I76 >0, MIN(AL76,$I76-SUM($W76:AL76)), MAX(AL76,$I76-SUM($W76:AL76))) -> 1.336665128 | AN76: =IF($I76 >0, MIN(AM76,$I76-SUM($W76:AM76)), MAX(AM76,$I76-SUM($W76:AM76))) -> 1.336665128 | AO76: =IF($I76 >0, MIN(AN76,$I76-SUM($W76:AN76)), MAX(AN76,$I76-SUM($W76:AN76))) -> 1.336665128
E77: 2007-03-31 | G77: £m 09/10 prices | I77: 56.2180614 | J77: > | AB77: =$I77 / $I$67 -> 1.249290253 | AC77: =IF($I77 >0, MIN(AB77,$I77-SUM($W77:AB77)), MAX(AB77,$I77-SUM($W77:AB77))) -> 1.249290253 | AD77: =IF($I77 >0, MIN(AC77,$I77-SUM($W77:AC77)), MAX(AC77,$I77-SUM($W77:AC77))) -> 1.249290253 | AE77: =IF($I77 >0, MIN(AD77,$I77-SUM($W77:AD77)), MAX(AD77,$I77-SUM($W77:AD77))) -> 1.249290253 | AF77: =IF($I77 >0, MIN(AE77,$I77-SUM($W77:AE77)), MAX(AE77,$I77-SUM($W77:AE77))) -> 1.249290253 | AG77: =IF($I77 >0, MIN(AF77,$I77-SUM($W77:AF77)), MAX(AF77,$I77-SUM($W77:AF77))) -> 1.249290253 | AH77: =IF($I77 >0, MIN(AG77,$I77-SUM($W77:AG77)), MAX(AG77,$I77-SUM($W77:AG77))) -> 1.249290253 | AI77: =IF($I77 >0, MIN(AH77,$I77-SUM($W77:AH77)), MAX(AH77,$I77-SUM($W77:AH77))) -> 1.249290253 | AJ77: =IF($I77 >0, MIN(AI77,$I77-SUM($W77:AI77)), MAX(AI77,$I77-SUM($W77:AI77))) -> 1.249290253 | AK77: =IF($I77 >0, MIN(AJ77,$I77-SUM($W77:AJ77)), MAX(AJ77,$I77-SUM($W77:AJ77))) -> 1.249290253 | AL77: =IF($I77 >0, MIN(AK77,$I77-SUM($W77:AK77)), MAX(AK77,$I77-SUM($W77:AK77))) -> 1.249290253 | AM77: =IF($I77 >0, MIN(AL77,$I77-SUM($W77:AL77)), MAX(AL77,$I77-SUM($W77:AL77))) -> 1.249290253 | AN77: =IF($I77 >0, MIN(AM77,$I77-SUM($W77:AM77)), MAX(AM77,$I77-SUM($W77:AM77))) -> 1.249290253 | AO77: =IF($I77 >0, MIN(AN77,$I77-SUM($W77:AN77)), MAX(AN77,$I77-SUM($W77:AN77))) -> 1.249290253
E78: 2008-03-31 | G78: £m 09/10 prices | I78: 129.3201876 | J78: > | AC78: =$I78 / $I$67 -> 2.873781946 | AD78: =IF($I78 >0, MIN(AC78,$I78-SUM($W78:AC78)), MAX(AC78,$I78-SUM($W78:AC78))) -> 2.873781946 | AE78: =IF($I78 >0, MIN(AD78,$I78-SUM($W78:AD78)), MAX(AD78,$I78-SUM($W78:AD78))) -> 2.873781946 | AF78: =IF($I78 >0, MIN(AE78,$I78-SUM($W78:AE78)), MAX(AE78,$I78-SUM($W78:AE78))) -> 2.873781946 | AG78: =IF($I78 >0, MIN(AF78,$I78-SUM($W78:AF78)), MAX(AF78,$I78-SUM($W78:AF78))) -> 2.873781946 | AH78: =IF($I78 >0, MIN(AG78,$I78-SUM($W78:AG78)), MAX(AG78,$I78-SUM($W78:AG78))) -> 2.873781946 | AI78: =IF($I78 >0, MIN(AH78,$I78-SUM($W78:AH78)), MAX(AH78,$I78-SUM($W78:AH78))) -> 2.873781946 | AJ78: =IF($I78 >0, MIN(AI78,$I78-SUM($W78:AI78)), MAX(AI78,$I78-SUM($W78:AI78))) -> 2.873781946 | AK78: =IF($I78 >0, MIN(AJ78,$I78-SUM($W78:AJ78)), MAX(AJ78,$I78-SUM($W78:AJ78))) -> 2.873781946 | AL78: =IF($I78 >0, MIN(AK78,$I78-SUM($W78:AK78)), MAX(AK78,$I78-SUM($W78:AK78))) -> 2.873781946 | AM78: =IF($I78 >0, MIN(AL78,$I78-SUM($W78:AL78)), MAX(AL78,$I78-SUM($W78:AL78))) -> 2.873781946 | AN78: =IF($I78 >0, MIN(AM78,$I78-SUM($W78:AM78)), MAX(AM78,$I78-SUM($W78:AM78))) -> 2.873781946 | AO78: =IF($I78 >0, MIN(AN78,$I78-SUM($W78:AN78)), MAX(AN78,$I78-SUM($W78:AN78))) -> 2.873781946
E79: 2009-03-31 | G79: £m 09/10 prices | I79: 107.4805904 | J79: > | AD79: =$I79 / $I$67 -> 2.388457565 | AE79: =IF($I79 >0, MIN(AD79,$I79-SUM($W79:AD79)), MAX(AD79,$I79-SUM($W79:AD79))) -> 2.388457565 | AF79: =IF($I79 >0, MIN(AE79,$I79-SUM($W79:AE79)), MAX(AE79,$I79-SUM($W79:AE79))) -> 2.388457565 | AG79: =IF($I79 >0, MIN(AF79,$I79-SUM($W79:AF79)), MAX(AF79,$I79-SUM($W79:AF79))) -> 2.388457565 | AH79: =IF($I79 >0, MIN(AG79,$I79-SUM($W79:AG79)), MAX(AG79,$I79-SUM($W79:AG79))) -> 2.388457565 | AI79: =IF($I79 >0, MIN(AH79,$I79-SUM($W79:AH79)), MAX(AH79,$I79-SUM($W79:AH79))) -> 2.388457565 | AJ79: =IF($I79 >0, MIN(AI79,$I79-SUM($W79:AI79)), MAX(AI79,$I79-SUM($W79:AI79))) -> 2.388457565 | AK79: =IF($I79 >0, MIN(AJ79,$I79-SUM($W79:AJ79)), MAX(AJ79,$I79-SUM($W79:AJ79))) -> 2.388457565 | AL79: =IF($I79 >0, MIN(AK79,$I79-SUM($W79:AK79)), MAX(AK79,$I79-SUM($W79:AK79))) -> 2.388457565 | AM79: =IF($I79 >0, MIN(AL79,$I79-SUM($W79:AL79)), MAX(AL79,$I79-SUM($W79:AL79))) -> 2.388457565 | AN79: =IF($I79 >0, MIN(AM79,$I79-SUM($W79:AM79)), MAX(AM79,$I79-SUM($W79:AM79))) -> 2.388457565 | AO79: =IF($I79 >0, MIN(AN79,$I79-SUM($W79:AN79)), MAX(AN79,$I79-SUM($W79:AN79))) -> 2.388457565
E80: 2010-03-31 | G80: £m 09/10 prices | I80: 122.5166077 | J80: > | AE80: =$I80 / $I$67 -> 2.722591282 | AF80: =IF($I80 >0, MIN(AE80,$I80-SUM($W80:AE80)), MAX(AE80,$I80-SUM($W80:AE80))) -> 2.722591282 | AG80: =IF($I80 >0, MIN(AF80,$I80-SUM($W80:AF80)), MAX(AF80,$I80-SUM($W80:AF80))) -> 2.722591282 | AH80: =IF($I80 >0, MIN(AG80,$I80-SUM($W80:AG80)), MAX(AG80,$I80-SUM($W80:AG80))) -> 2.722591282 | AI80: =IF($I80 >0, MIN(AH80,$I80-SUM($W80:AH80)), MAX(AH80,$I80-SUM($W80:AH80))) -> 2.722591282 | AJ80: =IF($I80 >0, MIN(AI80,$I80-SUM($W80:AI80)), MAX(AI80,$I80-SUM($W80:AI80))) -> 2.722591282 | AK80: =IF($I80 >0, MIN(AJ80,$I80-SUM($W80:AJ80)), MAX(AJ80,$I80-SUM($W80:AJ80))) -> 2.722591282 | AL80: =IF($I80 >0, MIN(AK80,$I80-SUM($W80:AK80)), MAX(AK80,$I80-SUM($W80:AK80))) -> 2.722591282 | AM80: =IF($I80 >0, MIN(AL80,$I80-SUM($W80:AL80)), MAX(AL80,$I80-SUM($W80:AL80))) -> 2.722591282 | AN80: =IF($I80 >0, MIN(AM80,$I80-SUM($W80:AM80)), MAX(AM80,$I80-SUM($W80:AM80))) -> 2.722591282 | AO80: =IF($I80 >0, MIN(AN80,$I80-SUM($W80:AN80)), MAX(AN80,$I80-SUM($W80:AN80))) -> 2.722591282
E81: 2011-03-31 | G81: £m 09/10 prices | I81: 157.9847402 | J81: > | AF81: =$I81 / $I$67 -> 3.510772004 | AG81: =IF($I81 >0, MIN(AF81,$I81-SUM($W81:AF81)), MAX(AF81,$I81-SUM($W81:AF81))) -> 3.510772004 | AH81: =IF($I81 >0, MIN(AG81,$I81-SUM($W81:AG81)), MAX(AG81,$I81-SUM($W81:AG81))) -> 3.510772004 | AI81: =IF($I81 >0, MIN(AH81,$I81-SUM($W81:AH81)), MAX(AH81,$I81-SUM($W81:AH81))) -> 3.510772004 | AJ81: =IF($I81 >0, MIN(AI81,$I81-SUM($W81:AI81)), MAX(AI81,$I81-SUM($W81:AI81))) -> 3.510772004 | AK81: =IF($I81 >0, MIN(AJ81,$I81-SUM($W81:AJ81)), MAX(AJ81,$I81-SUM($W81:AJ81))) -> 3.510772004 | AL81: =IF($I81 >0, MIN(AK81,$I81-SUM($W81:AK81)), MAX(AK81,$I81-SUM($W81:AK81))) -> 3.510772004 | AM81: =IF($I81 >0, MIN(AL81,$I81-SUM($W81:AL81)), MAX(AL81,$I81-SUM($W81:AL81))) -> 3.510772004 | AN81: =IF($I81 >0, MIN(AM81,$I81-SUM($W81:AM81)), MAX(AM81,$I81-SUM($W81:AM81))) -> 3.510772004 | AO81: =IF($I81 >0, MIN(AN81,$I81-SUM($W81:AN81)), MAX(AN81,$I81-SUM($W81:AN81))) -> 3.510772004
E82: 2012-03-31 | G82: £m 09/10 prices | I82: 152.2590701 | J82: > | AG82: =$I82 / $I$67 -> 3.383534892 | AH82: =IF($I82 >0, MIN(AG82,$I82-SUM($W82:AG82)), MAX(AG82,$I82-SUM($W82:AG82))) -> 3.383534892 | AI82: =IF($I82 >0, MIN(AH82,$I82-SUM($W82:AH82)), MAX(AH82,$I82-SUM($W82:AH82))) -> 3.383534892 | AJ82: =IF($I82 >0, MIN(AI82,$I82-SUM($W82:AI82)), MAX(AI82,$I82-SUM($W82:AI82))) -> 3.383534892 | AK82: =IF($I82 >0, MIN(AJ82,$I82-SUM($W82:AJ82)), MAX(AJ82,$I82-SUM($W82:AJ82))) -> 3.383534892 | AL82: =IF($I82 >0, MIN(AK82,$I82-SUM($W82:AK82)), MAX(AK82,$I82-SUM($W82:AK82))) -> 3.383534892 | AM82: =IF($I82 >0, MIN(AL82,$I82-SUM($W82:AL82)), MAX(AL82,$I82-SUM($W82:AL82))) -> 3.383534892 | AN82: =IF($I82 >0, MIN(AM82,$I82-SUM($W82:AM82)), MAX(AM82,$I82-SUM($W82:AM82))) -> 3.383534892 | AO82: =IF($I82 >0, MIN(AN82,$I82-SUM($W82:AN82)), MAX(AN82,$I82-SUM($W82:AN82))) -> 3.383534892
E83: 2013-03-31 | G83: £m 09/10 prices | I83: 110.9381496 | AH83: =$I83 / $I$67 -> 2.465292214 | AI83: =IF($I83 >0, MIN(AH83,$I83-SUM($W83:AH83)), MAX(AH83,$I83-SUM($W83:AH83))) -> 2.465292214 | AJ83: =IF($I83 >0, MIN(AI83,$I83-SUM($W83:AI83)), MAX(AI83,$I83-SUM($W83:AI83))) -> 2.465292214 | AK83: =IF($I83 >0, MIN(AJ83,$I83-SUM($W83:AJ83)), MAX(AJ83,$I83-SUM($W83:AJ83))) -> 2.465292214 | AL83: =IF($I83 >0, MIN(AK83,$I83-SUM($W83:AK83)), MAX(AK83,$I83-SUM($W83:AK83))) -> 2.465292214 | AM83: =IF($I83 >0, MIN(AL83,$I83-SUM($W83:AL83)), MAX(AL83,$I83-SUM($W83:AL83))) -> 2.465292214 | AN83: =IF($I83 >0, MIN(AM83,$I83-SUM($W83:AM83)), MAX(AM83,$I83-SUM($W83:AM83))) -> 2.465292214 | AO83: =IF($I83 >0, MIN(AN83,$I83-SUM($W83:AN83)), MAX(AN83,$I83-SUM($W83:AN83))) -> 2.465292214
E84: 2014-03-31 | G84: £m 09/10 prices | I84: 103.0853848 | AI84: =$I84 / $I$67 -> 2.290786328 | AJ84: =IF($I84 >0, MIN(AI84,$I84-SUM($W84:AI84)), MAX(AI84,$I84-SUM($W84:AI84))) -> 2.290786328 | AK84: =IF($I84 >0, MIN(AJ84,$I84-SUM($W84:AJ84)), MAX(AJ84,$I84-SUM($W84:AJ84))) -> 2.290786328 | AL84: =IF($I84 >0, MIN(AK84,$I84-SUM($W84:AK84)), MAX(AK84,$I84-SUM($W84:AK84))) -> 2.290786328 | AM84: =IF($I84 >0, MIN(AL84,$I84-SUM($W84:AL84)), MAX(AL84,$I84-SUM($W84:AL84))) -> 2.290786328 | AN84: =IF($I84 >0, MIN(AM84,$I84-SUM($W84:AM84)), MAX(AM84,$I84-SUM($W84:AM84))) -> 2.290786328 | AO84: =IF($I84 >0, MIN(AN84,$I84-SUM($W84:AN84)), MAX(AN84,$I84-SUM($W84:AN84))) -> 2.290786328
E85: 2015-03-31 | G85: £m 09/10 prices | I85: 99.87682198 | AJ85: =$I85 / $I$67 -> 2.219484933 | AK85: =IF($I85 >0, MIN(AJ85,$I85-SUM($W85:AJ85)), MAX(AJ85,$I85-SUM($W85:AJ85))) -> 2.219484933 | AL85: =IF($I85 >0, MIN(AK85,$I85-SUM($W85:AK85)), MAX(AK85,$I85-SUM($W85:AK85))) -> 2.219484933 | AM85: =IF($I85 >0, MIN(AL85,$I85-SUM($W85:AL85)), MAX(AL85,$I85-SUM($W85:AL85))) -> 2.219484933 | AN85: =IF($I85 >0, MIN(AM85,$I85-SUM($W85:AM85)), MAX(AM85,$I85-SUM($W85:AM85))) -> 2.219484933 | AO85: =IF($I85 >0, MIN(AN85,$I85-SUM($W85:AN85)), MAX(AN85,$I85-SUM($W85:AN85))) -> 2.219484933
E86: 2016-03-31 | G86: £m 09/10 prices | I86: 106.6517717 | AK86: =$I86 / $I$67 -> 2.370039371 | AL86: =IF($I86 >0, MIN(AK86,$I86-SUM($W86:AK86)), MAX(AK86,$I86-SUM($W86:AK86))) -> 2.370039371 | AM86: =IF($I86 >0, MIN(AL86,$I86-SUM($W86:AL86)), MAX(AL86,$I86-SUM($W86:AL86))) -> 2.370039371 | AN86: =IF($I86 >0, MIN(AM86,$I86-SUM($W86:AM86)), MAX(AM86,$I86-SUM($W86:AM86))) -> 2.370039371 | AO86: =IF($I86 >0, MIN(AN86,$I86-SUM($W86:AN86)), MAX(AN86,$I86-SUM($W86:AN86))) -> 2.370039371
E87: 2017-03-31 | G87: £m 09/10 prices | I87: 75.15435593 | AL87: =$I87 / $I$67 -> 1.670096798 | AM87: =IF($I87 >0, MIN(AL87,$I87-SUM($W87:AL87)), MAX(AL87,$I87-SUM($W87:AL87))) -> 1.670096798 | AN87: =IF($I87 >0, MIN(AM87,$I87-SUM($W87:AM87)), MAX(AM87,$I87-SUM($W87:AM87))) -> 1.670096798 | AO87: =IF($I87 >0, MIN(AN87,$I87-SUM($W87:AN87)), MAX(AN87,$I87-SUM($W87:AN87))) -> 1.670096798
E88: 2018-03-31 | G88: £m 09/10 prices | I88: 129.8723784 | AM88: =$I88 / $I$67 -> 2.886052854 | AN88: =IF($I88 >0, MIN(AM88,$I88-SUM($W88:AM88)), MAX(AM88,$I88-SUM($W88:AM88))) -> 2.886052854 | AO88: =IF($I88 >0, MIN(AN88,$I88-SUM($W88:AN88)), MAX(AN88,$I88-SUM($W88:AN88))) -> 2.886052854
E89: 2019-03-31 | G89: £m 09/10 prices | I89: 135.0970246 | AN89: =$I89 / $I$67 -> 3.002156102 | AO89: =IF($I89 >0, MIN(AN89,$I89-SUM($W89:AN89)), MAX(AN89,$I89-SUM($W89:AN89))) -> 3.002156102
E90: 2020-03-31 | G90: £m 09/10 prices | I90: 136.7157285 | AO90: =$I90 / $I$67 -> 3.038127301
E91: 2021-03-31 | G91: £m 09/10 prices | I91: 146.3033073
C93: Accelerated RAV differential post-vesting depreciation
C94: Note: The RAV differential accumulated from the straight line and sum-of-digit schedules above is released after the start of RIIO over an input smoothing profile.
D96: Depreciation parameters
E98: Smoothing period starting year | G98: year ending | I98: =Input!I194 -> 2014-03-31
E99: RAV differential is accruing differences | G99: flag | J99: > | X99: =IF(X$4 < $I98, 1, 0 ) -> 1 | Y99: 1 | Z99: 1 | AA99: 1 | AB99: 1 | AC99: 1 | AD99: 1 | AE99: 1 | AF99: 1 | AG99: 1 | AH99: 0 | AI99: 0 | AJ99: 0 | AK99: 0 | AL99: 0 | AM99: 0 | AN99: 0 | AO99: 0
E100: Smoothing profile for recovery of backlog depreciation | G100: % | AH100: =Input!AH193 -> 0.15 | AI100: =Input!AI193 -> 0.15 | AJ100: =Input!AJ193 -> 0.025 | AK100: =Input!AK193 -> 0 | AL100: =Input!AL193 -> 0.05 | AM100: =Input!AM193 -> 0.125 | AN100: =Input!AN193 -> 0.2 | AO100: =Input!AO193 -> 0.3
D102: Depreciation schedule
E104: RAV differential depreciation of additions from year ending | I104: RAV differential
E105: 2003-03-31 | G105: £m 09/10 prices | I105: =SUMPRODUCT(X42:AG42, X$99:AG$99) - SUMPRODUCT(X73:AG73, X$99:AG$99) -> 13.8479801 | J105: > | X105: =$I105 * X$100 -> 0 | Y105: 0 | Z105: 0 | AA105: 0 | AB105: 0 | AC105: 0 | AD105: 0 | AE105: 0 | AF105: 0 | AG105: 0 | AH105: 2.077197015 | AI105: 2.077197015 | AJ105: 0.3461995026 | AK105: 0 | AL105: 0.6923990051 | AM105: 1.730997513 | AN105: 2.76959602 | AO105: 4.154394031
E106: 2004-03-31 | G106: £m 09/10 prices | I106: 9.19909632 | J106: > | Y106: =$I106 * Y$100 -> 0 | Z106: 0 | AA106: 0 | AB106: 0 | AC106: 0 | AD106: 0 | AE106: 0 | AF106: 0 | AG106: 0 | AH106: 1.379864448 | AI106: 1.379864448 | AJ106: 0.229977408 | AK106: 0 | AL106: 0.459954816 | AM106: 1.14988704 | AN106: 1.839819264 | AO106: 2.759728896
E107: 2005-03-31 | G107: £m 09/10 prices | I107: 8.595841494 | J107: > | Z107: =$I107 * Z$100 -> 0 | AA107: 0 | AB107: 0 | AC107: 0 | AD107: 0 | AE107: 0 | AF107: 0 | AG107: 0 | AH107: 1.289376224 | AI107: 1.289376224 | AJ107: 0.2148960374 | AK107: 0 | AL107: 0.4297920747 | AM107: 1.074480187 | AN107: 1.719168299 | AO107: 2.578752448
E108: 2006-03-31 | G108: £m 09/10 prices | I108: 7.729411393 | J108: > | AA108: =$I108 * AA$100 -> 0 | AB108: 0 | AC108: 0 | AD108: 0 | AE108: 0 | AF108: 0 | AG108: 0 | AH108: 1.159411709 | AI108: 1.159411709 | AJ108: 0.1932352848 | AK108: 0 | AL108: 0.3864705696 | AM108: 0.9661764241 | AN108: 1.545882279 | AO108: 2.318823418
E109: 2007-03-31 | G109: £m 09/10 prices | I109: 6.355085202 | J109: > | AB109: =$I109 * AB$100 -> 0 | AC109: 0 | AD109: 0 | AE109: 0 | AF109: 0 | AG109: 0 | AH109: 0.9532627802 | AI109: 0.9532627802 | AJ109: 0.15887713 | AK109: 0 | AL109: 0.3177542601 | AM109: 0.7943856502 | AN109: 1.27101704 | AO109: 1.90652556
E110: 2008-03-31 | G110: £m 09/10 prices | I110: 12.49470411 | J110: > | AC110: =$I110 * AC$100 -> 0 | AD110: 0 | AE110: 0 | AF110: 0 | AG110: 0 | AH110: 1.874205617 | AI110: 1.874205617 | AJ110: 0.3123676028 | AK110: 0 | AL110: 0.6247352056 | AM110: 1.561838014 | AN110: 2.498940823 | AO110: 3.748411234
E111: 2009-03-31 | G111: £m 09/10 prices | I111: 8.51537045 | J111: > | AD111: =$I111 * AD$100 -> 0 | AE111: 0 | AF111: 0 | AG111: 0 | AH111: 1.277305567 | AI111: 1.277305567 | AJ111: 0.2128842612 | AK111: 0 | AL111: 0.4257685225 | AM111: 1.064421306 | AN111: 1.70307409 | AO111: 2.554611135
E112: 2010-03-31 | G112: £m 09/10 prices | I112: 7.457532641 | J112: > | AE112: =$I112 * AE$100 -> 0 | AF112: 0 | AG112: 0 | AH112: 1.118629896 | AI112: 1.118629896 | AJ112: 0.186438316 | AK112: 0 | AL112: 0.3728766321 | AM112: 0.9321915801 | AN112: 1.491506528 | AO112: 2.237259792
E113: 2011-03-31 | G113: £m 09/10 prices | I113: 6.563617225 | J113: > | AF113: =$I113 * AF$100 -> 0 | AG113: 0 | AH113: 0.9845425838 | AI113: 0.9845425838 | AJ113: 0.1640904306 | AK113: 0 | AL113: 0.3281808613 | AM113: 0.8204521531 | AN113: 1.312723445 | AO113: 1.969085168
E114: 2012-03-31 | G114: £m 09/10 prices | I114: 3.236424679 | J114: > | AG114: =$I114 * AG$100 -> 0 | AH114: 0.4854637019 | AI114: 0.4854637019 | AJ114: 0.08091061698 | AK114: 0 | AL114: 0.161821234 | AM114: 0.4045530849 | AN114: 0.6472849358 | AO114: 0.9709274037
E115: 2013-03-31 | G115: £m 09/10 prices | I115: 0 | AH115: =$I115 * AH$100 -> 0 | AI115: 0 | AJ115: 0 | AK115: 0 | AL115: 0 | AM115: 0 | AN115: 0 | AO115: 0
E116: 2014-03-31 | G116: £m 09/10 prices | I116: 0 | AI116: =$I116 * AI$100 -> 0 | AJ116: 0 | AK116: 0 | AL116: 0 | AM116: 0 | AN116: 0 | AO116: 0
E117: 2015-03-31 | G117: £m 09/10 prices | I117: 0 | AJ117: =$I117 * AJ$100 -> 0 | AK117: 0 | AL117: 0 | AM117: 0 | AN117: 0 | AO117: 0
E118: 2016-03-31 | G118: £m 09/10 prices | I118: 0 | AK118: =$I118 * AK$100 -> 0 | AL118: =$I118 * AL$100 -> 0 | AM118: =$I118 * AM$100 -> 0 | AN118: =$I118 * AN$100 -> 0 | AO118: =$I118 * AO$100 -> 0
E119: 2017-03-31 | G119: £m 09/10 prices | I119: 0 | AL119: =$I119 * AL$100 -> 0 | AM119: =$I119 * AM$100 -> 0 | AN119: =$I119 * AN$100 -> 0 | AO119: =$I119 * AO$100 -> 0
E120: 2018-03-31 | G120: £m 09/10 prices | I120: 0 | AM120: =$I120 * AM$100 -> 0 | AN120: =$I120 * AN$100 -> 0 | AO120: =$I120 * AO$100 -> 0
E121: 2019-03-31 | G121: £m 09/10 prices | I121: 0 | AN121: =$I121 * AN$100 -> 0 | AO121: =$I121 * AO$100 -> 0
E122: 2020-03-31 | G122: £m 09/10 prices | I122: 0 | AO122: =$I122 * AO$100 -> 0
E123: 2021-03-31 | G123: £m 09/10 prices | I123: 0
C125: Depreciation values applied
C126: Note: Before RIIO, regulatory depreciation is straight-line. From the start of RIIO, it is sum-of-digit depreciation plus any smoothed RAV differential value available.
E128: Depreciation allowed on additions from year ending | I128: Net additions
E129: 2003-03-31 | G129: £m 09/10 prices | I129: =I73 -> 81.90091089 | J129: > | X129: =(X$68 * X73) + (X$37 * X42) + X105 -> 1.820020242 | Y129: 1.820020242 | Z129: 1.820020242 | AA129: 1.820020242 | AB129: 1.820020242 | AC129: 1.820020242 | AD129: 1.820020242 | AE129: 1.820020242 | AF129: 1.820020242 | AG129: 1.820020242 | AH129: 4.846793036 | AI129: 4.767661721 | AJ129: 2.957532893 | AK129: 2.532202076 | AL129: 3.145469766 | AM129: 4.104936959 | AN129: 5.064404152 | AO129: 6.370070847
E130: 2004-03-31 | G130: £m 09/10 prices | I130: 58.77200427 | J130: > | Y130: =(Y$68 * Y74) + (Y$37 * Y43) + Y106 -> 1.306044539 | Z130: 1.306044539 | AA130: 1.306044539 | AB130: 1.306044539 | AC130: 1.306044539 | AD130: 1.306044539 | AE130: 1.306044539 | AF130: 1.306044539 | AG130: 1.306044539 | AH130: 3.424108075 | AI130: 3.36732353 | AJ130: 2.160651944 | AK130: 1.873889991 | AL130: 2.277060262 | AM130: 2.910207941 | AN130: 3.54335562 | AO130: 4.406480706
E131: 2005-03-31 | G131: £m 09/10 prices | I131: 60.11281045 | J131: > | Z131: =(Z$68 * Z75) + (Z$37 * Z44) + Z107 -> 1.335840232 | AA131: 1.335840232 | AB131: 1.335840232 | AC131: 1.335840232 | AD131: 1.335840232 | AE131: 1.335840232 | AF131: 1.335840232 | AG131: 1.335840232 | AH131: 3.438336598 | AI131: 3.380256588 | AJ131: 2.247696391 | AK131: 1.974720343 | AL131: 2.346432408 | AM131: 2.93304051 | AN131: 3.519648612 | AO131: 4.321152751
E132: 2006-03-31 | G132: £m 09/10 prices | I132: 60.14993076 | J132: > | AA132: =(AA$68 * AA76) + (AA$37 * AA45) + AA108 -> 1.336665128 | AB132: 1.336665128 | AC132: 1.336665128 | AD132: 1.336665128 | AE132: 1.336665128 | AF132: 1.336665128 | AG132: 1.336665128 | AH132: 3.367814964 | AI132: 3.309699089 | AJ132: 2.28540679 | AK132: 2.03405563 | AL132: 2.362410324 | AM132: 2.884000304 | AN132: 3.405590283 | AO132: 4.120415547
E133: 2007-03-31 | G133: £m 09/10 prices | I133: 56.2180614 | J133: > | AB133: =(AB$68 * AB77) + (AB$37 * AB46) + AB109 -> 1.249290253 | AC133: 1.249290253 | AD133: 1.249290253 | AE133: 1.249290253 | AF133: 1.249290253 | AG133: 1.249290253 | AH133: 3.071624514 | AI133: 3.017307547 | AJ133: 2.168604929 | AK133: 1.955410831 | AL133: 2.218848124 | AM133: 2.641162546 | AN133: 3.063476969 | AO133: 3.644668522
E134: 2008-03-31 | G134: £m 09/10 prices | I134: 129.3201876 | J134: > | AC134: =(AC$68 * AC78) + (AC$37 * AC47) + AC110 -> 2.873781946 | AD134: 2.873781946 | AE134: 2.873781946 | AF134: 2.873781946 | AG134: 2.873781946 | AH134: 6.872087262 | AI134: 6.747140221 | AJ134: 5.060355166 | AK134: 4.623040522 | AL134: 5.122828686 | AM134: 5.934984454 | AN134: 6.747140221 | AO134: 7.871663591
E135: 2009-03-31 | G135: £m 09/10 prices | I135: 107.4805904 | J135: > | AD135: =(AD$68 * AD79) + (AD$37 * AD48) + AD111 -> 2.388457565 | AE135: 2.388457565 | AF135: 2.388457565 | AG135: 2.388457565 | AH135: 5.534990792 | AI135: 5.431144811 | AJ135: 4.262877524 | AK135: 3.946147282 | AL135: 4.268069823 | AM135: 4.802876626 | AN135: 5.337683428 | AO135: 6.085374492
E136: 2010-03-31 | G136: £m 09/10 prices | I136: 122.5166077 | J136: > | AE136: =(AE$68 * AE80) + (AE$37 * AE49) + AE112 -> 2.722591282 | AF136: 2.722591282 | AG136: 2.722591282 | AH136: 6.090318324 | AI136: 5.97194479 | AJ136: 4.921379676 | AK136: 4.616567825 | AL136: 4.871070924 | AM136: 5.312012338 | AN136: 5.752953752 | AO136: 6.380333482
E137: 2011-03-31 | G137: £m 09/10 prices | I137: 157.9847402 | J137: > | AF137: =(AF$68 * AF81) + (AF$37 * AF50) + AF113 -> 3.510772004 | AG137: 3.510772004 | AH137: 7.548159809 | AI137: 7.395517548 | AJ137: 6.422423134 | AK137: 6.105690442 | AL137: 6.281229042 | AM137: 6.620858073 | AN137: 6.960487104 | AO137: 7.464206565
E138: 2012-03-31 | G138: £m 09/10 prices | I138: 152.2590701 | J138: > | AG138: =(AG$68 * AG82) + (AG$37 * AG51) + AG114 -> 3.383534892 | AH138: 6.95831306 | AI138: 6.811202847 | AJ138: 6.25953955 | AK138: 6.03151872 | AL138: 6.046229741 | AM138: 6.14185138 | AN138: 6.237473018 | AO138: 6.414005273
E139: 2013-03-31 | G139: £m 09/10 prices | I139: 110.9381496 | AH139: =(AH$68 * AH83) + (AH$37 * AH52) + AH115 -> 4.823397809 | AI139: 4.716211191 | AJ139: 4.609024573 | AK139: 4.501837955 | AL139: 4.394651337 | AM139: 4.287464719 | AN139: 4.180278101 | AO139: 4.073091483
E140: 2014-03-31 | G140: £m 09/10 prices | I140: 103.0853848 | AI140: =(AI$68 * AI84) + (AI$37 * AI53) + AI116 -> 4.481973251 | AJ140: 4.382373845 | AK140: 4.282774439 | AL140: 4.183175034 | AM140: 4.083575628 | AN140: 3.983976223 | AO140: 3.884376817
E141: 2015-03-31 | G141: £m 09/10 prices | I141: 99.87682198 | AJ141: =(AJ$68 * AJ85) + (AJ$37 * AJ54) + AJ117 -> 4.342470521 | AK141: 4.245971176 | AL141: 4.149471831 | AM141: 4.052972486 | AN141: 3.956473141 | AO141: 3.859973796
E142: 2016-03-31 | G142: £m 09/10 prices | I142: 106.6517717 | AK142: =(AK$68 * AK86) + (AK$37 * AK55) + AK118 -> 4.637033553 | AL142: =(AL$68 * AL86) + (AL$37 * AL55) + AL118 -> 4.533988363 | AM142: =(AM$68 * AM86) + (AM$37 * AM55) + AM118 -> 4.430943173 | AN142: =(AN$68 * AN86) + (AN$37 * AN55) + AN118 -> 4.327897983 | AO142: =(AO$68 * AO86) + (AO$37 * AO55) + AO118 -> 4.224852792
E143: 2017-03-31 | G143: £m 09/10 prices | I143: 75.15435593 | AL143: =(AL$68 * AL87) + (AL$37 * AL56) + AL119 -> 3.267580692 | AM143: =(AM$68 * AM87) + (AM$37 * AM56) + AM119 -> 3.194967788 | AN143: =(AN$68 * AN87) + (AN$37 * AN56) + AN119 -> 3.122354884 | AO143: =(AO$68 * AO87) + (AO$37 * AO56) + AO119 -> 3.04974198
E144: 2018-03-31 | G144: £m 09/10 prices | I144: 129.8723784 | AM144: =(AM$68 * AM88) + (AM$37 * AM57) + AM120 -> 5.64662515 | AN144: =(AN$68 * AN88) + (AN$37 * AN57) + AN120 -> 5.521144591 | AO144: =(AO$68 * AO88) + (AO$37 * AO57) + AO120 -> 5.395664032
E145: 2019-03-31 | G145: £m 09/10 prices | I145: 135.0970246 | AN145: =(AN$68 * AN89) + (AN$37 * AN58) + AN121 -> 5.873783678 | AO145: =(AO$68 * AO89) + (AO$37 * AO58) + AO121 -> 5.743255152
E146: 2020-03-31 | G146: £m 09/10 prices | I146: 136.7157285 | AO146: =(AO$68 * AO90) + (AO$37 * AO59) + AO122 -> 5.94416211
E147: 2021-03-31 | G147: £m 09/10 prices | I147: 146.3033073
E148: Total | G148: £m 09/10 prices | X148: =SUM(X129:X147) -> 1.820020242 | Y148: 3.126064781 | Z148: 4.461905013 | AA148: 5.798570142 | AB148: 7.047860395 | AC148: 9.921642341 | AD148: 12.31009991 | AE148: 15.03269119 | AF148: 18.54346319 | AG148: 21.92699808 | AH148: =SUM(AH129:AH147) -> 55.97594424 | AI148: =SUM(AI129:AI147) -> 59.39738313 | AJ148: 52.08033693 | AK148: 53.36086079 | AL148: 59.46851636 | AM148: 69.98248007 | AN148: 80.59812176 | AO148: 93.25348994
C150: Removal of fully depreciated items
E152: Removal of additions from year ending
E153: 2003-03-31 | G153: £m 09/10 prices | J153: > | X153: =IF(AND($I129 = SUM($W129:X129), SUM($W153:W153) = 0 ), $I129, 0 ) -> 0 | Y153: =IF(AND($I129 = SUM($W129:Y129), SUM($W153:X153) = 0 ), $I129, 0 ) -> 0 | Z153: =IF(AND($I129 = SUM($W129:Z129), SUM($W153:Y153) = 0 ), $I129, 0 ) -> 0 | AA153: =IF(AND($I129 = SUM($W129:AA129), SUM($W153:Z153) = 0 ), $I129, 0 ) -> 0 | AB153: =IF(AND($I129 = SUM($W129:AB129), SUM($W153:AA153) = 0 ), $I129, 0 ) -> 0 | AC153: =IF(AND($I129 = SUM($W129:AC129), SUM($W153:AB153) = 0 ), $I129, 0 ) -> 0 | AD153: =IF(AND($I129 = SUM($W129:AD129), SUM($W153:AC153) = 0 ), $I129, 0 ) -> 0 | AE153: =IF(AND($I129 = SUM($W129:AE129), SUM($W153:AD153) = 0 ), $I129, 0 ) -> 0 | AF153: =IF(AND($I129 = SUM($W129:AF129), SUM($W153:AE153) = 0 ), $I129, 0 ) -> 0 | AG153: =IF(AND($I129 = SUM($W129:AG129), SUM($W153:AF153) = 0 ), $I129, 0 ) -> 0 | AH153: =IF(AND($I129 = SUM($W129:AH129), SUM($W153:AG153) = 0 ), $I129, 0 ) -> 0 | AI153: =IF(AND($I129 = SUM($W129:AI129), SUM($W153:AH153) = 0 ), $I129, 0 ) -> 0 | AJ153: =IF(AND($I129 = SUM($W129:AJ129), SUM($W153:AI153) = 0 ), $I129, 0 ) -> 0 | AK153: =IF(AND($I129 = SUM($W129:AK129), SUM($W153:AJ153) = 0 ), $I129, 0 ) -> 0 | AL153: =IF(AND($I129 = SUM($W129:AL129), SUM($W153:AK153) = 0 ), $I129, 0 ) -> 0 | AM153: =IF(AND($I129 = SUM($W129:AM129), SUM($W153:AL153) = 0 ), $I129, 0 ) -> 0 | AN153: =IF(AND($I129 = SUM($W129:AN129), SUM($W153:AM153) = 0 ), $I129, 0 ) -> 0 | AO153: =IF(AND($I129 = SUM($W129:AO129), SUM($W153:AN153) = 0 ), $I129, 0 ) -> 0
E154: 2004-03-31 | G154: £m 09/10 prices | J154: > | X154: =IF(AND($I130 = SUM($W130:X130), SUM($W154:W154) = 0 ), $I130, 0 ) -> 0 | Y154: =IF(AND($I130 = SUM($W130:Y130), SUM($W154:X154) = 0 ), $I130, 0 ) -> 0 | Z154: =IF(AND($I130 = SUM($W130:Z130), SUM($W154:Y154) = 0 ), $I130, 0 ) -> 0 | AA154: =IF(AND($I130 = SUM($W130:AA130), SUM($W154:Z154) = 0 ), $I130, 0 ) -> 0 | AB154: =IF(AND($I130 = SUM($W130:AB130), SUM($W154:AA154) = 0 ), $I130, 0 ) -> 0 | AC154: =IF(AND($I130 = SUM($W130:AC130), SUM($W154:AB154) = 0 ), $I130, 0 ) -> 0 | AD154: =IF(AND($I130 = SUM($W130:AD130), SUM($W154:AC154) = 0 ), $I130, 0 ) -> 0 | AE154: =IF(AND($I130 = SUM($W130:AE130), SUM($W154:AD154) = 0 ), $I130, 0 ) -> 0 | AF154: =IF(AND($I130 = SUM($W130:AF130), SUM($W154:AE154) = 0 ), $I130, 0 ) -> 0 | AG154: =IF(AND($I130 = SUM($W130:AG130), SUM($W154:AF154) = 0 ), $I130, 0 ) -> 0 | AH154: =IF(AND($I130 = SUM($W130:AH130), SUM($W154:AG154) = 0 ), $I130, 0 ) -> 0 | AI154: =IF(AND($I130 = SUM($W130:AI130), SUM($W154:AH154) = 0 ), $I130, 0 ) -> 0 | AJ154: =IF(AND($I130 = SUM($W130:AJ130), SUM($W154:AI154) = 0 ), $I130, 0 ) -> 0 | AK154: =IF(AND($I130 = SUM($W130:AK130), SUM($W154:AJ154) = 0 ), $I130, 0 ) -> 0 | AL154: =IF(AND($I130 = SUM($W130:AL130), SUM($W154:AK154) = 0 ), $I130, 0 ) -> 0 | AM154: =IF(AND($I130 = SUM($W130:AM130), SUM($W154:AL154) = 0 ), $I130, 0 ) -> 0 | AN154: =IF(AND($I130 = SUM($W130:AN130), SUM($W154:AM154) = 0 ), $I130, 0 ) -> 0 | AO154: =IF(AND($I130 = SUM($W130:AO130), SUM($W154:AN154) = 0 ), $I130, 0 ) -> 0
E155: 2005-03-31 | G155: £m 09/10 prices | J155: > | X155: =IF(AND($I131 = SUM($W131:X131), SUM($W155:W155) = 0 ), $I131, 0 ) -> 0 | Y155: =IF(AND($I131 = SUM($W131:Y131), SUM($W155:X155) = 0 ), $I131, 0 ) -> 0 | Z155: =IF(AND($I131 = SUM($W131:Z131), SUM($W155:Y155) = 0 ), $I131, 0 ) -> 0 | AA155: =IF(AND($I131 = SUM($W131:AA131), SUM($W155:Z155) = 0 ), $I131, 0 ) -> 0 | AB155: =IF(AND($I131 = SUM($W131:AB131), SUM($W155:AA155) = 0 ), $I131, 0 ) -> 0 | AC155: =IF(AND($I131 = SUM($W131:AC131), SUM($W155:AB155) = 0 ), $I131, 0 ) -> 0 | AD155: =IF(AND($I131 = SUM($W131:AD131), SUM($W155:AC155) = 0 ), $I131, 0 ) -> 0 | AE155: =IF(AND($I131 = SUM($W131:AE131), SUM($W155:AD155) = 0 ), $I131, 0 ) -> 0 | AF155: =IF(AND($I131 = SUM($W131:AF131), SUM($W155:AE155) = 0 ), $I131, 0 ) -> 0 | AG155: =IF(AND($I131 = SUM($W131:AG131), SUM($W155:AF155) = 0 ), $I131, 0 ) -> 0 | AH155: =IF(AND($I131 = SUM($W131:AH131), SUM($W155:AG155) = 0 ), $I131, 0 ) -> 0 | AI155: =IF(AND($I131 = SUM($W131:AI131), SUM($W155:AH155) = 0 ), $I131, 0 ) -> 0 | AJ155: =IF(AND($I131 = SUM($W131:AJ131), SUM($W155:AI155) = 0 ), $I131, 0 ) -> 0 | AK155: =IF(AND($I131 = SUM($W131:AK131), SUM($W155:AJ155) = 0 ), $I131, 0 ) -> 0 | AL155: =IF(AND($I131 = SUM($W131:AL131), SUM($W155:AK155) = 0 ), $I131, 0 ) -> 0 | AM155: =IF(AND($I131 = SUM($W131:AM131), SUM($W155:AL155) = 0 ), $I131, 0 ) -> 0 | AN155: =IF(AND($I131 = SUM($W131:AN131), SUM($W155:AM155) = 0 ), $I131, 0 ) -> 0 | AO155: =IF(AND($I131 = SUM($W131:AO131), SUM($W155:AN155) = 0 ), $I131, 0 ) -> 0
E156: 2006-03-31 | G156: £m 09/10 prices | J156: > | X156: =IF(AND($I132 = SUM($W132:X132), SUM($W156:W156) = 0 ), $I132, 0 ) -> 0 | Y156: =IF(AND($I132 = SUM($W132:Y132), SUM($W156:X156) = 0 ), $I132, 0 ) -> 0 | Z156: =IF(AND($I132 = SUM($W132:Z132), SUM($W156:Y156) = 0 ), $I132, 0 ) -> 0 | AA156: =IF(AND($I132 = SUM($W132:AA132), SUM($W156:Z156) = 0 ), $I132, 0 ) -> 0 | AB156: =IF(AND($I132 = SUM($W132:AB132), SUM($W156:AA156) = 0 ), $I132, 0 ) -> 0 | AC156: =IF(AND($I132 = SUM($W132:AC132), SUM($W156:AB156) = 0 ), $I132, 0 ) -> 0 | AD156: =IF(AND($I132 = SUM($W132:AD132), SUM($W156:AC156) = 0 ), $I132, 0 ) -> 0 | AE156: =IF(AND($I132 = SUM($W132:AE132), SUM($W156:AD156) = 0 ), $I132, 0 ) -> 0 | AF156: =IF(AND($I132 = SUM($W132:AF132), SUM($W156:AE156) = 0 ), $I132, 0 ) -> 0 | AG156: =IF(AND($I132 = SUM($W132:AG132), SUM($W156:AF156) = 0 ), $I132, 0 ) -> 0 | AH156: =IF(AND($I132 = SUM($W132:AH132), SUM($W156:AG156) = 0 ), $I132, 0 ) -> 0 | AI156: =IF(AND($I132 = SUM($W132:AI132), SUM($W156:AH156) = 0 ), $I132, 0 ) -> 0 | AJ156: =IF(AND($I132 = SUM($W132:AJ132), SUM($W156:AI156) = 0 ), $I132, 0 ) -> 0 | AK156: =IF(AND($I132 = SUM($W132:AK132), SUM($W156:AJ156) = 0 ), $I132, 0 ) -> 0 | AL156: =IF(AND($I132 = SUM($W132:AL132), SUM($W156:AK156) = 0 ), $I132, 0 ) -> 0 | AM156: =IF(AND($I132 = SUM($W132:AM132), SUM($W156:AL156) = 0 ), $I132, 0 ) -> 0 | AN156: =IF(AND($I132 = SUM($W132:AN132), SUM($W156:AM156) = 0 ), $I132, 0 ) -> 0 | AO156: =IF(AND($I132 = SUM($W132:AO132), SUM($W156:AN156) = 0 ), $I132, 0 ) -> 0
E157: 2007-03-31 | G157: £m 09/10 prices | J157: > | X157: =IF(AND($I133 = SUM($W133:X133), SUM($W157:W157) = 0 ), $I133, 0 ) -> 0 | Y157: =IF(AND($I133 = SUM($W133:Y133), SUM($W157:X157) = 0 ), $I133, 0 ) -> 0 | Z157: =IF(AND($I133 = SUM($W133:Z133), SUM($W157:Y157) = 0 ), $I133, 0 ) -> 0 | AA157: =IF(AND($I133 = SUM($W133:AA133), SUM($W157:Z157) = 0 ), $I133, 0 ) -> 0 | AB157: =IF(AND($I133 = SUM($W133:AB133), SUM($W157:AA157) = 0 ), $I133, 0 ) -> 0 | AC157: =IF(AND($I133 = SUM($W133:AC133), SUM($W157:AB157) = 0 ), $I133, 0 ) -> 0 | AD157: =IF(AND($I133 = SUM($W133:AD133), SUM($W157:AC157) = 0 ), $I133, 0 ) -> 0 | AE157: =IF(AND($I133 = SUM($W133:AE133), SUM($W157:AD157) = 0 ), $I133, 0 ) -> 0 | AF157: =IF(AND($I133 = SUM($W133:AF133), SUM($W157:AE157) = 0 ), $I133, 0 ) -> 0 | AG157: =IF(AND($I133 = SUM($W133:AG133), SUM($W157:AF157) = 0 ), $I133, 0 ) -> 0 | AH157: =IF(AND($I133 = SUM($W133:AH133), SUM($W157:AG157) = 0 ), $I133, 0 ) -> 0 | AI157: =IF(AND($I133 = SUM($W133:AI133), SUM($W157:AH157) = 0 ), $I133, 0 ) -> 0 | AJ157: =IF(AND($I133 = SUM($W133:AJ133), SUM($W157:AI157) = 0 ), $I133, 0 ) -> 0 | AK157: =IF(AND($I133 = SUM($W133:AK133), SUM($W157:AJ157) = 0 ), $I133, 0 ) -> 0 | AL157: =IF(AND($I133 = SUM($W133:AL133), SUM($W157:AK157) = 0 ), $I133, 0 ) -> 0 | AM157: =IF(AND($I133 = SUM($W133:AM133), SUM($W157:AL157) = 0 ), $I133, 0 ) -> 0 | AN157: =IF(AND($I133 = SUM($W133:AN133), SUM($W157:AM157) = 0 ), $I133, 0 ) -> 0 | AO157: =IF(AND($I133 = SUM($W133:AO133), SUM($W157:AN157) = 0 ), $I133, 0 ) -> 0
E158: 2008-03-31 | G158: £m 09/10 prices | J158: > | X158: =IF(AND($I134 = SUM($W134:X134), SUM($W158:W158) = 0 ), $I134, 0 ) -> 0 | Y158: =IF(AND($I134 = SUM($W134:Y134), SUM($W158:X158) = 0 ), $I134, 0 ) -> 0 | Z158: =IF(AND($I134 = SUM($W134:Z134), SUM($W158:Y158) = 0 ), $I134, 0 ) -> 0 | AA158: =IF(AND($I134 = SUM($W134:AA134), SUM($W158:Z158) = 0 ), $I134, 0 ) -> 0 | AB158: =IF(AND($I134 = SUM($W134:AB134), SUM($W158:AA158) = 0 ), $I134, 0 ) -> 0 | AC158: =IF(AND($I134 = SUM($W134:AC134), SUM($W158:AB158) = 0 ), $I134, 0 ) -> 0 | AD158: =IF(AND($I134 = SUM($W134:AD134), SUM($W158:AC158) = 0 ), $I134, 0 ) -> 0 | AE158: =IF(AND($I134 = SUM($W134:AE134), SUM($W158:AD158) = 0 ), $I134, 0 ) -> 0 | AF158: =IF(AND($I134 = SUM($W134:AF134), SUM($W158:AE158) = 0 ), $I134, 0 ) -> 0 | AG158: =IF(AND($I134 = SUM($W134:AG134), SUM($W158:AF158) = 0 ), $I134, 0 ) -> 0 | AH158: =IF(AND($I134 = SUM($W134:AH134), SUM($W158:AG158) = 0 ), $I134, 0 ) -> 0 | AI158: =IF(AND($I134 = SUM($W134:AI134), SUM($W158:AH158) = 0 ), $I134, 0 ) -> 0 | AJ158: =IF(AND($I134 = SUM($W134:AJ134), SUM($W158:AI158) = 0 ), $I134, 0 ) -> 0 | AK158: =IF(AND($I134 = SUM($W134:AK134), SUM($W158:AJ158) = 0 ), $I134, 0 ) -> 0 | AL158: =IF(AND($I134 = SUM($W134:AL134), SUM($W158:AK158) = 0 ), $I134, 0 ) -> 0 | AM158: =IF(AND($I134 = SUM($W134:AM134), SUM($W158:AL158) = 0 ), $I134, 0 ) -> 0 | AN158: =IF(AND($I134 = SUM($W134:AN134), SUM($W158:AM158) = 0 ), $I134, 0 ) -> 0 | AO158: =IF(AND($I134 = SUM($W134:AO134), SUM($W158:AN158) = 0 ), $I134, 0 ) -> 0
E159: 2009-03-31 | G159: £m 09/10 prices | J159: > | X159: =IF(AND($I135 = SUM($W135:X135), SUM($W159:W159) = 0 ), $I135, 0 ) -> 0 | Y159: =IF(AND($I135 = SUM($W135:Y135), SUM($W159:X159) = 0 ), $I135, 0 ) -> 0 | Z159: =IF(AND($I135 = SUM($W135:Z135), SUM($W159:Y159) = 0 ), $I135, 0 ) -> 0 | AA159: =IF(AND($I135 = SUM($W135:AA135), SUM($W159:Z159) = 0 ), $I135, 0 ) -> 0 | AB159: =IF(AND($I135 = SUM($W135:AB135), SUM($W159:AA159) = 0 ), $I135, 0 ) -> 0 | AC159: =IF(AND($I135 = SUM($W135:AC135), SUM($W159:AB159) = 0 ), $I135, 0 ) -> 0 | AD159: =IF(AND($I135 = SUM($W135:AD135), SUM($W159:AC159) = 0 ), $I135, 0 ) -> 0 | AE159: =IF(AND($I135 = SUM($W135:AE135), SUM($W159:AD159) = 0 ), $I135, 0 ) -> 0 | AF159: =IF(AND($I135 = SUM($W135:AF135), SUM($W159:AE159) = 0 ), $I135, 0 ) -> 0 | AG159: =IF(AND($I135 = SUM($W135:AG135), SUM($W159:AF159) = 0 ), $I135, 0 ) -> 0 | AH159: =IF(AND($I135 = SUM($W135:AH135), SUM($W159:AG159) = 0 ), $I135, 0 ) -> 0 | AI159: =IF(AND($I135 = SUM($W135:AI135), SUM($W159:AH159) = 0 ), $I135, 0 ) -> 0 | AJ159: =IF(AND($I135 = SUM($W135:AJ135), SUM($W159:AI159) = 0 ), $I135, 0 ) -> 0 | AK159: =IF(AND($I135 = SUM($W135:AK135), SUM($W159:AJ159) = 0 ), $I135, 0 ) -> 0 | AL159: =IF(AND($I135 = SUM($W135:AL135), SUM($W159:AK159) = 0 ), $I135, 0 ) -> 0 | AM159: =IF(AND($I135 = SUM($W135:AM135), SUM($W159:AL159) = 0 ), $I135, 0 ) -> 0 | AN159: =IF(AND($I135 = SUM($W135:AN135), SUM($W159:AM159) = 0 ), $I135, 0 ) -> 0 | AO159: =IF(AND($I135 = SUM($W135:AO135), SUM($W159:AN159) = 0 ), $I135, 0 ) -> 0
E160: 2010-03-31 | G160: £m 09/10 prices | J160: > | X160: =IF(AND($I136 = SUM($W136:X136), SUM($W160:W160) = 0 ), $I136, 0 ) -> 0 | Y160: =IF(AND($I136 = SUM($W136:Y136), SUM($W160:X160) = 0 ), $I136, 0 ) -> 0 | Z160: =IF(AND($I136 = SUM($W136:Z136), SUM($W160:Y160) = 0 ), $I136, 0 ) -> 0 | AA160: =IF(AND($I136 = SUM($W136:AA136), SUM($W160:Z160) = 0 ), $I136, 0 ) -> 0 | AB160: =IF(AND($I136 = SUM($W136:AB136), SUM($W160:AA160) = 0 ), $I136, 0 ) -> 0 | AC160: =IF(AND($I136 = SUM($W136:AC136), SUM($W160:AB160) = 0 ), $I136, 0 ) -> 0 | AD160: =IF(AND($I136 = SUM($W136:AD136), SUM($W160:AC160) = 0 ), $I136, 0 ) -> 0 | AE160: =IF(AND($I136 = SUM($W136:AE136), SUM($W160:AD160) = 0 ), $I136, 0 ) -> 0 | AF160: =IF(AND($I136 = SUM($W136:AF136), SUM($W160:AE160) = 0 ), $I136, 0 ) -> 0 | AG160: =IF(AND($I136 = SUM($W136:AG136), SUM($W160:AF160) = 0 ), $I136, 0 ) -> 0 | AH160: =IF(AND($I136 = SUM($W136:AH136), SUM($W160:AG160) = 0 ), $I136, 0 ) -> 0 | AI160: =IF(AND($I136 = SUM($W136:AI136), SUM($W160:AH160) = 0 ), $I136, 0 ) -> 0 | AJ160: =IF(AND($I136 = SUM($W136:AJ136), SUM($W160:AI160) = 0 ), $I136, 0 ) -> 0 | AK160: =IF(AND($I136 = SUM($W136:AK136), SUM($W160:AJ160) = 0 ), $I136, 0 ) -> 0 | AL160: =IF(AND($I136 = SUM($W136:AL136), SUM($W160:AK160) = 0 ), $I136, 0 ) -> 0 | AM160: =IF(AND($I136 = SUM($W136:AM136), SUM($W160:AL160) = 0 ), $I136, 0 ) -> 0 | AN160: =IF(AND($I136 = SUM($W136:AN136), SUM($W160:AM160) = 0 ), $I136, 0 ) -> 0 | AO160: =IF(AND($I136 = SUM($W136:AO136), SUM($W160:AN160) = 0 ), $I136, 0 ) -> 0
E161: 2011-03-31 | G161: £m 09/10 prices | J161: > | X161: =IF(AND($I137 = SUM($W137:X137), SUM($W161:W161) = 0 ), $I137, 0 ) -> 0 | Y161: =IF(AND($I137 = SUM($W137:Y137), SUM($W161:X161) = 0 ), $I137, 0 ) -> 0 | Z161: =IF(AND($I137 = SUM($W137:Z137), SUM($W161:Y161) = 0 ), $I137, 0 ) -> 0 | AA161: =IF(AND($I137 = SUM($W137:AA137), SUM($W161:Z161) = 0 ), $I137, 0 ) -> 0 | AB161: =IF(AND($I137 = SUM($W137:AB137), SUM($W161:AA161) = 0 ), $I137, 0 ) -> 0 | AC161: =IF(AND($I137 = SUM($W137:AC137), SUM($W161:AB161) = 0 ), $I137, 0 ) -> 0 | AD161: =IF(AND($I137 = SUM($W137:AD137), SUM($W161:AC161) = 0 ), $I137, 0 ) -> 0 | AE161: =IF(AND($I137 = SUM($W137:AE137), SUM($W161:AD161) = 0 ), $I137, 0 ) -> 0 | AF161: =IF(AND($I137 = SUM($W137:AF137), SUM($W161:AE161) = 0 ), $I137, 0 ) -> 0 | AG161: =IF(AND($I137 = SUM($W137:AG137), SUM($W161:AF161) = 0 ), $I137, 0 ) -> 0 | AH161: =IF(AND($I137 = SUM($W137:AH137), SUM($W161:AG161) = 0 ), $I137, 0 ) -> 0 | AI161: =IF(AND($I137 = SUM($W137:AI137), SUM($W161:AH161) = 0 ), $I137, 0 ) -> 0 | AJ161: =IF(AND($I137 = SUM($W137:AJ137), SUM($W161:AI161) = 0 ), $I137, 0 ) -> 0 | AK161: =IF(AND($I137 = SUM($W137:AK137), SUM($W161:AJ161) = 0 ), $I137, 0 ) -> 0 | AL161: =IF(AND($I137 = SUM($W137:AL137), SUM($W161:AK161) = 0 ), $I137, 0 ) -> 0 | AM161: =IF(AND($I137 = SUM($W137:AM137), SUM($W161:AL161) = 0 ), $I137, 0 ) -> 0 | AN161: =IF(AND($I137 = SUM($W137:AN137), SUM($W161:AM161) = 0 ), $I137, 0 ) -> 0 | AO161: =IF(AND($I137 = SUM($W137:AO137), SUM($W161:AN161) = 0 ), $I137, 0 ) -> 0
E162: 2012-03-31 | G162: £m 09/10 prices | J162: > | X162: =IF(AND($I138 = SUM($W138:X138), SUM($W162:W162) = 0 ), $I138, 0 ) -> 0 | Y162: =IF(AND($I138 = SUM($W138:Y138), SUM($W162:X162) = 0 ), $I138, 0 ) -> 0 | Z162: =IF(AND($I138 = SUM($W138:Z138), SUM($W162:Y162) = 0 ), $I138, 0 ) -> 0 | AA162: =IF(AND($I138 = SUM($W138:AA138), SUM($W162:Z162) = 0 ), $I138, 0 ) -> 0 | AB162: =IF(AND($I138 = SUM($W138:AB138), SUM($W162:AA162) = 0 ), $I138, 0 ) -> 0 | AC162: =IF(AND($I138 = SUM($W138:AC138), SUM($W162:AB162) = 0 ), $I138, 0 ) -> 0 | AD162: =IF(AND($I138 = SUM($W138:AD138), SUM($W162:AC162) = 0 ), $I138, 0 ) -> 0 | AE162: =IF(AND($I138 = SUM($W138:AE138), SUM($W162:AD162) = 0 ), $I138, 0 ) -> 0 | AF162: =IF(AND($I138 = SUM($W138:AF138), SUM($W162:AE162) = 0 ), $I138, 0 ) -> 0 | AG162: =IF(AND($I138 = SUM($W138:AG138), SUM($W162:AF162) = 0 ), $I138, 0 ) -> 0 | AH162: =IF(AND($I138 = SUM($W138:AH138), SUM($W162:AG162) = 0 ), $I138, 0 ) -> 0 | AI162: =IF(AND($I138 = SUM($W138:AI138), SUM($W162:AH162) = 0 ), $I138, 0 ) -> 0 | AJ162: =IF(AND($I138 = SUM($W138:AJ138), SUM($W162:AI162) = 0 ), $I138, 0 ) -> 0 | AK162: =IF(AND($I138 = SUM($W138:AK138), SUM($W162:AJ162) = 0 ), $I138, 0 ) -> 0 | AL162: =IF(AND($I138 = SUM($W138:AL138), SUM($W162:AK162) = 0 ), $I138, 0 ) -> 0 | AM162: =IF(AND($I138 = SUM($W138:AM138), SUM($W162:AL162) = 0 ), $I138, 0 ) -> 0 | AN162: =IF(AND($I138 = SUM($W138:AN138), SUM($W162:AM162) = 0 ), $I138, 0 ) -> 0 | AO162: =IF(AND($I138 = SUM($W138:AO138), SUM($W162:AN162) = 0 ), $I138, 0 ) -> 0
E163: 2013-03-31 | G163: £m 09/10 prices | J163: > | X163: =IF(AND($I139 = SUM($W139:X139), SUM($W163:W163) = 0 ), $I139, 0 ) -> 0 | Y163: =IF(AND($I139 = SUM($W139:Y139), SUM($W163:X163) = 0 ), $I139, 0 ) -> 0 | Z163: =IF(AND($I139 = SUM($W139:Z139), SUM($W163:Y163) = 0 ), $I139, 0 ) -> 0 | AA163: =IF(AND($I139 = SUM($W139:AA139), SUM($W163:Z163) = 0 ), $I139, 0 ) -> 0 | AB163: =IF(AND($I139 = SUM($W139:AB139), SUM($W163:AA163) = 0 ), $I139, 0 ) -> 0 | AC163: =IF(AND($I139 = SUM($W139:AC139), SUM($W163:AB163) = 0 ), $I139, 0 ) -> 0 | AD163: =IF(AND($I139 = SUM($W139:AD139), SUM($W163:AC163) = 0 ), $I139, 0 ) -> 0 | AE163: =IF(AND($I139 = SUM($W139:AE139), SUM($W163:AD163) = 0 ), $I139, 0 ) -> 0 | AF163: =IF(AND($I139 = SUM($W139:AF139), SUM($W163:AE163) = 0 ), $I139, 0 ) -> 0 | AG163: =IF(AND($I139 = SUM($W139:AG139), SUM($W163:AF163) = 0 ), $I139, 0 ) -> 0 | AH163: =IF(AND($I139 = SUM($W139:AH139), SUM($W163:AG163) = 0 ), $I139, 0 ) -> 0 | AI163: =IF(AND($I139 = SUM($W139:AI139), SUM($W163:AH163) = 0 ), $I139, 0 ) -> 0 | AJ163: =IF(AND($I139 = SUM($W139:AJ139), SUM($W163:AI163) = 0 ), $I139, 0 ) -> 0 | AK163: =IF(AND($I139 = SUM($W139:AK139), SUM($W163:AJ163) = 0 ), $I139, 0 ) -> 0 | AL163: =IF(AND($I139 = SUM($W139:AL139), SUM($W163:AK163) = 0 ), $I139, 0 ) -> 0 | AM163: =IF(AND($I139 = SUM($W139:AM139), SUM($W163:AL163) = 0 ), $I139, 0 ) -> 0 | AN163: =IF(AND($I139 = SUM($W139:AN139), SUM($W163:AM163) = 0 ), $I139, 0 ) -> 0 | AO163: =IF(AND($I139 = SUM($W139:AO139), SUM($W163:AN163) = 0 ), $I139, 0 ) -> 0
E164: 2014-03-31 | G164: £m 09/10 prices | J164: > | X164: =IF(AND($I140 = SUM($W140:X140), SUM($W164:W164) = 0 ), $I140, 0 ) -> 0 | Y164: =IF(AND($I140 = SUM($W140:Y140), SUM($W164:X164) = 0 ), $I140, 0 ) -> 0 | Z164: =IF(AND($I140 = SUM($W140:Z140), SUM($W164:Y164) = 0 ), $I140, 0 ) -> 0 | AA164: =IF(AND($I140 = SUM($W140:AA140), SUM($W164:Z164) = 0 ), $I140, 0 ) -> 0 | AB164: =IF(AND($I140 = SUM($W140:AB140), SUM($W164:AA164) = 0 ), $I140, 0 ) -> 0 | AC164: =IF(AND($I140 = SUM($W140:AC140), SUM($W164:AB164) = 0 ), $I140, 0 ) -> 0 | AD164: =IF(AND($I140 = SUM($W140:AD140), SUM($W164:AC164) = 0 ), $I140, 0 ) -> 0 | AE164: =IF(AND($I140 = SUM($W140:AE140), SUM($W164:AD164) = 0 ), $I140, 0 ) -> 0 | AF164: =IF(AND($I140 = SUM($W140:AF140), SUM($W164:AE164) = 0 ), $I140, 0 ) -> 0 | AG164: =IF(AND($I140 = SUM($W140:AG140), SUM($W164:AF164) = 0 ), $I140, 0 ) -> 0 | AH164: =IF(AND($I140 = SUM($W140:AH140), SUM($W164:AG164) = 0 ), $I140, 0 ) -> 0 | AI164: =IF(AND($I140 = SUM($W140:AI140), SUM($W164:AH164) = 0 ), $I140, 0 ) -> 0 | AJ164: =IF(AND($I140 = SUM($W140:AJ140), SUM($W164:AI164) = 0 ), $I140, 0 ) -> 0 | AK164: =IF(AND($I140 = SUM($W140:AK140), SUM($W164:AJ164) = 0 ), $I140, 0 ) -> 0 | AL164: =IF(AND($I140 = SUM($W140:AL140), SUM($W164:AK164) = 0 ), $I140, 0 ) -> 0 | AM164: =IF(AND($I140 = SUM($W140:AM140), SUM($W164:AL164) = 0 ), $I140, 0 ) -> 0 | AN164: =IF(AND($I140 = SUM($W140:AN140), SUM($W164:AM164) = 0 ), $I140, 0 ) -> 0 | AO164: =IF(AND($I140 = SUM($W140:AO140), SUM($W164:AN164) = 0 ), $I140, 0 ) -> 0
E165: 2015-03-31 | G165: £m 09/10 prices | J165: > | X165: =IF(AND($I141 = SUM($W141:X141), SUM($W165:W165) = 0 ), $I141, 0 ) -> 0 | Y165: =IF(AND($I141 = SUM($W141:Y141), SUM($W165:X165) = 0 ), $I141, 0 ) -> 0 | Z165: =IF(AND($I141 = SUM($W141:Z141), SUM($W165:Y165) = 0 ), $I141, 0 ) -> 0 | AA165: =IF(AND($I141 = SUM($W141:AA141), SUM($W165:Z165) = 0 ), $I141, 0 ) -> 0 | AB165: =IF(AND($I141 = SUM($W141:AB141), SUM($W165:AA165) = 0 ), $I141, 0 ) -> 0 | AC165: =IF(AND($I141 = SUM($W141:AC141), SUM($W165:AB165) = 0 ), $I141, 0 ) -> 0 | AD165: =IF(AND($I141 = SUM($W141:AD141), SUM($W165:AC165) = 0 ), $I141, 0 ) -> 0 | AE165: =IF(AND($I141 = SUM($W141:AE141), SUM($W165:AD165) = 0 ), $I141, 0 ) -> 0 | AF165: =IF(AND($I141 = SUM($W141:AF141), SUM($W165:AE165) = 0 ), $I141, 0 ) -> 0 | AG165: =IF(AND($I141 = SUM($W141:AG141), SUM($W165:AF165) = 0 ), $I141, 0 ) -> 0 | AH165: =IF(AND($I141 = SUM($W141:AH141), SUM($W165:AG165) = 0 ), $I141, 0 ) -> 0 | AI165: =IF(AND($I141 = SUM($W141:AI141), SUM($W165:AH165) = 0 ), $I141, 0 ) -> 0 | AJ165: =IF(AND($I141 = SUM($W141:AJ141), SUM($W165:AI165) = 0 ), $I141, 0 ) -> 0 | AK165: =IF(AND($I141 = SUM($W141:AK141), SUM($W165:AJ165) = 0 ), $I141, 0 ) -> 0 | AL165: =IF(AND($I141 = SUM($W141:AL141), SUM($W165:AK165) = 0 ), $I141, 0 ) -> 0 | AM165: =IF(AND($I141 = SUM($W141:AM141), SUM($W165:AL165) = 0 ), $I141, 0 ) -> 0 | AN165: =IF(AND($I141 = SUM($W141:AN141), SUM($W165:AM165) = 0 ), $I141, 0 ) -> 0 | AO165: =IF(AND($I141 = SUM($W141:AO141), SUM($W165:AN165) = 0 ), $I141, 0 ) -> 0
